Workbook

Sheet Projection1
B1: Month-Year | C1: Colorado Springs Utilities Pilot Project
B2: ='Actual Accting'!B2 -> 2019-03-01
N3: -
A12: Month | B12: Day | C12: River Call | D12: Location of Call | E12: Measured River Headgate Diversions | F12: Fry-Ark Project Water and Recharge | G12: Direct Flow Diversions | H12: Direct Flow Rights | N12: Deliveries from Fallowed Shares | R12: Augmentation Station Deliveries | Z12: Return Flow Replacements | AH12: CU Credit | AS12: Exchange Potential
F13: Fry-Ark | H13: Priority Date | L13: Winter | O13: Maximum | P13: Tailwater | R13: Timpas Creek Aug Station Deliveries | V13: Crooked Arroyo Aug Station Deliveries | Z13: Transit Loss to | AA13: Transit Loss to | AC13: Net | AD13: Net Crooked | AE13: Calc'd Water | AF13: Actual | AG13: Water for | AH13: Transit Loss to | AI13: Transit Loss to | AJ13: Net | AK13: Net | AL13: Net Total | AM13: CU Credit Available | AP13: Daily | AS13: Estimated | AT13: 0.9
F14: Water | H14: 4/10/1875 | I14: 12/3/1884 | J14: 11/14/1887 | K14: Total | L14: Water (WW) | M14: Total | O14: CU Portion | P14: Return Flow | Q14: Deep Perc | R14: Total Measured | S14: CU Portion | T14: Tailwater RF | U14: Deep Perc | V14: Total Measured | W14: CU Portion | X14: Tailwater RF | Y14: Deep Perc | Z14: Confl Ark R & | AA14: Confl Ark R & | AB14: CU Delivery | AC14: Timpas Crk | AD14: Arroyo | AE14: to be Used | AF14: Water Used | AG14: Return Flow | AH14: Confl Ark R & | AI14: Confl Ark R & | AJ14: CU Water | AK14: CU Water | AL14: CU | AM14: to Fountain | AP14: Target | AQ14: Actual
E15: Measured | G15: Measured | H15: Diversion Rate | K15: Native | L15: HG | M15: IWSA | N15: FHG | O15: of | P15: Portion of | Q15: Portion of | R15: Timpas Creek | S15: of | T15: Portion of | U15: RF Portion | V15: Crooked Arroyo | W15: of | X15: Portion of | Y15: RF Portion | Z15: Timpas Creek | AA15: Crooked Arroyo | AB15: for Deep Perc | AC15: Deep Perc | AD15: Deep Perc | AE15: for RF | AF15: for RF | AG15: Replacement | AH15: Timpas Creek | AI15: Crooked Arroyo | AJ15: at Timpas Crk | AK15: at Crooked Arroyo | AL15: to Arkansas | AM15: %CU | AN15: Timpas | AO15: Crooked | AP15: Deep Perc | AQ15: Deep Perc
C16: River Call | E16: Diversions | G16: Diversions | H16: 22 | I16: 226 | J16: 97 | K16: Ditch | L16: Delivery | M16: Diversion | N16: Deliveries | O16: Delivery | P16: Delivery | Q16: Delivery | R16: Aug Stn Delivery | S16: Delivery | T16: Delivery | U16: of Delivery | V16: Aug Stn Delivery | W16: Delivery | X16: Delivery | Y16: of Delivery | Z16: Dp Perc Water | AA16: Dp Perc Water | AB16: Transit Loss | AC16: Credit to Ark R | AD16: Credit to Ark R | AE16: Replacement | AF16: Replacement | AG16: Balance | AH16: CU Water | AI16: CU Water | AJ16: Aug Station | AK16: Aug Station | AL16: River | AM16: Delivery | AN16: Creek | AO16: Arroyo | AP16: to Aug Stns | AQ16: to Aug Stns
E17: cfs | F17: cfs | G17: cfs | H17: cfs | I17: cfs | J17: cfs | K17: cfs | L17: cfs | M17: cfs | N17: cfs | O17: cfs | P17: cfs | Q17: cfs | R17: cfs | S17: cfs | T17: cfs | U17: cfs | V17: cfs | W17: cfs | X17: cfs | Y17: cfs | Z17: cfs | AA17: cfs | AB17: cfs | AC17: cfs | AD17: cfs | AE17: cfs | AF17: cfs | AG17: cfs | AH17: cfs | AI17: cfs | AJ17: cfs | AK17: cfs | AL17: cfs | AM17: % | AN17: cfs | AO17: cfs | AP17: shares | AQ17: shares | AS17: cfs | AT17: cfs
B18: -1 | C18: -2 | D18: =C18-1 -> -3 | E18: =D18-1 -> -4 | F18: -5 | G18: -6 | H18: -7 | I18: -8 | J18: -9 | K18: -10 | L18: -11 | M18: =L18-0.5 -> -11.5 | N18: =L18-1 -> -12 | O18: -13 | P18: -14 | Q18: -15 | R18: -28 | S18: -29 | T18: -30 | U18: -31 | V18: -32 | W18: -33 | X18: -34 | Y18: -35 | Z18: -36 | AA18: -37 | AB18: -38 | AC18: -39 | AD18: -40 | AE18: -41 | AF18: -42 | AG18: -43 | AH18: -44 | AI18: -45 | AJ18: -46 | AK18: -47 | AL18: -48 | AM18: -49 | AN18: -50 | AO18: -51 | AP18: -64 | AQ18: -65 | AS18: -66 | AT18: -67
A19: =MONTH(B19) -> 3 | B19: ='Actual Accting'!B19 -> 2019-03-01 | C19: - | D19: - | E19: - | F19: - | G19: - | H19: - | I19: - | J19: - | K19: - | L19: - | M19: - | N19: - | O19: - | P19: - | Q19: - | R19: - | S19: - | T19: - | U19: - | V19: - | W19: - | X19: - | Y19: - | Z19: - | AA19: - | AB19: - | AC19: - | AD19: - | AE19: - | AF19: - | AG19: - | AH19: - | AI19: - | AJ19: - | AK19: - | AL19: - | AM19: - | AN19: - | AO19: - | AP19: - | AQ19: - | AS19: - | AT19: -
A20: =MONTH(B20) -> 3 | B20: ='Actual Accting'!B20 -> 2019-03-02 | C20: - | D20: - | E20: - | F20: - | G20: - | H20: - | I20: - | J20: - | K20: - | L20: - | M20: - | N20: - | O20: - | P20: - | Q20: - | R20: - | S20: - | T20: - | U20: - | V20: - | W20: - | X20: - | Y20: - | Z20: - | AA20: - | AB20: - | AC20: - | AD20: - | AE20: - | AF20: - | AG20: - | AH20: - | AI20: - | AJ20: - | AK20: - | AL20: - | AM20: - | AN20: - | AO20: - | AP20: - | AQ20: - | AS20: - | AT20: -
A21: 3 | B21: ='Actual Accting'!B21 -> 2019-03-03 | C21: - | D21: - | E21: - | F21: - | G21: - | H21: - | I21: - | J21: - | K21: - | L21: - | M21: - | N21: - | O21: - | P21: - | Q21: - | R21: - | S21: - | T21: - | U21: - | V21: - | W21: - | X21: - | Y21: - | Z21: - | AA21: - | AB21: - | AC21: - | AD21: - | AE21: - | AF21: - | AG21: - | AH21: - | AI21: - | AJ21: - | AK21: - | AL21: - | AM21: - | AN21: - | AO21: - | AP21: - | AQ21: - | AS21: - | AT21: -
A22: 3 | B22: ='Actual Accting'!B22 -> 2019-03-04 | C22: - | D22: - | E22: - | F22: - | G22: - | H22: - | I22: - | J22: - | K22: - | L22: - | M22: - | N22: - | O22: - | P22: - | Q22: - | R22: - | S22: - | T22: - | U22: - | V22: - | W22: - | X22: - | Y22: - | Z22: - | AA22: - | AB22: - | AC22: - | AD22: - | AE22: - | AF22: - | AG22: - | AH22: - | AI22: - | AJ22: - | AK22: - | AL22: - | AM22: - | AN22: - | AO22: - | AP22: - | AQ22: - | AS22: - | AT22: -
A23: 3 | B23: ='Actual Accting'!B23 -> 2019-03-05 | C23: - | D23: - | E23: - | F23: - | G23: - | H23: - | I23: - | J23: - | K23: - | L23: - | M23: - | N23: - | O23: - | P23: - | Q23: - | R23: - | S23: - | T23: - | U23: - | V23: - | W23: - | X23: - | Y23: - | Z23: - | AA23: - | AB23: - | AC23: - | AD23: - | AE23: - | AF23: - | AG23: - | AH23: - | AI23: - | AJ23: - | AK23: - | AL23: - | AM23: - | AN23: - | AO23: - | AP23: - | AQ23: - | AS23: - | AT23: -
A24: 3 | B24: ='Actual Accting'!B24 -> 2019-03-06 | C24: - | D24: - | E24: - | F24: - | G24: - | H24: - | I24: - | J24: - | K24: - | L24: - | M24: - | N24: - | O24: - | P24: - | Q24: - | R24: - | S24: - | T24: - | U24: - | V24: - | W24: - | X24: - | Y24: - | Z24: - | AA24: - | AB24: - | AC24: - | AD24: - | AE24: - | AF24: - | AG24: - | AH24: - | AI24: - | AJ24: - | AK24: - | AL24: - | AM24: - | AN24: - | AO24: - | AP24: - | AQ24: - | AS24: - | AT24: -
A25: 3 | B25: ='Actual Accting'!B25 -> 2019-03-07 | C25: - | D25: - | E25: - | F25: - | G25: - | H25: - | I25: - | J25: - | K25: - | L25: - | M25: - | N25: - | O25: - | P25: - | Q25: - | R25: - | S25: - | T25: - | U25: - | V25: - | W25: - | X25: - | Y25: - | Z25: - | AA25: - | AB25: - | AC25: - | AD25: - | AE25: - | AF25: - | AG25: - | AH25: - | AI25: - | AJ25: - | AK25: - | AL25: - | AM25: - | AN25: - | AO25: - | AP25: - | AQ25: - | AS25: - | AT25: -
A26: 3 | B26: ='Actual Accting'!B26 -> 2019-03-08 | C26: - | D26: - | E26: - | F26: - | G26: - | H26: - | I26: - | J26: - | K26: - | L26: - | M26: - | N26: - | O26: - | P26: - | Q26: - | R26: - | S26: - | T26: - | U26: - | V26: - | W26: - | X26: - | Y26: - | Z26: - | AA26: - | AB26: - | AC26: - | AD26: - | AE26: - | AF26: - | AG26: - | AH26: - | AI26: - | AJ26: - | AK26: - | AL26: - | AM26: - | AN26: - | AO26: - | AP26: - | AQ26: - | AS26: - | AT26: -
A27: 3 | B27: ='Actual Accting'!B27 -> 2019-03-09 | C27: - | D27: - | E27: - | F27: - | G27: - | H27: - | I27: - | J27: - | K27: - | L27: - | M27: - | N27: - | O27: - | P27: - | Q27: - | R27: - | S27: - | T27: - | U27: - | V27: - | W27: - | X27: - | Y27: - | Z27: - | AA27: - | AB27: - | AC27: - | AD27: - | AE27: - | AF27: - | AG27: - | AH27: - | AI27: - | AJ27: - | AK27: - | AL27: - | AM27: - | AN27: - | AO27: - | AP27: - | AQ27: - | AS27: - | AT27: -
A28: 3 | B28: ='Actual Accting'!B28 -> 2019-03-10 | C28: - | D28: - | E28: - | F28: - | G28: - | H28: - | I28: - | J28: - | K28: - | L28: - | M28: - | N28: - | O28: - | P28: - | Q28: - | R28: - | S28: - | T28: - | U28: - | V28: - | W28: - | X28: - | Y28: - | Z28: - | AA28: - | AB28: - | AC28: - | AD28: - | AE28: - | AF28: - | AG28: - | AH28: - | AI28: - | AJ28: - | AK28: - | AL28: - | AM28: - | AN28: - | AO28: - | AP28: - | AQ28: - | AS28: - | AT28: -
A29: 3 | B29: ='Actual Accting'!B29 -> 2019-03-11 | C29: - | D29: - | E29: - | F29: - | G29: - | H29: - | I29: - | J29: - | K29: - | L29: - | M29: - | N29: - | O29: - | P29: - | Q29: - | R29: - | S29: - | T29: - | U29: - | V29: - | W29: - | X29: - | Y29: - | Z29: - | AA29: - | AB29: - | AC29: - | AD29: - | AE29: - | AF29: - | AG29: - | AH29: - | AI29: - | AJ29: - | AK29: - | AL29: - | AM29: - | AN29: - | AO29: - | AP29: - | AQ29: - | AS29: - | AT29: -
A30: 3 | B30: ='Actual Accting'!B30 -> 2019-03-12 | C30: - | D30: - | E30: - | F30: - | G30: - | H30: - | I30: - | J30: - | K30: - | L30: - | M30: - | N30: - | O30: - | P30: - | Q30: - | R30: - | S30: - | T30: - | U30: - | V30: - | W30: - | X30: - | Y30: - | Z30: - | AA30: - | AB30: - | AC30: - | AD30: - | AE30: - | AF30: - | AG30: - | AH30: - | AI30: - | AJ30: - | AK30: - | AL30: - | AM30: - | AN30: - | AO30: - | AP30: - | AQ30: - | AS30: - | AT30: -
A31: 3 | B31: ='Actual Accting'!B31 -> 2019-03-13 | C31: - | D31: - | E31: - | F31: - | G31: - | H31: - | I31: - | J31: - | K31: - | L31: - | M31: - | N31: - | O31: - | P31: - | Q31: - | R31: - | S31: - | T31: - | U31: - | V31: - | W31: - | X31: - | Y31: - | Z31: - | AA31: - | AB31: - | AC31: - | AD31: - | AE31: - | AF31: - | AG31: - | AH31: - | AI31: - | AJ31: - | AK31: - | AL31: - | AM31: - | AN31: - | AO31: - | AP31: - | AQ31: - | AS31: - | AT31: -
A32: 3 | B32: ='Actual Accting'!B32 -> 2019-03-14 | C32: - | D32: - | E32: - | F32: - | G32: - | H32: - | I32: - | J32: - | K32: - | L32: - | M32: - | N32: - | O32: - | P32: - | Q32: - | R32: - | S32: - | T32: - | U32: - | V32: - | W32: - | X32: - | Y32: - | Z32: - | AA32: - | AB32: - | AC32: - | AD32: - | AE32: - | AF32: - | AG32: - | AH32: - | AI32: - | AJ32: - | AK32: - | AL32: - | AM32: - | AN32: - | AO32: - | AP32: - | AQ32: - | AS32: - | AT32: -
A33: 3 | B33: ='Actual Accting'!B33 -> 2019-03-15 | C33: ='Actual Accting'!C33 -> 0 | D33: ='Actual Accting'!D33 -> 0 | E33: =HLOOKUP(MONTH($B33),LT!$B$93:$N$95,3) -> 91.54290098 | F33: ='Actual Accting'!F33 -> 0 | G33: - | H33: - | I33: - | J33: - | K33: - | L33: - | M33: =(E33)*LT!$G$7/LT!$A$7 -> 3.115205901 | N33: =M33*(1-LT!$G$44) -> 2.572198516 | O33: =$N33*VLOOKUP(MONTH($B33),LT!$A$13:$S$21,14) -> 0.9092721752 | P33: =$N33*VLOOKUP(MONTH($B33),LT!$A$13:$S$21,15) -> 1.216853803 | Q33: =$N33*VLOOKUP(MONTH($B33),LT!$A$13:$S$21,16) -> 1.741352168 | R33: =(N33)*VLOOKUP(MONTH($B33),LT!$A$50:$C$58,2) -> 2.572198516 | S33: =MIN($O33,R33-T33-U33)*VLOOKUP(MONTH($B33),LT!$A$50:$C$58,2) -> 0.05073559278 | T33: =IF(R33>0,MIN($P33,R33),"0")*VLOOKUP(MONTH($B33),LT!$A$50:$C$58,2) -> 1.216853803 | U33: =$N33*(VLOOKUP(MONTH($B33),LT!$A$27:$W$35,12))/LT!$G$7*VLOOKUP(MONTH($B33),LT!$A$50:$C$58,2) -> 1.30460912 | V33: =(N33)*VLOOKUP(MONTH($B33),LT!$A$50:$C$58,3) -> 0 | W33: =MIN($O33,V33-X33-Y33)*VLOOKUP(MONTH($B33),LT!$A$50:$C$58,3) -> 0 | X33: =IF(V33>0,MIN($P33,V33),"0")*VLOOKUP(MONTH($B33),LT!$A$50:$C$58,3) -> 0 | Y33: =$N33*(VLOOKUP(MONTH($B33),LT!$A$27:$W$35,12))/LT!$G$7*VLOOKUP(MONTH($B33),LT!$A$50:$C$58,3) -> 0 | Z33: =U33*LT!$H$79 -> 0.016307614 | AA33: =Y33*LT!$H$80 -> 0 | AB33: =SUM(Z33:AA33) -> 0.016307614 | AC33: =U33 -> 1.30460912 | AD33: =Y33 -> 0 | AE33: =P33+Q33 -> 2.958205971 | AF33: =SUM(T33,AC33,X33,AD33) -> 2.521462923 | AG33: =AF33+AB33-AE33 -> -0.4204354342 | AH33: =LT!$H$79*(S33-Z33) -> 0.0004303497348 | AI33: =LT!$H$80*(W33-AA33) -> 0 | AJ33: =S33-AH33-Z33 -> 0.03399762905 | AK33: =W33-AI33-AA33 -> 0 | AL33: =AJ33+AK33 -> 0.03399762905 | AM33: 1 | AN33: =AJ33*AM33 -> 0.03399762905 | AO33: =AK33*AM33 -> 0 | AP33: =VLOOKUP(MONTH($B33),LT!$A$27:$W$35,21)+VLOOKUP(MONTH($B33),LT!$A$27:$W$35,22)/(1-LT!$H$80) -> 72.36703422 | AQ33: =IF(Q33=0,"-",(AC33+AD33)/(N33/LT!$G$7)) -> 322.0695395 | AS33: =AN33 -> 0.03399762905 | AT33: =AS33*0.9 -> 0.03059786614
A34: 3 | B34: ='Actual Accting'!B34 -> 2019-03-16 | C34: ='Actual Accting'!C34 -> 0 | D34: ='Actual Accting'!D34 -> 0 | E34: =HLOOKUP(MONTH($B34),LT!$B$93:$N$95,3) -> 91.54290098 | F34: ='Actual Accting'!F34 -> 0 | G34: - | H34: - | I34: - | J34: - | K34: - | L34: - | M34: =(E34)*LT!$G$7/LT!$A$7 -> 3.115205901 | N34: =M34*(1-LT!$G$44) -> 2.572198516 | O34: =$N34*VLOOKUP(MONTH($B34),LT!$A$13:$S$21,14) -> 0.9092721752 | P34: =$N34*VLOOKUP(MONTH($B34),LT!$A$13:$S$21,15) -> 1.216853803 | Q34: =$N34*VLOOKUP(MONTH($B34),LT!$A$13:$S$21,16) -> 1.741352168 | R34: =(N34)*VLOOKUP(MONTH($B34),LT!$A$50:$C$58,2) -> 2.572198516 | S34: =MIN($O34,R34-T34-U34)*VLOOKUP(MONTH($B34),LT!$A$50:$C$58,2) -> 0.05073559278 | T34: =IF(R34>0,MIN($P34,R34),"0")*VLOOKUP(MONTH($B34),LT!$A$50:$C$58,2) -> 1.216853803 | U34: =$N34*(VLOOKUP(MONTH($B34),LT!$A$27:$W$35,12))/LT!$G$7*VLOOKUP(MONTH($B34),LT!$A$50:$C$58,2) -> 1.30460912 | V34: =(N34)*VLOOKUP(MONTH($B34),LT!$A$50:$C$58,3) -> 0 | W34: =MIN($O34,V34-X34-Y34)*VLOOKUP(MONTH($B34),LT!$A$50:$C$58,3) -> 0 | X34: =IF(V34>0,MIN($P34,V34),"0")*VLOOKUP(MONTH($B34),LT!$A$50:$C$58,3) -> 0 | Y34: =$N34*(VLOOKUP(MONTH($B34),LT!$A$27:$W$35,12))/LT!$G$7*VLOOKUP(MONTH($B34),LT!$A$50:$C$58,3) -> 0 | Z34: =U34*LT!$H$79 -> 0.016307614 | AA34: =Y34*LT!$H$80 -> 0 | AB34: 0.016307614 | AC34: =U34 -> 1.30460912 | AD34: =Y34 -> 0 | AE34: 2.958205971 | AF34: =SUM(T34,AC34,X34,AD34) -> 2.521462923 | AG34: -0.4204354342 | AH34: =LT!$H$79*(S34-Z34) -> 0.0004303497348 | AI34: =LT!$H$80*(W34-AA34) -> 0 | AJ34: 0.03399762905 | AK34: 0 | AL34: 0.03399762905 | AM34: 1 | AN34: 0.03399762905 | AO34: 0 | AP34: =VLOOKUP(MONTH($B34),LT!$A$27:$W$35,21)+VLOOKUP(MONTH($B34),LT!$A$27:$W$35,22)/(1-LT!$H$80) -> 72.36703422 | AQ34: =IF(Q34=0,"-",(AC34+AD34)/(N34/LT!$G$7)) -> 322.0695395 | AS34: 0.03399762905 | AT34: 0.03059786614
A35: 3 | B35: ='Actual Accting'!B35 -> 2019-03-17 | C35: ='Actual Accting'!C35 -> 0 | D35: ='Actual Accting'!D35 -> 0 | E35: =HLOOKUP(MONTH($B35),LT!$B$93:$N$95,3) -> 91.54290098 | F35: ='Actual Accting'!F35 -> 0 | G35: - | H35: - | I35: - | J35: - | K35: - | L35: - | M35: =(E35)*LT!$G$7/LT!$A$7 -> 3.115205901 | N35: =M35*(1-LT!$G$44) -> 2.572198516 | O35: =$N35*VLOOKUP(MONTH($B35),LT!$A$13:$S$21,14) -> 0.9092721752 | P35: =$N35*VLOOKUP(MONTH($B35),LT!$A$13:$S$21,15) -> 1.216853803 | Q35: =$N35*VLOOKUP(MONTH($B35),LT!$A$13:$S$21,16) -> 1.741352168 | R35: =(N35)*VLOOKUP(MONTH($B35),LT!$A$50:$C$58,2) -> 2.572198516 | S35: =MIN($O35,R35-T35-U35)*VLOOKUP(MONTH($B35),LT!$A$50:$C$58,2) -> 0.05073559278 | T35: =IF(R35>0,MIN($P35,R35),"0")*VLOOKUP(MONTH($B35),LT!$A$50:$C$58,2) -> 1.216853803 | U35: =$N35*(VLOOKUP(MONTH($B35),LT!$A$27:$W$35,12))/LT!$G$7*VLOOKUP(MONTH($B35),LT!$A$50:$C$58,2) -> 1.30460912 | V35: =(N35)*VLOOKUP(MONTH($B35),LT!$A$50:$C$58,3) -> 0 | W35: =MIN($O35,V35-X35-Y35)*VLOOKUP(MONTH($B35),LT!$A$50:$C$58,3) -> 0 | X35: =IF(V35>0,MIN($P35,V35),"0")*VLOOKUP(MONTH($B35),LT!$A$50:$C$58,3) -> 0 | Y35: =$N35*(VLOOKUP(MONTH($B35),LT!$A$27:$W$35,12))/LT!$G$7*VLOOKUP(MONTH($B35),LT!$A$50:$C$58,3) -> 0 | Z35: =U35*LT!$H$79 -> 0.016307614 | AA35: =Y35*LT!$H$80 -> 0 | AB35: 0.016307614 | AC35: 1.30460912 | AD35: 0 | AE35: 2.958205971 | AF35: 2.521462923 | AG35: -0.4204354342 | AH35: =LT!$H$79*(S35-Z35) -> 0.0004303497348 | AI35: =LT!$H$80*(W35-AA35) -> 0 | AJ35: 0.03399762905 | AK35: 0 | AL35: 0.03399762905 | AM35: 1 | AN35: 0.03399762905 | AO35: 0 | AP35: =VLOOKUP(MONTH($B35),LT!$A$27:$W$35,21)+VLOOKUP(MONTH($B35),LT!$A$27:$W$35,22)/(1-LT!$H$80) -> 72.36703422 | AQ35: =IF(Q35=0,"-",(AC35+AD35)/(N35/LT!$G$7)) -> 322.0695395 | AS35: 0.03399762905 | AT35: 0.03059786614
A36: 3 | B36: ='Actual Accting'!B36 -> 2019-03-18 | C36: ='Actual Accting'!C36 -> 0 | D36: ='Actual Accting'!D36 -> 0 | E36: =HLOOKUP(MONTH($B36),LT!$B$93:$N$95,3) -> 91.54290098 | F36: ='Actual Accting'!F36 -> 0 | G36: - | H36: - | I36: - | J36: - | K36: - | L36: - | M36: =(E36)*LT!$G$7/LT!$A$7 -> 3.115205901 | N36: =M36*(1-LT!$G$44) -> 2.572198516 | O36: =$N36*VLOOKUP(MONTH($B36),LT!$A$13:$S$21,14) -> 0.9092721752 | P36: =$N36*VLOOKUP(MONTH($B36),LT!$A$13:$S$21,15) -> 1.216853803 | Q36: =$N36*VLOOKUP(MONTH($B36),LT!$A$13:$S$21,16) -> 1.741352168 | R36: =(N36)*VLOOKUP(MONTH($B36),LT!$A$50:$C$58,2) -> 2.572198516 | S36: =MIN($O36,R36-T36-U36)*VLOOKUP(MONTH($B36),LT!$A$50:$C$58,2) -> 0.05073559278 | T36: =IF(R36>0,MIN($P36,R36),"0")*VLOOKUP(MONTH($B36),LT!$A$50:$C$58,2) -> 1.216853803 | U36: =$N36*(VLOOKUP(MONTH($B36),LT!$A$27:$W$35,12))/LT!$G$7*VLOOKUP(MONTH($B36),LT!$A$50:$C$58,2) -> 1.30460912 | V36: =(N36)*VLOOKUP(MONTH($B36),LT!$A$50:$C$58,3) -> 0 | W36: =MIN($O36,V36-X36-Y36)*VLOOKUP(MONTH($B36),LT!$A$50:$C$58,3) -> 0 | X36: =IF(V36>0,MIN($P36,V36),"0")*VLOOKUP(MONTH($B36),LT!$A$50:$C$58,3) -> 0 | Y36: =$N36*(VLOOKUP(MONTH($B36),LT!$A$27:$W$35,12))/LT!$G$7*VLOOKUP(MONTH($B36),LT!$A$50:$C$58,3) -> 0 | Z36: =U36*LT!$H$79 -> 0.016307614 | AA36: =Y36*LT!$H$80 -> 0 | AB36: 0.016307614 | AC36: 1.30460912 | AD36: 0 | AE36: 2.958205971 | AF36: 2.521462923 | AG36: -0.4204354342 | AH36: =LT!$H$79*(S36-Z36) -> 0.0004303497348 | AI36: =LT!$H$80*(W36-AA36) -> 0 | AJ36: 0.03399762905 | AK36: 0 | AL36: 0.03399762905 | AM36: 1 | AN36: 0.03399762905 | AO36: 0 | AP36: =VLOOKUP(MONTH($B36),LT!$A$27:$W$35,21)+VLOOKUP(MONTH($B36),LT!$A$27:$W$35,22)/(1-LT!$H$80) -> 72.36703422 | AQ36: =IF(Q36=0,"-",(AC36+AD36)/(N36/LT!$G$7)) -> 322.0695395 | AS36: 0.03399762905 | AT36: 0.03059786614
A37: 3 | B37: ='Actual Accting'!B37 -> 2019-03-19 | C37: ='Actual Accting'!C37 -> 0 | D37: ='Actual Accting'!D37 -> 0 | E37: =HLOOKUP(MONTH($B37),LT!$B$93:$N$95,3) -> 91.54290098 | F37: ='Actual Accting'!F37 -> 0 | G37: - | H37: - | I37: - | J37: - | K37: - | L37: - | M37: =(E37)*LT!$G$7/LT!$A$7 -> 3.115205901 | N37: =M37*(1-LT!$G$44) -> 2.572198516 | O37: =$N37*VLOOKUP(MONTH($B37),LT!$A$13:$S$21,14) -> 0.9092721752 | P37: =$N37*VLOOKUP(MONTH($B37),LT!$A$13:$S$21,15) -> 1.216853803 | Q37: =$N37*VLOOKUP(MONTH($B37),LT!$A$13:$S$21,16) -> 1.741352168 | R37: =(N37)*VLOOKUP(MONTH($B37),LT!$A$50:$C$58,2) -> 2.572198516 | S37: =MIN($O37,R37-T37-U37)*VLOOKUP(MONTH($B37),LT!$A$50:$C$58,2) -> 0.05073559278 | T37: =IF(R37>0,MIN($P37,R37),"0")*VLOOKUP(MONTH($B37),LT!$A$50:$C$58,2) -> 1.216853803 | U37: =$N37*(VLOOKUP(MONTH($B37),LT!$A$27:$W$35,12))/LT!$G$7*VLOOKUP(MONTH($B37),LT!$A$50:$C$58,2) -> 1.30460912 | V37: =(N37)*VLOOKUP(MONTH($B37),LT!$A$50:$C$58,3) -> 0 | W37: =MIN($O37,V37-X37-Y37)*VLOOKUP(MONTH($B37),LT!$A$50:$C$58,3) -> 0 | X37: =IF(V37>0,MIN($P37,V37),"0")*VLOOKUP(MONTH($B37),LT!$A$50:$C$58,3) -> 0 | Y37: =$N37*(VLOOKUP(MONTH($B37),LT!$A$27:$W$35,12))/LT!$G$7*VLOOKUP(MONTH($B37),LT!$A$50:$C$58,3) -> 0 | Z37: =U37*LT!$H$79 -> 0.016307614 | AA37: =Y37*LT!$H$80 -> 0 | AB37: 0.016307614 | AC37: 1.30460912 | AD37: 0 | AE37: 2.958205971 | AF37: 2.521462923 | AG37: -0.4204354342 | AH37: =LT!$H$79*(S37-Z37) -> 0.0004303497348 | AI37: =LT!$H$80*(W37-AA37) -> 0 | AJ37: 0.03399762905 | AK37: 0 | AL37: 0.03399762905 | AM37: 1 | AN37: 0.03399762905 | AO37: 0 | AP37: =VLOOKUP(MONTH($B37),LT!$A$27:$W$35,21)+VLOOKUP(MONTH($B37),LT!$A$27:$W$35,22)/(1-LT!$H$80) -> 72.36703422 | AQ37: =IF(Q37=0,"-",(AC37+AD37)/(N37/LT!$G$7)) -> 322.0695395 | AS37: 0.03399762905 | AT37: 0.03059786614
A38: 3 | B38: ='Actual Accting'!B38 -> 2019-03-20 | C38: ='Actual Accting'!C38 -> 0 | D38: ='Actual Accting'!D38 -> 0 | E38: =HLOOKUP(MONTH($B38),LT!$B$93:$N$95,3) -> 91.54290098 | F38: ='Actual Accting'!F38 -> 0 | G38: - | H38: - | I38: - | J38: - | K38: - | L38: - | M38: =(E38)*LT!$G$7/LT!$A$7 -> 3.115205901 | N38: =M38*(1-LT!$G$44) -> 2.572198516 | O38: =$N38*VLOOKUP(MONTH($B38),LT!$A$13:$S$21,14) -> 0.9092721752 | P38: =$N38*VLOOKUP(MONTH($B38),LT!$A$13:$S$21,15) -> 1.216853803 | Q38: =$N38*VLOOKUP(MONTH($B38),LT!$A$13:$S$21,16) -> 1.741352168 | R38: =(N38)*VLOOKUP(MONTH($B38),LT!$A$50:$C$58,2) -> 2.572198516 | S38: =MIN($O38,R38-T38-U38)*VLOOKUP(MONTH($B38),LT!$A$50:$C$58,2) -> 0.05073559278 | T38: =IF(R38>0,MIN($P38,R38),"0")*VLOOKUP(MONTH($B38),LT!$A$50:$C$58,2) -> 1.216853803 | U38: =$N38*(VLOOKUP(MONTH($B38),LT!$A$27:$W$35,12))/LT!$G$7*VLOOKUP(MONTH($B38),LT!$A$50:$C$58,2) -> 1.30460912 | V38: =(N38)*VLOOKUP(MONTH($B38),LT!$A$50:$C$58,3) -> 0 | W38: =MIN($O38,V38-X38-Y38)*VLOOKUP(MONTH($B38),LT!$A$50:$C$58,3) -> 0 | X38: =IF(V38>0,MIN($P38,V38),"0")*VLOOKUP(MONTH($B38),LT!$A$50:$C$58,3) -> 0 | Y38: =$N38*(VLOOKUP(MONTH($B38),LT!$A$27:$W$35,12))/LT!$G$7*VLOOKUP(MONTH($B38),LT!$A$50:$C$58,3) -> 0 | Z38: =U38*LT!$H$79 -> 0.016307614 | AA38: =Y38*LT!$H$80 -> 0 | AB38: 0.016307614 | AC38: 1.30460912 | AD38: 0 | AE38: 2.958205971 | AF38: 2.521462923 | AG38: -0.4204354342 | AH38: =LT!$H$79*(S38-Z38) -> 0.0004303497348 | AI38: =LT!$H$80*(W38-AA38) -> 0 | AJ38: 0.03399762905 | AK38: 0 | AL38: 0.03399762905 | AM38: 1 | AN38: 0.03399762905 | AO38: 0 | AP38: =VLOOKUP(MONTH($B38),LT!$A$27:$W$35,21)+VLOOKUP(MONTH($B38),LT!$A$27:$W$35,22)/(1-LT!$H$80) -> 72.36703422 | AQ38: =IF(Q38=0,"-",(AC38+AD38)/(N38/LT!$G$7)) -> 322.0695395 | AS38: 0.03399762905 | AT38: 0.03059786614
A39: 3 | B39: ='Actual Accting'!B39 -> 2019-03-21 | C39: ='Actual Accting'!C39 -> 0 | D39: ='Actual Accting'!D39 -> 0 | E39: =HLOOKUP(MONTH($B39),LT!$B$93:$N$95,3) -> 91.54290098 | F39: ='Actual Accting'!F39 -> 0 | G39: - | H39: - | I39: - | J39: - | K39: - | L39: - | M39: =(E39)*LT!$G$7/LT!$A$7 -> 3.115205901 | N39: =M39*(1-LT!$G$44) -> 2.572198516 | O39: =$N39*VLOOKUP(MONTH($B39),LT!$A$13:$S$21,14) -> 0.9092721752 | P39: =$N39*VLOOKUP(MONTH($B39),LT!$A$13:$S$21,15) -> 1.216853803 | Q39: =$N39*VLOOKUP(MONTH($B39),LT!$A$13:$S$21,16) -> 1.741352168 | R39: =(N39)*VLOOKUP(MONTH($B39),LT!$A$50:$C$58,2) -> 2.572198516 | S39: =MIN($O39,R39-T39-U39)*VLOOKUP(MONTH($B39),LT!$A$50:$C$58,2) -> 0.05073559278 | T39: =IF(R39>0,MIN($P39,R39),"0")*VLOOKUP(MONTH($B39),LT!$A$50:$C$58,2) -> 1.216853803 | U39: =$N39*(VLOOKUP(MONTH($B39),LT!$A$27:$W$35,12))/LT!$G$7*VLOOKUP(MONTH($B39),LT!$A$50:$C$58,2) -> 1.30460912 | V39: =(N39)*VLOOKUP(MONTH($B39),LT!$A$50:$C$58,3) -> 0 | W39: =MIN($O39,V39-X39-Y39)*VLOOKUP(MONTH($B39),LT!$A$50:$C$58,3) -> 0 | X39: =IF(V39>0,MIN($P39,V39),"0")*VLOOKUP(MONTH($B39),LT!$A$50:$C$58,3) -> 0 | Y39: =$N39*(VLOOKUP(MONTH($B39),LT!$A$27:$W$35,12))/LT!$G$7*VLOOKUP(MONTH($B39),LT!$A$50:$C$58,3) -> 0 | Z39: =U39*LT!$H$79 -> 0.016307614 | AA39: =Y39*LT!$H$80 -> 0 | AB39: 0.016307614 | AC39: 1.30460912 | AD39: 0 | AE39: 2.958205971 | AF39: 2.521462923 | AG39: -0.4204354342 | AH39: =LT!$H$79*(S39-Z39) -> 0.0004303497348 | AI39: =LT!$H$80*(W39-AA39) -> 0 | AJ39: 0.03399762905 | AK39: 0 | AL39: 0.03399762905 | AM39: 1 | AN39: 0.03399762905 | AO39: 0 | AP39: =VLOOKUP(MONTH($B39),LT!$A$27:$W$35,21)+VLOOKUP(MONTH($B39),LT!$A$27:$W$35,22)/(1-LT!$H$80) -> 72.36703422 | AQ39: =IF(Q39=0,"-",(AC39+AD39)/(N39/LT!$G$7)) -> 322.0695395 | AS39: 0.03399762905 | AT39: 0.03059786614
A40: 3 | B40: ='Actual Accting'!B40 -> 2019-03-22 | C40: ='Actual Accting'!C40 -> 0 | D40: ='Actual Accting'!D40 -> 0 | E40: =HLOOKUP(MONTH($B40),LT!$B$93:$N$95,3) -> 91.54290098 | F40: ='Actual Accting'!F40 -> 0 | G40: - | H40: - | I40: - | J40: - | K40: - | L40: - | M40: =(E40)*LT!$G$7/LT!$A$7 -> 3.115205901 | N40: =M40*(1-LT!$G$44) -> 2.572198516 | O40: =$N40*VLOOKUP(MONTH($B40),LT!$A$13:$S$21,14) -> 0.9092721752 | P40: =$N40*VLOOKUP(MONTH($B40),LT!$A$13:$S$21,15) -> 1.216853803 | Q40: =$N40*VLOOKUP(MONTH($B40),LT!$A$13:$S$21,16) -> 1.741352168 | R40: =(N40)*VLOOKUP(MONTH($B40),LT!$A$50:$C$58,2) -> 2.572198516 | S40: =MIN($O40,R40-T40-U40)*VLOOKUP(MONTH($B40),LT!$A$50:$C$58,2) -> 0.05073559278 | T40: =IF(R40>0,MIN($P40,R40),"0")*VLOOKUP(MONTH($B40),LT!$A$50:$C$58,2) -> 1.216853803 | U40: =$N40*(VLOOKUP(MONTH($B40),LT!$A$27:$W$35,12))/LT!$G$7*VLOOKUP(MONTH($B40),LT!$A$50:$C$58,2) -> 1.30460912 | V40: =(N40)*VLOOKUP(MONTH($B40),LT!$A$50:$C$58,3) -> 0 | W40: =MIN($O40,V40-X40-Y40)*VLOOKUP(MONTH($B40),LT!$A$50:$C$58,3) -> 0 | X40: =IF(V40>0,MIN($P40,V40),"0")*VLOOKUP(MONTH($B40),LT!$A$50:$C$58,3) -> 0 | Y40: =$N40*(VLOOKUP(MONTH($B40),LT!$A$27:$W$35,12))/LT!$G$7*VLOOKUP(MONTH($B40),LT!$A$50:$C$58,3) -> 0 | Z40: =U40*LT!$H$79 -> 0.016307614 | AA40: =Y40*LT!$H$80 -> 0 | AB40: 0.016307614 | AC40: 1.30460912 | AD40: 0 | AE40: 2.958205971 | AF40: 2.521462923 | AG40: -0.4204354342 | AH40: =LT!$H$79*(S40-Z40) -> 0.0004303497348 | AI40: =LT!$H$80*(W40-AA40) -> 0 | AJ40: 0.03399762905 | AK40: 0 | AL40: 0.03399762905 | AM40: 1 | AN40: 0.03399762905 | AO40: 0 | AP40: =VLOOKUP(MONTH($B40),LT!$A$27:$W$35,21)+VLOOKUP(MONTH($B40),LT!$A$27:$W$35,22)/(1-LT!$H$80) -> 72.36703422 | AQ40: =IF(Q40=0,"-",(AC40+AD40)/(N40/LT!$G$7)) -> 322.0695395 | AS40: 0.03399762905 | AT40: 0.03059786614
A41: 3 | B41: ='Actual Accting'!B41 -> 2019-03-23 | C41: ='Actual Accting'!C41 -> 0 | D41: ='Actual Accting'!D41 -> 0 | E41: =HLOOKUP(MONTH($B41),LT!$B$93:$N$95,3) -> 91.54290098 | F41: ='Actual Accting'!F41 -> 0 | G41: - | H41: - | I41: - | J41: - | K41: - | L41: - | M41: =(E41)*LT!$G$7/LT!$A$7 -> 3.115205901 | N41: =M41*(1-LT!$G$44) -> 2.572198516 | O41: =$N41*VLOOKUP(MONTH($B41),LT!$A$13:$S$21,14) -> 0.9092721752 | P41: =$N41*VLOOKUP(MONTH($B41),LT!$A$13:$S$21,15) -> 1.216853803 | Q41: =$N41*VLOOKUP(MONTH($B41),LT!$A$13:$S$21,16) -> 1.741352168 | R41: =(N41)*VLOOKUP(MONTH($B41),LT!$A$50:$C$58,2) -> 2.572198516 | S41: =MIN($O41,R41-T41-U41)*VLOOKUP(MONTH($B41),LT!$A$50:$C$58,2) -> 0.05073559278 | T41: =IF(R41>0,MIN($P41,R41),"0")*VLOOKUP(MONTH($B41),LT!$A$50:$C$58,2) -> 1.216853803 | U41: =$N41*(VLOOKUP(MONTH($B41),LT!$A$27:$W$35,12))/LT!$G$7*VLOOKUP(MONTH($B41),LT!$A$50:$C$58,2) -> 1.30460912 | V41: =(N41)*VLOOKUP(MONTH($B41),LT!$A$50:$C$58,3) -> 0 | W41: =MIN($O41,V41-X41-Y41)*VLOOKUP(MONTH($B41),LT!$A$50:$C$58,3) -> 0 | X41: =IF(V41>0,MIN($P41,V41),"0")*VLOOKUP(MONTH($B41),LT!$A$50:$C$58,3) -> 0 | Y41: =$N41*(VLOOKUP(MONTH($B41),LT!$A$27:$W$35,12))/LT!$G$7*VLOOKUP(MONTH($B41),LT!$A$50:$C$58,3) -> 0 | Z41: =U41*LT!$H$79 -> 0.016307614 | AA41: =Y41*LT!$H$80 -> 0 | AB41: 0.016307614 | AC41: 1.30460912 | AD41: 0 | AE41: 2.958205971 | AF41: 2.521462923 | AG41: -0.4204354342 | AH41: =LT!$H$79*(S41-Z41) -> 0.0004303497348 | AI41: =LT!$H$80*(W41-AA41) -> 0 | AJ41: 0.03399762905 | AK41: 0 | AL41: 0.03399762905 | AM41: 1 | AN41: 0.03399762905 | AO41: 0 | AP41: =VLOOKUP(MONTH($B41),LT!$A$27:$W$35,21)+VLOOKUP(MONTH($B41),LT!$A$27:$W$35,22)/(1-LT!$H$80) -> 72.36703422 | AQ41: =IF(Q41=0,"-",(AC41+AD41)/(N41/LT!$G$7)) -> 322.0695395 | AS41: 0.03399762905 | AT41: 0.03059786614
A42: 3 | B42: ='Actual Accting'!B42 -> 2019-03-24 | C42: ='Actual Accting'!C42 -> 0 | D42: ='Actual Accting'!D42 -> 0 | E42: =HLOOKUP(MONTH($B42),LT!$B$93:$N$95,3) -> 91.54290098 | F42: ='Actual Accting'!F42 -> 0 | G42: - | H42: - | I42: - | J42: - | K42: - | L42: - | M42: =(E42)*LT!$G$7/LT!$A$7 -> 3.115205901 | N42: =M42*(1-LT!$G$44) -> 2.572198516 | O42: =$N42*VLOOKUP(MONTH($B42),LT!$A$13:$S$21,14) -> 0.9092721752 | P42: =$N42*VLOOKUP(MONTH($B42),LT!$A$13:$S$21,15) -> 1.216853803 | Q42: =$N42*VLOOKUP(MONTH($B42),LT!$A$13:$S$21,16) -> 1.741352168 | R42: =(N42)*VLOOKUP(MONTH($B42),LT!$A$50:$C$58,2) -> 2.572198516 | S42: =MIN($O42,R42-T42-U42)*VLOOKUP(MONTH($B42),LT!$A$50:$C$58,2) -> 0.05073559278 | T42: =IF(R42>0,MIN($P42,R42),"0")*VLOOKUP(MONTH($B42),LT!$A$50:$C$58,2) -> 1.216853803 | U42: =$N42*(VLOOKUP(MONTH($B42),LT!$A$27:$W$35,12))/LT!$G$7*VLOOKUP(MONTH($B42),LT!$A$50:$C$58,2) -> 1.30460912 | V42: =(N42)*VLOOKUP(MONTH($B42),LT!$A$50:$C$58,3) -> 0 | W42: =MIN($O42,V42-X42-Y42)*VLOOKUP(MONTH($B42),LT!$A$50:$C$58,3) -> 0 | X42: =IF(V42>0,MIN($P42,V42),"0")*VLOOKUP(MONTH($B42),LT!$A$50:$C$58,3) -> 0 | Y42: =$N42*(VLOOKUP(MONTH($B42),LT!$A$27:$W$35,12))/LT!$G$7*VLOOKUP(MONTH($B42),LT!$A$50:$C$58,3) -> 0 | Z42: =U42*LT!$H$79 -> 0.016307614 | AA42: =Y42*LT!$H$80 -> 0 | AB42: 0.016307614 | AC42: 1.30460912 | AD42: 0 | AE42: 2.958205971 | AF42: 2.521462923 | AG42: -0.4204354342 | AH42: =LT!$H$79*(S42-Z42) -> 0.0004303497348 | AI42: =LT!$H$80*(W42-AA42) -> 0 | AJ42: 0.03399762905 | AK42: 0 | AL42: 0.03399762905 | AM42: 1 | AN42: 0.03399762905 | AO42: 0 | AP42: =VLOOKUP(MONTH($B42),LT!$A$27:$W$35,21)+VLOOKUP(MONTH($B42),LT!$A$27:$W$35,22)/(1-LT!$H$80) -> 72.36703422 | AQ42: =IF(Q42=0,"-",(AC42+AD42)/(N42/LT!$G$7)) -> 322.0695395 | AS42: 0.03399762905 | AT42: 0.03059786614
A43: 3 | B43: ='Actual Accting'!B43 -> 2019-03-25 | C43: ='Actual Accting'!C43 -> 0 | D43: ='Actual Accting'!D43 -> 0 | E43: =HLOOKUP(MONTH($B43),LT!$B$93:$N$95,3) -> 91.54290098 | F43: ='Actual Accting'!F43 -> 0 | G43: - | H43: - | I43: - | J43: - | K43: - | L43: - | M43: =(E43)*LT!$G$7/LT!$A$7 -> 3.115205901 | N43: =M43*(1-LT!$G$44) -> 2.572198516 | O43: =$N43*VLOOKUP(MONTH($B43),LT!$A$13:$S$21,14) -> 0.9092721752 | P43: =$N43*VLOOKUP(MONTH($B43),LT!$A$13:$S$21,15) -> 1.216853803 | Q43: =$N43*VLOOKUP(MONTH($B43),LT!$A$13:$S$21,16) -> 1.741352168 | R43: =(N43)*VLOOKUP(MONTH($B43),LT!$A$50:$C$58,2) -> 2.572198516 | S43: =MIN($O43,R43-T43-U43)*VLOOKUP(MONTH($B43),LT!$A$50:$C$58,2) -> 0.05073559278 | T43: =IF(R43>0,MIN($P43,R43),"0")*VLOOKUP(MONTH($B43),LT!$A$50:$C$58,2) -> 1.216853803 | U43: =$N43*(VLOOKUP(MONTH($B43),LT!$A$27:$W$35,12))/LT!$G$7*VLOOKUP(MONTH($B43),LT!$A$50:$C$58,2) -> 1.30460912 | V43: =(N43)*VLOOKUP(MONTH($B43),LT!$A$50:$C$58,3) -> 0 | W43: =MIN($O43,V43-X43-Y43)*VLOOKUP(MONTH($B43),LT!$A$50:$C$58,3) -> 0 | X43: =IF(V43>0,MIN($P43,V43),"0")*VLOOKUP(MONTH($B43),LT!$A$50:$C$58,3) -> 0 | Y43: =$N43*(VLOOKUP(MONTH($B43),LT!$A$27:$W$35,12))/LT!$G$7*VLOOKUP(MONTH($B43),LT!$A$50:$C$58,3) -> 0 | Z43: =U43*LT!$H$79 -> 0.016307614 | AA43: =Y43*LT!$H$80 -> 0 | AB43: 0.016307614 | AC43: 1.30460912 | AD43: 0 | AE43: 2.958205971 | AF43: 2.521462923 | AG43: -0.4204354342 | AH43: =LT!$H$79*(S43-Z43) -> 0.0004303497348 | AI43: =LT!$H$80*(W43-AA43) -> 0 | AJ43: 0.03399762905 | AK43: 0 | AL43: 0.03399762905 | AM43: 1 | AN43: 0.03399762905 | AO43: 0 | AP43: =VLOOKUP(MONTH($B43),LT!$A$27:$W$35,21)+VLOOKUP(MONTH($B43),LT!$A$27:$W$35,22)/(1-LT!$H$80) -> 72.36703422 | AQ43: =IF(Q43=0,"-",(AC43+AD43)/(N43/LT!$G$7)) -> 322.0695395 | AS43: 0.03399762905 | AT43: 0.03059786614
A44: 3 | B44: ='Actual Accting'!B44 -> 2019-03-26 | C44: ='Actual Accting'!C44 -> 0 | D44: ='Actual Accting'!D44 -> 0 | E44: =HLOOKUP(MONTH($B44),LT!$B$93:$N$95,3) -> 91.54290098 | F44: ='Actual Accting'!F44 -> 0 | G44: - | H44: - | I44: - | J44: - | K44: - | L44: - | M44: =(E44)*LT!$G$7/LT!$A$7 -> 3.115205901 | N44: =M44*(1-LT!$G$44) -> 2.572198516 | O44: =$N44*VLOOKUP(MONTH($B44),LT!$A$13:$S$21,14) -> 0.9092721752 | P44: =$N44*VLOOKUP(MONTH($B44),LT!$A$13:$S$21,15) -> 1.216853803 | Q44: =$N44*VLOOKUP(MONTH($B44),LT!$A$13:$S$21,16) -> 1.741352168 | R44: =(N44)*VLOOKUP(MONTH($B44),LT!$A$50:$C$58,2) -> 2.572198516 | S44: =MIN($O44,R44-T44-U44)*VLOOKUP(MONTH($B44),LT!$A$50:$C$58,2) -> 0.05073559278 | T44: =IF(R44>0,MIN($P44,R44),"0")*VLOOKUP(MONTH($B44),LT!$A$50:$C$58,2) -> 1.216853803 | U44: =$N44*(VLOOKUP(MONTH($B44),LT!$A$27:$W$35,12))/LT!$G$7*VLOOKUP(MONTH($B44),LT!$A$50:$C$58,2) -> 1.30460912 | V44: =(N44)*VLOOKUP(MONTH($B44),LT!$A$50:$C$58,3) -> 0 | W44: =MIN($O44,V44-X44-Y44)*VLOOKUP(MONTH($B44),LT!$A$50:$C$58,3) -> 0 | X44: =IF(V44>0,MIN($P44,V44),"0")*VLOOKUP(MONTH($B44),LT!$A$50:$C$58,3) -> 0 | Y44: =$N44*(VLOOKUP(MONTH($B44),LT!$A$27:$W$35,12))/LT!$G$7*VLOOKUP(MONTH($B44),LT!$A$50:$C$58,3) -> 0 | Z44: =U44*LT!$H$79 -> 0.016307614 | AA44: =Y44*LT!$H$80 -> 0 | AB44: 0.016307614 | AC44: 1.30460912 | AD44: 0 | AE44: 2.958205971 | AF44: 2.521462923 | AG44: -0.4204354342 | AH44: =LT!$H$79*(S44-Z44) -> 0.0004303497348 | AI44: =LT!$H$80*(W44-AA44) -> 0 | AJ44: 0.03399762905 | AK44: 0 | AL44: 0.03399762905 | AM44: 1 | AN44: 0.03399762905 | AO44: 0 | AP44: =VLOOKUP(MONTH($B44),LT!$A$27:$W$35,21)+VLOOKUP(MONTH($B44),LT!$A$27:$W$35,22)/(1-LT!$H$80) -> 72.36703422 | AQ44: =IF(Q44=0,"-",(AC44+AD44)/(N44/LT!$G$7)) -> 322.0695395 | AS44: 0.03399762905 | AT44: 0.03059786614
A45: 3 | B45: ='Actual Accting'!B45 -> 2019-03-27 | C45: ='Actual Accting'!C45 -> 0 | D45: ='Actual Accting'!D45 -> 0 | E45: =HLOOKUP(MONTH($B45),LT!$B$93:$N$95,3) -> 91.54290098 | F45: ='Actual Accting'!F45 -> 0 | G45: - | H45: - | I45: - | J45: - | K45: - | L45: - | M45: =(E45)*LT!$G$7/LT!$A$7 -> 3.115205901 | N45: =M45*(1-LT!$G$44) -> 2.572198516 | O45: =$N45*VLOOKUP(MONTH($B45),LT!$A$13:$S$21,14) -> 0.9092721752 | P45: =$N45*VLOOKUP(MONTH($B45),LT!$A$13:$S$21,15) -> 1.216853803 | Q45: =$N45*VLOOKUP(MONTH($B45),LT!$A$13:$S$21,16) -> 1.741352168 | R45: =(N45)*VLOOKUP(MONTH($B45),LT!$A$50:$C$58,2) -> 2.572198516 | S45: =MIN($O45,R45-T45-U45)*VLOOKUP(MONTH($B45),LT!$A$50:$C$58,2) -> 0.05073559278 | T45: =IF(R45>0,MIN($P45,R45),"0")*VLOOKUP(MONTH($B45),LT!$A$50:$C$58,2) -> 1.216853803 | U45: =$N45*(VLOOKUP(MONTH($B45),LT!$A$27:$W$35,12))/LT!$G$7*VLOOKUP(MONTH($B45),LT!$A$50:$C$58,2) -> 1.30460912 | V45: =(N45)*VLOOKUP(MONTH($B45),LT!$A$50:$C$58,3) -> 0 | W45: =MIN($O45,V45-X45-Y45)*VLOOKUP(MONTH($B45),LT!$A$50:$C$58,3) -> 0 | X45: =IF(V45>0,MIN($P45,V45),"0")*VLOOKUP(MONTH($B45),LT!$A$50:$C$58,3) -> 0 | Y45: =$N45*(VLOOKUP(MONTH($B45),LT!$A$27:$W$35,12))/LT!$G$7*VLOOKUP(MONTH($B45),LT!$A$50:$C$58,3) -> 0 | Z45: =U45*LT!$H$79 -> 0.016307614 | AA45: =Y45*LT!$H$80 -> 0 | AB45: 0.016307614 | AC45: 1.30460912 | AD45: 0 | AE45: 2.958205971 | AF45: 2.521462923 | AG45: -0.4204354342 | AH45: =LT!$H$79*(S45-Z45) -> 0.0004303497348 | AI45: =LT!$H$80*(W45-AA45) -> 0 | AJ45: 0.03399762905 | AK45: 0 | AL45: 0.03399762905 | AM45: 1 | AN45: 0.03399762905 | AO45: 0 | AP45: =VLOOKUP(MONTH($B45),LT!$A$27:$W$35,21)+VLOOKUP(MONTH($B45),LT!$A$27:$W$35,22)/(1-LT!$H$80) -> 72.36703422 | AQ45: =IF(Q45=0,"-",(AC45+AD45)/(N45/LT!$G$7)) -> 322.0695395 | AS45: 0.03399762905 | AT45: 0.03059786614
A46: 3 | B46: ='Actual Accting'!B46 -> 2019-03-28 | C46: ='Actual Accting'!C46 -> 0 | D46: ='Actual Accting'!D46 -> 0 | E46: =HLOOKUP(MONTH($B46),LT!$B$93:$N$95,3) -> 91.54290098 | F46: ='Actual Accting'!F46 -> 0 | G46: - | H46: - | I46: - | J46: - | K46: - | L46: - | M46: =(E46)*LT!$G$7/LT!$A$7 -> 3.115205901 | N46: =M46*(1-LT!$G$44) -> 2.572198516 | O46: =$N46*VLOOKUP(MONTH($B46),LT!$A$13:$S$21,14) -> 0.9092721752 | P46: =$N46*VLOOKUP(MONTH($B46),LT!$A$13:$S$21,15) -> 1.216853803 | Q46: =$N46*VLOOKUP(MONTH($B46),LT!$A$13:$S$21,16) -> 1.741352168 | R46: =(N46)*VLOOKUP(MONTH($B46),LT!$A$50:$C$58,2) -> 2.572198516 | S46: =MIN($O46,R46-T46-U46)*VLOOKUP(MONTH($B46),LT!$A$50:$C$58,2) -> 0.05073559278 | T46: =IF(R46>0,MIN($P46,R46),"0")*VLOOKUP(MONTH($B46),LT!$A$50:$C$58,2) -> 1.216853803 | U46: =$N46*(VLOOKUP(MONTH($B46),LT!$A$27:$W$35,12))/LT!$G$7*VLOOKUP(MONTH($B46),LT!$A$50:$C$58,2) -> 1.30460912 | V46: =(N46)*VLOOKUP(MONTH($B46),LT!$A$50:$C$58,3) -> 0 | W46: =MIN($O46,V46-X46-Y46)*VLOOKUP(MONTH($B46),LT!$A$50:$C$58,3) -> 0 | X46: =IF(V46>0,MIN($P46,V46),"0")*VLOOKUP(MONTH($B46),LT!$A$50:$C$58,3) -> 0 | Y46: =$N46*(VLOOKUP(MONTH($B46),LT!$A$27:$W$35,12))/LT!$G$7*VLOOKUP(MONTH($B46),LT!$A$50:$C$58,3) -> 0 | Z46: =U46*LT!$H$79 -> 0.016307614 | AA46: =Y46*LT!$H$80 -> 0 | AB46: 0.016307614 | AC46: 1.30460912 | AD46: 0 | AE46: 2.958205971 | AF46: 2.521462923 | AG46: -0.4204354342 | AH46: =LT!$H$79*(S46-Z46) -> 0.0004303497348 | AI46: =LT!$H$80*(W46-AA46) -> 0 | AJ46: 0.03399762905 | AK46: 0 | AL46: 0.03399762905 | AM46: 1 | AN46: 0.03399762905 | AO46: 0 | AP46: =VLOOKUP(MONTH($B46),LT!$A$27:$W$35,21)+VLOOKUP(MONTH($B46),LT!$A$27:$W$35,22)/(1-LT!$H$80) -> 72.36703422 | AQ46: =IF(Q46=0,"-",(AC46+AD46)/(N46/LT!$G$7)) -> 322.0695395 | AS46: 0.03399762905 | AT46: 0.03059786614
A47: 3 | B47: ='Actual Accting'!B47 -> 2019-03-29 | C47: ='Actual Accting'!C47 -> 0 | D47: ='Actual Accting'!D47 -> 0 | E47: =HLOOKUP(MONTH($B47),LT!$B$93:$N$95,3) -> 91.54290098 | F47: ='Actual Accting'!F47 -> 0 | G47: - | H47: - | I47: - | J47: - | K47: - | L47: - | M47: =(E47)*LT!$G$7/LT!$A$7 -> 3.115205901 | N47: =M47*(1-LT!$G$44) -> 2.572198516 | O47: =$N47*VLOOKUP(MONTH($B47),LT!$A$13:$S$21,14) -> 0.9092721752 | P47: =$N47*VLOOKUP(MONTH($B47),LT!$A$13:$S$21,15) -> 1.216853803 | Q47: =$N47*VLOOKUP(MONTH($B47),LT!$A$13:$S$21,16) -> 1.741352168 | R47: =(N47)*VLOOKUP(MONTH($B47),LT!$A$50:$C$58,2) -> 2.572198516 | S47: =MIN($O47,R47-T47-U47)*VLOOKUP(MONTH($B47),LT!$A$50:$C$58,2) -> 0.05073559278 | T47: =IF(R47>0,MIN($P47,R47),"0")*VLOOKUP(MONTH($B47),LT!$A$50:$C$58,2) -> 1.216853803 | U47: =$N47*(VLOOKUP(MONTH($B47),LT!$A$27:$W$35,12))/LT!$G$7*VLOOKUP(MONTH($B47),LT!$A$50:$C$58,2) -> 1.30460912 | V47: =(N47)*VLOOKUP(MONTH($B47),LT!$A$50:$C$58,3) -> 0 | W47: =MIN($O47,V47-X47-Y47)*VLOOKUP(MONTH($B47),LT!$A$50:$C$58,3) -> 0 | X47: =IF(V47>0,MIN($P47,V47),"0")*VLOOKUP(MONTH($B47),LT!$A$50:$C$58,3) -> 0 | Y47: =$N47*(VLOOKUP(MONTH($B47),LT!$A$27:$W$35,12))/LT!$G$7*VLOOKUP(MONTH($B47),LT!$A$50:$C$58,3) -> 0 | Z47: =U47*LT!$H$79 -> 0.016307614 | AA47: =Y47*LT!$H$80 -> 0 | AB47: 0.016307614 | AC47: 1.30460912 | AD47: 0 | AE47: 2.958205971 | AF47: 2.521462923 | AG47: -0.4204354342 | AH47: =LT!$H$79*(S47-Z47) -> 0.0004303497348 | AI47: =LT!$H$80*(W47-AA47) -> 0 | AJ47: 0.03399762905 | AK47: 0 | AL47: 0.03399762905 | AM47: 1 | AN47: 0.03399762905 | AO47: 0 | AP47: =VLOOKUP(MONTH($B47),LT!$A$27:$W$35,21)+VLOOKUP(MONTH($B47),LT!$A$27:$W$35,22)/(1-LT!$H$80) -> 72.36703422 | AQ47: =IF(Q47=0,"-",(AC47+AD47)/(N47/LT!$G$7)) -> 322.0695395 | AS47: 0.03399762905 | AT47: 0.03059786614
A48: 3 | B48: ='Actual Accting'!B48 -> 2019-03-30 | C48: ='Actual Accting'!C48 -> 0 | D48: ='Actual Accting'!D48 -> 0 | E48: =HLOOKUP(MONTH($B48),LT!$B$93:$N$95,3) -> 91.54290098 | F48: ='Actual Accting'!F48 -> 0 | G48: - | H48: - | I48: - | J48: - | K48: - | L48: - | M48: =(E48)*LT!$G$7/LT!$A$7 -> 3.115205901 | N48: =M48*(1-LT!$G$44) -> 2.572198516 | O48: =$N48*VLOOKUP(MONTH($B48),LT!$A$13:$S$21,14) -> 0.9092721752 | P48: =$N48*VLOOKUP(MONTH($B48),LT!$A$13:$S$21,15) -> 1.216853803 | Q48: =$N48*VLOOKUP(MONTH($B48),LT!$A$13:$S$21,16) -> 1.741352168 | R48: =(N48)*VLOOKUP(MONTH($B48),LT!$A$50:$C$58,2) -> 2.572198516 | S48: =MIN($O48,R48-T48-U48)*VLOOKUP(MONTH($B48),LT!$A$50:$C$58,2) -> 0.05073559278 | T48: =IF(R48>0,MIN($P48,R48),"0")*VLOOKUP(MONTH($B48),LT!$A$50:$C$58,2) -> 1.216853803 | U48: =$N48*(VLOOKUP(MONTH($B48),LT!$A$27:$W$35,12))/LT!$G$7*VLOOKUP(MONTH($B48),LT!$A$50:$C$58,2) -> 1.30460912 | V48: =(N48)*VLOOKUP(MONTH($B48),LT!$A$50:$C$58,3) -> 0 | W48: =MIN($O48,V48-X48-Y48)*VLOOKUP(MONTH($B48),LT!$A$50:$C$58,3) -> 0 | X48: =IF(V48>0,MIN($P48,V48),"0")*VLOOKUP(MONTH($B48),LT!$A$50:$C$58,3) -> 0 | Y48: =$N48*(VLOOKUP(MONTH($B48),LT!$A$27:$W$35,12))/LT!$G$7*VLOOKUP(MONTH($B48),LT!$A$50:$C$58,3) -> 0 | Z48: =U48*LT!$H$79 -> 0.016307614 | AA48: =Y48*LT!$H$80 -> 0 | AB48: 0.016307614 | AC48: 1.30460912 | AD48: 0 | AE48: 2.958205971 | AF48: 2.521462923 | AG48: -0.4204354342 | AH48: =LT!$H$79*(S48-Z48) -> 0.0004303497348 | AI48: =LT!$H$80*(W48-AA48) -> 0 | AJ48: 0.03399762905 | AK48: 0 | AL48: 0.03399762905 | AM48: 1 | AN48: 0.03399762905 | AO48: 0 | AP48: =VLOOKUP(MONTH($B48),LT!$A$27:$W$35,21)+VLOOKUP(MONTH($B48),LT!$A$27:$W$35,22)/(1-LT!$H$80) -> 72.36703422 | AQ48: =IF(Q48=0,"-",(AC48+AD48)/(N48/LT!$G$7)) -> 322.0695395 | AS48: 0.03399762905 | AT48: 0.03059786614
A49: 3 | B49: ='Actual Accting'!B49 -> 2019-03-31 | C49: ='Actual Accting'!C49 -> 0 | D49: ='Actual Accting'!D49 -> 0 | E49: =HLOOKUP(MONTH($B49),LT!$B$93:$N$95,3) -> 91.54290098 | F49: ='Actual Accting'!F49 -> 0 | G49: - | H49: - | I49: - | J49: - | K49: - | L49: - | M49: =(E49)*LT!$G$7/LT!$A$7 -> 3.115205901 | N49: =M49*(1-LT!$G$44) -> 2.572198516 | O49: =$N49*VLOOKUP(MONTH($B49),LT!$A$13:$S$21,14) -> 0.9092721752 | P49: =$N49*VLOOKUP(MONTH($B49),LT!$A$13:$S$21,15) -> 1.216853803 | Q49: =$N49*VLOOKUP(MONTH($B49),LT!$A$13:$S$21,16) -> 1.741352168 | R49: =(N49)*VLOOKUP(MONTH($B49),LT!$A$50:$C$58,2) -> 2.572198516 | S49: =MIN($O49,R49-T49-U49)*VLOOKUP(MONTH($B49),LT!$A$50:$C$58,2) -> 0.05073559278 | T49: =IF(R49>0,MIN($P49,R49),"0")*VLOOKUP(MONTH($B49),LT!$A$50:$C$58,2) -> 1.216853803 | U49: =$N49*(VLOOKUP(MONTH($B49),LT!$A$27:$W$35,12))/LT!$G$7*VLOOKUP(MONTH($B49),LT!$A$50:$C$58,2) -> 1.30460912 | V49: =(N49)*VLOOKUP(MONTH($B49),LT!$A$50:$C$58,3) -> 0 | W49: =MIN($O49,V49-X49-Y49)*VLOOKUP(MONTH($B49),LT!$A$50:$C$58,3) -> 0 | X49: =IF(V49>0,MIN($P49,V49),"0")*VLOOKUP(MONTH($B49),LT!$A$50:$C$58,3) -> 0 | Y49: =$N49*(VLOOKUP(MONTH($B49),LT!$A$27:$W$35,12))/LT!$G$7*VLOOKUP(MONTH($B49),LT!$A$50:$C$58,3) -> 0 | Z49: =U49*LT!$H$79 -> 0.016307614 | AA49: =Y49*LT!$H$80 -> 0 | AB49: 0.016307614 | AC49: 1.30460912 | AD49: 0 | AE49: 2.958205971 | AF49: 2.521462923 | AG49: -0.4204354342 | AH49: =LT!$H$79*(S49-Z49) -> 0.0004303497348 | AI49: =LT!$H$80*(W49-AA49) -> 0 | AJ49: 0.03399762905 | AK49: 0 | AL49: 0.03399762905 | AM49: 1 | AN49: 0.03399762905 | AO49: 0 | AP49: =VLOOKUP(MONTH($B49),LT!$A$27:$W$35,21)+VLOOKUP(MONTH($B49),LT!$A$27:$W$35,22)/(1-LT!$H$80) -> 72.36703422 | AQ49: =IF(Q49=0,"-",(AC49+AD49)/(N49/LT!$G$7)) -> 322.0695395 | AS49: 0.03399762905 | AT49: 0.03059786614
A50: 4 | B50: ='Actual Accting'!B50 -> 2019-04-01 | C50: ='Actual Accting'!C50 -> 0 | D50: ='Actual Accting'!D50 -> 0 | E50: =HLOOKUP(MONTH($B50),LT!$B$93:$N$95,3) -> 166.9957249 | F50: ='Actual Accting'!F50 -> 0 | G50: - | H50: - | I50: - | J50: - | K50: - | L50: - | M50: =(E50)*LT!$G$7/LT!$A$7 -> 5.682866309 | N50: =M50*(1-LT!$G$44) -> 4.692293462 | O50: =$N50*VLOOKUP(MONTH($B50),LT!$A$13:$S$21,14) -> 1.946168327 | P50: =$N50*VLOOKUP(MONTH($B50),LT!$A$13:$S$21,15) -> 2.413358662 | Q50: =$N50*VLOOKUP(MONTH($B50),LT!$A$13:$S$21,16) -> 3.005089258 | R50: =(N50)*VLOOKUP(MONTH($B50),LT!$A$50:$C$58,2) -> 4.692293462 | S50: =MIN($O50,R50-T50-U50)*VLOOKUP(MONTH($B50),LT!$A$50:$C$58,2) -> 0.05305784906 | T50: =IF(R50>0,MIN($P50,R50),"0")*VLOOKUP(MONTH($B50),LT!$A$50:$C$58,2) -> 2.413358662 | U50: =$N50*(VLOOKUP(MONTH($B50),LT!$A$27:$W$35,12))/LT!$G$7*VLOOKUP(MONTH($B50),LT!$A$50:$C$58,2) -> 2.22587695 | V50: =(N50)*VLOOKUP(MONTH($B50),LT!$A$50:$C$58,3) -> 0 | W50: =MIN($O50,V50-X50-Y50)*VLOOKUP(MONTH($B50),LT!$A$50:$C$58,3) -> 0 | X50: =IF(V50>0,MIN($P50,V50),"0")*VLOOKUP(MONTH($B50),LT!$A$50:$C$58,3) -> 0 | Y50: =$N50*(VLOOKUP(MONTH($B50),LT!$A$27:$W$35,12))/LT!$G$7*VLOOKUP(MONTH($B50),LT!$A$50:$C$58,3) -> 0 | Z50: =U50*LT!$H$79 -> 0.02782346188 | AA50: =Y50*LT!$H$80 -> 0 | AB50: 0.02782346188 | AC50: 2.22587695 | AD50: 0 | AE50: 5.418447921 | AF50: 4.639235613 | AG50: -0.7513888461 | AH50: =LT!$H$79*(S50-Z50) -> 0.0003154298398 | AI50: =LT!$H$80*(W50-AA50) -> 0 | AJ50: 0.02491895735 | AK50: 0 | AL50: 0.02491895735 | AM50: 1 | AN50: 0.02491895735 | AO50: 0 | AP50: =VLOOKUP(MONTH($B50),LT!$A$27:$W$35,21)+VLOOKUP(MONTH($B50),LT!$A$27:$W$35,22)/(1-LT!$H$80) -> 72.57213609 | AQ50: =IF(Q50=0,"-",(AC50+AD50)/(N50/LT!$G$7)) -> 301.2240975 | AS50: 0.02491895735 | AT50: 0.02242706161
A51: 4 | B51: ='Actual Accting'!B51 -> 2019-04-02 | C51: ='Actual Accting'!C51 -> 0 | D51: ='Actual Accting'!D51 -> 0 | E51: =HLOOKUP(MONTH($B51),LT!$B$93:$N$95,3) -> 166.9957249 | F51: ='Actual Accting'!F51 -> 0 | G51: - | H51: - | I51: - | J51: - | K51: - | L51: - | M51: =(E51)*LT!$G$7/LT!$A$7 -> 5.682866309 | N51: =M51*(1-LT!$G$44) -> 4.692293462 | O51: =$N51*VLOOKUP(MONTH($B51),LT!$A$13:$S$21,14) -> 1.946168327 | P51: =$N51*VLOOKUP(MONTH($B51),LT!$A$13:$S$21,15) -> 2.413358662 | Q51: =$N51*VLOOKUP(MONTH($B51),LT!$A$13:$S$21,16) -> 3.005089258 | R51: =(N51)*VLOOKUP(MONTH($B51),LT!$A$50:$C$58,2) -> 4.692293462 | S51: =MIN($O51,R51-T51-U51)*VLOOKUP(MONTH($B51),LT!$A$50:$C$58,2) -> 0.05305784906 | T51: =IF(R51>0,MIN($P51,R51),"0")*VLOOKUP(MONTH($B51),LT!$A$50:$C$58,2) -> 2.413358662 | U51: =$N51*(VLOOKUP(MONTH($B51),LT!$A$27:$W$35,12))/LT!$G$7*VLOOKUP(MONTH($B51),LT!$A$50:$C$58,2) -> 2.22587695 | V51: =(N51)*VLOOKUP(MONTH($B51),LT!$A$50:$C$58,3) -> 0 | W51: =MIN($O51,V51-X51-Y51)*VLOOKUP(MONTH($B51),LT!$A$50:$C$58,3) -> 0 | X51: =IF(V51>0,MIN($P51,V51),"0")*VLOOKUP(MONTH($B51),LT!$A$50:$C$58,3) -> 0 | Y51: =$N51*(VLOOKUP(MONTH($B51),LT!$A$27:$W$35,12))/LT!$G$7*VLOOKUP(MONTH($B51),LT!$A$50:$C$58,3) -> 0 | Z51: =U51*LT!$H$79 -> 0.02782346188 | AA51: =Y51*LT!$H$80 -> 0 | AB51: 0.02782346188 | AC51: 2.22587695 | AD51: 0 | AE51: 5.418447921 | AF51: 4.639235613 | AG51: -0.7513888461 | AH51: =LT!$H$79*(S51-Z51) -> 0.0003154298398 | AI51: =LT!$H$80*(W51-AA51) -> 0 | AJ51: 0.02491895735 | AK51: 0 | AL51: 0.02491895735 | AM51: 1 | AN51: 0.02491895735 | AO51: 0 | AP51: =VLOOKUP(MONTH($B51),LT!$A$27:$W$35,21)+VLOOKUP(MONTH($B51),LT!$A$27:$W$35,22)/(1-LT!$H$80) -> 72.57213609 | AQ51: =IF(Q51=0,"-",(AC51+AD51)/(N51/LT!$G$7)) -> 301.2240975 | AS51: 0.02491895735 | AT51: 0.02242706161
A52: 4 | B52: ='Actual Accting'!B52 -> 2019-04-03 | C52: ='Actual Accting'!C52 -> 0 | D52: ='Actual Accting'!D52 -> 0 | E52: =HLOOKUP(MONTH($B52),LT!$B$93:$N$95,3) -> 166.9957249 | F52: ='Actual Accting'!F52 -> 0 | G52: - | H52: - | I52: - | J52: - | K52: - | L52: - | M52: =(E52)*LT!$G$7/LT!$A$7 -> 5.682866309 | N52: =M52*(1-LT!$G$44) -> 4.692293462 | O52: =$N52*VLOOKUP(MONTH($B52),LT!$A$13:$S$21,14) -> 1.946168327 | P52: =$N52*VLOOKUP(MONTH($B52),LT!$A$13:$S$21,15) -> 2.413358662 | Q52: =$N52*VLOOKUP(MONTH($B52),LT!$A$13:$S$21,16) -> 3.005089258 | R52: =(N52)*VLOOKUP(MONTH($B52),LT!$A$50:$C$58,2) -> 4.692293462 | S52: =MIN($O52,R52-T52-U52)*VLOOKUP(MONTH($B52),LT!$A$50:$C$58,2) -> 0.05305784906 | T52: =IF(R52>0,MIN($P52,R52),"0")*VLOOKUP(MONTH($B52),LT!$A$50:$C$58,2) -> 2.413358662 | U52: =$N52*(VLOOKUP(MONTH($B52),LT!$A$27:$W$35,12))/LT!$G$7*VLOOKUP(MONTH($B52),LT!$A$50:$C$58,2) -> 2.22587695 | V52: =(N52)*VLOOKUP(MONTH($B52),LT!$A$50:$C$58,3) -> 0 | W52: =MIN($O52,V52-X52-Y52)*VLOOKUP(MONTH($B52),LT!$A$50:$C$58,3) -> 0 | X52: =IF(V52>0,MIN($P52,V52),"0")*VLOOKUP(MONTH($B52),LT!$A$50:$C$58,3) -> 0 | Y52: =$N52*(VLOOKUP(MONTH($B52),LT!$A$27:$W$35,12))/LT!$G$7*VLOOKUP(MONTH($B52),LT!$A$50:$C$58,3) -> 0 | Z52: =U52*LT!$H$79 -> 0.02782346188 | AA52: =Y52*LT!$H$80 -> 0 | AB52: 0.02782346188 | AC52: 2.22587695 | AD52: 0 | AE52: 5.418447921 | AF52: 4.639235613 | AG52: -0.7513888461 | AH52: =LT!$H$79*(S52-Z52) -> 0.0003154298398 | AI52: =LT!$H$80*(W52-AA52) -> 0 | AJ52: 0.02491895735 | AK52: 0 | AL52: 0.02491895735 | AM52: 1 | AN52: 0.02491895735 | AO52: 0 | AP52: =VLOOKUP(MONTH($B52),LT!$A$27:$W$35,21)+VLOOKUP(MONTH($B52),LT!$A$27:$W$35,22)/(1-LT!$H$80) -> 72.57213609 | AQ52: =IF(Q52=0,"-",(AC52+AD52)/(N52/LT!$G$7)) -> 301.2240975 | AS52: 0.02491895735 | AT52: 0.02242706161
A53: 4 | B53: ='Actual Accting'!B53 -> 2019-04-04 | C53: ='Actual Accting'!C53 -> 0 | D53: ='Actual Accting'!D53 -> 0 | E53: =HLOOKUP(MONTH($B53),LT!$B$93:$N$95,3) -> 166.9957249 | F53: ='Actual Accting'!F53 -> 0 | G53: - | H53: - | I53: - | J53: - | K53: - | L53: - | M53: =(E53)*LT!$G$7/LT!$A$7 -> 5.682866309 | N53: =M53*(1-LT!$G$44) -> 4.692293462 | O53: =$N53*VLOOKUP(MONTH($B53),LT!$A$13:$S$21,14) -> 1.946168327 | P53: =$N53*VLOOKUP(MONTH($B53),LT!$A$13:$S$21,15) -> 2.413358662 | Q53: =$N53*VLOOKUP(MONTH($B53),LT!$A$13:$S$21,16) -> 3.005089258 | R53: =(N53)*VLOOKUP(MONTH($B53),LT!$A$50:$C$58,2) -> 4.692293462 | S53: =MIN($O53,R53-T53-U53)*VLOOKUP(MONTH($B53),LT!$A$50:$C$58,2) -> 0.05305784906 | T53: =IF(R53>0,MIN($P53,R53),"0")*VLOOKUP(MONTH($B53),LT!$A$50:$C$58,2) -> 2.413358662 | U53: =$N53*(VLOOKUP(MONTH($B53),LT!$A$27:$W$35,12))/LT!$G$7*VLOOKUP(MONTH($B53),LT!$A$50:$C$58,2) -> 2.22587695 | V53: =(N53)*VLOOKUP(MONTH($B53),LT!$A$50:$C$58,3) -> 0 | W53: =MIN($O53,V53-X53-Y53)*VLOOKUP(MONTH($B53),LT!$A$50:$C$58,3) -> 0 | X53: =IF(V53>0,MIN($P53,V53),"0")*VLOOKUP(MONTH($B53),LT!$A$50:$C$58,3) -> 0 | Y53: =$N53*(VLOOKUP(MONTH($B53),LT!$A$27:$W$35,12))/LT!$G$7*VLOOKUP(MONTH($B53),LT!$A$50:$C$58,3) -> 0 | Z53: =U53*LT!$H$79 -> 0.02782346188 | AA53: =Y53*LT!$H$80 -> 0 | AB53: 0.02782346188 | AC53: 2.22587695 | AD53: 0 | AE53: 5.418447921 | AF53: 4.639235613 | AG53: -0.7513888461 | AH53: =LT!$H$79*(S53-Z53) -> 0.0003154298398 | AI53: =LT!$H$80*(W53-AA53) -> 0 | AJ53: 0.02491895735 | AK53: 0 | AL53: 0.02491895735 | AM53: 1 | AN53: 0.02491895735 | AO53: 0 | AP53: =VLOOKUP(MONTH($B53),LT!$A$27:$W$35,21)+VLOOKUP(MONTH($B53),LT!$A$27:$W$35,22)/(1-LT!$H$80) -> 72.57213609 | AQ53: =IF(Q53=0,"-",(AC53+AD53)/(N53/LT!$G$7)) -> 301.2240975 | AS53: 0.02491895735 | AT53: 0.02242706161
A54: 4 | B54: ='Actual Accting'!B54 -> 2019-04-05 | C54: ='Actual Accting'!C54 -> 0 | D54: ='Actual Accting'!D54 -> 0 | E54: =HLOOKUP(MONTH($B54),LT!$B$93:$N$95,3) -> 166.9957249 | F54: ='Actual Accting'!F54 -> 0 | G54: - | H54: - | I54: - | J54: - | K54: - | L54: - | M54: =(E54)*LT!$G$7/LT!$A$7 -> 5.682866309 | N54: =M54*(1-LT!$G$44) -> 4.692293462 | O54: =$N54*VLOOKUP(MONTH($B54),LT!$A$13:$S$21,14) -> 1.946168327 | P54: =$N54*VLOOKUP(MONTH($B54),LT!$A$13:$S$21,15) -> 2.413358662 | Q54: =$N54*VLOOKUP(MONTH($B54),LT!$A$13:$S$21,16) -> 3.005089258 | R54: =(N54)*VLOOKUP(MONTH($B54),LT!$A$50:$C$58,2) -> 4.692293462 | S54: =MIN($O54,R54-T54-U54)*VLOOKUP(MONTH($B54),LT!$A$50:$C$58,2) -> 0.05305784906 | T54: =IF(R54>0,MIN($P54,R54),"0")*VLOOKUP(MONTH($B54),LT!$A$50:$C$58,2) -> 2.413358662 | U54: =$N54*(VLOOKUP(MONTH($B54),LT!$A$27:$W$35,12))/LT!$G$7*VLOOKUP(MONTH($B54),LT!$A$50:$C$58,2) -> 2.22587695 | V54: =(N54)*VLOOKUP(MONTH($B54),LT!$A$50:$C$58,3) -> 0 | W54: =MIN($O54,V54-X54-Y54)*VLOOKUP(MONTH($B54),LT!$A$50:$C$58,3) -> 0 | X54: =IF(V54>0,MIN($P54,V54),"0")*VLOOKUP(MONTH($B54),LT!$A$50:$C$58,3) -> 0 | Y54: =$N54*(VLOOKUP(MONTH($B54),LT!$A$27:$W$35,12))/LT!$G$7*VLOOKUP(MONTH($B54),LT!$A$50:$C$58,3) -> 0 | Z54: =U54*LT!$H$79 -> 0.02782346188 | AA54: =Y54*LT!$H$80 -> 0 | AB54: 0.02782346188 | AC54: 2.22587695 | AD54: 0 | AE54: 5.418447921 | AF54: 4.639235613 | AG54: -0.7513888461 | AH54: =LT!$H$79*(S54-Z54) -> 0.0003154298398 | AI54: =LT!$H$80*(W54-AA54) -> 0 | AJ54: 0.02491895735 | AK54: 0 | AL54: 0.02491895735 | AM54: 1 | AN54: 0.02491895735 | AO54: 0 | AP54: =VLOOKUP(MONTH($B54),LT!$A$27:$W$35,21)+VLOOKUP(MONTH($B54),LT!$A$27:$W$35,22)/(1-LT!$H$80) -> 72.57213609 | AQ54: =IF(Q54=0,"-",(AC54+AD54)/(N54/LT!$G$7)) -> 301.2240975 | AS54: 0.02491895735 | AT54: 0.02242706161
A55: 4 | B55: ='Actual Accting'!B55 -> 2019-04-06 | C55: ='Actual Accting'!C55 -> 0 | D55: ='Actual Accting'!D55 -> 0 | E55: =HLOOKUP(MONTH($B55),LT!$B$93:$N$95,3) -> 166.9957249 | F55: ='Actual Accting'!F55 -> 0 | G55: - | H55: - | I55: - | J55: - | K55: - | L55: - | M55: =(E55)*LT!$G$7/LT!$A$7 -> 5.682866309 | N55: =M55*(1-LT!$G$44) -> 4.692293462 | O55: =$N55*VLOOKUP(MONTH($B55),LT!$A$13:$S$21,14) -> 1.946168327 | P55: =$N55*VLOOKUP(MONTH($B55),LT!$A$13:$S$21,15) -> 2.413358662 | Q55: =$N55*VLOOKUP(MONTH($B55),LT!$A$13:$S$21,16) -> 3.005089258 | R55: =(N55)*VLOOKUP(MONTH($B55),LT!$A$50:$C$58,2) -> 4.692293462 | S55: =MIN($O55,R55-T55-U55)*VLOOKUP(MONTH($B55),LT!$A$50:$C$58,2) -> 0.05305784906 | T55: =IF(R55>0,MIN($P55,R55),"0")*VLOOKUP(MONTH($B55),LT!$A$50:$C$58,2) -> 2.413358662 | U55: =$N55*(VLOOKUP(MONTH($B55),LT!$A$27:$W$35,12))/LT!$G$7*VLOOKUP(MONTH($B55),LT!$A$50:$C$58,2) -> 2.22587695 | V55: =(N55)*VLOOKUP(MONTH($B55),LT!$A$50:$C$58,3) -> 0 | W55: =MIN($O55,V55-X55-Y55)*VLOOKUP(MONTH($B55),LT!$A$50:$C$58,3) -> 0 | X55: =IF(V55>0,MIN($P55,V55),"0")*VLOOKUP(MONTH($B55),LT!$A$50:$C$58,3) -> 0 | Y55: =$N55*(VLOOKUP(MONTH($B55),LT!$A$27:$W$35,12))/LT!$G$7*VLOOKUP(MONTH($B55),LT!$A$50:$C$58,3) -> 0 | Z55: =U55*LT!$H$79 -> 0.02782346188 | AA55: =Y55*LT!$H$80 -> 0 | AB55: 0.02782346188 | AC55: 2.22587695 | AD55: 0 | AE55: 5.418447921 | AF55: 4.639235613 | AG55: -0.7513888461 | AH55: =LT!$H$79*(S55-Z55) -> 0.0003154298398 | AI55: =LT!$H$80*(W55-AA55) -> 0 | AJ55: 0.02491895735 | AK55: 0 | AL55: 0.02491895735 | AM55: 1 | AN55: 0.02491895735 | AO55: 0 | AP55: =VLOOKUP(MONTH($B55),LT!$A$27:$W$35,21)+VLOOKUP(MONTH($B55),LT!$A$27:$W$35,22)/(1-LT!$H$80) -> 72.57213609 | AQ55: =IF(Q55=0,"-",(AC55+AD55)/(N55/LT!$G$7)) -> 301.2240975 | AS55: 0.02491895735 | AT55: 0.02242706161
A56: 4 | B56: ='Actual Accting'!B56 -> 2019-04-07 | C56: ='Actual Accting'!C56 -> 0 | D56: ='Actual Accting'!D56 -> 0 | E56: =HLOOKUP(MONTH($B56),LT!$B$93:$N$95,3) -> 166.9957249 | F56: ='Actual Accting'!F56 -> 0 | G56: - | H56: - | I56: - | J56: - | K56: - | L56: - | M56: =(E56)*LT!$G$7/LT!$A$7 -> 5.682866309 | N56: =M56*(1-LT!$G$44) -> 4.692293462 | O56: =$N56*VLOOKUP(MONTH($B56),LT!$A$13:$S$21,14) -> 1.946168327 | P56: =$N56*VLOOKUP(MONTH($B56),LT!$A$13:$S$21,15) -> 2.413358662 | Q56: =$N56*VLOOKUP(MONTH($B56),LT!$A$13:$S$21,16) -> 3.005089258 | R56: =(N56)*VLOOKUP(MONTH($B56),LT!$A$50:$C$58,2) -> 4.692293462 | S56: =MIN($O56,R56-T56-U56)*VLOOKUP(MONTH($B56),LT!$A$50:$C$58,2) -> 0.05305784906 | T56: =IF(R56>0,MIN($P56,R56),"0")*VLOOKUP(MONTH($B56),LT!$A$50:$C$58,2) -> 2.413358662 | U56: =$N56*(VLOOKUP(MONTH($B56),LT!$A$27:$W$35,12))/LT!$G$7*VLOOKUP(MONTH($B56),LT!$A$50:$C$58,2) -> 2.22587695 | V56: =(N56)*VLOOKUP(MONTH($B56),LT!$A$50:$C$58,3) -> 0 | W56: =MIN($O56,V56-X56-Y56)*VLOOKUP(MONTH($B56),LT!$A$50:$C$58,3) -> 0 | X56: =IF(V56>0,MIN($P56,V56),"0")*VLOOKUP(MONTH($B56),LT!$A$50:$C$58,3) -> 0 | Y56: =$N56*(VLOOKUP(MONTH($B56),LT!$A$27:$W$35,12))/LT!$G$7*VLOOKUP(MONTH($B56),LT!$A$50:$C$58,3) -> 0 | Z56: =U56*LT!$H$79 -> 0.02782346188 | AA56: =Y56*LT!$H$80 -> 0 | AB56: 0.02782346188 | AC56: 2.22587695 | AD56: 0 | AE56: 5.418447921 | AF56: 4.639235613 | AG56: -0.7513888461 | AH56: =LT!$H$79*(S56-Z56) -> 0.0003154298398 | AI56: =LT!$H$80*(W56-AA56) -> 0 | AJ56: 0.02491895735 | AK56: 0 | AL56: 0.02491895735 | AM56: 1 | AN56: 0.02491895735 | AO56: 0 | AP56: =VLOOKUP(MONTH($B56),LT!$A$27:$W$35,21)+VLOOKUP(MONTH($B56),LT!$A$27:$W$35,22)/(1-LT!$H$80) -> 72.57213609 | AQ56: =IF(Q56=0,"-",(AC56+AD56)/(N56/LT!$G$7)) -> 301.2240975 | AS56: 0.02491895735 | AT56: 0.02242706161
A57: 4 | B57: ='Actual Accting'!B57 -> 2019-04-08 | C57: ='Actual Accting'!C57 -> 0 | D57: ='Actual Accting'!D57 -> 0 | E57: =HLOOKUP(MONTH($B57),LT!$B$93:$N$95,3) -> 166.9957249 | F57: ='Actual Accting'!F57 -> 0 | G57: - | H57: - | I57: - | J57: - | K57: - | L57: - | M57: =(E57)*LT!$G$7/LT!$A$7 -> 5.682866309 | N57: =M57*(1-LT!$G$44) -> 4.692293462 | O57: =$N57*VLOOKUP(MONTH($B57),LT!$A$13:$S$21,14) -> 1.946168327 | P57: =$N57*VLOOKUP(MONTH($B57),LT!$A$13:$S$21,15) -> 2.413358662 | Q57: =$N57*VLOOKUP(MONTH($B57),LT!$A$13:$S$21,16) -> 3.005089258 | R57: =(N57)*VLOOKUP(MONTH($B57),LT!$A$50:$C$58,2) -> 4.692293462 | S57: =MIN($O57,R57-T57-U57)*VLOOKUP(MONTH($B57),LT!$A$50:$C$58,2) -> 0.05305784906 | T57: =IF(R57>0,MIN($P57,R57),"0")*VLOOKUP(MONTH($B57),LT!$A$50:$C$58,2) -> 2.413358662 | U57: =$N57*(VLOOKUP(MONTH($B57),LT!$A$27:$W$35,12))/LT!$G$7*VLOOKUP(MONTH($B57),LT!$A$50:$C$58,2) -> 2.22587695 | V57: =(N57)*VLOOKUP(MONTH($B57),LT!$A$50:$C$58,3) -> 0 | W57: =MIN($O57,V57-X57-Y57)*VLOOKUP(MONTH($B57),LT!$A$50:$C$58,3) -> 0 | X57: =IF(V57>0,MIN($P57,V57),"0")*VLOOKUP(MONTH($B57),LT!$A$50:$C$58,3) -> 0 | Y57: =$N57*(VLOOKUP(MONTH($B57),LT!$A$27:$W$35,12))/LT!$G$7*VLOOKUP(MONTH($B57),LT!$A$50:$C$58,3) -> 0 | Z57: =U57*LT!$H$79 -> 0.02782346188 | AA57: =Y57*LT!$H$80 -> 0 | AB57: 0.02782346188 | AC57: 2.22587695 | AD57: 0 | AE57: 5.418447921 | AF57: 4.639235613 | AG57: -0.7513888461 | AH57: =LT!$H$79*(S57-Z57) -> 0.0003154298398 | AI57: =LT!$H$80*(W57-AA57) -> 0 | AJ57: 0.02491895735 | AK57: 0 | AL57: 0.02491895735 | AM57: 1 | AN57: 0.02491895735 | AO57: 0 | AP57: =VLOOKUP(MONTH($B57),LT!$A$27:$W$35,21)+VLOOKUP(MONTH($B57),LT!$A$27:$W$35,22)/(1-LT!$H$80) -> 72.57213609 | AQ57: =IF(Q57=0,"-",(AC57+AD57)/(N57/LT!$G$7)) -> 301.2240975 | AS57: 0.02491895735 | AT57: 0.02242706161
A58: 4 | B58: ='Actual Accting'!B58 -> 2019-04-09 | C58: ='Actual Accting'!C58 -> 0 | D58: ='Actual Accting'!D58 -> 0 | E58: =HLOOKUP(MONTH($B58),LT!$B$93:$N$95,3) -> 166.9957249 | F58: ='Actual Accting'!F58 -> 0 | G58: - | H58: - | I58: - | J58: - | K58: - | L58: - | M58: =(E58)*LT!$G$7/LT!$A$7 -> 5.682866309 | N58: =M58*(1-LT!$G$44) -> 4.692293462 | O58: =$N58*VLOOKUP(MONTH($B58),LT!$A$13:$S$21,14) -> 1.946168327 | P58: =$N58*VLOOKUP(MONTH($B58),LT!$A$13:$S$21,15) -> 2.413358662 | Q58: =$N58*VLOOKUP(MONTH($B58),LT!$A$13:$S$21,16) -> 3.005089258 | R58: =(N58)*VLOOKUP(MONTH($B58),LT!$A$50:$C$58,2) -> 4.692293462 | S58: =MIN($O58,R58-T58-U58)*VLOOKUP(MONTH($B58),LT!$A$50:$C$58,2) -> 0.05305784906 | T58: =IF(R58>0,MIN($P58,R58),"0")*VLOOKUP(MONTH($B58),LT!$A$50:$C$58,2) -> 2.413358662 | U58: =$N58*(VLOOKUP(MONTH($B58),LT!$A$27:$W$35,12))/LT!$G$7*VLOOKUP(MONTH($B58),LT!$A$50:$C$58,2) -> 2.22587695 | V58: =(N58)*VLOOKUP(MONTH($B58),LT!$A$50:$C$58,3) -> 0 | W58: =MIN($O58,V58-X58-Y58)*VLOOKUP(MONTH($B58),LT!$A$50:$C$58,3) -> 0 | X58: =IF(V58>0,MIN($P58,V58),"0")*VLOOKUP(MONTH($B58),LT!$A$50:$C$58,3) -> 0 | Y58: =$N58*(VLOOKUP(MONTH($B58),LT!$A$27:$W$35,12))/LT!$G$7*VLOOKUP(MONTH($B58),LT!$A$50:$C$58,3) -> 0 | Z58: =U58*LT!$H$79 -> 0.02782346188 | AA58: =Y58*LT!$H$80 -> 0 | AB58: 0.02782346188 | AC58: 2.22587695 | AD58: 0 | AE58: 5.418447921 | AF58: 4.639235613 | AG58: -0.7513888461 | AH58: =LT!$H$79*(S58-Z58) -> 0.0003154298398 | AI58: =LT!$H$80*(W58-AA58) -> 0 | AJ58: 0.02491895735 | AK58: 0 | AL58: 0.02491895735 | AM58: 1 | AN58: 0.02491895735 | AO58: 0 | AP58: =VLOOKUP(MONTH($B58),LT!$A$27:$W$35,21)+VLOOKUP(MONTH($B58),LT!$A$27:$W$35,22)/(1-LT!$H$80) -> 72.57213609 | AQ58: =IF(Q58=0,"-",(AC58+AD58)/(N58/LT!$G$7)) -> 301.2240975 | AS58: 0.02491895735 | AT58: 0.02242706161
A59: 4 | B59: ='Actual Accting'!B59 -> 2019-04-10 | C59: ='Actual Accting'!C59 -> 0 | D59: ='Actual Accting'!D59 -> 0 | E59: =HLOOKUP(MONTH($B59),LT!$B$93:$N$95,3) -> 166.9957249 | F59: ='Actual Accting'!F59 -> 0 | G59: - | H59: - | I59: - | J59: - | K59: - | L59: - | M59: =(E59)*LT!$G$7/LT!$A$7 -> 5.682866309 | N59: =M59*(1-LT!$G$44) -> 4.692293462 | O59: =$N59*VLOOKUP(MONTH($B59),LT!$A$13:$S$21,14) -> 1.946168327 | P59: =$N59*VLOOKUP(MONTH($B59),LT!$A$13:$S$21,15) -> 2.413358662 | Q59: =$N59*VLOOKUP(MONTH($B59),LT!$A$13:$S$21,16) -> 3.005089258 | R59: =(N59)*VLOOKUP(MONTH($B59),LT!$A$50:$C$58,2) -> 4.692293462 | S59: =MIN($O59,R59-T59-U59)*VLOOKUP(MONTH($B59),LT!$A$50:$C$58,2) -> 0.05305784906 | T59: =IF(R59>0,MIN($P59,R59),"0")*VLOOKUP(MONTH($B59),LT!$A$50:$C$58,2) -> 2.413358662 | U59: =$N59*(VLOOKUP(MONTH($B59),LT!$A$27:$W$35,12))/LT!$G$7*VLOOKUP(MONTH($B59),LT!$A$50:$C$58,2) -> 2.22587695 | V59: =(N59)*VLOOKUP(MONTH($B59),LT!$A$50:$C$58,3) -> 0 | W59: =MIN($O59,V59-X59-Y59)*VLOOKUP(MONTH($B59),LT!$A$50:$C$58,3) -> 0 | X59: =IF(V59>0,MIN($P59,V59),"0")*VLOOKUP(MONTH($B59),LT!$A$50:$C$58,3) -> 0 | Y59: =$N59*(VLOOKUP(MONTH($B59),LT!$A$27:$W$35,12))/LT!$G$7*VLOOKUP(MONTH($B59),LT!$A$50:$C$58,3) -> 0 | Z59: =U59*LT!$H$79 -> 0.02782346188 | AA59: =Y59*LT!$H$80 -> 0 | AB59: 0.02782346188 | AC59: 2.22587695 | AD59: 0 | AE59: 5.418447921 | AF59: 4.639235613 | AG59: -0.7513888461 | AH59: =LT!$H$79*(S59-Z59) -> 0.0003154298398 | AI59: =LT!$H$80*(W59-AA59) -> 0 | AJ59: 0.02491895735 | AK59: 0 | AL59: 0.02491895735 | AM59: 1 | AN59: 0.02491895735 | AO59: 0 | AP59: =VLOOKUP(MONTH($B59),LT!$A$27:$W$35,21)+VLOOKUP(MONTH($B59),LT!$A$27:$W$35,22)/(1-LT!$H$80) -> 72.57213609 | AQ59: =IF(Q59=0,"-",(AC59+AD59)/(N59/LT!$G$7)) -> 301.2240975 | AS59: 0.02491895735 | AT59: 0.02242706161
A60: 4 | B60: ='Actual Accting'!B60 -> 2019-04-11 | C60: ='Actual Accting'!C60 -> 0 | D60: ='Actual Accting'!D60 -> 0 | E60: =HLOOKUP(MONTH($B60),LT!$B$93:$N$95,3) -> 166.9957249 | F60: ='Actual Accting'!F60 -> 0 | G60: - | H60: - | I60: - | J60: - | K60: - | L60: - | M60: =(E60)*LT!$G$7/LT!$A$7 -> 5.682866309 | N60: =M60*(1-LT!$G$44) -> 4.692293462 | O60: =$N60*VLOOKUP(MONTH($B60),LT!$A$13:$S$21,14) -> 1.946168327 | P60: =$N60*VLOOKUP(MONTH($B60),LT!$A$13:$S$21,15) -> 2.413358662 | Q60: =$N60*VLOOKUP(MONTH($B60),LT!$A$13:$S$21,16) -> 3.005089258 | R60: =(N60)*VLOOKUP(MONTH($B60),LT!$A$50:$C$58,2) -> 4.692293462 | S60: =MIN($O60,R60-T60-U60)*VLOOKUP(MONTH($B60),LT!$A$50:$C$58,2) -> 0.05305784906 | T60: =IF(R60>0,MIN($P60,R60),"0")*VLOOKUP(MONTH($B60),LT!$A$50:$C$58,2) -> 2.413358662 | U60: =$N60*(VLOOKUP(MONTH($B60),LT!$A$27:$W$35,12))/LT!$G$7*VLOOKUP(MONTH($B60),LT!$A$50:$C$58,2) -> 2.22587695 | V60: =(N60)*VLOOKUP(MONTH($B60),LT!$A$50:$C$58,3) -> 0 | W60: =MIN($O60,V60-X60-Y60)*VLOOKUP(MONTH($B60),LT!$A$50:$C$58,3) -> 0 | X60: =IF(V60>0,MIN($P60,V60),"0")*VLOOKUP(MONTH($B60),LT!$A$50:$C$58,3) -> 0 | Y60: =$N60*(VLOOKUP(MONTH($B60),LT!$A$27:$W$35,12))/LT!$G$7*VLOOKUP(MONTH($B60),LT!$A$50:$C$58,3) -> 0 | Z60: =U60*LT!$H$79 -> 0.02782346188 | AA60: =Y60*LT!$H$80 -> 0 | AB60: 0.02782346188 | AC60: 2.22587695 | AD60: 0 | AE60: 5.418447921 | AF60: 4.639235613 | AG60: -0.7513888461 | AH60: =LT!$H$79*(S60-Z60) -> 0.0003154298398 | AI60: =LT!$H$80*(W60-AA60) -> 0 | AJ60: 0.02491895735 | AK60: 0 | AL60: 0.02491895735 | AM60: 1 | AN60: 0.02491895735 | AO60: 0 | AP60: =VLOOKUP(MONTH($B60),LT!$A$27:$W$35,21)+VLOOKUP(MONTH($B60),LT!$A$27:$W$35,22)/(1-LT!$H$80) -> 72.57213609 | AQ60: =IF(Q60=0,"-",(AC60+AD60)/(N60/LT!$G$7)) -> 301.2240975 | AS60: 0.02491895735 | AT60: 0.02242706161
A61: 4 | B61: ='Actual Accting'!B61 -> 2019-04-12 | C61: ='Actual Accting'!C61 -> 0 | D61: ='Actual Accting'!D61 -> 0 | E61: =HLOOKUP(MONTH($B61),LT!$B$93:$N$95,3) -> 166.9957249 | F61: ='Actual Accting'!F61 -> 0 | G61: - | H61: - | I61: - | J61: - | K61: - | L61: - | M61: =(E61)*LT!$G$7/LT!$A$7 -> 5.682866309 | N61: =M61*(1-LT!$G$44) -> 4.692293462 | O61: =$N61*VLOOKUP(MONTH($B61),LT!$A$13:$S$21,14) -> 1.946168327 | P61: =$N61*VLOOKUP(MONTH($B61),LT!$A$13:$S$21,15) -> 2.413358662 | Q61: =$N61*VLOOKUP(MONTH($B61),LT!$A$13:$S$21,16) -> 3.005089258 | R61: =(N61)*VLOOKUP(MONTH($B61),LT!$A$50:$C$58,2) -> 4.692293462 | S61: =MIN($O61,R61-T61-U61)*VLOOKUP(MONTH($B61),LT!$A$50:$C$58,2) -> 0.05305784906 | T61: =IF(R61>0,MIN($P61,R61),"0")*VLOOKUP(MONTH($B61),LT!$A$50:$C$58,2) -> 2.413358662 | U61: =$N61*(VLOOKUP(MONTH($B61),LT!$A$27:$W$35,12))/LT!$G$7*VLOOKUP(MONTH($B61),LT!$A$50:$C$58,2) -> 2.22587695 | V61: =(N61)*VLOOKUP(MONTH($B61),LT!$A$50:$C$58,3) -> 0 | W61: =MIN($O61,V61-X61-Y61)*VLOOKUP(MONTH($B61),LT!$A$50:$C$58,3) -> 0 | X61: =IF(V61>0,MIN($P61,V61),"0")*VLOOKUP(MONTH($B61),LT!$A$50:$C$58,3) -> 0 | Y61: =$N61*(VLOOKUP(MONTH($B61),LT!$A$27:$W$35,12))/LT!$G$7*VLOOKUP(MONTH($B61),LT!$A$50:$C$58,3) -> 0 | Z61: =U61*LT!$H$79 -> 0.02782346188 | AA61: =Y61*LT!$H$80 -> 0 | AB61: 0.02782346188 | AC61: 2.22587695 | AD61: 0 | AE61: 5.418447921 | AF61: 4.639235613 | AG61: -0.7513888461 | AH61: =LT!$H$79*(S61-Z61) -> 0.0003154298398 | AI61: =LT!$H$80*(W61-AA61) -> 0 | AJ61: 0.02491895735 | AK61: 0 | AL61: 0.02491895735 | AM61: 1 | AN61: 0.02491895735 | AO61: 0 | AP61: =VLOOKUP(MONTH($B61),LT!$A$27:$W$35,21)+VLOOKUP(MONTH($B61),LT!$A$27:$W$35,22)/(1-LT!$H$80) -> 72.57213609 | AQ61: =IF(Q61=0,"-",(AC61+AD61)/(N61/LT!$G$7)) -> 301.2240975 | AS61: 0.02491895735 | AT61: 0.02242706161
A62: 4 | B62: ='Actual Accting'!B62 -> 2019-04-13 | C62: ='Actual Accting'!C62 -> 0 | D62: ='Actual Accting'!D62 -> 0 | E62: =HLOOKUP(MONTH($B62),LT!$B$93:$N$95,3) -> 166.9957249 | F62: ='Actual Accting'!F62 -> 0 | G62: - | H62: - | I62: - | J62: - | K62: - | L62: - | M62: =(E62)*LT!$G$7/LT!$A$7 -> 5.682866309 | N62: =M62*(1-LT!$G$44) -> 4.692293462 | O62: =$N62*VLOOKUP(MONTH($B62),LT!$A$13:$S$21,14) -> 1.946168327 | P62: =$N62*VLOOKUP(MONTH($B62),LT!$A$13:$S$21,15) -> 2.413358662 | Q62: =$N62*VLOOKUP(MONTH($B62),LT!$A$13:$S$21,16) -> 3.005089258 | R62: =(N62)*VLOOKUP(MONTH($B62),LT!$A$50:$C$58,2) -> 4.692293462 | S62: =MIN($O62,R62-T62-U62)*VLOOKUP(MONTH($B62),LT!$A$50:$C$58,2) -> 0.05305784906 | T62: =IF(R62>0,MIN($P62,R62),"0")*VLOOKUP(MONTH($B62),LT!$A$50:$C$58,2) -> 2.413358662 | U62: =$N62*(VLOOKUP(MONTH($B62),LT!$A$27:$W$35,12))/LT!$G$7*VLOOKUP(MONTH($B62),LT!$A$50:$C$58,2) -> 2.22587695 | V62: =(N62)*VLOOKUP(MONTH($B62),LT!$A$50:$C$58,3) -> 0 | W62: =MIN($O62,V62-X62-Y62)*VLOOKUP(MONTH($B62),LT!$A$50:$C$58,3) -> 0 | X62: =IF(V62>0,MIN($P62,V62),"0")*VLOOKUP(MONTH($B62),LT!$A$50:$C$58,3) -> 0 | Y62: =$N62*(VLOOKUP(MONTH($B62),LT!$A$27:$W$35,12))/LT!$G$7*VLOOKUP(MONTH($B62),LT!$A$50:$C$58,3) -> 0 | Z62: =U62*LT!$H$79 -> 0.02782346188 | AA62: =Y62*LT!$H$80 -> 0 | AB62: 0.02782346188 | AC62: 2.22587695 | AD62: 0 | AE62: 5.418447921 | AF62: 4.639235613 | AG62: -0.7513888461 | AH62: =LT!$H$79*(S62-Z62) -> 0.0003154298398 | AI62: =LT!$H$80*(W62-AA62) -> 0 | AJ62: 0.02491895735 | AK62: 0 | AL62: 0.02491895735 | AM62: 1 | AN62: 0.02491895735 | AO62: 0 | AP62: =VLOOKUP(MONTH($B62),LT!$A$27:$W$35,21)+VLOOKUP(MONTH($B62),LT!$A$27:$W$35,22)/(1-LT!$H$80) -> 72.57213609 | AQ62: =IF(Q62=0,"-",(AC62+AD62)/(N62/LT!$G$7)) -> 301.2240975 | AS62: 0.02491895735 | AT62: 0.02242706161
A63: 4 | B63: ='Actual Accting'!B63 -> 2019-04-14 | C63: ='Actual Accting'!C63 -> 0 | D63: ='Actual Accting'!D63 -> 0 | E63: =HLOOKUP(MONTH($B63),LT!$B$93:$N$95,3) -> 166.9957249 | F63: ='Actual Accting'!F63 -> 0 | G63: - | H63: - | I63: - | J63: - | K63: - | L63: - | M63: =(E63)*LT!$G$7/LT!$A$7 -> 5.682866309 | N63: =M63*(1-LT!$G$44) -> 4.692293462 | O63: =$N63*VLOOKUP(MONTH($B63),LT!$A$13:$S$21,14) -> 1.946168327 | P63: =$N63*VLOOKUP(MONTH($B63),LT!$A$13:$S$21,15) -> 2.413358662 | Q63: =$N63*VLOOKUP(MONTH($B63),LT!$A$13:$S$21,16) -> 3.005089258 | R63: =(N63)*VLOOKUP(MONTH($B63),LT!$A$50:$C$58,2) -> 4.692293462 | S63: =MIN($O63,R63-T63-U63)*VLOOKUP(MONTH($B63),LT!$A$50:$C$58,2) -> 0.05305784906 | T63: =IF(R63>0,MIN($P63,R63),"0")*VLOOKUP(MONTH($B63),LT!$A$50:$C$58,2) -> 2.413358662 | U63: =$N63*(VLOOKUP(MONTH($B63),LT!$A$27:$W$35,12))/LT!$G$7*VLOOKUP(MONTH($B63),LT!$A$50:$C$58,2) -> 2.22587695 | V63: =(N63)*VLOOKUP(MONTH($B63),LT!$A$50:$C$58,3) -> 0 | W63: =MIN($O63,V63-X63-Y63)*VLOOKUP(MONTH($B63),LT!$A$50:$C$58,3) -> 0 | X63: =IF(V63>0,MIN($P63,V63),"0")*VLOOKUP(MONTH($B63),LT!$A$50:$C$58,3) -> 0 | Y63: =$N63*(VLOOKUP(MONTH($B63),LT!$A$27:$W$35,12))/LT!$G$7*VLOOKUP(MONTH($B63),LT!$A$50:$C$58,3) -> 0 | Z63: =U63*LT!$H$79 -> 0.02782346188 | AA63: =Y63*LT!$H$80 -> 0 | AB63: 0.02782346188 | AC63: 2.22587695 | AD63: 0 | AE63: 5.418447921 | AF63: 4.639235613 | AG63: -0.7513888461 | AH63: =LT!$H$79*(S63-Z63) -> 0.0003154298398 | AI63: =LT!$H$80*(W63-AA63) -> 0 | AJ63: 0.02491895735 | AK63: 0 | AL63: 0.02491895735 | AM63: 1 | AN63: 0.02491895735 | AO63: 0 | AP63: =VLOOKUP(MONTH($B63),LT!$A$27:$W$35,21)+VLOOKUP(MONTH($B63),LT!$A$27:$W$35,22)/(1-LT!$H$80) -> 72.57213609 | AQ63: =IF(Q63=0,"-",(AC63+AD63)/(N63/LT!$G$7)) -> 301.2240975 | AS63: 0.02491895735 | AT63: 0.02242706161
A64: 4 | B64: ='Actual Accting'!B64 -> 2019-04-15 | C64: ='Actual Accting'!C64 -> 0 | D64: ='Actual Accting'!D64 -> 0 | E64: =HLOOKUP(MONTH($B64),LT!$B$93:$N$95,3) -> 166.9957249 | F64: ='Actual Accting'!F64 -> 0 | G64: - | H64: - | I64: - | J64: - | K64: - | L64: - | M64: =(E64)*LT!$G$7/LT!$A$7 -> 5.682866309 | N64: =M64*(1-LT!$G$44) -> 4.692293462 | O64: =$N64*VLOOKUP(MONTH($B64),LT!$A$13:$S$21,14) -> 1.946168327 | P64: =$N64*VLOOKUP(MONTH($B64),LT!$A$13:$S$21,15) -> 2.413358662 | Q64: =$N64*VLOOKUP(MONTH($B64),LT!$A$13:$S$21,16) -> 3.005089258 | R64: =(N64)*VLOOKUP(MONTH($B64),LT!$A$50:$C$58,2) -> 4.692293462 | S64: =MIN($O64,R64-T64-U64)*VLOOKUP(MONTH($B64),LT!$A$50:$C$58,2) -> 0.05305784906 | T64: =IF(R64>0,MIN($P64,R64),"0")*VLOOKUP(MONTH($B64),LT!$A$50:$C$58,2) -> 2.413358662 | U64: =$N64*(VLOOKUP(MONTH($B64),LT!$A$27:$W$35,12))/LT!$G$7*VLOOKUP(MONTH($B64),LT!$A$50:$C$58,2) -> 2.22587695 | V64: =(N64)*VLOOKUP(MONTH($B64),LT!$A$50:$C$58,3) -> 0 | W64: =MIN($O64,V64-X64-Y64)*VLOOKUP(MONTH($B64),LT!$A$50:$C$58,3) -> 0 | X64: =IF(V64>0,MIN($P64,V64),"0")*VLOOKUP(MONTH($B64),LT!$A$50:$C$58,3) -> 0 | Y64: =$N64*(VLOOKUP(MONTH($B64),LT!$A$27:$W$35,12))/LT!$G$7*VLOOKUP(MONTH($B64),LT!$A$50:$C$58,3) -> 0 | Z64: =U64*LT!$H$79 -> 0.02782346188 | AA64: =Y64*LT!$H$80 -> 0 | AB64: 0.02782346188 | AC64: 2.22587695 | AD64: 0 | AE64: 5.418447921 | AF64: 4.639235613 | AG64: -0.7513888461 | AH64: =LT!$H$79*(S64-Z64) -> 0.0003154298398 | AI64: =LT!$H$80*(W64-AA64) -> 0 | AJ64: 0.02491895735 | AK64: 0 | AL64: 0.02491895735 | AM64: 1 | AN64: 0.02491895735 | AO64: 0 | AP64: =VLOOKUP(MONTH($B64),LT!$A$27:$W$35,21)+VLOOKUP(MONTH($B64),LT!$A$27:$W$35,22)/(1-LT!$H$80) -> 72.57213609 | AQ64: =IF(Q64=0,"-",(AC64+AD64)/(N64/LT!$G$7)) -> 301.2240975 | AS64: 0.02491895735 | AT64: 0.02242706161
A65: 4 | B65: ='Actual Accting'!B65 -> 2019-04-16 | C65: ='Actual Accting'!C65 -> 0 | D65: ='Actual Accting'!D65 -> 0 | E65: =HLOOKUP(MONTH($B65),LT!$B$93:$N$95,3) -> 166.9957249 | F65: ='Actual Accting'!F65 -> 0 | G65: - | H65: - | I65: - | J65: - | K65: - | L65: - | M65: =(E65)*LT!$G$7/LT!$A$7 -> 5.682866309 | N65: =M65*(1-LT!$G$44) -> 4.692293462 | O65: =$N65*VLOOKUP(MONTH($B65),LT!$A$13:$S$21,14) -> 1.946168327 | P65: =$N65*VLOOKUP(MONTH($B65),LT!$A$13:$S$21,15) -> 2.413358662 | Q65: =$N65*VLOOKUP(MONTH($B65),LT!$A$13:$S$21,16) -> 3.005089258 | R65: =(N65)*VLOOKUP(MONTH($B65),LT!$A$50:$C$58,2) -> 4.692293462 | S65: =MIN($O65,R65-T65-U65)*VLOOKUP(MONTH($B65),LT!$A$50:$C$58,2) -> 0.05305784906 | T65: =IF(R65>0,MIN($P65,R65),"0")*VLOOKUP(MONTH($B65),LT!$A$50:$C$58,2) -> 2.413358662 | U65: =$N65*(VLOOKUP(MONTH($B65),LT!$A$27:$W$35,12))/LT!$G$7*VLOOKUP(MONTH($B65),LT!$A$50:$C$58,2) -> 2.22587695 | V65: =(N65)*VLOOKUP(MONTH($B65),LT!$A$50:$C$58,3) -> 0 | W65: =MIN($O65,V65-X65-Y65)*VLOOKUP(MONTH($B65),LT!$A$50:$C$58,3) -> 0 | X65: =IF(V65>0,MIN($P65,V65),"0")*VLOOKUP(MONTH($B65),LT!$A$50:$C$58,3) -> 0 | Y65: =$N65*(VLOOKUP(MONTH($B65),LT!$A$27:$W$35,12))/LT!$G$7*VLOOKUP(MONTH($B65),LT!$A$50:$C$58,3) -> 0 | Z65: =U65*LT!$H$79 -> 0.02782346188 | AA65: =Y65*LT!$H$80 -> 0 | AB65: 0.02782346188 | AC65: 2.22587695 | AD65: 0 | AE65: 5.418447921 | AF65: 4.639235613 | AG65: -0.7513888461 | AH65: =LT!$H$79*(S65-Z65) -> 0.0003154298398 | AI65: =LT!$H$80*(W65-AA65) -> 0 | AJ65: 0.02491895735 | AK65: 0 | AL65: 0.02491895735 | AM65: 1 | AN65: 0.02491895735 | AO65: 0 | AP65: =VLOOKUP(MONTH($B65),LT!$A$27:$W$35,21)+VLOOKUP(MONTH($B65),LT!$A$27:$W$35,22)/(1-LT!$H$80) -> 72.57213609 | AQ65: =IF(Q65=0,"-",(AC65+AD65)/(N65/LT!$G$7)) -> 301.2240975 | AS65: 0.02491895735 | AT65: 0.02242706161
A66: 4 | B66: ='Actual Accting'!B66 -> 2019-04-17 | C66: ='Actual Accting'!C66 -> 0 | D66: ='Actual Accting'!D66 -> 0 | E66: =HLOOKUP(MONTH($B66),LT!$B$93:$N$95,3) -> 166.9957249 | F66: ='Actual Accting'!F66 -> 0 | G66: - | H66: - | I66: - | J66: - | K66: - | L66: - | M66: =(E66)*LT!$G$7/LT!$A$7 -> 5.682866309 | N66: =M66*(1-LT!$G$44) -> 4.692293462 | O66: =$N66*VLOOKUP(MONTH($B66),LT!$A$13:$S$21,14) -> 1.946168327 | P66: =$N66*VLOOKUP(MONTH($B66),LT!$A$13:$S$21,15) -> 2.413358662 | Q66: =$N66*VLOOKUP(MONTH($B66),LT!$A$13:$S$21,16) -> 3.005089258 | R66: =(N66)*VLOOKUP(MONTH($B66),LT!$A$50:$C$58,2) -> 4.692293462 | S66: =MIN($O66,R66-T66-U66)*VLOOKUP(MONTH($B66),LT!$A$50:$C$58,2) -> 0.05305784906 | T66: =IF(R66>0,MIN($P66,R66),"0")*VLOOKUP(MONTH($B66),LT!$A$50:$C$58,2) -> 2.413358662 | U66: =$N66*(VLOOKUP(MONTH($B66),LT!$A$27:$W$35,12))/LT!$G$7*VLOOKUP(MONTH($B66),LT!$A$50:$C$58,2) -> 2.22587695 | V66: =(N66)*VLOOKUP(MONTH($B66),LT!$A$50:$C$58,3) -> 0 | W66: =MIN($O66,V66-X66-Y66)*VLOOKUP(MONTH($B66),LT!$A$50:$C$58,3) -> 0 | X66: =IF(V66>0,MIN($P66,V66),"0")*VLOOKUP(MONTH($B66),LT!$A$50:$C$58,3) -> 0 | Y66: =$N66*(VLOOKUP(MONTH($B66),LT!$A$27:$W$35,12))/LT!$G$7*VLOOKUP(MONTH($B66),LT!$A$50:$C$58,3) -> 0 | Z66: =U66*LT!$H$79 -> 0.02782346188 | AA66: =Y66*LT!$H$80 -> 0 | AB66: 0.02782346188 | AC66: 2.22587695 | AD66: 0 | AE66: 5.418447921 | AF66: 4.639235613 | AG66: -0.7513888461 | AH66: =LT!$H$79*(S66-Z66) -> 0.0003154298398 | AI66: =LT!$H$80*(W66-AA66) -> 0 | AJ66: 0.02491895735 | AK66: 0 | AL66: 0.02491895735 | AM66: 1 | AN66: 0.02491895735 | AO66: 0 | AP66: =VLOOKUP(MONTH($B66),LT!$A$27:$W$35,21)+VLOOKUP(MONTH($B66),LT!$A$27:$W$35,22)/(1-LT!$H$80) -> 72.57213609 | AQ66: =IF(Q66=0,"-",(AC66+AD66)/(N66/LT!$G$7)) -> 301.2240975 | AS66: 0.02491895735 | AT66: 0.02242706161
A67: 4 | B67: ='Actual Accting'!B67 -> 2019-04-18 | C67: ='Actual Accting'!C67 -> 0 | D67: ='Actual Accting'!D67 -> 0 | E67: =HLOOKUP(MONTH($B67),LT!$B$93:$N$95,3) -> 166.9957249 | F67: ='Actual Accting'!F67 -> 0 | G67: - | H67: - | I67: - | J67: - | K67: - | L67: - | M67: =(E67)*LT!$G$7/LT!$A$7 -> 5.682866309 | N67: =M67*(1-LT!$G$44) -> 4.692293462 | O67: =$N67*VLOOKUP(MONTH($B67),LT!$A$13:$S$21,14) -> 1.946168327 | P67: =$N67*VLOOKUP(MONTH($B67),LT!$A$13:$S$21,15) -> 2.413358662 | Q67: =$N67*VLOOKUP(MONTH($B67),LT!$A$13:$S$21,16) -> 3.005089258 | R67: =(N67)*VLOOKUP(MONTH($B67),LT!$A$50:$C$58,2) -> 4.692293462 | S67: =MIN($O67,R67-T67-U67)*VLOOKUP(MONTH($B67),LT!$A$50:$C$58,2) -> 0.05305784906 | T67: =IF(R67>0,MIN($P67,R67),"0")*VLOOKUP(MONTH($B67),LT!$A$50:$C$58,2) -> 2.413358662 | U67: =$N67*(VLOOKUP(MONTH($B67),LT!$A$27:$W$35,12))/LT!$G$7*VLOOKUP(MONTH($B67),LT!$A$50:$C$58,2) -> 2.22587695 | V67: =(N67)*VLOOKUP(MONTH($B67),LT!$A$50:$C$58,3) -> 0 | W67: =MIN($O67,V67-X67-Y67)*VLOOKUP(MONTH($B67),LT!$A$50:$C$58,3) -> 0 | X67: =IF(V67>0,MIN($P67,V67),"0")*VLOOKUP(MONTH($B67),LT!$A$50:$C$58,3) -> 0 | Y67: =$N67*(VLOOKUP(MONTH($B67),LT!$A$27:$W$35,12))/LT!$G$7*VLOOKUP(MONTH($B67),LT!$A$50:$C$58,3) -> 0 | Z67: =U67*LT!$H$79 -> 0.02782346188 | AA67: =Y67*LT!$H$80 -> 0 | AB67: 0.02782346188 | AC67: 2.22587695 | AD67: 0 | AE67: 5.418447921 | AF67: 4.639235613 | AG67: -0.7513888461 | AH67: =LT!$H$79*(S67-Z67) -> 0.0003154298398 | AI67: =LT!$H$80*(W67-AA67) -> 0 | AJ67: 0.02491895735 | AK67: 0 | AL67: 0.02491895735 | AM67: 1 | AN67: 0.02491895735 | AO67: 0 | AP67: =VLOOKUP(MONTH($B67),LT!$A$27:$W$35,21)+VLOOKUP(MONTH($B67),LT!$A$27:$W$35,22)/(1-LT!$H$80) -> 72.57213609 | AQ67: =IF(Q67=0,"-",(AC67+AD67)/(N67/LT!$G$7)) -> 301.2240975 | AS67: 0.02491895735 | AT67: 0.02242706161
A68: 4 | B68: ='Actual Accting'!B68 -> 2019-04-19 | C68: ='Actual Accting'!C68 -> 0 | D68: ='Actual Accting'!D68 -> 0 | E68: =HLOOKUP(MONTH($B68),LT!$B$93:$N$95,3) -> 166.9957249 | F68: ='Actual Accting'!F68 -> 0 | G68: - | H68: - | I68: - | J68: - | K68: - | L68: - | M68: =(E68)*LT!$G$7/LT!$A$7 -> 5.682866309 | N68: =M68*(1-LT!$G$44) -> 4.692293462 | O68: =$N68*VLOOKUP(MONTH($B68),LT!$A$13:$S$21,14) -> 1.946168327 | P68: =$N68*VLOOKUP(MONTH($B68),LT!$A$13:$S$21,15) -> 2.413358662 | Q68: =$N68*VLOOKUP(MONTH($B68),LT!$A$13:$S$21,16) -> 3.005089258 | R68: =(N68)*VLOOKUP(MONTH($B68),LT!$A$50:$C$58,2) -> 4.692293462 | S68: =MIN($O68,R68-T68-U68)*VLOOKUP(MONTH($B68),LT!$A$50:$C$58,2) -> 0.05305784906 | T68: =IF(R68>0,MIN($P68,R68),"0")*VLOOKUP(MONTH($B68),LT!$A$50:$C$58,2) -> 2.413358662 | U68: =$N68*(VLOOKUP(MONTH($B68),LT!$A$27:$W$35,12))/LT!$G$7*VLOOKUP(MONTH($B68),LT!$A$50:$C$58,2) -> 2.22587695 | V68: =(N68)*VLOOKUP(MONTH($B68),LT!$A$50:$C$58,3) -> 0 | W68: =MIN($O68,V68-X68-Y68)*VLOOKUP(MONTH($B68),LT!$A$50:$C$58,3) -> 0 | X68: =IF(V68>0,MIN($P68,V68),"0")*VLOOKUP(MONTH($B68),LT!$A$50:$C$58,3) -> 0 | Y68: =$N68*(VLOOKUP(MONTH($B68),LT!$A$27:$W$35,12))/LT!$G$7*VLOOKUP(MONTH($B68),LT!$A$50:$C$58,3) -> 0 | Z68: =U68*LT!$H$79 -> 0.02782346188 | AA68: =Y68*LT!$H$80 -> 0 | AB68: 0.02782346188 | AC68: 2.22587695 | AD68: 0 | AE68: 5.418447921 | AF68: 4.639235613 | AG68: -0.7513888461 | AH68: =LT!$H$79*(S68-Z68) -> 0.0003154298398 | AI68: =LT!$H$80*(W68-AA68) -> 0 | AJ68: 0.02491895735 | AK68: 0 | AL68: 0.02491895735 | AM68: 1 | AN68: 0.02491895735 | AO68: 0 | AP68: =VLOOKUP(MONTH($B68),LT!$A$27:$W$35,21)+VLOOKUP(MONTH($B68),LT!$A$27:$W$35,22)/(1-LT!$H$80) -> 72.57213609 | AQ68: =IF(Q68=0,"-",(AC68+AD68)/(N68/LT!$G$7)) -> 301.2240975 | AS68: 0.02491895735 | AT68: 0.02242706161
A69: 4 | B69: ='Actual Accting'!B69 -> 2019-04-20 | C69: ='Actual Accting'!C69 -> 0 | D69: ='Actual Accting'!D69 -> 0 | E69: =HLOOKUP(MONTH($B69),LT!$B$93:$N$95,3) -> 166.9957249 | F69: ='Actual Accting'!F69 -> 0 | G69: - | H69: - | I69: - | J69: - | K69: - | L69: - | M69: =(E69)*LT!$G$7/LT!$A$7 -> 5.682866309 | N69: =M69*(1-LT!$G$44) -> 4.692293462 | O69: =$N69*VLOOKUP(MONTH($B69),LT!$A$13:$S$21,14) -> 1.946168327 | P69: =$N69*VLOOKUP(MONTH($B69),LT!$A$13:$S$21,15) -> 2.413358662 | Q69: =$N69*VLOOKUP(MONTH($B69),LT!$A$13:$S$21,16) -> 3.005089258 | R69: =(N69)*VLOOKUP(MONTH($B69),LT!$A$50:$C$58,2) -> 4.692293462 | S69: =MIN($O69,R69-T69-U69)*VLOOKUP(MONTH($B69),LT!$A$50:$C$58,2) -> 0.05305784906 | T69: =IF(R69>0,MIN($P69,R69),"0")*VLOOKUP(MONTH($B69),LT!$A$50:$C$58,2) -> 2.413358662 | U69: =$N69*(VLOOKUP(MONTH($B69),LT!$A$27:$W$35,12))/LT!$G$7*VLOOKUP(MONTH($B69),LT!$A$50:$C$58,2) -> 2.22587695 | V69: =(N69)*VLOOKUP(MONTH($B69),LT!$A$50:$C$58,3) -> 0 | W69: =MIN($O69,V69-X69-Y69)*VLOOKUP(MONTH($B69),LT!$A$50:$C$58,3) -> 0 | X69: =IF(V69>0,MIN($P69,V69),"0")*VLOOKUP(MONTH($B69),LT!$A$50:$C$58,3) -> 0 | Y69: =$N69*(VLOOKUP(MONTH($B69),LT!$A$27:$W$35,12))/LT!$G$7*VLOOKUP(MONTH($B69),LT!$A$50:$C$58,3) -> 0 | Z69: =U69*LT!$H$79 -> 0.02782346188 | AA69: =Y69*LT!$H$80 -> 0 | AB69: 0.02782346188 | AC69: 2.22587695 | AD69: 0 | AE69: 5.418447921 | AF69: 4.639235613 | AG69: -0.7513888461 | AH69: =LT!$H$79*(S69-Z69) -> 0.0003154298398 | AI69: =LT!$H$80*(W69-AA69) -> 0 | AJ69: 0.02491895735 | AK69: 0 | AL69: 0.02491895735 | AM69: 1 | AN69: 0.02491895735 | AO69: 0 | AP69: =VLOOKUP(MONTH($B69),LT!$A$27:$W$35,21)+VLOOKUP(MONTH($B69),LT!$A$27:$W$35,22)/(1-LT!$H$80) -> 72.57213609 | AQ69: =IF(Q69=0,"-",(AC69+AD69)/(N69/LT!$G$7)) -> 301.2240975 | AS69: 0.02491895735 | AT69: 0.02242706161
A70: 4 | B70: ='Actual Accting'!B70 -> 2019-04-21 | C70: ='Actual Accting'!C70 -> 0 | D70: ='Actual Accting'!D70 -> 0 | E70: =HLOOKUP(MONTH($B70),LT!$B$93:$N$95,3) -> 166.9957249 | F70: ='Actual Accting'!F70 -> 0 | G70: - | H70: - | I70: - | J70: - | K70: - | L70: - | M70: =(E70)*LT!$G$7/LT!$A$7 -> 5.682866309 | N70: =M70*(1-LT!$G$44) -> 4.692293462 | O70: =$N70*VLOOKUP(MONTH($B70),LT!$A$13:$S$21,14) -> 1.946168327 | P70: =$N70*VLOOKUP(MONTH($B70),LT!$A$13:$S$21,15) -> 2.413358662 | Q70: =$N70*VLOOKUP(MONTH($B70),LT!$A$13:$S$21,16) -> 3.005089258 | R70: =(N70)*VLOOKUP(MONTH($B70),LT!$A$50:$C$58,2) -> 4.692293462 | S70: =MIN($O70,R70-T70-U70)*VLOOKUP(MONTH($B70),LT!$A$50:$C$58,2) -> 0.05305784906 | T70: =IF(R70>0,MIN($P70,R70),"0")*VLOOKUP(MONTH($B70),LT!$A$50:$C$58,2) -> 2.413358662 | U70: =$N70*(VLOOKUP(MONTH($B70),LT!$A$27:$W$35,12))/LT!$G$7*VLOOKUP(MONTH($B70),LT!$A$50:$C$58,2) -> 2.22587695 | V70: =(N70)*VLOOKUP(MONTH($B70),LT!$A$50:$C$58,3) -> 0 | W70: =MIN($O70,V70-X70-Y70)*VLOOKUP(MONTH($B70),LT!$A$50:$C$58,3) -> 0 | X70: =IF(V70>0,MIN($P70,V70),"0")*VLOOKUP(MONTH($B70),LT!$A$50:$C$58,3) -> 0 | Y70: =$N70*(VLOOKUP(MONTH($B70),LT!$A$27:$W$35,12))/LT!$G$7*VLOOKUP(MONTH($B70),LT!$A$50:$C$58,3) -> 0 | Z70: =U70*LT!$H$79 -> 0.02782346188 | AA70: =Y70*LT!$H$80 -> 0 | AB70: 0.02782346188 | AC70: 2.22587695 | AD70: 0 | AE70: 5.418447921 | AF70: 4.639235613 | AG70: -0.7513888461 | AH70: =LT!$H$79*(S70-Z70) -> 0.0003154298398 | AI70: =LT!$H$80*(W70-AA70) -> 0 | AJ70: 0.02491895735 | AK70: 0 | AL70: 0.02491895735 | AM70: 1 | AN70: 0.02491895735 | AO70: 0 | AP70: =VLOOKUP(MONTH($B70),LT!$A$27:$W$35,21)+VLOOKUP(MONTH($B70),LT!$A$27:$W$35,22)/(1-LT!$H$80) -> 72.57213609 | AQ70: =IF(Q70=0,"-",(AC70+AD70)/(N70/LT!$G$7)) -> 301.2240975 | AS70: 0.02491895735 | AT70: 0.02242706161
A71: 4 | B71: ='Actual Accting'!B71 -> 2019-04-22 | C71: ='Actual Accting'!C71 -> 0 | D71: ='Actual Accting'!D71 -> 0 | E71: =HLOOKUP(MONTH($B71),LT!$B$93:$N$95,3) -> 166.9957249 | F71: ='Actual Accting'!F71 -> 0 | G71: - | H71: - | I71: - | J71: - | K71: - | L71: - | M71: =(E71)*LT!$G$7/LT!$A$7 -> 5.682866309 | N71: =M71*(1-LT!$G$44) -> 4.692293462 | O71: =$N71*VLOOKUP(MONTH($B71),LT!$A$13:$S$21,14) -> 1.946168327 | P71: =$N71*VLOOKUP(MONTH($B71),LT!$A$13:$S$21,15) -> 2.413358662 | Q71: =$N71*VLOOKUP(MONTH($B71),LT!$A$13:$S$21,16) -> 3.005089258 | R71: =(N71)*VLOOKUP(MONTH($B71),LT!$A$50:$C$58,2) -> 4.692293462 | S71: =MIN($O71,R71-T71-U71)*VLOOKUP(MONTH($B71),LT!$A$50:$C$58,2) -> 0.05305784906 | T71: =IF(R71>0,MIN($P71,R71),"0")*VLOOKUP(MONTH($B71),LT!$A$50:$C$58,2) -> 2.413358662 | U71: =$N71*(VLOOKUP(MONTH($B71),LT!$A$27:$W$35,12))/LT!$G$7*VLOOKUP(MONTH($B71),LT!$A$50:$C$58,2) -> 2.22587695 | V71: =(N71)*VLOOKUP(MONTH($B71),LT!$A$50:$C$58,3) -> 0 | W71: =MIN($O71,V71-X71-Y71)*VLOOKUP(MONTH($B71),LT!$A$50:$C$58,3) -> 0 | X71: =IF(V71>0,MIN($P71,V71),"0")*VLOOKUP(MONTH($B71),LT!$A$50:$C$58,3) -> 0 | Y71: =$N71*(VLOOKUP(MONTH($B71),LT!$A$27:$W$35,12))/LT!$G$7*VLOOKUP(MONTH($B71),LT!$A$50:$C$58,3) -> 0 | Z71: =U71*LT!$H$79 -> 0.02782346188 | AA71: =Y71*LT!$H$80 -> 0 | AB71: 0.02782346188 | AC71: 2.22587695 | AD71: 0 | AE71: 5.418447921 | AF71: 4.639235613 | AG71: -0.7513888461 | AH71: =LT!$H$79*(S71-Z71) -> 0.0003154298398 | AI71: =LT!$H$80*(W71-AA71) -> 0 | AJ71: 0.02491895735 | AK71: 0 | AL71: 0.02491895735 | AM71: 1 | AN71: 0.02491895735 | AO71: 0 | AP71: =VLOOKUP(MONTH($B71),LT!$A$27:$W$35,21)+VLOOKUP(MONTH($B71),LT!$A$27:$W$35,22)/(1-LT!$H$80) -> 72.57213609 | AQ71: =IF(Q71=0,"-",(AC71+AD71)/(N71/LT!$G$7)) -> 301.2240975 | AS71: 0.02491895735 | AT71: 0.02242706161
A72: 4 | B72: ='Actual Accting'!B72 -> 2019-04-23 | C72: ='Actual Accting'!C72 -> 0 | D72: ='Actual Accting'!D72 -> 0 | E72: =HLOOKUP(MONTH($B72),LT!$B$93:$N$95,3) -> 166.9957249 | F72: ='Actual Accting'!F72 -> 0 | G72: - | H72: - | I72: - | J72: - | K72: - | L72: - | M72: =(E72)*LT!$G$7/LT!$A$7 -> 5.682866309 | N72: =M72*(1-LT!$G$44) -> 4.692293462 | O72: =$N72*VLOOKUP(MONTH($B72),LT!$A$13:$S$21,14) -> 1.946168327 | P72: =$N72*VLOOKUP(MONTH($B72),LT!$A$13:$S$21,15) -> 2.413358662 | Q72: =$N72*VLOOKUP(MONTH($B72),LT!$A$13:$S$21,16) -> 3.005089258 | R72: =(N72)*VLOOKUP(MONTH($B72),LT!$A$50:$C$58,2) -> 4.692293462 | S72: =MIN($O72,R72-T72-U72)*VLOOKUP(MONTH($B72),LT!$A$50:$C$58,2) -> 0.05305784906 | T72: =IF(R72>0,MIN($P72,R72),"0")*VLOOKUP(MONTH($B72),LT!$A$50:$C$58,2) -> 2.413358662 | U72: =$N72*(VLOOKUP(MONTH($B72),LT!$A$27:$W$35,12))/LT!$G$7*VLOOKUP(MONTH($B72),LT!$A$50:$C$58,2) -> 2.22587695 | V72: =(N72)*VLOOKUP(MONTH($B72),LT!$A$50:$C$58,3) -> 0 | W72: =MIN($O72,V72-X72-Y72)*VLOOKUP(MONTH($B72),LT!$A$50:$C$58,3) -> 0 | X72: =IF(V72>0,MIN($P72,V72),"0")*VLOOKUP(MONTH($B72),LT!$A$50:$C$58,3) -> 0 | Y72: =$N72*(VLOOKUP(MONTH($B72),LT!$A$27:$W$35,12))/LT!$G$7*VLOOKUP(MONTH($B72),LT!$A$50:$C$58,3) -> 0 | Z72: =U72*LT!$H$79 -> 0.02782346188 | AA72: =Y72*LT!$H$80 -> 0 | AB72: 0.02782346188 | AC72: 2.22587695 | AD72: 0 | AE72: 5.418447921 | AF72: 4.639235613 | AG72: -0.7513888461 | AH72: =LT!$H$79*(S72-Z72) -> 0.0003154298398 | AI72: =LT!$H$80*(W72-AA72) -> 0 | AJ72: 0.02491895735 | AK72: 0 | AL72: 0.02491895735 | AM72: 1 | AN72: 0.02491895735 | AO72: 0 | AP72: =VLOOKUP(MONTH($B72),LT!$A$27:$W$35,21)+VLOOKUP(MONTH($B72),LT!$A$27:$W$35,22)/(1-LT!$H$80) -> 72.57213609 | AQ72: =IF(Q72=0,"-",(AC72+AD72)/(N72/LT!$G$7)) -> 301.2240975 | AS72: 0.02491895735 | AT72: 0.02242706161
A73: 4 | B73: ='Actual Accting'!B73 -> 2019-04-24 | C73: ='Actual Accting'!C73 -> 0 | D73: ='Actual Accting'!D73 -> 0 | E73: =HLOOKUP(MONTH($B73),LT!$B$93:$N$95,3) -> 166.9957249 | F73: ='Actual Accting'!F73 -> 0 | G73: - | H73: - | I73: - | J73: - | K73: - | L73: - | M73: =(E73)*LT!$G$7/LT!$A$7 -> 5.682866309 | N73: =M73*(1-LT!$G$44) -> 4.692293462 | O73: =$N73*VLOOKUP(MONTH($B73),LT!$A$13:$S$21,14) -> 1.946168327 | P73: =$N73*VLOOKUP(MONTH($B73),LT!$A$13:$S$21,15) -> 2.413358662 | Q73: =$N73*VLOOKUP(MONTH($B73),LT!$A$13:$S$21,16) -> 3.005089258 | R73: =(N73)*VLOOKUP(MONTH($B73),LT!$A$50:$C$58,2) -> 4.692293462 | S73: =MIN($O73,R73-T73-U73)*VLOOKUP(MONTH($B73),LT!$A$50:$C$58,2) -> 0.05305784906 | T73: =IF(R73>0,MIN($P73,R73),"0")*VLOOKUP(MONTH($B73),LT!$A$50:$C$58,2) -> 2.413358662 | U73: =$N73*(VLOOKUP(MONTH($B73),LT!$A$27:$W$35,12))/LT!$G$7*VLOOKUP(MONTH($B73),LT!$A$50:$C$58,2) -> 2.22587695 | V73: =(N73)*VLOOKUP(MONTH($B73),LT!$A$50:$C$58,3) -> 0 | W73: =MIN($O73,V73-X73-Y73)*VLOOKUP(MONTH($B73),LT!$A$50:$C$58,3) -> 0 | X73: =IF(V73>0,MIN($P73,V73),"0")*VLOOKUP(MONTH($B73),LT!$A$50:$C$58,3) -> 0 | Y73: =$N73*(VLOOKUP(MONTH($B73),LT!$A$27:$W$35,12))/LT!$G$7*VLOOKUP(MONTH($B73),LT!$A$50:$C$58,3) -> 0 | Z73: =U73*LT!$H$79 -> 0.02782346188 | AA73: =Y73*LT!$H$80 -> 0 | AB73: 0.02782346188 | AC73: 2.22587695 | AD73: 0 | AE73: 5.418447921 | AF73: 4.639235613 | AG73: -0.7513888461 | AH73: =LT!$H$79*(S73-Z73) -> 0.0003154298398 | AI73: =LT!$H$80*(W73-AA73) -> 0 | AJ73: 0.02491895735 | AK73: 0 | AL73: 0.02491895735 | AM73: 1 | AN73: 0.02491895735 | AO73: 0 | AP73: =VLOOKUP(MONTH($B73),LT!$A$27:$W$35,21)+VLOOKUP(MONTH($B73),LT!$A$27:$W$35,22)/(1-LT!$H$80) -> 72.57213609 | AQ73: =IF(Q73=0,"-",(AC73+AD73)/(N73/LT!$G$7)) -> 301.2240975 | AS73: 0.02491895735 | AT73: 0.02242706161
A74: 4 | B74: ='Actual Accting'!B74 -> 2019-04-25 | C74: ='Actual Accting'!C74 -> 0 | D74: ='Actual Accting'!D74 -> 0 | E74: =HLOOKUP(MONTH($B74),LT!$B$93:$N$95,3) -> 166.9957249 | F74: ='Actual Accting'!F74 -> 0 | G74: - | H74: - | I74: - | J74: - | K74: - | L74: - | M74: =(E74)*LT!$G$7/LT!$A$7 -> 5.682866309 | N74: =M74*(1-LT!$G$44) -> 4.692293462 | O74: =$N74*VLOOKUP(MONTH($B74),LT!$A$13:$S$21,14) -> 1.946168327 | P74: =$N74*VLOOKUP(MONTH($B74),LT!$A$13:$S$21,15) -> 2.413358662 | Q74: =$N74*VLOOKUP(MONTH($B74),LT!$A$13:$S$21,16) -> 3.005089258 | R74: =(N74)*VLOOKUP(MONTH($B74),LT!$A$50:$C$58,2) -> 4.692293462 | S74: =MIN($O74,R74-T74-U74)*VLOOKUP(MONTH($B74),LT!$A$50:$C$58,2) -> 0.05305784906 | T74: =IF(R74>0,MIN($P74,R74),"0")*VLOOKUP(MONTH($B74),LT!$A$50:$C$58,2) -> 2.413358662 | U74: =$N74*(VLOOKUP(MONTH($B74),LT!$A$27:$W$35,12))/LT!$G$7*VLOOKUP(MONTH($B74),LT!$A$50:$C$58,2) -> 2.22587695 | V74: =(N74)*VLOOKUP(MONTH($B74),LT!$A$50:$C$58,3) -> 0 | W74: =MIN($O74,V74-X74-Y74)*VLOOKUP(MONTH($B74),LT!$A$50:$C$58,3) -> 0 | X74: =IF(V74>0,MIN($P74,V74),"0")*VLOOKUP(MONTH($B74),LT!$A$50:$C$58,3) -> 0 | Y74: =$N74*(VLOOKUP(MONTH($B74),LT!$A$27:$W$35,12))/LT!$G$7*VLOOKUP(MONTH($B74),LT!$A$50:$C$58,3) -> 0 | Z74: =U74*LT!$H$79 -> 0.02782346188 | AA74: =Y74*LT!$H$80 -> 0 | AB74: 0.02782346188 | AC74: 2.22587695 | AD74: 0 | AE74: 5.418447921 | AF74: 4.639235613 | AG74: -0.7513888461 | AH74: =LT!$H$79*(S74-Z74) -> 0.0003154298398 | AI74: =LT!$H$80*(W74-AA74) -> 0 | AJ74: 0.02491895735 | AK74: 0 | AL74: 0.02491895735 | AM74: 1 | AN74: 0.02491895735 | AO74: 0 | AP74: =VLOOKUP(MONTH($B74),LT!$A$27:$W$35,21)+VLOOKUP(MONTH($B74),LT!$A$27:$W$35,22)/(1-LT!$H$80) -> 72.57213609 | AQ74: =IF(Q74=0,"-",(AC74+AD74)/(N74/LT!$G$7)) -> 301.2240975 | AS74: 0.02491895735 | AT74: 0.02242706161
A75: 4 | B75: ='Actual Accting'!B75 -> 2019-04-26 | C75: ='Actual Accting'!C75 -> 0 | D75: ='Actual Accting'!D75 -> 0 | E75: =HLOOKUP(MONTH($B75),LT!$B$93:$N$95,3) -> 166.9957249 | F75: ='Actual Accting'!F75 -> 0 | G75: - | H75: - | I75: - | J75: - | K75: - | L75: - | M75: =(E75)*LT!$G$7/LT!$A$7 -> 5.682866309 | N75: =M75*(1-LT!$G$44) -> 4.692293462 | O75: =$N75*VLOOKUP(MONTH($B75),LT!$A$13:$S$21,14) -> 1.946168327 | P75: =$N75*VLOOKUP(MONTH($B75),LT!$A$13:$S$21,15) -> 2.413358662 | Q75: =$N75*VLOOKUP(MONTH($B75),LT!$A$13:$S$21,16) -> 3.005089258 | R75: =(N75)*VLOOKUP(MONTH($B75),LT!$A$50:$C$58,2) -> 4.692293462 | S75: =MIN($O75,R75-T75-U75)*VLOOKUP(MONTH($B75),LT!$A$50:$C$58,2) -> 0.05305784906 | T75: =IF(R75>0,MIN($P75,R75),"0")*VLOOKUP(MONTH($B75),LT!$A$50:$C$58,2) -> 2.413358662 | U75: =$N75*(VLOOKUP(MONTH($B75),LT!$A$27:$W$35,12))/LT!$G$7*VLOOKUP(MONTH($B75),LT!$A$50:$C$58,2) -> 2.22587695 | V75: =(N75)*VLOOKUP(MONTH($B75),LT!$A$50:$C$58,3) -> 0 | W75: =MIN($O75,V75-X75-Y75)*VLOOKUP(MONTH($B75),LT!$A$50:$C$58,3) -> 0 | X75: =IF(V75>0,MIN($P75,V75),"0")*VLOOKUP(MONTH($B75),LT!$A$50:$C$58,3) -> 0 | Y75: =$N75*(VLOOKUP(MONTH($B75),LT!$A$27:$W$35,12))/LT!$G$7*VLOOKUP(MONTH($B75),LT!$A$50:$C$58,3) -> 0 | Z75: =U75*LT!$H$79 -> 0.02782346188 | AA75: =Y75*LT!$H$80 -> 0 | AB75: 0.02782346188 | AC75: 2.22587695 | AD75: 0 | AE75: 5.418447921 | AF75: 4.639235613 | AG75: -0.7513888461 | AH75: =LT!$H$79*(S75-Z75) -> 0.0003154298398 | AI75: =LT!$H$80*(W75-AA75) -> 0 | AJ75: 0.02491895735 | AK75: 0 | AL75: 0.02491895735 | AM75: 1 | AN75: 0.02491895735 | AO75: 0 | AP75: =VLOOKUP(MONTH($B75),LT!$A$27:$W$35,21)+VLOOKUP(MONTH($B75),LT!$A$27:$W$35,22)/(1-LT!$H$80) -> 72.57213609 | AQ75: =IF(Q75=0,"-",(AC75+AD75)/(N75/LT!$G$7)) -> 301.2240975 | AS75: 0.02491895735 | AT75: 0.02242706161
A76: 4 | B76: ='Actual Accting'!B76 -> 2019-04-27 | C76: ='Actual Accting'!C76 -> 0 | D76: ='Actual Accting'!D76 -> 0 | E76: =HLOOKUP(MONTH($B76),LT!$B$93:$N$95,3) -> 166.9957249 | F76: ='Actual Accting'!F76 -> 0 | G76: - | H76: - | I76: - | J76: - | K76: - | L76: - | M76: =(E76)*LT!$G$7/LT!$A$7 -> 5.682866309 | N76: =M76*(1-LT!$G$44) -> 4.692293462 | O76: =$N76*VLOOKUP(MONTH($B76),LT!$A$13:$S$21,14) -> 1.946168327 | P76: =$N76*VLOOKUP(MONTH($B76),LT!$A$13:$S$21,15) -> 2.413358662 | Q76: =$N76*VLOOKUP(MONTH($B76),LT!$A$13:$S$21,16) -> 3.005089258 | R76: =(N76)*VLOOKUP(MONTH($B76),LT!$A$50:$C$58,2) -> 4.692293462 | S76: =MIN($O76,R76-T76-U76)*VLOOKUP(MONTH($B76),LT!$A$50:$C$58,2) -> 0.05305784906 | T76: =IF(R76>0,MIN($P76,R76),"0")*VLOOKUP(MONTH($B76),LT!$A$50:$C$58,2) -> 2.413358662 | U76: =$N76*(VLOOKUP(MONTH($B76),LT!$A$27:$W$35,12))/LT!$G$7*VLOOKUP(MONTH($B76),LT!$A$50:$C$58,2) -> 2.22587695 | V76: =(N76)*VLOOKUP(MONTH($B76),LT!$A$50:$C$58,3) -> 0 | W76: =MIN($O76,V76-X76-Y76)*VLOOKUP(MONTH($B76),LT!$A$50:$C$58,3) -> 0 | X76: =IF(V76>0,MIN($P76,V76),"0")*VLOOKUP(MONTH($B76),LT!$A$50:$C$58,3) -> 0 | Y76: =$N76*(VLOOKUP(MONTH($B76),LT!$A$27:$W$35,12))/LT!$G$7*VLOOKUP(MONTH($B76),LT!$A$50:$C$58,3) -> 0 | Z76: =U76*LT!$H$79 -> 0.02782346188 | AA76: =Y76*LT!$H$80 -> 0 | AB76: 0.02782346188 | AC76: 2.22587695 | AD76: 0 | AE76: 5.418447921 | AF76: 4.639235613 | AG76: -0.7513888461 | AH76: =LT!$H$79*(S76-Z76) -> 0.0003154298398 | AI76: =LT!$H$80*(W76-AA76) -> 0 | AJ76: 0.02491895735 | AK76: 0 | AL76: 0.02491895735 | AM76: 1 | AN76: 0.02491895735 | AO76: 0 | AP76: =VLOOKUP(MONTH($B76),LT!$A$27:$W$35,21)+VLOOKUP(MONTH($B76),LT!$A$27:$W$35,22)/(1-LT!$H$80) -> 72.57213609 | AQ76: =IF(Q76=0,"-",(AC76+AD76)/(N76/LT!$G$7)) -> 301.2240975 | AS76: 0.02491895735 | AT76: 0.02242706161
A77: 4 | B77: ='Actual Accting'!B77 -> 2019-04-28 | C77: ='Actual Accting'!C77 -> 0 | D77: ='Actual Accting'!D77 -> 0 | E77: =HLOOKUP(MONTH($B77),LT!$B$93:$N$95,3) -> 166.9957249 | F77: ='Actual Accting'!F77 -> 0 | G77: - | H77: - | I77: - | J77: - | K77: - | L77: - | M77: =(E77)*LT!$G$7/LT!$A$7 -> 5.682866309 | N77: =M77*(1-LT!$G$44) -> 4.692293462 | O77: =$N77*VLOOKUP(MONTH($B77),LT!$A$13:$S$21,14) -> 1.946168327 | P77: =$N77*VLOOKUP(MONTH($B77),LT!$A$13:$S$21,15) -> 2.413358662 | Q77: =$N77*VLOOKUP(MONTH($B77),LT!$A$13:$S$21,16) -> 3.005089258 | R77: =(N77)*VLOOKUP(MONTH($B77),LT!$A$50:$C$58,2) -> 4.692293462 | S77: =MIN($O77,R77-T77-U77)*VLOOKUP(MONTH($B77),LT!$A$50:$C$58,2) -> 0.05305784906 | T77: =IF(R77>0,MIN($P77,R77),"0")*VLOOKUP(MONTH($B77),LT!$A$50:$C$58,2) -> 2.413358662 | U77: =$N77*(VLOOKUP(MONTH($B77),LT!$A$27:$W$35,12))/LT!$G$7*VLOOKUP(MONTH($B77),LT!$A$50:$C$58,2) -> 2.22587695 | V77: =(N77)*VLOOKUP(MONTH($B77),LT!$A$50:$C$58,3) -> 0 | W77: =MIN($O77,V77-X77-Y77)*VLOOKUP(MONTH($B77),LT!$A$50:$C$58,3) -> 0 | X77: =IF(V77>0,MIN($P77,V77),"0")*VLOOKUP(MONTH($B77),LT!$A$50:$C$58,3) -> 0 | Y77: =$N77*(VLOOKUP(MONTH($B77),LT!$A$27:$W$35,12))/LT!$G$7*VLOOKUP(MONTH($B77),LT!$A$50:$C$58,3) -> 0 | Z77: =U77*LT!$H$79 -> 0.02782346188 | AA77: =Y77*LT!$H$80 -> 0 | AB77: 0.02782346188 | AC77: 2.22587695 | AD77: 0 | AE77: 5.418447921 | AF77: 4.639235613 | AG77: -0.7513888461 | AH77: =LT!$H$79*(S77-Z77) -> 0.0003154298398 | AI77: =LT!$H$80*(W77-AA77) -> 0 | AJ77: 0.02491895735 | AK77: 0 | AL77: 0.02491895735 | AM77: 1 | AN77: 0.02491895735 | AO77: 0 | AP77: =VLOOKUP(MONTH($B77),LT!$A$27:$W$35,21)+VLOOKUP(MONTH($B77),LT!$A$27:$W$35,22)/(1-LT!$H$80) -> 72.57213609 | AQ77: =IF(Q77=0,"-",(AC77+AD77)/(N77/LT!$G$7)) -> 301.2240975 | AS77: 0.02491895735 | AT77: 0.02242706161
A78: 4 | B78: ='Actual Accting'!B78 -> 2019-04-29 | C78: ='Actual Accting'!C78 -> 0 | D78: ='Actual Accting'!D78 -> 0 | E78: =HLOOKUP(MONTH($B78),LT!$B$93:$N$95,3) -> 166.9957249 | F78: ='Actual Accting'!F78 -> 0 | G78: - | H78: - | I78: - | J78: - | K78: - | L78: - | M78: =(E78)*LT!$G$7/LT!$A$7 -> 5.682866309 | N78: =M78*(1-LT!$G$44) -> 4.692293462 | O78: =$N78*VLOOKUP(MONTH($B78),LT!$A$13:$S$21,14) -> 1.946168327 | P78: =$N78*VLOOKUP(MONTH($B78),LT!$A$13:$S$21,15) -> 2.413358662 | Q78: =$N78*VLOOKUP(MONTH($B78),LT!$A$13:$S$21,16) -> 3.005089258 | R78: =(N78)*VLOOKUP(MONTH($B78),LT!$A$50:$C$58,2) -> 4.692293462 | S78: =MIN($O78,R78-T78-U78)*VLOOKUP(MONTH($B78),LT!$A$50:$C$58,2) -> 0.05305784906 | T78: =IF(R78>0,MIN($P78,R78),"0")*VLOOKUP(MONTH($B78),LT!$A$50:$C$58,2) -> 2.413358662 | U78: =$N78*(VLOOKUP(MONTH($B78),LT!$A$27:$W$35,12))/LT!$G$7*VLOOKUP(MONTH($B78),LT!$A$50:$C$58,2) -> 2.22587695 | V78: =(N78)*VLOOKUP(MONTH($B78),LT!$A$50:$C$58,3) -> 0 | W78: =MIN($O78,V78-X78-Y78)*VLOOKUP(MONTH($B78),LT!$A$50:$C$58,3) -> 0 | X78: =IF(V78>0,MIN($P78,V78),"0")*VLOOKUP(MONTH($B78),LT!$A$50:$C$58,3) -> 0 | Y78: =$N78*(VLOOKUP(MONTH($B78),LT!$A$27:$W$35,12))/LT!$G$7*VLOOKUP(MONTH($B78),LT!$A$50:$C$58,3) -> 0 | Z78: =U78*LT!$H$79 -> 0.02782346188 | AA78: =Y78*LT!$H$80 -> 0 | AB78: 0.02782346188 | AC78: 2.22587695 | AD78: 0 | AE78: 5.418447921 | AF78: 4.639235613 | AG78: -0.7513888461 | AH78: =LT!$H$79*(S78-Z78) -> 0.0003154298398 | AI78: =LT!$H$80*(W78-AA78) -> 0 | AJ78: 0.02491895735 | AK78: 0 | AL78: 0.02491895735 | AM78: 1 | AN78: 0.02491895735 | AO78: 0 | AP78: =VLOOKUP(MONTH($B78),LT!$A$27:$W$35,21)+VLOOKUP(MONTH($B78),LT!$A$27:$W$35,22)/(1-LT!$H$80) -> 72.57213609 | AQ78: =IF(Q78=0,"-",(AC78+AD78)/(N78/LT!$G$7)) -> 301.2240975 | AS78: 0.02491895735 | AT78: 0.02242706161
A79: 4 | B79: ='Actual Accting'!B79 -> 2019-04-30 | C79: ='Actual Accting'!C79 -> 0 | D79: ='Actual Accting'!D79 -> 0 | E79: =HLOOKUP(MONTH($B79),LT!$B$93:$N$95,3) -> 166.9957249 | F79: ='Actual Accting'!F79 -> 0 | G79: - | H79: - | I79: - | J79: - | K79: - | L79: - | M79: =(E79)*LT!$G$7/LT!$A$7 -> 5.682866309 | N79: =M79*(1-LT!$G$44) -> 4.692293462 | O79: =$N79*VLOOKUP(MONTH($B79),LT!$A$13:$S$21,14) -> 1.946168327 | P79: =$N79*VLOOKUP(MONTH($B79),LT!$A$13:$S$21,15) -> 2.413358662 | Q79: =$N79*VLOOKUP(MONTH($B79),LT!$A$13:$S$21,16) -> 3.005089258 | R79: =(N79)*VLOOKUP(MONTH($B79),LT!$A$50:$C$58,2) -> 4.692293462 | S79: =MIN($O79,R79-T79-U79)*VLOOKUP(MONTH($B79),LT!$A$50:$C$58,2) -> 0.05305784906 | T79: =IF(R79>0,MIN($P79,R79),"0")*VLOOKUP(MONTH($B79),LT!$A$50:$C$58,2) -> 2.413358662 | U79: =$N79*(VLOOKUP(MONTH($B79),LT!$A$27:$W$35,12))/LT!$G$7*VLOOKUP(MONTH($B79),LT!$A$50:$C$58,2) -> 2.22587695 | V79: =(N79)*VLOOKUP(MONTH($B79),LT!$A$50:$C$58,3) -> 0 | W79: =MIN($O79,V79-X79-Y79)*VLOOKUP(MONTH($B79),LT!$A$50:$C$58,3) -> 0 | X79: =IF(V79>0,MIN($P79,V79),"0")*VLOOKUP(MONTH($B79),LT!$A$50:$C$58,3) -> 0 | Y79: =$N79*(VLOOKUP(MONTH($B79),LT!$A$27:$W$35,12))/LT!$G$7*VLOOKUP(MONTH($B79),LT!$A$50:$C$58,3) -> 0 | Z79: =U79*LT!$H$79 -> 0.02782346188 | AA79: =Y79*LT!$H$80 -> 0 | AB79: 0.02782346188 | AC79: 2.22587695 | AD79: 0 | AE79: 5.418447921 | AF79: 4.639235613 | AG79: -0.7513888461 | AH79: =LT!$H$79*(S79-Z79) -> 0.0003154298398 | AI79: =LT!$H$80*(W79-AA79) -> 0 | AJ79: 0.02491895735 | AK79: 0 | AL79: 0.02491895735 | AM79: 1 | AN79: 0.02491895735 | AO79: 0 | AP79: =VLOOKUP(MONTH($B79),LT!$A$27:$W$35,21)+VLOOKUP(MONTH($B79),LT!$A$27:$W$35,22)/(1-LT!$H$80) -> 72.57213609 | AQ79: =IF(Q79=0,"-",(AC79+AD79)/(N79/LT!$G$7)) -> 301.2240975 | AS79: 0.02491895735 | AT79: 0.02242706161
A80: 5 | B80: ='Actual Accting'!B80 -> 2019-05-01 | C80: ='Actual Accting'!C80 -> 0 | D80: ='Actual Accting'!D80 -> 0 | E80: =HLOOKUP(MONTH($B80),LT!$B$93:$N$95,3) -> 192.153278 | F80: ='Actual Accting'!F80 -> 0 | G80: - | H80: - | I80: - | J80: - | K80: - | L80: - | M80: =(E80)*LT!$G$7/LT!$A$7 -> 6.538978109 | N80: =M80*(1-LT!$G$44) -> 5.399177556 | O80: =$N80*VLOOKUP(MONTH($B80),LT!$A$13:$S$21,14) -> 2.092706914 | P80: =$N80*VLOOKUP(MONTH($B80),LT!$A$13:$S$21,15) -> 2.237562567 | Q80: =$N80*VLOOKUP(MONTH($B80),LT!$A$13:$S$21,16) -> 2.600056912 | R80: =(N80)*VLOOKUP(MONTH($B80),LT!$A$50:$C$58,2) -> 5.399177556 | S80: =MIN($O80,R80-T80-U80)*VLOOKUP(MONTH($B80),LT!$A$50:$C$58,2) -> 1.17226344 | T80: =IF(R80>0,MIN($P80,R80),"0")*VLOOKUP(MONTH($B80),LT!$A$50:$C$58,2) -> 2.237562567 | U80: =$N80*(VLOOKUP(MONTH($B80),LT!$A$27:$W$35,12))/LT!$G$7*VLOOKUP(MONTH($B80),LT!$A$50:$C$58,2) -> 1.98935155 | V80: =(N80)*VLOOKUP(MONTH($B80),LT!$A$50:$C$58,3) -> 0 | W80: =MIN($O80,V80-X80-Y80)*VLOOKUP(MONTH($B80),LT!$A$50:$C$58,3) -> 0 | X80: =IF(V80>0,MIN($P80,V80),"0")*VLOOKUP(MONTH($B80),LT!$A$50:$C$58,3) -> 0 | Y80: =$N80*(VLOOKUP(MONTH($B80),LT!$A$27:$W$35,12))/LT!$G$7*VLOOKUP(MONTH($B80),LT!$A$50:$C$58,3) -> 0 | Z80: =U80*LT!$H$79 -> 0.02486689437 | AA80: =Y80*LT!$H$80 -> 0 | AB80: 0.02486689437 | AC80: 1.98935155 | AD80: 0 | AE80: 4.837619479 | AF80: 4.226914116 | AG80: -0.5858384681 | AH80: =LT!$H$79*(S80-Z80) -> 0.01434245682 | AI80: =LT!$H$80*(W80-AA80) -> 0 | AJ80: 1.133054089 | AK80: 0 | AL80: 1.133054089 | AM80: 1 | AN80: 1.133054089 | AO80: 0 | AP80: =VLOOKUP(MONTH($B80),LT!$A$27:$W$35,21)+VLOOKUP(MONTH($B80),LT!$A$27:$W$35,22)/(1-LT!$H$80) -> 63.97364283 | AQ80: =IF(Q80=0,"-",(AC80+AD80)/(N80/LT!$G$7)) -> 233.9686407 | AS80: 1.133054089 | AT80: 1.01974868
A81: 5 | B81: ='Actual Accting'!B81 -> 2019-05-02 | C81: ='Actual Accting'!C81 -> 0 | D81: ='Actual Accting'!D81 -> 0 | E81: =HLOOKUP(MONTH($B81),LT!$B$93:$N$95,3) -> 192.153278 | F81: ='Actual Accting'!F81 -> 0 | G81: - | H81: - | I81: - | J81: - | K81: - | L81: - | M81: =(E81)*LT!$G$7/LT!$A$7 -> 6.538978109 | N81: =M81*(1-LT!$G$44) -> 5.399177556 | O81: =$N81*VLOOKUP(MONTH($B81),LT!$A$13:$S$21,14) -> 2.092706914 | P81: =$N81*VLOOKUP(MONTH($B81),LT!$A$13:$S$21,15) -> 2.237562567 | Q81: =$N81*VLOOKUP(MONTH($B81),LT!$A$13:$S$21,16) -> 2.600056912 | R81: =(N81)*VLOOKUP(MONTH($B81),LT!$A$50:$C$58,2) -> 5.399177556 | S81: =MIN($O81,R81-T81-U81)*VLOOKUP(MONTH($B81),LT!$A$50:$C$58,2) -> 1.17226344 | T81: =IF(R81>0,MIN($P81,R81),"0")*VLOOKUP(MONTH($B81),LT!$A$50:$C$58,2) -> 2.237562567 | U81: =$N81*(VLOOKUP(MONTH($B81),LT!$A$27:$W$35,12))/LT!$G$7*VLOOKUP(MONTH($B81),LT!$A$50:$C$58,2) -> 1.98935155 | V81: =(N81)*VLOOKUP(MONTH($B81),LT!$A$50:$C$58,3) -> 0 | W81: =MIN($O81,V81-X81-Y81)*VLOOKUP(MONTH($B81),LT!$A$50:$C$58,3) -> 0 | X81: =IF(V81>0,MIN($P81,V81),"0")*VLOOKUP(MONTH($B81),LT!$A$50:$C$58,3) -> 0 | Y81: =$N81*(VLOOKUP(MONTH($B81),LT!$A$27:$W$35,12))/LT!$G$7*VLOOKUP(MONTH($B81),LT!$A$50:$C$58,3) -> 0 | Z81: =U81*LT!$H$79 -> 0.02486689437 | AA81: =Y81*LT!$H$80 -> 0 | AB81: 0.02486689437 | AC81: 1.98935155 | AD81: 0 | AE81: 4.837619479 | AF81: 4.226914116 | AG81: -0.5858384681 | AH81: =LT!$H$79*(S81-Z81) -> 0.01434245682 | AI81: =LT!$H$80*(W81-AA81) -> 0 | AJ81: 1.133054089 | AK81: 0 | AL81: 1.133054089 | AM81: 1 | AN81: 1.133054089 | AO81: 0 | AP81: =VLOOKUP(MONTH($B81),LT!$A$27:$W$35,21)+VLOOKUP(MONTH($B81),LT!$A$27:$W$35,22)/(1-LT!$H$80) -> 63.97364283 | AQ81: =IF(Q81=0,"-",(AC81+AD81)/(N81/LT!$G$7)) -> 233.9686407 | AS81: 1.133054089 | AT81: 1.01974868
A82: 5 | B82: ='Actual Accting'!B82 -> 2019-05-03 | C82: ='Actual Accting'!C82 -> 0 | D82: ='Actual Accting'!D82 -> 0 | E82: =HLOOKUP(MONTH($B82),LT!$B$93:$N$95,3) -> 192.153278 | F82: ='Actual Accting'!F82 -> 0 | G82: - | H82: - | I82: - | J82: - | K82: - | L82: - | M82: =(E82)*LT!$G$7/LT!$A$7 -> 6.538978109 | N82: =M82*(1-LT!$G$44) -> 5.399177556 | O82: =$N82*VLOOKUP(MONTH($B82),LT!$A$13:$S$21,14) -> 2.092706914 | P82: =$N82*VLOOKUP(MONTH($B82),LT!$A$13:$S$21,15) -> 2.237562567 | Q82: =$N82*VLOOKUP(MONTH($B82),LT!$A$13:$S$21,16) -> 2.600056912 | R82: =(N82)*VLOOKUP(MONTH($B82),LT!$A$50:$C$58,2) -> 5.399177556 | S82: =MIN($O82,R82-T82-U82)*VLOOKUP(MONTH($B82),LT!$A$50:$C$58,2) -> 1.17226344 | T82: =IF(R82>0,MIN($P82,R82),"0")*VLOOKUP(MONTH($B82),LT!$A$50:$C$58,2) -> 2.237562567 | U82: =$N82*(VLOOKUP(MONTH($B82),LT!$A$27:$W$35,12))/LT!$G$7*VLOOKUP(MONTH($B82),LT!$A$50:$C$58,2) -> 1.98935155 | V82: =(N82)*VLOOKUP(MONTH($B82),LT!$A$50:$C$58,3) -> 0 | W82: =MIN($O82,V82-X82-Y82)*VLOOKUP(MONTH($B82),LT!$A$50:$C$58,3) -> 0 | X82: =IF(V82>0,MIN($P82,V82),"0")*VLOOKUP(MONTH($B82),LT!$A$50:$C$58,3) -> 0 | Y82: =$N82*(VLOOKUP(MONTH($B82),LT!$A$27:$W$35,12))/LT!$G$7*VLOOKUP(MONTH($B82),LT!$A$50:$C$58,3) -> 0 | Z82: =U82*LT!$H$79 -> 0.02486689437 | AA82: =Y82*LT!$H$80 -> 0 | AB82: 0.02486689437 | AC82: 1.98935155 | AD82: 0 | AE82: 4.837619479 | AF82: 4.226914116 | AG82: -0.5858384681 | AH82: =LT!$H$79*(S82-Z82) -> 0.01434245682 | AI82: =LT!$H$80*(W82-AA82) -> 0 | AJ82: 1.133054089 | AK82: 0 | AL82: 1.133054089 | AM82: 1 | AN82: 1.133054089 | AO82: 0 | AP82: =VLOOKUP(MONTH($B82),LT!$A$27:$W$35,21)+VLOOKUP(MONTH($B82),LT!$A$27:$W$35,22)/(1-LT!$H$80) -> 63.97364283 | AQ82: =IF(Q82=0,"-",(AC82+AD82)/(N82/LT!$G$7)) -> 233.9686407 | AS82: 1.133054089 | AT82: 1.01974868
A83: 5 | B83: ='Actual Accting'!B83 -> 2019-05-04 | C83: ='Actual Accting'!C83 -> 0 | D83: ='Actual Accting'!D83 -> 0 | E83: =HLOOKUP(MONTH($B83),LT!$B$93:$N$95,3) -> 192.153278 | F83: ='Actual Accting'!F83 -> 0 | G83: - | H83: - | I83: - | J83: - | K83: - | L83: - | M83: =(E83)*LT!$G$7/LT!$A$7 -> 6.538978109 | N83: =M83*(1-LT!$G$44) -> 5.399177556 | O83: =$N83*VLOOKUP(MONTH($B83),LT!$A$13:$S$21,14) -> 2.092706914 | P83: =$N83*VLOOKUP(MONTH($B83),LT!$A$13:$S$21,15) -> 2.237562567 | Q83: =$N83*VLOOKUP(MONTH($B83),LT!$A$13:$S$21,16) -> 2.600056912 | R83: =(N83)*VLOOKUP(MONTH($B83),LT!$A$50:$C$58,2) -> 5.399177556 | S83: =MIN($O83,R83-T83-U83)*VLOOKUP(MONTH($B83),LT!$A$50:$C$58,2) -> 1.17226344 | T83: =IF(R83>0,MIN($P83,R83),"0")*VLOOKUP(MONTH($B83),LT!$A$50:$C$58,2) -> 2.237562567 | U83: =$N83*(VLOOKUP(MONTH($B83),LT!$A$27:$W$35,12))/LT!$G$7*VLOOKUP(MONTH($B83),LT!$A$50:$C$58,2) -> 1.98935155 | V83: =(N83)*VLOOKUP(MONTH($B83),LT!$A$50:$C$58,3) -> 0 | W83: =MIN($O83,V83-X83-Y83)*VLOOKUP(MONTH($B83),LT!$A$50:$C$58,3) -> 0 | X83: =IF(V83>0,MIN($P83,V83),"0")*VLOOKUP(MONTH($B83),LT!$A$50:$C$58,3) -> 0 | Y83: =$N83*(VLOOKUP(MONTH($B83),LT!$A$27:$W$35,12))/LT!$G$7*VLOOKUP(MONTH($B83),LT!$A$50:$C$58,3) -> 0 | Z83: =U83*LT!$H$79 -> 0.02486689437 | AA83: =Y83*LT!$H$80 -> 0 | AB83: 0.02486689437 | AC83: 1.98935155 | AD83: 0 | AE83: 4.837619479 | AF83: 4.226914116 | AG83: -0.5858384681 | AH83: =LT!$H$79*(S83-Z83) -> 0.01434245682 | AI83: =LT!$H$80*(W83-AA83) -> 0 | AJ83: 1.133054089 | AK83: 0 | AL83: 1.133054089 | AM83: 1 | AN83: 1.133054089 | AO83: 0 | AP83: =VLOOKUP(MONTH($B83),LT!$A$27:$W$35,21)+VLOOKUP(MONTH($B83),LT!$A$27:$W$35,22)/(1-LT!$H$80) -> 63.97364283 | AQ83: =IF(Q83=0,"-",(AC83+AD83)/(N83/LT!$G$7)) -> 233.9686407 | AS83: 1.133054089 | AT83: 1.01974868
A84: =MONTH(B84) -> 5 | B84: ='Actual Accting'!B84 -> 2019-05-05 | C84: ='Actual Accting'!C84 -> 0 | D84: ='Actual Accting'!D84 -> 0 | E84: =HLOOKUP(MONTH($B84),LT!$B$93:$N$95,3) -> 192.153278 | F84: ='Actual Accting'!F84 -> 0 | G84: - | H84: - | I84: - | J84: - | K84: - | L84: - | M84: =(E84)*LT!$G$7/LT!$A$7 -> 6.538978109 | N84: =M84*(1-LT!$G$44) -> 5.399177556 | O84: =$N84*VLOOKUP(MONTH($B84),LT!$A$13:$S$21,14) -> 2.092706914 | P84: =$N84*VLOOKUP(MONTH($B84),LT!$A$13:$S$21,15) -> 2.237562567 | Q84: =$N84*VLOOKUP(MONTH($B84),LT!$A$13:$S$21,16) -> 2.600056912 | R84: =(N84)*VLOOKUP(MONTH($B84),LT!$A$50:$C$58,2) -> 5.399177556 | S84: =MIN($O84,R84-T84-U84)*VLOOKUP(MONTH($B84),LT!$A$50:$C$58,2) -> 1.17226344 | T84: =IF(R84>0,MIN($P84,R84),"0")*VLOOKUP(MONTH($B84),LT!$A$50:$C$58,2) -> 2.237562567 | U84: =$N84*(VLOOKUP(MONTH($B84),LT!$A$27:$W$35,12))/LT!$G$7*VLOOKUP(MONTH($B84),LT!$A$50:$C$58,2) -> 1.98935155 | V84: =(N84)*VLOOKUP(MONTH($B84),LT!$A$50:$C$58,3) -> 0 | W84: =MIN($O84,V84-X84-Y84)*VLOOKUP(MONTH($B84),LT!$A$50:$C$58,3) -> 0 | X84: =IF(V84>0,MIN($P84,V84),"0")*VLOOKUP(MONTH($B84),LT!$A$50:$C$58,3) -> 0 | Y84: =$N84*(VLOOKUP(MONTH($B84),LT!$A$27:$W$35,12))/LT!$G$7*VLOOKUP(MONTH($B84),LT!$A$50:$C$58,3) -> 0 | Z84: =U84*LT!$H$79 -> 0.02486689437 | AA84: =Y84*LT!$H$80 -> 0 | AB84: 0.02486689437 | AC84: 1.98935155 | AD84: 0 | AE84: 4.837619479 | AF84: 4.226914116 | AG84: -0.5858384681 | AH84: =LT!$H$79*(S84-Z84) -> 0.01434245682 | AI84: =LT!$H$80*(W84-AA84) -> 0 | AJ84: 1.133054089 | AK84: 0 | AL84: 1.133054089 | AM84: 1 | AN84: 1.133054089 | AO84: 0 | AP84: =VLOOKUP(MONTH($B84),LT!$A$27:$W$35,21)+VLOOKUP(MONTH($B84),LT!$A$27:$W$35,22)/(1-LT!$H$80) -> 63.97364283 | AQ84: =IF(Q84=0,"-",(AC84+AD84)/(N84/LT!$G$7)) -> 233.9686407 | AS84: 1.133054089 | AT84: 1.01974868
A85: 5 | B85: ='Actual Accting'!B85 -> 2019-05-06 | C85: ='Actual Accting'!C85 -> 0 | D85: ='Actual Accting'!D85 -> 0 | E85: =HLOOKUP(MONTH($B85),LT!$B$93:$N$95,3) -> 192.153278 | F85: ='Actual Accting'!F85 -> 0 | G85: - | H85: - | I85: - | J85: - | K85: - | L85: - | M85: =(E85)*LT!$G$7/LT!$A$7 -> 6.538978109 | N85: =M85*(1-LT!$G$44) -> 5.399177556 | O85: =$N85*VLOOKUP(MONTH($B85),LT!$A$13:$S$21,14) -> 2.092706914 | P85: =$N85*VLOOKUP(MONTH($B85),LT!$A$13:$S$21,15) -> 2.237562567 | Q85: =$N85*VLOOKUP(MONTH($B85),LT!$A$13:$S$21,16) -> 2.600056912 | R85: =(N85)*VLOOKUP(MONTH($B85),LT!$A$50:$C$58,2) -> 5.399177556 | S85: =MIN($O85,R85-T85-U85)*VLOOKUP(MONTH($B85),LT!$A$50:$C$58,2) -> 1.17226344 | T85: =IF(R85>0,MIN($P85,R85),"0")*VLOOKUP(MONTH($B85),LT!$A$50:$C$58,2) -> 2.237562567 | U85: =$N85*(VLOOKUP(MONTH($B85),LT!$A$27:$W$35,12))/LT!$G$7*VLOOKUP(MONTH($B85),LT!$A$50:$C$58,2) -> 1.98935155 | V85: =(N85)*VLOOKUP(MONTH($B85),LT!$A$50:$C$58,3) -> 0 | W85: =MIN($O85,V85-X85-Y85)*VLOOKUP(MONTH($B85),LT!$A$50:$C$58,3) -> 0 | X85: =IF(V85>0,MIN($P85,V85),"0")*VLOOKUP(MONTH($B85),LT!$A$50:$C$58,3) -> 0 | Y85: =$N85*(VLOOKUP(MONTH($B85),LT!$A$27:$W$35,12))/LT!$G$7*VLOOKUP(MONTH($B85),LT!$A$50:$C$58,3) -> 0 | Z85: =U85*LT!$H$79 -> 0.02486689437 | AA85: =Y85*LT!$H$80 -> 0 | AB85: 0.02486689437 | AC85: 1.98935155 | AD85: 0 | AE85: 4.837619479 | AF85: 4.226914116 | AG85: -0.5858384681 | AH85: =LT!$H$79*(S85-Z85) -> 0.01434245682 | AI85: =LT!$H$80*(W85-AA85) -> 0 | AJ85: 1.133054089 | AK85: 0 | AL85: 1.133054089 | AM85: 1 | AN85: 1.133054089 | AO85: 0 | AP85: =VLOOKUP(MONTH($B85),LT!$A$27:$W$35,21)+VLOOKUP(MONTH($B85),LT!$A$27:$W$35,22)/(1-LT!$H$80) -> 63.97364283 | AQ85: =IF(Q85=0,"-",(AC85+AD85)/(N85/LT!$G$7)) -> 233.9686407 | AS85: 1.133054089 | AT85: 1.01974868
A86: 5 | B86: ='Actual Accting'!B86 -> 2019-05-07 | C86: ='Actual Accting'!C86 -> 0 | D86: ='Actual Accting'!D86 -> 0 | E86: =HLOOKUP(MONTH($B86),LT!$B$93:$N$95,3) -> 192.153278 | F86: ='Actual Accting'!F86 -> 0 | G86: - | H86: - | I86: - | J86: - | K86: - | L86: - | M86: =(E86)*LT!$G$7/LT!$A$7 -> 6.538978109 | N86: =M86*(1-LT!$G$44) -> 5.399177556 | O86: =$N86*VLOOKUP(MONTH($B86),LT!$A$13:$S$21,14) -> 2.092706914 | P86: =$N86*VLOOKUP(MONTH($B86),LT!$A$13:$S$21,15) -> 2.237562567 | Q86: =$N86*VLOOKUP(MONTH($B86),LT!$A$13:$S$21,16) -> 2.600056912 | R86: =(N86)*VLOOKUP(MONTH($B86),LT!$A$50:$C$58,2) -> 5.399177556 | S86: =MIN($O86,R86-T86-U86)*VLOOKUP(MONTH($B86),LT!$A$50:$C$58,2) -> 1.17226344 | T86: =IF(R86>0,MIN($P86,R86),"0")*VLOOKUP(MONTH($B86),LT!$A$50:$C$58,2) -> 2.237562567 | U86: =$N86*(VLOOKUP(MONTH($B86),LT!$A$27:$W$35,12))/LT!$G$7*VLOOKUP(MONTH($B86),LT!$A$50:$C$58,2) -> 1.98935155 | V86: =(N86)*VLOOKUP(MONTH($B86),LT!$A$50:$C$58,3) -> 0 | W86: =MIN($O86,V86-X86-Y86)*VLOOKUP(MONTH($B86),LT!$A$50:$C$58,3) -> 0 | X86: =IF(V86>0,MIN($P86,V86),"0")*VLOOKUP(MONTH($B86),LT!$A$50:$C$58,3) -> 0 | Y86: =$N86*(VLOOKUP(MONTH($B86),LT!$A$27:$W$35,12))/LT!$G$7*VLOOKUP(MONTH($B86),LT!$A$50:$C$58,3) -> 0 | Z86: =U86*LT!$H$79 -> 0.02486689437 | AA86: =Y86*LT!$H$80 -> 0 | AB86: 0.02486689437 | AC86: 1.98935155 | AD86: 0 | AE86: 4.837619479 | AF86: 4.226914116 | AG86: -0.5858384681 | AH86: =LT!$H$79*(S86-Z86) -> 0.01434245682 | AI86: =LT!$H$80*(W86-AA86) -> 0 | AJ86: 1.133054089 | AK86: 0 | AL86: 1.133054089 | AM86: 1 | AN86: 1.133054089 | AO86: 0 | AP86: =VLOOKUP(MONTH($B86),LT!$A$27:$W$35,21)+VLOOKUP(MONTH($B86),LT!$A$27:$W$35,22)/(1-LT!$H$80) -> 63.97364283 | AQ86: =IF(Q86=0,"-",(AC86+AD86)/(N86/LT!$G$7)) -> 233.9686407 | AS86: 1.133054089 | AT86: 1.01974868
A87: 5 | B87: ='Actual Accting'!B87 -> 2019-05-08 | C87: ='Actual Accting'!C87 -> 0 | D87: ='Actual Accting'!D87 -> 0 | E87: =HLOOKUP(MONTH($B87),LT!$B$93:$N$95,3) -> 192.153278 | F87: ='Actual Accting'!F87 -> 0 | G87: - | H87: - | I87: - | J87: - | K87: - | L87: - | M87: =(E87)*LT!$G$7/LT!$A$7 -> 6.538978109 | N87: =M87*(1-LT!$G$44) -> 5.399177556 | O87: =$N87*VLOOKUP(MONTH($B87),LT!$A$13:$S$21,14) -> 2.092706914 | P87: =$N87*VLOOKUP(MONTH($B87),LT!$A$13:$S$21,15) -> 2.237562567 | Q87: =$N87*VLOOKUP(MONTH($B87),LT!$A$13:$S$21,16) -> 2.600056912 | R87: =(N87)*VLOOKUP(MONTH($B87),LT!$A$50:$C$58,2) -> 5.399177556 | S87: =MIN($O87,R87-T87-U87)*VLOOKUP(MONTH($B87),LT!$A$50:$C$58,2) -> 1.17226344 | T87: =IF(R87>0,MIN($P87,R87),"0")*VLOOKUP(MONTH($B87),LT!$A$50:$C$58,2) -> 2.237562567 | U87: =$N87*(VLOOKUP(MONTH($B87),LT!$A$27:$W$35,12))/LT!$G$7*VLOOKUP(MONTH($B87),LT!$A$50:$C$58,2) -> 1.98935155 | V87: =(N87)*VLOOKUP(MONTH($B87),LT!$A$50:$C$58,3) -> 0 | W87: =MIN($O87,V87-X87-Y87)*VLOOKUP(MONTH($B87),LT!$A$50:$C$58,3) -> 0 | X87: =IF(V87>0,MIN($P87,V87),"0")*VLOOKUP(MONTH($B87),LT!$A$50:$C$58,3) -> 0 | Y87: =$N87*(VLOOKUP(MONTH($B87),LT!$A$27:$W$35,12))/LT!$G$7*VLOOKUP(MONTH($B87),LT!$A$50:$C$58,3) -> 0 | Z87: =U87*LT!$H$79 -> 0.02486689437 | AA87: =Y87*LT!$H$80 -> 0 | AB87: 0.02486689437 | AC87: 1.98935155 | AD87: 0 | AE87: 4.837619479 | AF87: 4.226914116 | AG87: -0.5858384681 | AH87: =LT!$H$79*(S87-Z87) -> 0.01434245682 | AI87: =LT!$H$80*(W87-AA87) -> 0 | AJ87: 1.133054089 | AK87: 0 | AL87: 1.133054089 | AM87: 1 | AN87: 1.133054089 | AO87: 0 | AP87: =VLOOKUP(MONTH($B87),LT!$A$27:$W$35,21)+VLOOKUP(MONTH($B87),LT!$A$27:$W$35,22)/(1-LT!$H$80) -> 63.97364283 | AQ87: =IF(Q87=0,"-",(AC87+AD87)/(N87/LT!$G$7)) -> 233.9686407 | AS87: 1.133054089 | AT87: 1.01974868
A88: 5 | B88: ='Actual Accting'!B88 -> 2019-05-09 | C88: ='Actual Accting'!C88 -> 0 | D88: ='Actual Accting'!D88 -> 0 | E88: =HLOOKUP(MONTH($B88),LT!$B$93:$N$95,3) -> 192.153278 | F88: ='Actual Accting'!F88 -> 0 | G88: - | H88: - | I88: - | J88: - | K88: - | L88: - | M88: =(E88)*LT!$G$7/LT!$A$7 -> 6.538978109 | N88: =M88*(1-LT!$G$44) -> 5.399177556 | O88: =$N88*VLOOKUP(MONTH($B88),LT!$A$13:$S$21,14) -> 2.092706914 | P88: =$N88*VLOOKUP(MONTH($B88),LT!$A$13:$S$21,15) -> 2.237562567 | Q88: =$N88*VLOOKUP(MONTH($B88),LT!$A$13:$S$21,16) -> 2.600056912 | R88: =(N88)*VLOOKUP(MONTH($B88),LT!$A$50:$C$58,2) -> 5.399177556 | S88: =MIN($O88,R88-T88-U88)*VLOOKUP(MONTH($B88),LT!$A$50:$C$58,2) -> 1.17226344 | T88: =IF(R88>0,MIN($P88,R88),"0")*VLOOKUP(MONTH($B88),LT!$A$50:$C$58,2) -> 2.237562567 | U88: =$N88*(VLOOKUP(MONTH($B88),LT!$A$27:$W$35,12))/LT!$G$7*VLOOKUP(MONTH($B88),LT!$A$50:$C$58,2) -> 1.98935155 | V88: =(N88)*VLOOKUP(MONTH($B88),LT!$A$50:$C$58,3) -> 0 | W88: =MIN($O88,V88-X88-Y88)*VLOOKUP(MONTH($B88),LT!$A$50:$C$58,3) -> 0 | X88: =IF(V88>0,MIN($P88,V88),"0")*VLOOKUP(MONTH($B88),LT!$A$50:$C$58,3) -> 0 | Y88: =$N88*(VLOOKUP(MONTH($B88),LT!$A$27:$W$35,12))/LT!$G$7*VLOOKUP(MONTH($B88),LT!$A$50:$C$58,3) -> 0 | Z88: =U88*LT!$H$79 -> 0.02486689437 | AA88: =Y88*LT!$H$80 -> 0 | AB88: 0.02486689437 | AC88: 1.98935155 | AD88: 0 | AE88: 4.837619479 | AF88: 4.226914116 | AG88: -0.5858384681 | AH88: =LT!$H$79*(S88-Z88) -> 0.01434245682 | AI88: =LT!$H$80*(W88-AA88) -> 0 | AJ88: 1.133054089 | AK88: 0 | AL88: 1.133054089 | AM88: 1 | AN88: 1.133054089 | AO88: 0 | AP88: =VLOOKUP(MONTH($B88),LT!$A$27:$W$35,21)+VLOOKUP(MONTH($B88),LT!$A$27:$W$35,22)/(1-LT!$H$80) -> 63.97364283 | AQ88: =IF(Q88=0,"-",(AC88+AD88)/(N88/LT!$G$7)) -> 233.9686407 | AS88: 1.133054089 | AT88: 1.01974868
A89: 5 | B89: ='Actual Accting'!B89 -> 2019-05-10 | C89: ='Actual Accting'!C89 -> 0 | D89: ='Actual Accting'!D89 -> 0 | E89: =HLOOKUP(MONTH($B89),LT!$B$93:$N$95,3) -> 192.153278 | F89: ='Actual Accting'!F89 -> 0 | G89: - | H89: - | I89: - | J89: - | K89: - | L89: - | M89: =(E89)*LT!$G$7/LT!$A$7 -> 6.538978109 | N89: =M89*(1-LT!$G$44) -> 5.399177556 | O89: =$N89*VLOOKUP(MONTH($B89),LT!$A$13:$S$21,14) -> 2.092706914 | P89: =$N89*VLOOKUP(MONTH($B89),LT!$A$13:$S$21,15) -> 2.237562567 | Q89: =$N89*VLOOKUP(MONTH($B89),LT!$A$13:$S$21,16) -> 2.600056912 | R89: =(N89)*VLOOKUP(MONTH($B89),LT!$A$50:$C$58,2) -> 5.399177556 | S89: =MIN($O89,R89-T89-U89)*VLOOKUP(MONTH($B89),LT!$A$50:$C$58,2) -> 1.17226344 | T89: =IF(R89>0,MIN($P89,R89),"0")*VLOOKUP(MONTH($B89),LT!$A$50:$C$58,2) -> 2.237562567 | U89: =$N89*(VLOOKUP(MONTH($B89),LT!$A$27:$W$35,12))/LT!$G$7*VLOOKUP(MONTH($B89),LT!$A$50:$C$58,2) -> 1.98935155 | V89: =(N89)*VLOOKUP(MONTH($B89),LT!$A$50:$C$58,3) -> 0 | W89: =MIN($O89,V89-X89-Y89)*VLOOKUP(MONTH($B89),LT!$A$50:$C$58,3) -> 0 | X89: =IF(V89>0,MIN($P89,V89),"0")*VLOOKUP(MONTH($B89),LT!$A$50:$C$58,3) -> 0 | Y89: =$N89*(VLOOKUP(MONTH($B89),LT!$A$27:$W$35,12))/LT!$G$7*VLOOKUP(MONTH($B89),LT!$A$50:$C$58,3) -> 0 | Z89: =U89*LT!$H$79 -> 0.02486689437 | AA89: =Y89*LT!$H$80 -> 0 | AB89: 0.02486689437 | AC89: 1.98935155 | AD89: 0 | AE89: 4.837619479 | AF89: 4.226914116 | AG89: -0.5858384681 | AH89: =LT!$H$79*(S89-Z89) -> 0.01434245682 | AI89: =LT!$H$80*(W89-AA89) -> 0 | AJ89: 1.133054089 | AK89: 0 | AL89: 1.133054089 | AM89: 1 | AN89: 1.133054089 | AO89: 0 | AP89: =VLOOKUP(MONTH($B89),LT!$A$27:$W$35,21)+VLOOKUP(MONTH($B89),LT!$A$27:$W$35,22)/(1-LT!$H$80) -> 63.97364283 | AQ89: =IF(Q89=0,"-",(AC89+AD89)/(N89/LT!$G$7)) -> 233.9686407 | AS89: 1.133054089 | AT89: 1.01974868
A90: 5 | B90: ='Actual Accting'!B90 -> 2019-05-11 | C90: ='Actual Accting'!C90 -> 0 | D90: ='Actual Accting'!D90 -> 0 | E90: =HLOOKUP(MONTH($B90),LT!$B$93:$N$95,3) -> 192.153278 | F90: ='Actual Accting'!F90 -> 0 | G90: - | H90: - | I90: - | J90: - | K90: - | L90: - | M90: =(E90)*LT!$G$7/LT!$A$7 -> 6.538978109 | N90: =M90*(1-LT!$G$44) -> 5.399177556 | O90: =$N90*VLOOKUP(MONTH($B90),LT!$A$13:$S$21,14) -> 2.092706914 | P90: =$N90*VLOOKUP(MONTH($B90),LT!$A$13:$S$21,15) -> 2.237562567 | Q90: =$N90*VLOOKUP(MONTH($B90),LT!$A$13:$S$21,16) -> 2.600056912 | R90: =(N90)*VLOOKUP(MONTH($B90),LT!$A$50:$C$58,2) -> 5.399177556 | S90: =MIN($O90,R90-T90-U90)*VLOOKUP(MONTH($B90),LT!$A$50:$C$58,2) -> 1.17226344 | T90: =IF(R90>0,MIN($P90,R90),"0")*VLOOKUP(MONTH($B90),LT!$A$50:$C$58,2) -> 2.237562567 | U90: =$N90*(VLOOKUP(MONTH($B90),LT!$A$27:$W$35,12))/LT!$G$7*VLOOKUP(MONTH($B90),LT!$A$50:$C$58,2) -> 1.98935155 | V90: =(N90)*VLOOKUP(MONTH($B90),LT!$A$50:$C$58,3) -> 0 | W90: =MIN($O90,V90-X90-Y90)*VLOOKUP(MONTH($B90),LT!$A$50:$C$58,3) -> 0 | X90: =IF(V90>0,MIN($P90,V90),"0")*VLOOKUP(MONTH($B90),LT!$A$50:$C$58,3) -> 0 | Y90: =$N90*(VLOOKUP(MONTH($B90),LT!$A$27:$W$35,12))/LT!$G$7*VLOOKUP(MONTH($B90),LT!$A$50:$C$58,3) -> 0 | Z90: =U90*LT!$H$79 -> 0.02486689437 | AA90: =Y90*LT!$H$80 -> 0 | AB90: 0.02486689437 | AC90: 1.98935155 | AD90: 0 | AE90: 4.837619479 | AF90: 4.226914116 | AG90: -0.5858384681 | AH90: =LT!$H$79*(S90-Z90) -> 0.01434245682 | AI90: =LT!$H$80*(W90-AA90) -> 0 | AJ90: 1.133054089 | AK90: 0 | AL90: 1.133054089 | AM90: 1 | AN90: 1.133054089 | AO90: 0 | AP90: =VLOOKUP(MONTH($B90),LT!$A$27:$W$35,21)+VLOOKUP(MONTH($B90),LT!$A$27:$W$35,22)/(1-LT!$H$80) -> 63.97364283 | AQ90: =IF(Q90=0,"-",(AC90+AD90)/(N90/LT!$G$7)) -> 233.9686407 | AS90: 1.133054089 | AT90: 1.01974868
A91: 5 | B91: ='Actual Accting'!B91 -> 2019-05-12 | C91: ='Actual Accting'!C91 -> 0 | D91: ='Actual Accting'!D91 -> 0 | E91: =HLOOKUP(MONTH($B91),LT!$B$93:$N$95,3) -> 192.153278 | F91: ='Actual Accting'!F91 -> 0 | G91: - | H91: - | I91: - | J91: - | K91: - | L91: - | M91: =(E91)*LT!$G$7/LT!$A$7 -> 6.538978109 | N91: =M91*(1-LT!$G$44) -> 5.399177556 | O91: =$N91*VLOOKUP(MONTH($B91),LT!$A$13:$S$21,14) -> 2.092706914 | P91: =$N91*VLOOKUP(MONTH($B91),LT!$A$13:$S$21,15) -> 2.237562567 | Q91: =$N91*VLOOKUP(MONTH($B91),LT!$A$13:$S$21,16) -> 2.600056912 | R91: =(N91)*VLOOKUP(MONTH($B91),LT!$A$50:$C$58,2) -> 5.399177556 | S91: =MIN($O91,R91-T91-U91)*VLOOKUP(MONTH($B91),LT!$A$50:$C$58,2) -> 1.17226344 | T91: =IF(R91>0,MIN($P91,R91),"0")*VLOOKUP(MONTH($B91),LT!$A$50:$C$58,2) -> 2.237562567 | U91: =$N91*(VLOOKUP(MONTH($B91),LT!$A$27:$W$35,12))/LT!$G$7*VLOOKUP(MONTH($B91),LT!$A$50:$C$58,2) -> 1.98935155 | V91: =(N91)*VLOOKUP(MONTH($B91),LT!$A$50:$C$58,3) -> 0 | W91: =MIN($O91,V91-X91-Y91)*VLOOKUP(MONTH($B91),LT!$A$50:$C$58,3) -> 0 | X91: =IF(V91>0,MIN($P91,V91),"0")*VLOOKUP(MONTH($B91),LT!$A$50:$C$58,3) -> 0 | Y91: =$N91*(VLOOKUP(MONTH($B91),LT!$A$27:$W$35,12))/LT!$G$7*VLOOKUP(MONTH($B91),LT!$A$50:$C$58,3) -> 0 | Z91: =U91*LT!$H$79 -> 0.02486689437 | AA91: =Y91*LT!$H$80 -> 0 | AB91: 0.02486689437 | AC91: 1.98935155 | AD91: 0 | AE91: 4.837619479 | AF91: 4.226914116 | AG91: -0.5858384681 | AH91: =LT!$H$79*(S91-Z91) -> 0.01434245682 | AI91: =LT!$H$80*(W91-AA91) -> 0 | AJ91: 1.133054089 | AK91: 0 | AL91: 1.133054089 | AM91: 1 | AN91: 1.133054089 | AO91: 0 | AP91: =VLOOKUP(MONTH($B91),LT!$A$27:$W$35,21)+VLOOKUP(MONTH($B91),LT!$A$27:$W$35,22)/(1-LT!$H$80) -> 63.97364283 | AQ91: =IF(Q91=0,"-",(AC91+AD91)/(N91/LT!$G$7)) -> 233.9686407 | AS91: 1.133054089 | AT91: 1.01974868
A92: 5 | B92: ='Actual Accting'!B92 -> 2019-05-13 | C92: ='Actual Accting'!C92 -> 0 | D92: ='Actual Accting'!D92 -> 0 | E92: =HLOOKUP(MONTH($B92),LT!$B$93:$N$95,3) -> 192.153278 | F92: ='Actual Accting'!F92 -> 0 | G92: - | H92: - | I92: - | J92: - | K92: - | L92: - | M92: =(E92)*LT!$G$7/LT!$A$7 -> 6.538978109 | N92: =M92*(1-LT!$G$44) -> 5.399177556 | O92: =$N92*VLOOKUP(MONTH($B92),LT!$A$13:$S$21,14) -> 2.092706914 | P92: =$N92*VLOOKUP(MONTH($B92),LT!$A$13:$S$21,15) -> 2.237562567 | Q92: =$N92*VLOOKUP(MONTH($B92),LT!$A$13:$S$21,16) -> 2.600056912 | R92: =(N92)*VLOOKUP(MONTH($B92),LT!$A$50:$C$58,2) -> 5.399177556 | S92: =MIN($O92,R92-T92-U92)*VLOOKUP(MONTH($B92),LT!$A$50:$C$58,2) -> 1.17226344 | T92: =IF(R92>0,MIN($P92,R92),"0")*VLOOKUP(MONTH($B92),LT!$A$50:$C$58,2) -> 2.237562567 | U92: =$N92*(VLOOKUP(MONTH($B92),LT!$A$27:$W$35,12))/LT!$G$7*VLOOKUP(MONTH($B92),LT!$A$50:$C$58,2) -> 1.98935155 | V92: =(N92)*VLOOKUP(MONTH($B92),LT!$A$50:$C$58,3) -> 0 | W92: =MIN($O92,V92-X92-Y92)*VLOOKUP(MONTH($B92),LT!$A$50:$C$58,3) -> 0 | X92: =IF(V92>0,MIN($P92,V92),"0")*VLOOKUP(MONTH($B92),LT!$A$50:$C$58,3) -> 0 | Y92: =$N92*(VLOOKUP(MONTH($B92),LT!$A$27:$W$35,12))/LT!$G$7*VLOOKUP(MONTH($B92),LT!$A$50:$C$58,3) -> 0 | Z92: =U92*LT!$H$79 -> 0.02486689437 | AA92: =Y92*LT!$H$80 -> 0 | AB92: 0.02486689437 | AC92: 1.98935155 | AD92: 0 | AE92: 4.837619479 | AF92: 4.226914116 | AG92: -0.5858384681 | AH92: =LT!$H$79*(S92-Z92) -> 0.01434245682 | AI92: =LT!$H$80*(W92-AA92) -> 0 | AJ92: 1.133054089 | AK92: 0 | AL92: 1.133054089 | AM92: 1 | AN92: 1.133054089 | AO92: 0 | AP92: =VLOOKUP(MONTH($B92),LT!$A$27:$W$35,21)+VLOOKUP(MONTH($B92),LT!$A$27:$W$35,22)/(1-LT!$H$80) -> 63.97364283 | AQ92: =IF(Q92=0,"-",(AC92+AD92)/(N92/LT!$G$7)) -> 233.9686407 | AS92: 1.133054089 | AT92: 1.01974868
A93: 5 | B93: ='Actual Accting'!B93 -> 2019-05-14 | C93: ='Actual Accting'!C93 -> 0 | D93: ='Actual Accting'!D93 -> 0 | E93: =HLOOKUP(MONTH($B93),LT!$B$93:$N$95,3) -> 192.153278 | F93: ='Actual Accting'!F93 -> 0 | G93: - | H93: - | I93: - | J93: - | K93: - | L93: - | M93: =(E93)*LT!$G$7/LT!$A$7 -> 6.538978109 | N93: =M93*(1-LT!$G$44) -> 5.399177556 | O93: =$N93*VLOOKUP(MONTH($B93),LT!$A$13:$S$21,14) -> 2.092706914 | P93: =$N93*VLOOKUP(MONTH($B93),LT!$A$13:$S$21,15) -> 2.237562567 | Q93: =$N93*VLOOKUP(MONTH($B93),LT!$A$13:$S$21,16) -> 2.600056912 | R93: =(N93)*VLOOKUP(MONTH($B93),LT!$A$50:$C$58,2) -> 5.399177556 | S93: =MIN($O93,R93-T93-U93)*VLOOKUP(MONTH($B93),LT!$A$50:$C$58,2) -> 1.17226344 | T93: =IF(R93>0,MIN($P93,R93),"0")*VLOOKUP(MONTH($B93),LT!$A$50:$C$58,2) -> 2.237562567 | U93: =$N93*(VLOOKUP(MONTH($B93),LT!$A$27:$W$35,12))/LT!$G$7*VLOOKUP(MONTH($B93),LT!$A$50:$C$58,2) -> 1.98935155 | V93: =(N93)*VLOOKUP(MONTH($B93),LT!$A$50:$C$58,3) -> 0 | W93: =MIN($O93,V93-X93-Y93)*VLOOKUP(MONTH($B93),LT!$A$50:$C$58,3) -> 0 | X93: =IF(V93>0,MIN($P93,V93),"0")*VLOOKUP(MONTH($B93),LT!$A$50:$C$58,3) -> 0 | Y93: =$N93*(VLOOKUP(MONTH($B93),LT!$A$27:$W$35,12))/LT!$G$7*VLOOKUP(MONTH($B93),LT!$A$50:$C$58,3) -> 0 | Z93: =U93*LT!$H$79 -> 0.02486689437 | AA93: =Y93*LT!$H$80 -> 0 | AB93: 0.02486689437 | AC93: 1.98935155 | AD93: 0 | AE93: 4.837619479 | AF93: 4.226914116 | AG93: -0.5858384681 | AH93: =LT!$H$79*(S93-Z93) -> 0.01434245682 | AI93: =LT!$H$80*(W93-AA93) -> 0 | AJ93: 1.133054089 | AK93: 0 | AL93: 1.133054089 | AM93: 1 | AN93: 1.133054089 | AO93: 0 | AP93: =VLOOKUP(MONTH($B93),LT!$A$27:$W$35,21)+VLOOKUP(MONTH($B93),LT!$A$27:$W$35,22)/(1-LT!$H$80) -> 63.97364283 | AQ93: =IF(Q93=0,"-",(AC93+AD93)/(N93/LT!$G$7)) -> 233.9686407 | AS93: 1.133054089 | AT93: 1.01974868
A94: 5 | B94: ='Actual Accting'!B94 -> 2019-05-15 | C94: ='Actual Accting'!C94 -> 0 | D94: ='Actual Accting'!D94 -> 0 | E94: =HLOOKUP(MONTH($B94),LT!$B$93:$N$95,3) -> 192.153278 | F94: ='Actual Accting'!F94 -> 0 | G94: - | H94: - | I94: - | J94: - | K94: - | L94: - | M94: =(E94)*LT!$G$7/LT!$A$7 -> 6.538978109 | N94: =M94*(1-LT!$G$44) -> 5.399177556 | O94: =$N94*VLOOKUP(MONTH($B94),LT!$A$13:$S$21,14) -> 2.092706914 | P94: =$N94*VLOOKUP(MONTH($B94),LT!$A$13:$S$21,15) -> 2.237562567 | Q94: =$N94*VLOOKUP(MONTH($B94),LT!$A$13:$S$21,16) -> 2.600056912 | R94: =(N94)*VLOOKUP(MONTH($B94),LT!$A$50:$C$58,2) -> 5.399177556 | S94: =MIN($O94,R94-T94-U94)*VLOOKUP(MONTH($B94),LT!$A$50:$C$58,2) -> 1.17226344 | T94: =IF(R94>0,MIN($P94,R94),"0")*VLOOKUP(MONTH($B94),LT!$A$50:$C$58,2) -> 2.237562567 | U94: =$N94*(VLOOKUP(MONTH($B94),LT!$A$27:$W$35,12))/LT!$G$7*VLOOKUP(MONTH($B94),LT!$A$50:$C$58,2) -> 1.98935155 | V94: =(N94)*VLOOKUP(MONTH($B94),LT!$A$50:$C$58,3) -> 0 | W94: =MIN($O94,V94-X94-Y94)*VLOOKUP(MONTH($B94),LT!$A$50:$C$58,3) -> 0 | X94: =IF(V94>0,MIN($P94,V94),"0")*VLOOKUP(MONTH($B94),LT!$A$50:$C$58,3) -> 0 | Y94: =$N94*(VLOOKUP(MONTH($B94),LT!$A$27:$W$35,12))/LT!$G$7*VLOOKUP(MONTH($B94),LT!$A$50:$C$58,3) -> 0 | Z94: =U94*LT!$H$79 -> 0.02486689437 | AA94: =Y94*LT!$H$80 -> 0 | AB94: 0.02486689437 | AC94: 1.98935155 | AD94: 0 | AE94: 4.837619479 | AF94: 4.226914116 | AG94: -0.5858384681 | AH94: =LT!$H$79*(S94-Z94) -> 0.01434245682 | AI94: =LT!$H$80*(W94-AA94) -> 0 | AJ94: 1.133054089 | AK94: 0 | AL94: 1.133054089 | AM94: 1 | AN94: 1.133054089 | AO94: 0 | AP94: =VLOOKUP(MONTH($B94),LT!$A$27:$W$35,21)+VLOOKUP(MONTH($B94),LT!$A$27:$W$35,22)/(1-LT!$H$80) -> 63.97364283 | AQ94: =IF(Q94=0,"-",(AC94+AD94)/(N94/LT!$G$7)) -> 233.9686407 | AS94: 1.133054089 | AT94: 1.01974868
A95: 5 | B95: ='Actual Accting'!B95 -> 2019-05-16 | C95: ='Actual Accting'!C95 -> 0 | D95: ='Actual Accting'!D95 -> 0 | E95: =HLOOKUP(MONTH($B95),LT!$B$93:$N$95,3) -> 192.153278 | F95: ='Actual Accting'!F95 -> 0 | G95: - | H95: - | I95: - | J95: - | K95: - | L95: - | M95: =(E95)*LT!$G$7/LT!$A$7 -> 6.538978109 | N95: =M95*(1-LT!$G$44) -> 5.399177556 | O95: =$N95*VLOOKUP(MONTH($B95),LT!$A$13:$S$21,14) -> 2.092706914 | P95: =$N95*VLOOKUP(MONTH($B95),LT!$A$13:$S$21,15) -> 2.237562567 | Q95: =$N95*VLOOKUP(MONTH($B95),LT!$A$13:$S$21,16) -> 2.600056912 | R95: =(N95)*VLOOKUP(MONTH($B95),LT!$A$50:$C$58,2) -> 5.399177556 | S95: =MIN($O95,R95-T95-U95)*VLOOKUP(MONTH($B95),LT!$A$50:$C$58,2) -> 1.17226344 | T95: =IF(R95>0,MIN($P95,R95),"0")*VLOOKUP(MONTH($B95),LT!$A$50:$C$58,2) -> 2.237562567 | U95: =$N95*(VLOOKUP(MONTH($B95),LT!$A$27:$W$35,12))/LT!$G$7*VLOOKUP(MONTH($B95),LT!$A$50:$C$58,2) -> 1.98935155 | V95: =(N95)*VLOOKUP(MONTH($B95),LT!$A$50:$C$58,3) -> 0 | W95: =MIN($O95,V95-X95-Y95)*VLOOKUP(MONTH($B95),LT!$A$50:$C$58,3) -> 0 | X95: =IF(V95>0,MIN($P95,V95),"0")*VLOOKUP(MONTH($B95),LT!$A$50:$C$58,3) -> 0 | Y95: =$N95*(VLOOKUP(MONTH($B95),LT!$A$27:$W$35,12))/LT!$G$7*VLOOKUP(MONTH($B95),LT!$A$50:$C$58,3) -> 0 | Z95: =U95*LT!$H$79 -> 0.02486689437 | AA95: =Y95*LT!$H$80 -> 0 | AB95: 0.02486689437 | AC95: 1.98935155 | AD95: 0 | AE95: 4.837619479 | AF95: 4.226914116 | AG95: -0.5858384681 | AH95: =LT!$H$79*(S95-Z95) -> 0.01434245682 | AI95: =LT!$H$80*(W95-AA95) -> 0 | AJ95: 1.133054089 | AK95: 0 | AL95: 1.133054089 | AM95: 1 | AN95: 1.133054089 | AO95: 0 | AP95: =VLOOKUP(MONTH($B95),LT!$A$27:$W$35,21)+VLOOKUP(MONTH($B95),LT!$A$27:$W$35,22)/(1-LT!$H$80) -> 63.97364283 | AQ95: =IF(Q95=0,"-",(AC95+AD95)/(N95/LT!$G$7)) -> 233.9686407 | AS95: 1.133054089 | AT95: 1.01974868
A96: 5 | B96: ='Actual Accting'!B96 -> 2019-05-17 | C96: ='Actual Accting'!C96 -> 0 | D96: ='Actual Accting'!D96 -> 0 | E96: =HLOOKUP(MONTH($B96),LT!$B$93:$N$95,3) -> 192.153278 | F96: ='Actual Accting'!F96 -> 0 | G96: - | H96: - | I96: - | J96: - | K96: - | L96: - | M96: =(E96)*LT!$G$7/LT!$A$7 -> 6.538978109 | N96: =M96*(1-LT!$G$44) -> 5.399177556 | O96: =$N96*VLOOKUP(MONTH($B96),LT!$A$13:$S$21,14) -> 2.092706914 | P96: =$N96*VLOOKUP(MONTH($B96),LT!$A$13:$S$21,15) -> 2.237562567 | Q96: =$N96*VLOOKUP(MONTH($B96),LT!$A$13:$S$21,16) -> 2.600056912 | R96: =(N96)*VLOOKUP(MONTH($B96),LT!$A$50:$C$58,2) -> 5.399177556 | S96: =MIN($O96,R96-T96-U96)*VLOOKUP(MONTH($B96),LT!$A$50:$C$58,2) -> 1.17226344 | T96: =IF(R96>0,MIN($P96,R96),"0")*VLOOKUP(MONTH($B96),LT!$A$50:$C$58,2) -> 2.237562567 | U96: =$N96*(VLOOKUP(MONTH($B96),LT!$A$27:$W$35,12))/LT!$G$7*VLOOKUP(MONTH($B96),LT!$A$50:$C$58,2) -> 1.98935155 | V96: =(N96)*VLOOKUP(MONTH($B96),LT!$A$50:$C$58,3) -> 0 | W96: =MIN($O96,V96-X96-Y96)*VLOOKUP(MONTH($B96),LT!$A$50:$C$58,3) -> 0 | X96: =IF(V96>0,MIN($P96,V96),"0")*VLOOKUP(MONTH($B96),LT!$A$50:$C$58,3) -> 0 | Y96: =$N96*(VLOOKUP(MONTH($B96),LT!$A$27:$W$35,12))/LT!$G$7*VLOOKUP(MONTH($B96),LT!$A$50:$C$58,3) -> 0 | Z96: =U96*LT!$H$79 -> 0.02486689437 | AA96: =Y96*LT!$H$80 -> 0 | AB96: 0.02486689437 | AC96: 1.98935155 | AD96: 0 | AE96: 4.837619479 | AF96: 4.226914116 | AG96: -0.5858384681 | AH96: =LT!$H$79*(S96-Z96) -> 0.01434245682 | AI96: =LT!$H$80*(W96-AA96) -> 0 | AJ96: 1.133054089 | AK96: 0 | AL96: 1.133054089 | AM96: 1 | AN96: 1.133054089 | AO96: 0 | AP96: =VLOOKUP(MONTH($B96),LT!$A$27:$W$35,21)+VLOOKUP(MONTH($B96),LT!$A$27:$W$35,22)/(1-LT!$H$80) -> 63.97364283 | AQ96: =IF(Q96=0,"-",(AC96+AD96)/(N96/LT!$G$7)) -> 233.9686407 | AS96: 1.133054089 | AT96: 1.01974868
A97: 5 | B97: ='Actual Accting'!B97 -> 2019-05-18 | C97: ='Actual Accting'!C97 -> 0 | D97: ='Actual Accting'!D97 -> 0 | E97: =HLOOKUP(MONTH($B97),LT!$B$93:$N$95,3) -> 192.153278 | F97: ='Actual Accting'!F97 -> 0 | G97: - | H97: - | I97: - | J97: - | K97: - | L97: - | M97: =(E97)*LT!$G$7/LT!$A$7 -> 6.538978109 | N97: =M97*(1-LT!$G$44) -> 5.399177556 | O97: =$N97*VLOOKUP(MONTH($B97),LT!$A$13:$S$21,14) -> 2.092706914 | P97: =$N97*VLOOKUP(MONTH($B97),LT!$A$13:$S$21,15) -> 2.237562567 | Q97: =$N97*VLOOKUP(MONTH($B97),LT!$A$13:$S$21,16) -> 2.600056912 | R97: =(N97)*VLOOKUP(MONTH($B97),LT!$A$50:$C$58,2) -> 5.399177556 | S97: =MIN($O97,R97-T97-U97)*VLOOKUP(MONTH($B97),LT!$A$50:$C$58,2) -> 1.17226344 | T97: =IF(R97>0,MIN($P97,R97),"0")*VLOOKUP(MONTH($B97),LT!$A$50:$C$58,2) -> 2.237562567 | U97: =$N97*(VLOOKUP(MONTH($B97),LT!$A$27:$W$35,12))/LT!$G$7*VLOOKUP(MONTH($B97),LT!$A$50:$C$58,2) -> 1.98935155 | V97: =(N97)*VLOOKUP(MONTH($B97),LT!$A$50:$C$58,3) -> 0 | W97: =MIN($O97,V97-X97-Y97)*VLOOKUP(MONTH($B97),LT!$A$50:$C$58,3) -> 0 | X97: =IF(V97>0,MIN($P97,V97),"0")*VLOOKUP(MONTH($B97),LT!$A$50:$C$58,3) -> 0 | Y97: =$N97*(VLOOKUP(MONTH($B97),LT!$A$27:$W$35,12))/LT!$G$7*VLOOKUP(MONTH($B97),LT!$A$50:$C$58,3) -> 0 | Z97: =U97*LT!$H$79 -> 0.02486689437 | AA97: =Y97*LT!$H$80 -> 0 | AB97: =SUM(Z97:AA97) -> 0.02486689437 | AC97: =U97 -> 1.98935155 | AD97: =Y97 -> 0 | AE97: =P97+Q97 -> 4.837619479 | AF97: 4.226914116 | AG97: =AF97+AB97-AE97 -> -0.5858384681 | AH97: =LT!$H$79*(S97-Z97) -> 0.01434245682 | AI97: =LT!$H$80*(W97-AA97) -> 0 | AJ97: =S97-AH97-Z97 -> 1.133054089 | AK97: =W97-AI97-AA97 -> 0 | AL97: =AJ97+AK97 -> 1.133054089 | AM97: 1 | AN97: =AJ97*AM97 -> 1.133054089 | AO97: =AK97*AM97 -> 0 | AP97: =VLOOKUP(MONTH($B97),LT!$A$27:$W$35,21)+VLOOKUP(MONTH($B97),LT!$A$27:$W$35,22)/(1-LT!$H$80) -> 63.97364283 | AQ97: =IF(Q97=0,"-",(AC97+AD97)/(N97/LT!$G$7)) -> 233.9686407 | AS97: =AN97 -> 1.133054089 | AT97: =AS97*0.9 -> 1.01974868
A98: 5 | B98: ='Actual Accting'!B98 -> 2019-05-19 | C98: ='Actual Accting'!C98 -> 0 | D98: ='Actual Accting'!D98 -> 0 | E98: =HLOOKUP(MONTH($B98),LT!$B$93:$N$95,3) -> 192.153278 | F98: ='Actual Accting'!F98 -> 0 | G98: - | H98: - | I98: - | J98: - | K98: - | L98: - | M98: =(E98)*LT!$G$7/LT!$A$7 -> 6.538978109 | N98: =M98*(1-LT!$G$44) -> 5.399177556 | O98: =$N98*VLOOKUP(MONTH($B98),LT!$A$13:$S$21,14) -> 2.092706914 | P98: =$N98*VLOOKUP(MONTH($B98),LT!$A$13:$S$21,15) -> 2.237562567 | Q98: =$N98*VLOOKUP(MONTH($B98),LT!$A$13:$S$21,16) -> 2.600056912 | R98: =(N98)*VLOOKUP(MONTH($B98),LT!$A$50:$C$58,2) -> 5.399177556 | S98: =MIN($O98,R98-T98-U98)*VLOOKUP(MONTH($B98),LT!$A$50:$C$58,2) -> 1.17226344 | T98: =IF(R98>0,MIN($P98,R98),"0")*VLOOKUP(MONTH($B98),LT!$A$50:$C$58,2) -> 2.237562567 | U98: =$N98*(VLOOKUP(MONTH($B98),LT!$A$27:$W$35,12))/LT!$G$7*VLOOKUP(MONTH($B98),LT!$A$50:$C$58,2) -> 1.98935155 | V98: =(N98)*VLOOKUP(MONTH($B98),LT!$A$50:$C$58,3) -> 0 | W98: =MIN($O98,V98-X98-Y98)*VLOOKUP(MONTH($B98),LT!$A$50:$C$58,3) -> 0 | X98: =IF(V98>0,MIN($P98,V98),"0")*VLOOKUP(MONTH($B98),LT!$A$50:$C$58,3) -> 0 | Y98: =$N98*(VLOOKUP(MONTH($B98),LT!$A$27:$W$35,12))/LT!$G$7*VLOOKUP(MONTH($B98),LT!$A$50:$C$58,3) -> 0 | Z98: =U98*LT!$H$79 -> 0.02486689437 | AA98: =Y98*LT!$H$80 -> 0 | AB98: 0.02486689437 | AC98: 1.98935155 | AD98: 0 | AE98: 4.837619479 | AF98: =SUM(T98,AC98,X98,AD98) -> 4.226914116 | AG98: -0.5858384681 | AH98: =LT!$H$79*(S98-Z98) -> 0.01434245682 | AI98: =LT!$H$80*(W98-AA98) -> 0 | AJ98: 1.133054089 | AK98: 0 | AL98: 1.133054089 | AM98: 1 | AN98: 1.133054089 | AO98: 0 | AP98: =VLOOKUP(MONTH($B98),LT!$A$27:$W$35,21)+VLOOKUP(MONTH($B98),LT!$A$27:$W$35,22)/(1-LT!$H$80) -> 63.97364283 | AQ98: =IF(Q98=0,"-",(AC98+AD98)/(N98/LT!$G$7)) -> 233.9686407 | AS98: 1.133054089 | AT98: 1.01974868
A99: 5 | B99: ='Actual Accting'!B99 -> 2019-05-20 | C99: ='Actual Accting'!C99 -> 0 | D99: ='Actual Accting'!D99 -> 0 | E99: =HLOOKUP(MONTH($B99),LT!$B$93:$N$95,3) -> 192.153278 | F99: ='Actual Accting'!F99 -> 0 | G99: - | H99: - | I99: - | J99: - | K99: - | L99: - | M99: =(E99)*LT!$G$7/LT!$A$7 -> 6.538978109 | N99: =M99*(1-LT!$G$44) -> 5.399177556 | O99: =$N99*VLOOKUP(MONTH($B99),LT!$A$13:$S$21,14) -> 2.092706914 | P99: =$N99*VLOOKUP(MONTH($B99),LT!$A$13:$S$21,15) -> 2.237562567 | Q99: =$N99*VLOOKUP(MONTH($B99),LT!$A$13:$S$21,16) -> 2.600056912 | R99: =(N99)*VLOOKUP(MONTH($B99),LT!$A$50:$C$58,2) -> 5.399177556 | S99: =MIN($O99,R99-T99-U99)*VLOOKUP(MONTH($B99),LT!$A$50:$C$58,2) -> 1.17226344 | T99: =IF(R99>0,MIN($P99,R99),"0")*VLOOKUP(MONTH($B99),LT!$A$50:$C$58,2) -> 2.237562567 | U99: =$N99*(VLOOKUP(MONTH($B99),LT!$A$27:$W$35,12))/LT!$G$7*VLOOKUP(MONTH($B99),LT!$A$50:$C$58,2) -> 1.98935155 | V99: =(N99)*VLOOKUP(MONTH($B99),LT!$A$50:$C$58,3) -> 0 | W99: =MIN($O99,V99-X99-Y99)*VLOOKUP(MONTH($B99),LT!$A$50:$C$58,3) -> 0 | X99: =IF(V99>0,MIN($P99,V99),"0")*VLOOKUP(MONTH($B99),LT!$A$50:$C$58,3) -> 0 | Y99: =$N99*(VLOOKUP(MONTH($B99),LT!$A$27:$W$35,12))/LT!$G$7*VLOOKUP(MONTH($B99),LT!$A$50:$C$58,3) -> 0 | Z99: =U99*LT!$H$79 -> 0.02486689437 | AA99: =Y99*LT!$H$80 -> 0 | AB99: 0.02486689437 | AC99: 1.98935155 | AD99: 0 | AE99: 4.837619479 | AF99: 4.226914116 | AG99: -0.5858384681 | AH99: =LT!$H$79*(S99-Z99) -> 0.01434245682 | AI99: =LT!$H$80*(W99-AA99) -> 0 | AJ99: 1.133054089 | AK99: 0 | AL99: 1.133054089 | AM99: 1 | AN99: 1.133054089 | AO99: 0 | AP99: =VLOOKUP(MONTH($B99),LT!$A$27:$W$35,21)+VLOOKUP(MONTH($B99),LT!$A$27:$W$35,22)/(1-LT!$H$80) -> 63.97364283 | AQ99: =IF(Q99=0,"-",(AC99+AD99)/(N99/LT!$G$7)) -> 233.9686407 | AS99: 1.133054089 | AT99: 1.01974868
A100: 5 | B100: ='Actual Accting'!B100 -> 2019-05-21 | C100: ='Actual Accting'!C100 -> 0 | D100: ='Actual Accting'!D100 -> 0 | E100: =HLOOKUP(MONTH($B100),LT!$B$93:$N$95,3) -> 192.153278 | F100: ='Actual Accting'!F100 -> 0 | G100: - | H100: - | I100: - | J100: - | K100: - | L100: - | M100: =(E100)*LT!$G$7/LT!$A$7 -> 6.538978109 | N100: =M100*(1-LT!$G$44) -> 5.399177556 | O100: =$N100*VLOOKUP(MONTH($B100),LT!$A$13:$S$21,14) -> 2.092706914 | P100: =$N100*VLOOKUP(MONTH($B100),LT!$A$13:$S$21,15) -> 2.237562567 | Q100: =$N100*VLOOKUP(MONTH($B100),LT!$A$13:$S$21,16) -> 2.600056912 | R100: =(N100)*VLOOKUP(MONTH($B100),LT!$A$50:$C$58,2) -> 5.399177556 | S100: =MIN($O100,R100-T100-U100)*VLOOKUP(MONTH($B100),LT!$A$50:$C$58,2) -> 1.17226344 | T100: =IF(R100>0,MIN($P100,R100),"0")*VLOOKUP(MONTH($B100),LT!$A$50:$C$58,2) -> 2.237562567 | U100: =$N100*(VLOOKUP(MONTH($B100),LT!$A$27:$W$35,12))/LT!$G$7*VLOOKUP(MONTH($B100),LT!$A$50:$C$58,2) -> 1.98935155 | V100: =(N100)*VLOOKUP(MONTH($B100),LT!$A$50:$C$58,3) -> 0 | W100: =MIN($O100,V100-X100-Y100)*VLOOKUP(MONTH($B100),LT!$A$50:$C$58,3) -> 0 | X100: =IF(V100>0,MIN($P100,V100),"0")*VLOOKUP(MONTH($B100),LT!$A$50:$C$58,3) -> 0 | Y100: =$N100*(VLOOKUP(MONTH($B100),LT!$A$27:$W$35,12))/LT!$G$7*VLOOKUP(MONTH($B100),LT!$A$50:$C$58,3) -> 0 | Z100: =U100*LT!$H$79 -> 0.02486689437 | AA100: =Y100*LT!$H$80 -> 0 | AB100: 0.02486689437 | AC100: 1.98935155 | AD100: 0 | AE100: 4.837619479 | AF100: 4.226914116 | AG100: -0.5858384681 | AH100: =LT!$H$79*(S100-Z100) -> 0.01434245682 | AI100: =LT!$H$80*(W100-AA100) -> 0 | AJ100: 1.133054089 | AK100: 0 | AL100: 1.133054089 | AM100: 1 | AN100: 1.133054089 | AO100: 0 | AP100: =VLOOKUP(MONTH($B100),LT!$A$27:$W$35,21)+VLOOKUP(MONTH($B100),LT!$A$27:$W$35,22)/(1-LT!$H$80) -> 63.97364283 | AQ100: =IF(Q100=0,"-",(AC100+AD100)/(N100/LT!$G$7)) -> 233.9686407 | AS100: 1.133054089 | AT100: 1.01974868
A101: 5 | B101: ='Actual Accting'!B101 -> 2019-05-22 | C101: ='Actual Accting'!C101 -> 0 | D101: ='Actual Accting'!D101 -> 0 | E101: =HLOOKUP(MONTH($B101),LT!$B$93:$N$95,3) -> 192.153278 | F101: ='Actual Accting'!F101 -> 0 | G101: - | H101: - | I101: - | J101: - | K101: - | L101: - | M101: =(E101)*LT!$G$7/LT!$A$7 -> 6.538978109 | N101: =M101*(1-LT!$G$44) -> 5.399177556 | O101: =$N101*VLOOKUP(MONTH($B101),LT!$A$13:$S$21,14) -> 2.092706914 | P101: =$N101*VLOOKUP(MONTH($B101),LT!$A$13:$S$21,15) -> 2.237562567 | Q101: =$N101*VLOOKUP(MONTH($B101),LT!$A$13:$S$21,16) -> 2.600056912 | R101: =(N101)*VLOOKUP(MONTH($B101),LT!$A$50:$C$58,2) -> 5.399177556 | S101: =MIN($O101,R101-T101-U101)*VLOOKUP(MONTH($B101),LT!$A$50:$C$58,2) -> 1.17226344 | T101: =IF(R101>0,MIN($P101,R101),"0")*VLOOKUP(MONTH($B101),LT!$A$50:$C$58,2) -> 2.237562567 | U101: =$N101*(VLOOKUP(MONTH($B101),LT!$A$27:$W$35,12))/LT!$G$7*VLOOKUP(MONTH($B101),LT!$A$50:$C$58,2) -> 1.98935155 | V101: =(N101)*VLOOKUP(MONTH($B101),LT!$A$50:$C$58,3) -> 0 | W101: =MIN($O101,V101-X101-Y101)*VLOOKUP(MONTH($B101),LT!$A$50:$C$58,3) -> 0 | X101: =IF(V101>0,MIN($P101,V101),"0")*VLOOKUP(MONTH($B101),LT!$A$50:$C$58,3) -> 0 | Y101: =$N101*(VLOOKUP(MONTH($B101),LT!$A$27:$W$35,12))/LT!$G$7*VLOOKUP(MONTH($B101),LT!$A$50:$C$58,3) -> 0 | Z101: =U101*LT!$H$79 -> 0.02486689437 | AA101: =Y101*LT!$H$80 -> 0 | AB101: 0.02486689437 | AC101: 1.98935155 | AD101: 0 | AE101: 4.837619479 | AF101: 4.226914116 | AG101: -0.5858384681 | AH101: =LT!$H$79*(S101-Z101) -> 0.01434245682 | AI101: =LT!$H$80*(W101-AA101) -> 0 | AJ101: 1.133054089 | AK101: 0 | AL101: 1.133054089 | AM101: 1 | AN101: 1.133054089 | AO101: 0 | AP101: =VLOOKUP(MONTH($B101),LT!$A$27:$W$35,21)+VLOOKUP(MONTH($B101),LT!$A$27:$W$35,22)/(1-LT!$H$80) -> 63.97364283 | AQ101: =IF(Q101=0,"-",(AC101+AD101)/(N101/LT!$G$7)) -> 233.9686407 | AS101: 1.133054089 | AT101: 1.01974868
A102: 5 | B102: ='Actual Accting'!B102 -> 2019-05-23 | C102: ='Actual Accting'!C102 -> 0 | D102: ='Actual Accting'!D102 -> 0 | E102: =HLOOKUP(MONTH($B102),LT!$B$93:$N$95,3) -> 192.153278 | F102: ='Actual Accting'!F102 -> 0 | G102: - | H102: - | I102: - | J102: - | K102: - | L102: - | M102: =(E102)*LT!$G$7/LT!$A$7 -> 6.538978109 | N102: =M102*(1-LT!$G$44) -> 5.399177556 | O102: =$N102*VLOOKUP(MONTH($B102),LT!$A$13:$S$21,14) -> 2.092706914 | P102: =$N102*VLOOKUP(MONTH($B102),LT!$A$13:$S$21,15) -> 2.237562567 | Q102: =$N102*VLOOKUP(MONTH($B102),LT!$A$13:$S$21,16) -> 2.600056912 | R102: =(N102)*VLOOKUP(MONTH($B102),LT!$A$50:$C$58,2) -> 5.399177556 | S102: =MIN($O102,R102-T102-U102)*VLOOKUP(MONTH($B102),LT!$A$50:$C$58,2) -> 1.17226344 | T102: =IF(R102>0,MIN($P102,R102),"0")*VLOOKUP(MONTH($B102),LT!$A$50:$C$58,2) -> 2.237562567 | U102: =$N102*(VLOOKUP(MONTH($B102),LT!$A$27:$W$35,12))/LT!$G$7*VLOOKUP(MONTH($B102),LT!$A$50:$C$58,2) -> 1.98935155 | V102: =(N102)*VLOOKUP(MONTH($B102),LT!$A$50:$C$58,3) -> 0 | W102: =MIN($O102,V102-X102-Y102)*VLOOKUP(MONTH($B102),LT!$A$50:$C$58,3) -> 0 | X102: =IF(V102>0,MIN($P102,V102),"0")*VLOOKUP(MONTH($B102),LT!$A$50:$C$58,3) -> 0 | Y102: =$N102*(VLOOKUP(MONTH($B102),LT!$A$27:$W$35,12))/LT!$G$7*VLOOKUP(MONTH($B102),LT!$A$50:$C$58,3) -> 0 | Z102: =U102*LT!$H$79 -> 0.02486689437 | AA102: =Y102*LT!$H$80 -> 0 | AB102: 0.02486689437 | AC102: 1.98935155 | AD102: 0 | AE102: 4.837619479 | AF102: 4.226914116 | AG102: -0.5858384681 | AH102: =LT!$H$79*(S102-Z102) -> 0.01434245682 | AI102: =LT!$H$80*(W102-AA102) -> 0 | AJ102: 1.133054089 | AK102: 0 | AL102: 1.133054089 | AM102: 1 | AN102: 1.133054089 | AO102: 0 | AP102: =VLOOKUP(MONTH($B102),LT!$A$27:$W$35,21)+VLOOKUP(MONTH($B102),LT!$A$27:$W$35,22)/(1-LT!$H$80) -> 63.97364283 | AQ102: =IF(Q102=0,"-",(AC102+AD102)/(N102/LT!$G$7)) -> 233.9686407 | AS102: 1.133054089 | AT102: 1.01974868
A103: 5 | B103: ='Actual Accting'!B103 -> 2019-05-24 | C103: ='Actual Accting'!C103 -> 0 | D103: ='Actual Accting'!D103 -> 0 | E103: =HLOOKUP(MONTH($B103),LT!$B$93:$N$95,3) -> 192.153278 | F103: ='Actual Accting'!F103 -> 0 | G103: - | H103: - | I103: - | J103: - | K103: - | L103: - | M103: =(E103)*LT!$G$7/LT!$A$7 -> 6.538978109 | N103: =M103*(1-LT!$G$44) -> 5.399177556 | O103: =$N103*VLOOKUP(MONTH($B103),LT!$A$13:$S$21,14) -> 2.092706914 | P103: =$N103*VLOOKUP(MONTH($B103),LT!$A$13:$S$21,15) -> 2.237562567 | Q103: =$N103*VLOOKUP(MONTH($B103),LT!$A$13:$S$21,16) -> 2.600056912 | R103: =(N103)*VLOOKUP(MONTH($B103),LT!$A$50:$C$58,2) -> 5.399177556 | S103: =MIN($O103,R103-T103-U103)*VLOOKUP(MONTH($B103),LT!$A$50:$C$58,2) -> 1.17226344 | T103: =IF(R103>0,MIN($P103,R103),"0")*VLOOKUP(MONTH($B103),LT!$A$50:$C$58,2) -> 2.237562567 | U103: =$N103*(VLOOKUP(MONTH($B103),LT!$A$27:$W$35,12))/LT!$G$7*VLOOKUP(MONTH($B103),LT!$A$50:$C$58,2) -> 1.98935155 | V103: =(N103)*VLOOKUP(MONTH($B103),LT!$A$50:$C$58,3) -> 0 | W103: =MIN($O103,V103-X103-Y103)*VLOOKUP(MONTH($B103),LT!$A$50:$C$58,3) -> 0 | X103: =IF(V103>0,MIN($P103,V103),"0")*VLOOKUP(MONTH($B103),LT!$A$50:$C$58,3) -> 0 | Y103: =$N103*(VLOOKUP(MONTH($B103),LT!$A$27:$W$35,12))/LT!$G$7*VLOOKUP(MONTH($B103),LT!$A$50:$C$58,3) -> 0 | Z103: =U103*LT!$H$79 -> 0.02486689437 | AA103: =Y103*LT!$H$80 -> 0 | AB103: 0.02486689437 | AC103: 1.98935155 | AD103: 0 | AE103: 4.837619479 | AF103: 4.226914116 | AG103: -0.5858384681 | AH103: =LT!$H$79*(S103-Z103) -> 0.01434245682 | AI103: =LT!$H$80*(W103-AA103) -> 0 | AJ103: 1.133054089 | AK103: 0 | AL103: 1.133054089 | AM103: 1 | AN103: 1.133054089 | AO103: 0 | AP103: =VLOOKUP(MONTH($B103),LT!$A$27:$W$35,21)+VLOOKUP(MONTH($B103),LT!$A$27:$W$35,22)/(1-LT!$H$80) -> 63.97364283 | AQ103: =IF(Q103=0,"-",(AC103+AD103)/(N103/LT!$G$7)) -> 233.9686407 | AS103: 1.133054089 | AT103: 1.01974868
A104: 5 | B104: ='Actual Accting'!B104 -> 2019-05-25 | C104: ='Actual Accting'!C104 -> 0 | D104: ='Actual Accting'!D104 -> 0 | E104: =HLOOKUP(MONTH($B104),LT!$B$93:$N$95,3) -> 192.153278 | F104: ='Actual Accting'!F104 -> 0 | G104: - | H104: - | I104: - | J104: - | K104: - | L104: - | M104: =(E104)*LT!$G$7/LT!$A$7 -> 6.538978109 | N104: =M104*(1-LT!$G$44) -> 5.399177556 | O104: =$N104*VLOOKUP(MONTH($B104),LT!$A$13:$S$21,14) -> 2.092706914 | P104: =$N104*VLOOKUP(MONTH($B104),LT!$A$13:$S$21,15) -> 2.237562567 | Q104: =$N104*VLOOKUP(MONTH($B104),LT!$A$13:$S$21,16) -> 2.600056912 | R104: =(N104)*VLOOKUP(MONTH($B104),LT!$A$50:$C$58,2) -> 5.399177556 | S104: =MIN($O104,R104-T104-U104)*VLOOKUP(MONTH($B104),LT!$A$50:$C$58,2) -> 1.17226344 | T104: =IF(R104>0,MIN($P104,R104),"0")*VLOOKUP(MONTH($B104),LT!$A$50:$C$58,2) -> 2.237562567 | U104: =$N104*(VLOOKUP(MONTH($B104),LT!$A$27:$W$35,12))/LT!$G$7*VLOOKUP(MONTH($B104),LT!$A$50:$C$58,2) -> 1.98935155 | V104: =(N104)*VLOOKUP(MONTH($B104),LT!$A$50:$C$58,3) -> 0 | W104: =MIN($O104,V104-X104-Y104)*VLOOKUP(MONTH($B104),LT!$A$50:$C$58,3) -> 0 | X104: =IF(V104>0,MIN($P104,V104),"0")*VLOOKUP(MONTH($B104),LT!$A$50:$C$58,3) -> 0 | Y104: =$N104*(VLOOKUP(MONTH($B104),LT!$A$27:$W$35,12))/LT!$G$7*VLOOKUP(MONTH($B104),LT!$A$50:$C$58,3) -> 0 | Z104: =U104*LT!$H$79 -> 0.02486689437 | AA104: =Y104*LT!$H$80 -> 0 | AB104: 0.02486689437 | AC104: 1.98935155 | AD104: 0 | AE104: 4.837619479 | AF104: 4.226914116 | AG104: -0.5858384681 | AH104: =LT!$H$79*(S104-Z104) -> 0.01434245682 | AI104: =LT!$H$80*(W104-AA104) -> 0 | AJ104: 1.133054089 | AK104: 0 | AL104: 1.133054089 | AM104: 1 | AN104: 1.133054089 | AO104: 0 | AP104: =VLOOKUP(MONTH($B104),LT!$A$27:$W$35,21)+VLOOKUP(MONTH($B104),LT!$A$27:$W$35,22)/(1-LT!$H$80) -> 63.97364283 | AQ104: =IF(Q104=0,"-",(AC104+AD104)/(N104/LT!$G$7)) -> 233.9686407 | AS104: 1.133054089 | AT104: 1.01974868
A105: 5 | B105: ='Actual Accting'!B105 -> 2019-05-26 | C105: ='Actual Accting'!C105 -> 0 | D105: ='Actual Accting'!D105 -> 0 | E105: =HLOOKUP(MONTH($B105),LT!$B$93:$N$95,3) -> 192.153278 | F105: ='Actual Accting'!F105 -> 0 | G105: - | H105: - | I105: - | J105: - | K105: - | L105: - | M105: =(E105)*LT!$G$7/LT!$A$7 -> 6.538978109 | N105: =M105*(1-LT!$G$44) -> 5.399177556 | O105: =$N105*VLOOKUP(MONTH($B105),LT!$A$13:$S$21,14) -> 2.092706914 | P105: =$N105*VLOOKUP(MONTH($B105),LT!$A$13:$S$21,15) -> 2.237562567 | Q105: =$N105*VLOOKUP(MONTH($B105),LT!$A$13:$S$21,16) -> 2.600056912 | R105: =(N105)*VLOOKUP(MONTH($B105),LT!$A$50:$C$58,2) -> 5.399177556 | S105: =MIN($O105,R105-T105-U105)*VLOOKUP(MONTH($B105),LT!$A$50:$C$58,2) -> 1.17226344 | T105: =IF(R105>0,MIN($P105,R105),"0")*VLOOKUP(MONTH($B105),LT!$A$50:$C$58,2) -> 2.237562567 | U105: =$N105*(VLOOKUP(MONTH($B105),LT!$A$27:$W$35,12))/LT!$G$7*VLOOKUP(MONTH($B105),LT!$A$50:$C$58,2) -> 1.98935155 | V105: =(N105)*VLOOKUP(MONTH($B105),LT!$A$50:$C$58,3) -> 0 | W105: =MIN($O105,V105-X105-Y105)*VLOOKUP(MONTH($B105),LT!$A$50:$C$58,3) -> 0 | X105: =IF(V105>0,MIN($P105,V105),"0")*VLOOKUP(MONTH($B105),LT!$A$50:$C$58,3) -> 0 | Y105: =$N105*(VLOOKUP(MONTH($B105),LT!$A$27:$W$35,12))/LT!$G$7*VLOOKUP(MONTH($B105),LT!$A$50:$C$58,3) -> 0 | Z105: =U105*LT!$H$79 -> 0.02486689437 | AA105: =Y105*LT!$H$80 -> 0 | AB105: 0.02486689437 | AC105: 1.98935155 | AD105: 0 | AE105: 4.837619479 | AF105: 4.226914116 | AG105: -0.5858384681 | AH105: =LT!$H$79*(S105-Z105) -> 0.01434245682 | AI105: =LT!$H$80*(W105-AA105) -> 0 | AJ105: 1.133054089 | AK105: 0 | AL105: 1.133054089 | AM105: 1 | AN105: 1.133054089 | AO105: 0 | AP105: =VLOOKUP(MONTH($B105),LT!$A$27:$W$35,21)+VLOOKUP(MONTH($B105),LT!$A$27:$W$35,22)/(1-LT!$H$80) -> 63.97364283 | AQ105: =IF(Q105=0,"-",(AC105+AD105)/(N105/LT!$G$7)) -> 233.9686407 | AS105: 1.133054089 | AT105: 1.01974868
A106: 5 | B106: ='Actual Accting'!B106 -> 2019-05-27 | C106: ='Actual Accting'!C106 -> 0 | D106: ='Actual Accting'!D106 -> 0 | E106: =HLOOKUP(MONTH($B106),LT!$B$93:$N$95,3) -> 192.153278 | F106: ='Actual Accting'!F106 -> 0 | G106: - | H106: - | I106: - | J106: - | K106: - | L106: - | M106: =(E106)*LT!$G$7/LT!$A$7 -> 6.538978109 | N106: =M106*(1-LT!$G$44) -> 5.399177556 | O106: =$N106*VLOOKUP(MONTH($B106),LT!$A$13:$S$21,14) -> 2.092706914 | P106: =$N106*VLOOKUP(MONTH($B106),LT!$A$13:$S$21,15) -> 2.237562567 | Q106: =$N106*VLOOKUP(MONTH($B106),LT!$A$13:$S$21,16) -> 2.600056912 | R106: =(N106)*VLOOKUP(MONTH($B106),LT!$A$50:$C$58,2) -> 5.399177556 | S106: =MIN($O106,R106-T106-U106)*VLOOKUP(MONTH($B106),LT!$A$50:$C$58,2) -> 1.17226344 | T106: =IF(R106>0,MIN($P106,R106),"0")*VLOOKUP(MONTH($B106),LT!$A$50:$C$58,2) -> 2.237562567 | U106: =$N106*(VLOOKUP(MONTH($B106),LT!$A$27:$W$35,12))/LT!$G$7*VLOOKUP(MONTH($B106),LT!$A$50:$C$58,2) -> 1.98935155 | V106: =(N106)*VLOOKUP(MONTH($B106),LT!$A$50:$C$58,3) -> 0 | W106: =MIN($O106,V106-X106-Y106)*VLOOKUP(MONTH($B106),LT!$A$50:$C$58,3) -> 0 | X106: =IF(V106>0,MIN($P106,V106),"0")*VLOOKUP(MONTH($B106),LT!$A$50:$C$58,3) -> 0 | Y106: =$N106*(VLOOKUP(MONTH($B106),LT!$A$27:$W$35,12))/LT!$G$7*VLOOKUP(MONTH($B106),LT!$A$50:$C$58,3) -> 0 | Z106: =U106*LT!$H$79 -> 0.02486689437 | AA106: =Y106*LT!$H$80 -> 0 | AB106: 0.02486689437 | AC106: 1.98935155 | AD106: 0 | AE106: 4.837619479 | AF106: 4.226914116 | AG106: -0.5858384681 | AH106: =LT!$H$79*(S106-Z106) -> 0.01434245682 | AI106: =LT!$H$80*(W106-AA106) -> 0 | AJ106: 1.133054089 | AK106: 0 | AL106: 1.133054089 | AM106: 1 | AN106: 1.133054089 | AO106: 0 | AP106: =VLOOKUP(MONTH($B106),LT!$A$27:$W$35,21)+VLOOKUP(MONTH($B106),LT!$A$27:$W$35,22)/(1-LT!$H$80) -> 63.97364283 | AQ106: =IF(Q106=0,"-",(AC106+AD106)/(N106/LT!$G$7)) -> 233.9686407 | AS106: 1.133054089 | AT106: 1.01974868
A107: 5 | B107: ='Actual Accting'!B107 -> 2019-05-28 | C107: ='Actual Accting'!C107 -> 0 | D107: ='Actual Accting'!D107 -> 0 | E107: =HLOOKUP(MONTH($B107),LT!$B$93:$N$95,3) -> 192.153278 | F107: ='Actual Accting'!F107 -> 0 | G107: - | H107: - | I107: - | J107: - | K107: - | L107: - | M107: =(E107)*LT!$G$7/LT!$A$7 -> 6.538978109 | N107: =M107*(1-LT!$G$44) -> 5.399177556 | O107: =$N107*VLOOKUP(MONTH($B107),LT!$A$13:$S$21,14) -> 2.092706914 | P107: =$N107*VLOOKUP(MONTH($B107),LT!$A$13:$S$21,15) -> 2.237562567 | Q107: =$N107*VLOOKUP(MONTH($B107),LT!$A$13:$S$21,16) -> 2.600056912 | R107: =(N107)*VLOOKUP(MONTH($B107),LT!$A$50:$C$58,2) -> 5.399177556 | S107: =MIN($O107,R107-T107-U107)*VLOOKUP(MONTH($B107),LT!$A$50:$C$58,2) -> 1.17226344 | T107: =IF(R107>0,MIN($P107,R107),"0")*VLOOKUP(MONTH($B107),LT!$A$50:$C$58,2) -> 2.237562567 | U107: =$N107*(VLOOKUP(MONTH($B107),LT!$A$27:$W$35,12))/LT!$G$7*VLOOKUP(MONTH($B107),LT!$A$50:$C$58,2) -> 1.98935155 | V107: =(N107)*VLOOKUP(MONTH($B107),LT!$A$50:$C$58,3) -> 0 | W107: =MIN($O107,V107-X107-Y107)*VLOOKUP(MONTH($B107),LT!$A$50:$C$58,3) -> 0 | X107: =IF(V107>0,MIN($P107,V107),"0")*VLOOKUP(MONTH($B107),LT!$A$50:$C$58,3) -> 0 | Y107: =$N107*(VLOOKUP(MONTH($B107),LT!$A$27:$W$35,12))/LT!$G$7*VLOOKUP(MONTH($B107),LT!$A$50:$C$58,3) -> 0 | Z107: =U107*LT!$H$79 -> 0.02486689437 | AA107: =Y107*LT!$H$80 -> 0 | AB107: 0.02486689437 | AC107: 1.98935155 | AD107: 0 | AE107: 4.837619479 | AF107: 4.226914116 | AG107: -0.5858384681 | AH107: =LT!$H$79*(S107-Z107) -> 0.01434245682 | AI107: =LT!$H$80*(W107-AA107) -> 0 | AJ107: 1.133054089 | AK107: 0 | AL107: 1.133054089 | AM107: 1 | AN107: 1.133054089 | AO107: 0 | AP107: =VLOOKUP(MONTH($B107),LT!$A$27:$W$35,21)+VLOOKUP(MONTH($B107),LT!$A$27:$W$35,22)/(1-LT!$H$80) -> 63.97364283 | AQ107: =IF(Q107=0,"-",(AC107+AD107)/(N107/LT!$G$7)) -> 233.9686407 | AS107: 1.133054089 | AT107: 1.01974868
A108: 5 | B108: ='Actual Accting'!B108 -> 2019-05-29 | C108: ='Actual Accting'!C108 -> 0 | D108: ='Actual Accting'!D108 -> 0 | E108: =HLOOKUP(MONTH($B108),LT!$B$93:$N$95,3) -> 192.153278 | F108: ='Actual Accting'!F108 -> 0 | G108: - | H108: - | I108: - | J108: - | K108: - | L108: - | M108: =(E108)*LT!$G$7/LT!$A$7 -> 6.538978109 | N108: =M108*(1-LT!$G$44) -> 5.399177556 | O108: =$N108*VLOOKUP(MONTH($B108),LT!$A$13:$S$21,14) -> 2.092706914 | P108: =$N108*VLOOKUP(MONTH($B108),LT!$A$13:$S$21,15) -> 2.237562567 | Q108: =$N108*VLOOKUP(MONTH($B108),LT!$A$13:$S$21,16) -> 2.600056912 | R108: =(N108)*VLOOKUP(MONTH($B108),LT!$A$50:$C$58,2) -> 5.399177556 | S108: =MIN($O108,R108-T108-U108)*VLOOKUP(MONTH($B108),LT!$A$50:$C$58,2) -> 1.17226344 | T108: =IF(R108>0,MIN($P108,R108),"0")*VLOOKUP(MONTH($B108),LT!$A$50:$C$58,2) -> 2.237562567 | U108: =$N108*(VLOOKUP(MONTH($B108),LT!$A$27:$W$35,12))/LT!$G$7*VLOOKUP(MONTH($B108),LT!$A$50:$C$58,2) -> 1.98935155 | V108: =(N108)*VLOOKUP(MONTH($B108),LT!$A$50:$C$58,3) -> 0 | W108: =MIN($O108,V108-X108-Y108)*VLOOKUP(MONTH($B108),LT!$A$50:$C$58,3) -> 0 | X108: =IF(V108>0,MIN($P108,V108),"0")*VLOOKUP(MONTH($B108),LT!$A$50:$C$58,3) -> 0 | Y108: =$N108*(VLOOKUP(MONTH($B108),LT!$A$27:$W$35,12))/LT!$G$7*VLOOKUP(MONTH($B108),LT!$A$50:$C$58,3) -> 0 | Z108: =U108*LT!$H$79 -> 0.02486689437 | AA108: =Y108*LT!$H$80 -> 0 | AB108: 0.02486689437 | AC108: 1.98935155 | AD108: 0 | AE108: 4.837619479 | AF108: 4.226914116 | AG108: -0.5858384681 | AH108: =LT!$H$79*(S108-Z108) -> 0.01434245682 | AI108: =LT!$H$80*(W108-AA108) -> 0 | AJ108: 1.133054089 | AK108: 0 | AL108: 1.133054089 | AM108: 1 | AN108: 1.133054089 | AO108: 0 | AP108: =VLOOKUP(MONTH($B108),LT!$A$27:$W$35,21)+VLOOKUP(MONTH($B108),LT!$A$27:$W$35,22)/(1-LT!$H$80) -> 63.97364283 | AQ108: =IF(Q108=0,"-",(AC108+AD108)/(N108/LT!$G$7)) -> 233.9686407 | AS108: 1.133054089 | AT108: 1.01974868
A109: 5 | B109: ='Actual Accting'!B109 -> 2019-05-30 | C109: ='Actual Accting'!C109 -> 0 | D109: ='Actual Accting'!D109 -> 0 | E109: =HLOOKUP(MONTH($B109),LT!$B$93:$N$95,3) -> 192.153278 | F109: ='Actual Accting'!F109 -> 0 | G109: - | H109: - | I109: - | J109: - | K109: - | L109: - | M109: =(E109)*LT!$G$7/LT!$A$7 -> 6.538978109 | N109: =M109*(1-LT!$G$44) -> 5.399177556 | O109: =$N109*VLOOKUP(MONTH($B109),LT!$A$13:$S$21,14) -> 2.092706914 | P109: =$N109*VLOOKUP(MONTH($B109),LT!$A$13:$S$21,15) -> 2.237562567 | Q109: =$N109*VLOOKUP(MONTH($B109),LT!$A$13:$S$21,16) -> 2.600056912 | R109: =(N109)*VLOOKUP(MONTH($B109),LT!$A$50:$C$58,2) -> 5.399177556 | S109: =MIN($O109,R109-T109-U109)*VLOOKUP(MONTH($B109),LT!$A$50:$C$58,2) -> 1.17226344 | T109: =IF(R109>0,MIN($P109,R109),"0")*VLOOKUP(MONTH($B109),LT!$A$50:$C$58,2) -> 2.237562567 | U109: =$N109*(VLOOKUP(MONTH($B109),LT!$A$27:$W$35,12))/LT!$G$7*VLOOKUP(MONTH($B109),LT!$A$50:$C$58,2) -> 1.98935155 | V109: =(N109)*VLOOKUP(MONTH($B109),LT!$A$50:$C$58,3) -> 0 | W109: =MIN($O109,V109-X109-Y109)*VLOOKUP(MONTH($B109),LT!$A$50:$C$58,3) -> 0 | X109: =IF(V109>0,MIN($P109,V109),"0")*VLOOKUP(MONTH($B109),LT!$A$50:$C$58,3) -> 0 | Y109: =$N109*(VLOOKUP(MONTH($B109),LT!$A$27:$W$35,12))/LT!$G$7*VLOOKUP(MONTH($B109),LT!$A$50:$C$58,3) -> 0 | Z109: =U109*LT!$H$79 -> 0.02486689437 | AA109: =Y109*LT!$H$80 -> 0 | AB109: 0.02486689437 | AC109: 1.98935155 | AD109: 0 | AE109: 4.837619479 | AF109: 4.226914116 | AG109: -0.5858384681 | AH109: =LT!$H$79*(S109-Z109) -> 0.01434245682 | AI109: =LT!$H$80*(W109-AA109) -> 0 | AJ109: 1.133054089 | AK109: 0 | AL109: 1.133054089 | AM109: 1 | AN109: 1.133054089 | AO109: 0 | AP109: =VLOOKUP(MONTH($B109),LT!$A$27:$W$35,21)+VLOOKUP(MONTH($B109),LT!$A$27:$W$35,22)/(1-LT!$H$80) -> 63.97364283 | AQ109: =IF(Q109=0,"-",(AC109+AD109)/(N109/LT!$G$7)) -> 233.9686407 | AS109: 1.133054089 | AT109: 1.01974868
A110: 5 | B110: ='Actual Accting'!B110 -> 2019-05-31 | C110: ='Actual Accting'!C110 -> 0 | D110: ='Actual Accting'!D110 -> 0 | E110: =HLOOKUP(MONTH($B110),LT!$B$93:$N$95,3) -> 192.153278 | F110: ='Actual Accting'!F110 -> 0 | G110: - | H110: - | I110: - | J110: - | K110: - | L110: - | M110: =(E110)*LT!$G$7/LT!$A$7 -> 6.538978109 | N110: =M110*(1-LT!$G$44) -> 5.399177556 | O110: =$N110*VLOOKUP(MONTH($B110),LT!$A$13:$S$21,14) -> 2.092706914 | P110: =$N110*VLOOKUP(MONTH($B110),LT!$A$13:$S$21,15) -> 2.237562567 | Q110: =$N110*VLOOKUP(MONTH($B110),LT!$A$13:$S$21,16) -> 2.600056912 | R110: =(N110)*VLOOKUP(MONTH($B110),LT!$A$50:$C$58,2) -> 5.399177556 | S110: =MIN($O110,R110-T110-U110)*VLOOKUP(MONTH($B110),LT!$A$50:$C$58,2) -> 1.17226344 | T110: =IF(R110>0,MIN($P110,R110),"0")*VLOOKUP(MONTH($B110),LT!$A$50:$C$58,2) -> 2.237562567 | U110: =$N110*(VLOOKUP(MONTH($B110),LT!$A$27:$W$35,12))/LT!$G$7*VLOOKUP(MONTH($B110),LT!$A$50:$C$58,2) -> 1.98935155 | V110: =(N110)*VLOOKUP(MONTH($B110),LT!$A$50:$C$58,3) -> 0 | W110: =MIN($O110,V110-X110-Y110)*VLOOKUP(MONTH($B110),LT!$A$50:$C$58,3) -> 0 | X110: =IF(V110>0,MIN($P110,V110),"0")*VLOOKUP(MONTH($B110),LT!$A$50:$C$58,3) -> 0 | Y110: =$N110*(VLOOKUP(MONTH($B110),LT!$A$27:$W$35,12))/LT!$G$7*VLOOKUP(MONTH($B110),LT!$A$50:$C$58,3) -> 0 | Z110: =U110*LT!$H$79 -> 0.02486689437 | AA110: =Y110*LT!$H$80 -> 0 | AB110: 0.02486689437 | AC110: 1.98935155 | AD110: 0 | AE110: 4.837619479 | AF110: 4.226914116 | AG110: -0.5858384681 | AH110: =LT!$H$79*(S110-Z110) -> 0.01434245682 | AI110: =LT!$H$80*(W110-AA110) -> 0 | AJ110: 1.133054089 | AK110: 0 | AL110: 1.133054089 | AM110: 1 | AN110: 1.133054089 | AO110: 0 | AP110: =VLOOKUP(MONTH($B110),LT!$A$27:$W$35,21)+VLOOKUP(MONTH($B110),LT!$A$27:$W$35,22)/(1-LT!$H$80) -> 63.97364283 | AQ110: =IF(Q110=0,"-",(AC110+AD110)/(N110/LT!$G$7)) -> 233.9686407 | AS110: 1.133054089 | AT110: 1.01974868
A111: 6 | B111: ='Actual Accting'!B111 -> 2019-06-01 | C111: ='Actual Accting'!C111 -> 0 | D111: ='Actual Accting'!D111 -> 0 | E111: =HLOOKUP(MONTH($B111),LT!$B$93:$N$95,3) -> 242.116177 | F111: ='Actual Accting'!F111 -> 0 | G111: - | H111: - | I111: - | J111: - | K111: - | L111: - | M111: =(E111)*LT!$G$7/LT!$A$7 -> 8.239216098 | N111: =M111*(1-LT!$G$44) -> 6.803049328 | O111: =$N111*VLOOKUP(MONTH($B111),LT!$A$13:$S$21,14) -> 2.404877938 | P111: =$N111*VLOOKUP(MONTH($B111),LT!$A$13:$S$21,15) -> 2.415229533 | Q111: =$N111*VLOOKUP(MONTH($B111),LT!$A$13:$S$21,16) -> 2.597656134 | R111: =(N111)*VLOOKUP(MONTH($B111),LT!$A$50:$C$58,2) -> 6.803049328 | S111: =MIN($O111,R111-T111-U111)*VLOOKUP(MONTH($B111),LT!$A$50:$C$58,2) -> 2.402943564 | T111: =IF(R111>0,MIN($P111,R111),"0")*VLOOKUP(MONTH($B111),LT!$A$50:$C$58,2) -> 2.415229533 | U111: =$N111*(VLOOKUP(MONTH($B111),LT!$A$27:$W$35,12))/LT!$G$7*VLOOKUP(MONTH($B111),LT!$A$50:$C$58,2) -> 1.984876232 | V111: =(N111)*VLOOKUP(MONTH($B111),LT!$A$50:$C$58,3) -> 0 | W111: =MIN($O111,V111-X111-Y111)*VLOOKUP(MONTH($B111),LT!$A$50:$C$58,3) -> 0 | X111: =IF(V111>0,MIN($P111,V111),"0")*VLOOKUP(MONTH($B111),LT!$A$50:$C$58,3) -> 0 | Y111: =$N111*(VLOOKUP(MONTH($B111),LT!$A$27:$W$35,12))/LT!$G$7*VLOOKUP(MONTH($B111),LT!$A$50:$C$58,3) -> 0 | Z111: =U111*LT!$H$79 -> 0.0248109529 | AA111: =Y111*LT!$H$80 -> 0 | AB111: 0.0248109529 | AC111: 1.984876232 | AD111: 0 | AE111: 5.012885667 | AF111: 4.400105765 | AG111: -0.587968949 | AH111: =LT!$H$79*(S111-Z111) -> 0.02972665764 | AI111: =LT!$H$80*(W111-AA111) -> 0 | AJ111: 2.348405953 | AK111: 0 | AL111: 2.348405953 | AM111: 1 | AN111: 2.348405953 | AO111: 0 | AP111: =VLOOKUP(MONTH($B111),LT!$A$27:$W$35,21)+VLOOKUP(MONTH($B111),LT!$A$27:$W$35,22)/(1-LT!$H$80) -> 58.81901025 | AQ111: =IF(Q111=0,"-",(AC111+AD111)/(N111/LT!$G$7)) -> 185.2693324 | AS111: 2.348405953 | AT111: 2.113565358
A112: 6 | B112: ='Actual Accting'!B112 -> 2019-06-02 | C112: ='Actual Accting'!C112 -> 0 | D112: ='Actual Accting'!D112 -> 0 | E112: =HLOOKUP(MONTH($B112),LT!$B$93:$N$95,3) -> 242.116177 | F112: ='Actual Accting'!F112 -> 0 | G112: - | H112: - | I112: - | J112: - | K112: - | L112: - | M112: =(E112)*LT!$G$7/LT!$A$7 -> 8.239216098 | N112: =M112*(1-LT!$G$44) -> 6.803049328 | O112: =$N112*VLOOKUP(MONTH($B112),LT!$A$13:$S$21,14) -> 2.404877938 | P112: =$N112*VLOOKUP(MONTH($B112),LT!$A$13:$S$21,15) -> 2.415229533 | Q112: =$N112*VLOOKUP(MONTH($B112),LT!$A$13:$S$21,16) -> 2.597656134 | R112: =(N112)*VLOOKUP(MONTH($B112),LT!$A$50:$C$58,2) -> 6.803049328 | S112: =MIN($O112,R112-T112-U112)*VLOOKUP(MONTH($B112),LT!$A$50:$C$58,2) -> 2.402943564 | T112: =IF(R112>0,MIN($P112,R112),"0")*VLOOKUP(MONTH($B112),LT!$A$50:$C$58,2) -> 2.415229533 | U112: =$N112*(VLOOKUP(MONTH($B112),LT!$A$27:$W$35,12))/LT!$G$7*VLOOKUP(MONTH($B112),LT!$A$50:$C$58,2) -> 1.984876232 | V112: =(N112)*VLOOKUP(MONTH($B112),LT!$A$50:$C$58,3) -> 0 | W112: =MIN($O112,V112-X112-Y112)*VLOOKUP(MONTH($B112),LT!$A$50:$C$58,3) -> 0 | X112: =IF(V112>0,MIN($P112,V112),"0")*VLOOKUP(MONTH($B112),LT!$A$50:$C$58,3) -> 0 | Y112: =$N112*(VLOOKUP(MONTH($B112),LT!$A$27:$W$35,12))/LT!$G$7*VLOOKUP(MONTH($B112),LT!$A$50:$C$58,3) -> 0 | Z112: =U112*LT!$H$79 -> 0.0248109529 | AA112: =Y112*LT!$H$80 -> 0 | AB112: 0.0248109529 | AC112: 1.984876232 | AD112: 0 | AE112: 5.012885667 | AF112: 4.400105765 | AG112: -0.587968949 | AH112: =LT!$H$79*(S112-Z112) -> 0.02972665764 | AI112: =LT!$H$80*(W112-AA112) -> 0 | AJ112: 2.348405953 | AK112: 0 | AL112: 2.348405953 | AM112: 1 | AN112: 2.348405953 | AO112: 0 | AP112: =VLOOKUP(MONTH($B112),LT!$A$27:$W$35,21)+VLOOKUP(MONTH($B112),LT!$A$27:$W$35,22)/(1-LT!$H$80) -> 58.81901025 | AQ112: =IF(Q112=0,"-",(AC112+AD112)/(N112/LT!$G$7)) -> 185.2693324 | AS112: 2.348405953 | AT112: 2.113565358
A113: 6 | B113: ='Actual Accting'!B113 -> 2019-06-03 | C113: ='Actual Accting'!C113 -> 0 | D113: ='Actual Accting'!D113 -> 0 | E113: =HLOOKUP(MONTH($B113),LT!$B$93:$N$95,3) -> 242.116177 | F113: ='Actual Accting'!F113 -> 0 | G113: - | H113: - | I113: - | J113: - | K113: - | L113: - | M113: =(E113)*LT!$G$7/LT!$A$7 -> 8.239216098 | N113: =M113*(1-LT!$G$44) -> 6.803049328 | O113: =$N113*VLOOKUP(MONTH($B113),LT!$A$13:$S$21,14) -> 2.404877938 | P113: =$N113*VLOOKUP(MONTH($B113),LT!$A$13:$S$21,15) -> 2.415229533 | Q113: =$N113*VLOOKUP(MONTH($B113),LT!$A$13:$S$21,16) -> 2.597656134 | R113: =(N113)*VLOOKUP(MONTH($B113),LT!$A$50:$C$58,2) -> 6.803049328 | S113: =MIN($O113,R113-T113-U113)*VLOOKUP(MONTH($B113),LT!$A$50:$C$58,2) -> 2.402943564 | T113: =IF(R113>0,MIN($P113,R113),"0")*VLOOKUP(MONTH($B113),LT!$A$50:$C$58,2) -> 2.415229533 | U113: =$N113*(VLOOKUP(MONTH($B113),LT!$A$27:$W$35,12))/LT!$G$7*VLOOKUP(MONTH($B113),LT!$A$50:$C$58,2) -> 1.984876232 | V113: =(N113)*VLOOKUP(MONTH($B113),LT!$A$50:$C$58,3) -> 0 | W113: =MIN($O113,V113-X113-Y113)*VLOOKUP(MONTH($B113),LT!$A$50:$C$58,3) -> 0 | X113: =IF(V113>0,MIN($P113,V113),"0")*VLOOKUP(MONTH($B113),LT!$A$50:$C$58,3) -> 0 | Y113: =$N113*(VLOOKUP(MONTH($B113),LT!$A$27:$W$35,12))/LT!$G$7*VLOOKUP(MONTH($B113),LT!$A$50:$C$58,3) -> 0 | Z113: =U113*LT!$H$79 -> 0.0248109529 | AA113: =Y113*LT!$H$80 -> 0 | AB113: 0.0248109529 | AC113: 1.984876232 | AD113: 0 | AE113: 5.012885667 | AF113: 4.400105765 | AG113: -0.587968949 | AH113: =LT!$H$79*(S113-Z113) -> 0.02972665764 | AI113: =LT!$H$80*(W113-AA113) -> 0 | AJ113: 2.348405953 | AK113: 0 | AL113: 2.348405953 | AM113: 1 | AN113: 2.348405953 | AO113: 0 | AP113: =VLOOKUP(MONTH($B113),LT!$A$27:$W$35,21)+VLOOKUP(MONTH($B113),LT!$A$27:$W$35,22)/(1-LT!$H$80) -> 58.81901025 | AQ113: =IF(Q113=0,"-",(AC113+AD113)/(N113/LT!$G$7)) -> 185.2693324 | AS113: 2.348405953 | AT113: 2.113565358
A114: 6 | B114: ='Actual Accting'!B114 -> 2019-06-04 | C114: ='Actual Accting'!C114 -> 0 | D114: ='Actual Accting'!D114 -> 0 | E114: =HLOOKUP(MONTH($B114),LT!$B$93:$N$95,3) -> 242.116177 | F114: ='Actual Accting'!F114 -> 0 | G114: - | H114: - | I114: - | J114: - | K114: - | L114: - | M114: =(E114)*LT!$G$7/LT!$A$7 -> 8.239216098 | N114: =M114*(1-LT!$G$44) -> 6.803049328 | O114: =$N114*VLOOKUP(MONTH($B114),LT!$A$13:$S$21,14) -> 2.404877938 | P114: =$N114*VLOOKUP(MONTH($B114),LT!$A$13:$S$21,15) -> 2.415229533 | Q114: =$N114*VLOOKUP(MONTH($B114),LT!$A$13:$S$21,16) -> 2.597656134 | R114: =(N114)*VLOOKUP(MONTH($B114),LT!$A$50:$C$58,2) -> 6.803049328 | S114: =MIN($O114,R114-T114-U114)*VLOOKUP(MONTH($B114),LT!$A$50:$C$58,2) -> 2.402943564 | T114: =IF(R114>0,MIN($P114,R114),"0")*VLOOKUP(MONTH($B114),LT!$A$50:$C$58,2) -> 2.415229533 | U114: =$N114*(VLOOKUP(MONTH($B114),LT!$A$27:$W$35,12))/LT!$G$7*VLOOKUP(MONTH($B114),LT!$A$50:$C$58,2) -> 1.984876232 | V114: =(N114)*VLOOKUP(MONTH($B114),LT!$A$50:$C$58,3) -> 0 | W114: =MIN($O114,V114-X114-Y114)*VLOOKUP(MONTH($B114),LT!$A$50:$C$58,3) -> 0 | X114: =IF(V114>0,MIN($P114,V114),"0")*VLOOKUP(MONTH($B114),LT!$A$50:$C$58,3) -> 0 | Y114: =$N114*(VLOOKUP(MONTH($B114),LT!$A$27:$W$35,12))/LT!$G$7*VLOOKUP(MONTH($B114),LT!$A$50:$C$58,3) -> 0 | Z114: =U114*LT!$H$79 -> 0.0248109529 | AA114: =Y114*LT!$H$80 -> 0 | AB114: 0.0248109529 | AC114: 1.984876232 | AD114: 0 | AE114: 5.012885667 | AF114: 4.400105765 | AG114: -0.587968949 | AH114: =LT!$H$79*(S114-Z114) -> 0.02972665764 | AI114: =LT!$H$80*(W114-AA114) -> 0 | AJ114: 2.348405953 | AK114: 0 | AL114: 2.348405953 | AM114: 1 | AN114: 2.348405953 | AO114: 0 | AP114: =VLOOKUP(MONTH($B114),LT!$A$27:$W$35,21)+VLOOKUP(MONTH($B114),LT!$A$27:$W$35,22)/(1-LT!$H$80) -> 58.81901025 | AQ114: =IF(Q114=0,"-",(AC114+AD114)/(N114/LT!$G$7)) -> 185.2693324 | AS114: 2.348405953 | AT114: 2.113565358
A115: 6 | B115: ='Actual Accting'!B115 -> 2019-06-05 | C115: ='Actual Accting'!C115 -> 0 | D115: ='Actual Accting'!D115 -> 0 | E115: =HLOOKUP(MONTH($B115),LT!$B$93:$N$95,3) -> 242.116177 | F115: ='Actual Accting'!F115 -> 0 | G115: - | H115: - | I115: - | J115: - | K115: - | L115: - | M115: =(E115)*LT!$G$7/LT!$A$7 -> 8.239216098 | N115: =M115*(1-LT!$G$44) -> 6.803049328 | O115: =$N115*VLOOKUP(MONTH($B115),LT!$A$13:$S$21,14) -> 2.404877938 | P115: =$N115*VLOOKUP(MONTH($B115),LT!$A$13:$S$21,15) -> 2.415229533 | Q115: =$N115*VLOOKUP(MONTH($B115),LT!$A$13:$S$21,16) -> 2.597656134 | R115: =(N115)*VLOOKUP(MONTH($B115),LT!$A$50:$C$58,2) -> 6.803049328 | S115: =MIN($O115,R115-T115-U115)*VLOOKUP(MONTH($B115),LT!$A$50:$C$58,2) -> 2.402943564 | T115: =IF(R115>0,MIN($P115,R115),"0")*VLOOKUP(MONTH($B115),LT!$A$50:$C$58,2) -> 2.415229533 | U115: =$N115*(VLOOKUP(MONTH($B115),LT!$A$27:$W$35,12))/LT!$G$7*VLOOKUP(MONTH($B115),LT!$A$50:$C$58,2) -> 1.984876232 | V115: =(N115)*VLOOKUP(MONTH($B115),LT!$A$50:$C$58,3) -> 0 | W115: =MIN($O115,V115-X115-Y115)*VLOOKUP(MONTH($B115),LT!$A$50:$C$58,3) -> 0 | X115: =IF(V115>0,MIN($P115,V115),"0")*VLOOKUP(MONTH($B115),LT!$A$50:$C$58,3) -> 0 | Y115: =$N115*(VLOOKUP(MONTH($B115),LT!$A$27:$W$35,12))/LT!$G$7*VLOOKUP(MONTH($B115),LT!$A$50:$C$58,3) -> 0 | Z115: =U115*LT!$H$79 -> 0.0248109529 | AA115: =Y115*LT!$H$80 -> 0 | AB115: 0.0248109529 | AC115: 1.984876232 | AD115: 0 | AE115: 5.012885667 | AF115: 4.400105765 | AG115: -0.587968949 | AH115: =LT!$H$79*(S115-Z115) -> 0.02972665764 | AI115: =LT!$H$80*(W115-AA115) -> 0 | AJ115: 2.348405953 | AK115: 0 | AL115: 2.348405953 | AM115: 1 | AN115: 2.348405953 | AO115: 0 | AP115: =VLOOKUP(MONTH($B115),LT!$A$27:$W$35,21)+VLOOKUP(MONTH($B115),LT!$A$27:$W$35,22)/(1-LT!$H$80) -> 58.81901025 | AQ115: =IF(Q115=0,"-",(AC115+AD115)/(N115/LT!$G$7)) -> 185.2693324 | AS115: 2.348405953 | AT115: 2.113565358
A116: 6 | B116: ='Actual Accting'!B116 -> 2019-06-06 | C116: ='Actual Accting'!C116 -> 0 | D116: ='Actual Accting'!D116 -> 0 | E116: =HLOOKUP(MONTH($B116),LT!$B$93:$N$95,3) -> 242.116177 | F116: ='Actual Accting'!F116 -> 0 | G116: - | H116: - | I116: - | J116: - | K116: - | L116: - | M116: =(E116)*LT!$G$7/LT!$A$7 -> 8.239216098 | N116: =M116*(1-LT!$G$44) -> 6.803049328 | O116: =$N116*VLOOKUP(MONTH($B116),LT!$A$13:$S$21,14) -> 2.404877938 | P116: =$N116*VLOOKUP(MONTH($B116),LT!$A$13:$S$21,15) -> 2.415229533 | Q116: =$N116*VLOOKUP(MONTH($B116),LT!$A$13:$S$21,16) -> 2.597656134 | R116: =(N116)*VLOOKUP(MONTH($B116),LT!$A$50:$C$58,2) -> 6.803049328 | S116: =MIN($O116,R116-T116-U116)*VLOOKUP(MONTH($B116),LT!$A$50:$C$58,2) -> 2.402943564 | T116: =IF(R116>0,MIN($P116,R116),"0")*VLOOKUP(MONTH($B116),LT!$A$50:$C$58,2) -> 2.415229533 | U116: =$N116*(VLOOKUP(MONTH($B116),LT!$A$27:$W$35,12))/LT!$G$7*VLOOKUP(MONTH($B116),LT!$A$50:$C$58,2) -> 1.984876232 | V116: =(N116)*VLOOKUP(MONTH($B116),LT!$A$50:$C$58,3) -> 0 | W116: =MIN($O116,V116-X116-Y116)*VLOOKUP(MONTH($B116),LT!$A$50:$C$58,3) -> 0 | X116: =IF(V116>0,MIN($P116,V116),"0")*VLOOKUP(MONTH($B116),LT!$A$50:$C$58,3) -> 0 | Y116: =$N116*(VLOOKUP(MONTH($B116),LT!$A$27:$W$35,12))/LT!$G$7*VLOOKUP(MONTH($B116),LT!$A$50:$C$58,3) -> 0 | Z116: =U116*LT!$H$79 -> 0.0248109529 | AA116: =Y116*LT!$H$80 -> 0 | AB116: 0.0248109529 | AC116: 1.984876232 | AD116: 0 | AE116: 5.012885667 | AF116: 4.400105765 | AG116: -0.587968949 | AH116: =LT!$H$79*(S116-Z116) -> 0.02972665764 | AI116: =LT!$H$80*(W116-AA116) -> 0 | AJ116: 2.348405953 | AK116: 0 | AL116: 2.348405953 | AM116: 1 | AN116: 2.348405953 | AO116: 0 | AP116: =VLOOKUP(MONTH($B116),LT!$A$27:$W$35,21)+VLOOKUP(MONTH($B116),LT!$A$27:$W$35,22)/(1-LT!$H$80) -> 58.81901025 | AQ116: =IF(Q116=0,"-",(AC116+AD116)/(N116/LT!$G$7)) -> 185.2693324 | AS116: 2.348405953 | AT116: 2.113565358
A117: 6 | B117: ='Actual Accting'!B117 -> 2019-06-07 | C117: ='Actual Accting'!C117 -> 0 | D117: ='Actual Accting'!D117 -> 0 | E117: =HLOOKUP(MONTH($B117),LT!$B$93:$N$95,3) -> 242.116177 | F117: ='Actual Accting'!F117 -> 0 | G117: - | H117: - | I117: - | J117: - | K117: - | L117: - | M117: =(E117)*LT!$G$7/LT!$A$7 -> 8.239216098 | N117: =M117*(1-LT!$G$44) -> 6.803049328 | O117: =$N117*VLOOKUP(MONTH($B117),LT!$A$13:$S$21,14) -> 2.404877938 | P117: =$N117*VLOOKUP(MONTH($B117),LT!$A$13:$S$21,15) -> 2.415229533 | Q117: =$N117*VLOOKUP(MONTH($B117),LT!$A$13:$S$21,16) -> 2.597656134 | R117: =(N117)*VLOOKUP(MONTH($B117),LT!$A$50:$C$58,2) -> 6.803049328 | S117: =MIN($O117,R117-T117-U117)*VLOOKUP(MONTH($B117),LT!$A$50:$C$58,2) -> 2.402943564 | T117: =IF(R117>0,MIN($P117,R117),"0")*VLOOKUP(MONTH($B117),LT!$A$50:$C$58,2) -> 2.415229533 | U117: =$N117*(VLOOKUP(MONTH($B117),LT!$A$27:$W$35,12))/LT!$G$7*VLOOKUP(MONTH($B117),LT!$A$50:$C$58,2) -> 1.984876232 | V117: =(N117)*VLOOKUP(MONTH($B117),LT!$A$50:$C$58,3) -> 0 | W117: =MIN($O117,V117-X117-Y117)*VLOOKUP(MONTH($B117),LT!$A$50:$C$58,3) -> 0 | X117: =IF(V117>0,MIN($P117,V117),"0")*VLOOKUP(MONTH($B117),LT!$A$50:$C$58,3) -> 0 | Y117: =$N117*(VLOOKUP(MONTH($B117),LT!$A$27:$W$35,12))/LT!$G$7*VLOOKUP(MONTH($B117),LT!$A$50:$C$58,3) -> 0 | Z117: =U117*LT!$H$79 -> 0.0248109529 | AA117: =Y117*LT!$H$80 -> 0 | AB117: 0.0248109529 | AC117: 1.984876232 | AD117: 0 | AE117: 5.012885667 | AF117: 4.400105765 | AG117: -0.587968949 | AH117: =LT!$H$79*(S117-Z117) -> 0.02972665764 | AI117: =LT!$H$80*(W117-AA117) -> 0 | AJ117: 2.348405953 | AK117: 0 | AL117: 2.348405953 | AM117: 1 | AN117: 2.348405953 | AO117: 0 | AP117: =VLOOKUP(MONTH($B117),LT!$A$27:$W$35,21)+VLOOKUP(MONTH($B117),LT!$A$27:$W$35,22)/(1-LT!$H$80) -> 58.81901025 | AQ117: =IF(Q117=0,"-",(AC117+AD117)/(N117/LT!$G$7)) -> 185.2693324 | AS117: 2.348405953 | AT117: 2.113565358
A118: 6 | B118: ='Actual Accting'!B118 -> 2019-06-08 | C118: ='Actual Accting'!C118 -> 0 | D118: ='Actual Accting'!D118 -> 0 | E118: =HLOOKUP(MONTH($B118),LT!$B$93:$N$95,3) -> 242.116177 | F118: ='Actual Accting'!F118 -> 0 | G118: - | H118: - | I118: - | J118: - | K118: - | L118: - | M118: =(E118)*LT!$G$7/LT!$A$7 -> 8.239216098 | N118: =M118*(1-LT!$G$44) -> 6.803049328 | O118: =$N118*VLOOKUP(MONTH($B118),LT!$A$13:$S$21,14) -> 2.404877938 | P118: =$N118*VLOOKUP(MONTH($B118),LT!$A$13:$S$21,15) -> 2.415229533 | Q118: =$N118*VLOOKUP(MONTH($B118),LT!$A$13:$S$21,16) -> 2.597656134 | R118: =(N118)*VLOOKUP(MONTH($B118),LT!$A$50:$C$58,2) -> 6.803049328 | S118: =MIN($O118,R118-T118-U118)*VLOOKUP(MONTH($B118),LT!$A$50:$C$58,2) -> 2.402943564 | T118: =IF(R118>0,MIN($P118,R118),"0")*VLOOKUP(MONTH($B118),LT!$A$50:$C$58,2) -> 2.415229533 | U118: =$N118*(VLOOKUP(MONTH($B118),LT!$A$27:$W$35,12))/LT!$G$7*VLOOKUP(MONTH($B118),LT!$A$50:$C$58,2) -> 1.984876232 | V118: =(N118)*VLOOKUP(MONTH($B118),LT!$A$50:$C$58,3) -> 0 | W118: =MIN($O118,V118-X118-Y118)*VLOOKUP(MONTH($B118),LT!$A$50:$C$58,3) -> 0 | X118: =IF(V118>0,MIN($P118,V118),"0")*VLOOKUP(MONTH($B118),LT!$A$50:$C$58,3) -> 0 | Y118: =$N118*(VLOOKUP(MONTH($B118),LT!$A$27:$W$35,12))/LT!$G$7*VLOOKUP(MONTH($B118),LT!$A$50:$C$58,3) -> 0 | Z118: =U118*LT!$H$79 -> 0.0248109529 | AA118: =Y118*LT!$H$80 -> 0 | AB118: 0.0248109529 | AC118: 1.984876232 | AD118: 0 | AE118: 5.012885667 | AF118: 4.400105765 | AG118: -0.587968949 | AH118: =LT!$H$79*(S118-Z118) -> 0.02972665764 | AI118: =LT!$H$80*(W118-AA118) -> 0 | AJ118: 2.348405953 | AK118: 0 | AL118: 2.348405953 | AM118: 1 | AN118: 2.348405953 | AO118: 0 | AP118: =VLOOKUP(MONTH($B118),LT!$A$27:$W$35,21)+VLOOKUP(MONTH($B118),LT!$A$27:$W$35,22)/(1-LT!$H$80) -> 58.81901025 | AQ118: =IF(Q118=0,"-",(AC118+AD118)/(N118/LT!$G$7)) -> 185.2693324 | AS118: 2.348405953 | AT118: 2.113565358
A119: 6 | B119: ='Actual Accting'!B119 -> 2019-06-09 | C119: ='Actual Accting'!C119 -> 0 | D119: ='Actual Accting'!D119 -> 0 | E119: =HLOOKUP(MONTH($B119),LT!$B$93:$N$95,3) -> 242.116177 | F119: ='Actual Accting'!F119 -> 0 | G119: - | H119: - | I119: - | J119: - | K119: - | L119: - | M119: =(E119)*LT!$G$7/LT!$A$7 -> 8.239216098 | N119: =M119*(1-LT!$G$44) -> 6.803049328 | O119: =$N119*VLOOKUP(MONTH($B119),LT!$A$13:$S$21,14) -> 2.404877938 | P119: =$N119*VLOOKUP(MONTH($B119),LT!$A$13:$S$21,15) -> 2.415229533 | Q119: =$N119*VLOOKUP(MONTH($B119),LT!$A$13:$S$21,16) -> 2.597656134 | R119: =(N119)*VLOOKUP(MONTH($B119),LT!$A$50:$C$58,2) -> 6.803049328 | S119: =MIN($O119,R119-T119-U119)*VLOOKUP(MONTH($B119),LT!$A$50:$C$58,2) -> 2.402943564 | T119: =IF(R119>0,MIN($P119,R119),"0")*VLOOKUP(MONTH($B119),LT!$A$50:$C$58,2) -> 2.415229533 | U119: =$N119*(VLOOKUP(MONTH($B119),LT!$A$27:$W$35,12))/LT!$G$7*VLOOKUP(MONTH($B119),LT!$A$50:$C$58,2) -> 1.984876232 | V119: =(N119)*VLOOKUP(MONTH($B119),LT!$A$50:$C$58,3) -> 0 | W119: =MIN($O119,V119-X119-Y119)*VLOOKUP(MONTH($B119),LT!$A$50:$C$58,3) -> 0 | X119: =IF(V119>0,MIN($P119,V119),"0")*VLOOKUP(MONTH($B119),LT!$A$50:$C$58,3) -> 0 | Y119: =$N119*(VLOOKUP(MONTH($B119),LT!$A$27:$W$35,12))/LT!$G$7*VLOOKUP(MONTH($B119),LT!$A$50:$C$58,3) -> 0 | Z119: =U119*LT!$H$79 -> 0.0248109529 | AA119: =Y119*LT!$H$80 -> 0 | AB119: 0.0248109529 | AC119: 1.984876232 | AD119: 0 | AE119: 5.012885667 | AF119: 4.400105765 | AG119: -0.587968949 | AH119: =LT!$H$79*(S119-Z119) -> 0.02972665764 | AI119: =LT!$H$80*(W119-AA119) -> 0 | AJ119: 2.348405953 | AK119: 0 | AL119: 2.348405953 | AM119: 1 | AN119: 2.348405953 | AO119: 0 | AP119: =VLOOKUP(MONTH($B119),LT!$A$27:$W$35,21)+VLOOKUP(MONTH($B119),LT!$A$27:$W$35,22)/(1-LT!$H$80) -> 58.81901025 | AQ119: =IF(Q119=0,"-",(AC119+AD119)/(N119/LT!$G$7)) -> 185.2693324 | AS119: 2.348405953 | AT119: 2.113565358
A120: 6 | B120: ='Actual Accting'!B120 -> 2019-06-10 | C120: ='Actual Accting'!C120 -> 0 | D120: ='Actual Accting'!D120 -> 0 | E120: =HLOOKUP(MONTH($B120),LT!$B$93:$N$95,3) -> 242.116177 | F120: ='Actual Accting'!F120 -> 0 | G120: - | H120: - | I120: - | J120: - | K120: - | L120: - | M120: =(E120)*LT!$G$7/LT!$A$7 -> 8.239216098 | N120: =M120*(1-LT!$G$44) -> 6.803049328 | O120: =$N120*VLOOKUP(MONTH($B120),LT!$A$13:$S$21,14) -> 2.404877938 | P120: =$N120*VLOOKUP(MONTH($B120),LT!$A$13:$S$21,15) -> 2.415229533 | Q120: =$N120*VLOOKUP(MONTH($B120),LT!$A$13:$S$21,16) -> 2.597656134 | R120: =(N120)*VLOOKUP(MONTH($B120),LT!$A$50:$C$58,2) -> 6.803049328 | S120: =MIN($O120,R120-T120-U120)*VLOOKUP(MONTH($B120),LT!$A$50:$C$58,2) -> 2.402943564 | T120: =IF(R120>0,MIN($P120,R120),"0")*VLOOKUP(MONTH($B120),LT!$A$50:$C$58,2) -> 2.415229533 | U120: =$N120*(VLOOKUP(MONTH($B120),LT!$A$27:$W$35,12))/LT!$G$7*VLOOKUP(MONTH($B120),LT!$A$50:$C$58,2) -> 1.984876232 | V120: =(N120)*VLOOKUP(MONTH($B120),LT!$A$50:$C$58,3) -> 0 | W120: =MIN($O120,V120-X120-Y120)*VLOOKUP(MONTH($B120),LT!$A$50:$C$58,3) -> 0 | X120: =IF(V120>0,MIN($P120,V120),"0")*VLOOKUP(MONTH($B120),LT!$A$50:$C$58,3) -> 0 | Y120: =$N120*(VLOOKUP(MONTH($B120),LT!$A$27:$W$35,12))/LT!$G$7*VLOOKUP(MONTH($B120),LT!$A$50:$C$58,3) -> 0 | Z120: =U120*LT!$H$79 -> 0.0248109529 | AA120: =Y120*LT!$H$80 -> 0 | AB120: 0.0248109529 | AC120: 1.984876232 | AD120: 0 | AE120: 5.012885667 | AF120: 4.400105765 | AG120: -0.587968949 | AH120: =LT!$H$79*(S120-Z120) -> 0.02972665764 | AI120: =LT!$H$80*(W120-AA120) -> 0 | AJ120: 2.348405953 | AK120: 0 | AL120: 2.348405953 | AM120: 1 | AN120: 2.348405953 | AO120: 0 | AP120: =VLOOKUP(MONTH($B120),LT!$A$27:$W$35,21)+VLOOKUP(MONTH($B120),LT!$A$27:$W$35,22)/(1-LT!$H$80) -> 58.81901025 | AQ120: =IF(Q120=0,"-",(AC120+AD120)/(N120/LT!$G$7)) -> 185.2693324 | AS120: 2.348405953 | AT120: 2.113565358
A121: 6 | B121: ='Actual Accting'!B121 -> 2019-06-11 | C121: ='Actual Accting'!C121 -> 0 | D121: ='Actual Accting'!D121 -> 0 | E121: =HLOOKUP(MONTH($B121),LT!$B$93:$N$95,3) -> 242.116177 | F121: ='Actual Accting'!F121 -> 0 | G121: - | H121: - | I121: - | J121: - | K121: - | L121: - | M121: =(E121)*LT!$G$7/LT!$A$7 -> 8.239216098 | N121: =M121*(1-LT!$G$44) -> 6.803049328 | O121: =$N121*VLOOKUP(MONTH($B121),LT!$A$13:$S$21,14) -> 2.404877938 | P121: =$N121*VLOOKUP(MONTH($B121),LT!$A$13:$S$21,15) -> 2.415229533 | Q121: =$N121*VLOOKUP(MONTH($B121),LT!$A$13:$S$21,16) -> 2.597656134 | R121: =(N121)*VLOOKUP(MONTH($B121),LT!$A$50:$C$58,2) -> 6.803049328 | S121: =MIN($O121,R121-T121-U121)*VLOOKUP(MONTH($B121),LT!$A$50:$C$58,2) -> 2.402943564 | T121: =IF(R121>0,MIN($P121,R121),"0")*VLOOKUP(MONTH($B121),LT!$A$50:$C$58,2) -> 2.415229533 | U121: =$N121*(VLOOKUP(MONTH($B121),LT!$A$27:$W$35,12))/LT!$G$7*VLOOKUP(MONTH($B121),LT!$A$50:$C$58,2) -> 1.984876232 | V121: =(N121)*VLOOKUP(MONTH($B121),LT!$A$50:$C$58,3) -> 0 | W121: =MIN($O121,V121-X121-Y121)*VLOOKUP(MONTH($B121),LT!$A$50:$C$58,3) -> 0 | X121: =IF(V121>0,MIN($P121,V121),"0")*VLOOKUP(MONTH($B121),LT!$A$50:$C$58,3) -> 0 | Y121: =$N121*(VLOOKUP(MONTH($B121),LT!$A$27:$W$35,12))/LT!$G$7*VLOOKUP(MONTH($B121),LT!$A$50:$C$58,3) -> 0 | Z121: =U121*LT!$H$79 -> 0.0248109529 | AA121: =Y121*LT!$H$80 -> 0 | AB121: 0.0248109529 | AC121: 1.984876232 | AD121: 0 | AE121: 5.012885667 | AF121: 4.400105765 | AG121: -0.587968949 | AH121: =LT!$H$79*(S121-Z121) -> 0.02972665764 | AI121: =LT!$H$80*(W121-AA121) -> 0 | AJ121: 2.348405953 | AK121: 0 | AL121: 2.348405953 | AM121: 1 | AN121: 2.348405953 | AO121: 0 | AP121: =VLOOKUP(MONTH($B121),LT!$A$27:$W$35,21)+VLOOKUP(MONTH($B121),LT!$A$27:$W$35,22)/(1-LT!$H$80) -> 58.81901025 | AQ121: =IF(Q121=0,"-",(AC121+AD121)/(N121/LT!$G$7)) -> 185.2693324 | AS121: 2.348405953 | AT121: 2.113565358
A122: 6 | B122: ='Actual Accting'!B122 -> 2019-06-12 | C122: ='Actual Accting'!C122 -> 0 | D122: ='Actual Accting'!D122 -> 0 | E122: =HLOOKUP(MONTH($B122),LT!$B$93:$N$95,3) -> 242.116177 | F122: ='Actual Accting'!F122 -> 0 | G122: - | H122: - | I122: - | J122: - | K122: - | L122: - | M122: =(E122)*LT!$G$7/LT!$A$7 -> 8.239216098 | N122: =M122*(1-LT!$G$44) -> 6.803049328 | O122: =$N122*VLOOKUP(MONTH($B122),LT!$A$13:$S$21,14) -> 2.404877938 | P122: =$N122*VLOOKUP(MONTH($B122),LT!$A$13:$S$21,15) -> 2.415229533 | Q122: =$N122*VLOOKUP(MONTH($B122),LT!$A$13:$S$21,16) -> 2.597656134 | R122: =(N122)*VLOOKUP(MONTH($B122),LT!$A$50:$C$58,2) -> 6.803049328 | S122: =MIN($O122,R122-T122-U122)*VLOOKUP(MONTH($B122),LT!$A$50:$C$58,2) -> 2.402943564 | T122: =IF(R122>0,MIN($P122,R122),"0")*VLOOKUP(MONTH($B122),LT!$A$50:$C$58,2) -> 2.415229533 | U122: =$N122*(VLOOKUP(MONTH($B122),LT!$A$27:$W$35,12))/LT!$G$7*VLOOKUP(MONTH($B122),LT!$A$50:$C$58,2) -> 1.984876232 | V122: =(N122)*VLOOKUP(MONTH($B122),LT!$A$50:$C$58,3) -> 0 | W122: =MIN($O122,V122-X122-Y122)*VLOOKUP(MONTH($B122),LT!$A$50:$C$58,3) -> 0 | X122: =IF(V122>0,MIN($P122,V122),"0")*VLOOKUP(MONTH($B122),LT!$A$50:$C$58,3) -> 0 | Y122: =$N122*(VLOOKUP(MONTH($B122),LT!$A$27:$W$35,12))/LT!$G$7*VLOOKUP(MONTH($B122),LT!$A$50:$C$58,3) -> 0 | Z122: =U122*LT!$H$79 -> 0.0248109529 | AA122: =Y122*LT!$H$80 -> 0 | AB122: 0.0248109529 | AC122: 1.984876232 | AD122: 0 | AE122: 5.012885667 | AF122: 4.400105765 | AG122: -0.587968949 | AH122: =LT!$H$79*(S122-Z122) -> 0.02972665764 | AI122: =LT!$H$80*(W122-AA122) -> 0 | AJ122: 2.348405953 | AK122: 0 | AL122: 2.348405953 | AM122: 1 | AN122: 2.348405953 | AO122: 0 | AP122: =VLOOKUP(MONTH($B122),LT!$A$27:$W$35,21)+VLOOKUP(MONTH($B122),LT!$A$27:$W$35,22)/(1-LT!$H$80) -> 58.81901025 | AQ122: =IF(Q122=0,"-",(AC122+AD122)/(N122/LT!$G$7)) -> 185.2693324 | AS122: 2.348405953 | AT122: 2.113565358
A123: 6 | B123: ='Actual Accting'!B123 -> 2019-06-13 | C123: ='Actual Accting'!C123 -> 0 | D123: ='Actual Accting'!D123 -> 0 | E123: =HLOOKUP(MONTH($B123),LT!$B$93:$N$95,3) -> 242.116177 | F123: ='Actual Accting'!F123 -> 0 | G123: - | H123: - | I123: - | J123: - | K123: - | L123: - | M123: =(E123)*LT!$G$7/LT!$A$7 -> 8.239216098 | N123: =M123*(1-LT!$G$44) -> 6.803049328 | O123: =$N123*VLOOKUP(MONTH($B123),LT!$A$13:$S$21,14) -> 2.404877938 | P123: =$N123*VLOOKUP(MONTH($B123),LT!$A$13:$S$21,15) -> 2.415229533 | Q123: =$N123*VLOOKUP(MONTH($B123),LT!$A$13:$S$21,16) -> 2.597656134 | R123: =(N123)*VLOOKUP(MONTH($B123),LT!$A$50:$C$58,2) -> 6.803049328 | S123: =MIN($O123,R123-T123-U123)*VLOOKUP(MONTH($B123),LT!$A$50:$C$58,2) -> 2.402943564 | T123: =IF(R123>0,MIN($P123,R123),"0")*VLOOKUP(MONTH($B123),LT!$A$50:$C$58,2) -> 2.415229533 | U123: =$N123*(VLOOKUP(MONTH($B123),LT!$A$27:$W$35,12))/LT!$G$7*VLOOKUP(MONTH($B123),LT!$A$50:$C$58,2) -> 1.984876232 | V123: =(N123)*VLOOKUP(MONTH($B123),LT!$A$50:$C$58,3) -> 0 | W123: =MIN($O123,V123-X123-Y123)*VLOOKUP(MONTH($B123),LT!$A$50:$C$58,3) -> 0 | X123: =IF(V123>0,MIN($P123,V123),"0")*VLOOKUP(MONTH($B123),LT!$A$50:$C$58,3) -> 0 | Y123: =$N123*(VLOOKUP(MONTH($B123),LT!$A$27:$W$35,12))/LT!$G$7*VLOOKUP(MONTH($B123),LT!$A$50:$C$58,3) -> 0 | Z123: =U123*LT!$H$79 -> 0.0248109529 | AA123: =Y123*LT!$H$80 -> 0 | AB123: 0.0248109529 | AC123: 1.984876232 | AD123: 0 | AE123: 5.012885667 | AF123: 4.400105765 | AG123: -0.587968949 | AH123: =LT!$H$79*(S123-Z123) -> 0.02972665764 | AI123: =LT!$H$80*(W123-AA123) -> 0 | AJ123: 2.348405953 | AK123: 0 | AL123: 2.348405953 | AM123: 1 | AN123: 2.348405953 | AO123: 0 | AP123: =VLOOKUP(MONTH($B123),LT!$A$27:$W$35,21)+VLOOKUP(MONTH($B123),LT!$A$27:$W$35,22)/(1-LT!$H$80) -> 58.81901025 | AQ123: =IF(Q123=0,"-",(AC123+AD123)/(N123/LT!$G$7)) -> 185.2693324 | AS123: 2.348405953 | AT123: 2.113565358
A124: 6 | B124: ='Actual Accting'!B124 -> 2019-06-14 | C124: ='Actual Accting'!C124 -> 0 | D124: ='Actual Accting'!D124 -> 0 | E124: =HLOOKUP(MONTH($B124),LT!$B$93:$N$95,3) -> 242.116177 | F124: ='Actual Accting'!F124 -> 0 | G124: - | H124: - | I124: - | J124: - | K124: - | L124: - | M124: =(E124)*LT!$G$7/LT!$A$7 -> 8.239216098 | N124: =M124*(1-LT!$G$44) -> 6.803049328 | O124: =$N124*VLOOKUP(MONTH($B124),LT!$A$13:$S$21,14) -> 2.404877938 | P124: =$N124*VLOOKUP(MONTH($B124),LT!$A$13:$S$21,15) -> 2.415229533 | Q124: =$N124*VLOOKUP(MONTH($B124),LT!$A$13:$S$21,16) -> 2.597656134 | R124: =(N124)*VLOOKUP(MONTH($B124),LT!$A$50:$C$58,2) -> 6.803049328 | S124: =MIN($O124,R124-T124-U124)*VLOOKUP(MONTH($B124),LT!$A$50:$C$58,2) -> 2.402943564 | T124: =IF(R124>0,MIN($P124,R124),"0")*VLOOKUP(MONTH($B124),LT!$A$50:$C$58,2) -> 2.415229533 | U124: =$N124*(VLOOKUP(MONTH($B124),LT!$A$27:$W$35,12))/LT!$G$7*VLOOKUP(MONTH($B124),LT!$A$50:$C$58,2) -> 1.984876232 | V124: =(N124)*VLOOKUP(MONTH($B124),LT!$A$50:$C$58,3) -> 0 | W124: =MIN($O124,V124-X124-Y124)*VLOOKUP(MONTH($B124),LT!$A$50:$C$58,3) -> 0 | X124: =IF(V124>0,MIN($P124,V124),"0")*VLOOKUP(MONTH($B124),LT!$A$50:$C$58,3) -> 0 | Y124: =$N124*(VLOOKUP(MONTH($B124),LT!$A$27:$W$35,12))/LT!$G$7*VLOOKUP(MONTH($B124),LT!$A$50:$C$58,3) -> 0 | Z124: =U124*LT!$H$79 -> 0.0248109529 | AA124: =Y124*LT!$H$80 -> 0 | AB124: 0.0248109529 | AC124: 1.984876232 | AD124: 0 | AE124: 5.012885667 | AF124: 4.400105765 | AG124: -0.587968949 | AH124: =LT!$H$79*(S124-Z124) -> 0.02972665764 | AI124: =LT!$H$80*(W124-AA124) -> 0 | AJ124: 2.348405953 | AK124: 0 | AL124: 2.348405953 | AM124: 1 | AN124: 2.348405953 | AO124: 0 | AP124: =VLOOKUP(MONTH($B124),LT!$A$27:$W$35,21)+VLOOKUP(MONTH($B124),LT!$A$27:$W$35,22)/(1-LT!$H$80) -> 58.81901025 | AQ124: =IF(Q124=0,"-",(AC124+AD124)/(N124/LT!$G$7)) -> 185.2693324 | AS124: 2.348405953 | AT124: 2.113565358
A125: 6 | B125: ='Actual Accting'!B125 -> 2019-06-15 | C125: ='Actual Accting'!C125 -> 0 | D125: ='Actual Accting'!D125 -> 0 | E125: =HLOOKUP(MONTH($B125),LT!$B$93:$N$95,3) -> 242.116177 | F125: ='Actual Accting'!F125 -> 0 | G125: - | H125: - | I125: - | J125: - | K125: - | L125: - | M125: =(E125)*LT!$G$7/LT!$A$7 -> 8.239216098 | N125: =M125*(1-LT!$G$44) -> 6.803049328 | O125: =$N125*VLOOKUP(MONTH($B125),LT!$A$13:$S$21,14) -> 2.404877938 | P125: =$N125*VLOOKUP(MONTH($B125),LT!$A$13:$S$21,15) -> 2.415229533 | Q125: =$N125*VLOOKUP(MONTH($B125),LT!$A$13:$S$21,16) -> 2.597656134 | R125: =(N125)*VLOOKUP(MONTH($B125),LT!$A$50:$C$58,2) -> 6.803049328 | S125: =MIN($O125,R125-T125-U125)*VLOOKUP(MONTH($B125),LT!$A$50:$C$58,2) -> 2.402943564 | T125: =IF(R125>0,MIN($P125,R125),"0")*VLOOKUP(MONTH($B125),LT!$A$50:$C$58,2) -> 2.415229533 | U125: =$N125*(VLOOKUP(MONTH($B125),LT!$A$27:$W$35,12))/LT!$G$7*VLOOKUP(MONTH($B125),LT!$A$50:$C$58,2) -> 1.984876232 | V125: =(N125)*VLOOKUP(MONTH($B125),LT!$A$50:$C$58,3) -> 0 | W125: =MIN($O125,V125-X125-Y125)*VLOOKUP(MONTH($B125),LT!$A$50:$C$58,3) -> 0 | X125: =IF(V125>0,MIN($P125,V125),"0")*VLOOKUP(MONTH($B125),LT!$A$50:$C$58,3) -> 0 | Y125: =$N125*(VLOOKUP(MONTH($B125),LT!$A$27:$W$35,12))/LT!$G$7*VLOOKUP(MONTH($B125),LT!$A$50:$C$58,3) -> 0 | Z125: =U125*LT!$H$79 -> 0.0248109529 | AA125: =Y125*LT!$H$80 -> 0 | AB125: 0.0248109529 | AC125: 1.984876232 | AD125: 0 | AE125: 5.012885667 | AF125: 4.400105765 | AG125: -0.587968949 | AH125: =LT!$H$79*(S125-Z125) -> 0.02972665764 | AI125: =LT!$H$80*(W125-AA125) -> 0 | AJ125: 2.348405953 | AK125: 0 | AL125: 2.348405953 | AM125: 1 | AN125: 2.348405953 | AO125: 0 | AP125: =VLOOKUP(MONTH($B125),LT!$A$27:$W$35,21)+VLOOKUP(MONTH($B125),LT!$A$27:$W$35,22)/(1-LT!$H$80) -> 58.81901025 | AQ125: =IF(Q125=0,"-",(AC125+AD125)/(N125/LT!$G$7)) -> 185.2693324 | AS125: 2.348405953 | AT125: 2.113565358
A126: 6 | B126: ='Actual Accting'!B126 -> 2019-06-16 | C126: ='Actual Accting'!C126 -> 0 | D126: ='Actual Accting'!D126 -> 0 | E126: =HLOOKUP(MONTH($B126),LT!$B$93:$N$95,3) -> 242.116177 | F126: ='Actual Accting'!F126 -> 0 | G126: - | H126: - | I126: - | J126: - | K126: - | L126: - | M126: =(E126)*LT!$G$7/LT!$A$7 -> 8.239216098 | N126: =M126*(1-LT!$G$44) -> 6.803049328 | O126: =$N126*VLOOKUP(MONTH($B126),LT!$A$13:$S$21,14) -> 2.404877938 | P126: =$N126*VLOOKUP(MONTH($B126),LT!$A$13:$S$21,15) -> 2.415229533 | Q126: =$N126*VLOOKUP(MONTH($B126),LT!$A$13:$S$21,16) -> 2.597656134 | R126: =(N126)*VLOOKUP(MONTH($B126),LT!$A$50:$C$58,2) -> 6.803049328 | S126: =MIN($O126,R126-T126-U126)*VLOOKUP(MONTH($B126),LT!$A$50:$C$58,2) -> 2.402943564 | T126: =IF(R126>0,MIN($P126,R126),"0")*VLOOKUP(MONTH($B126),LT!$A$50:$C$58,2) -> 2.415229533 | U126: =$N126*(VLOOKUP(MONTH($B126),LT!$A$27:$W$35,12))/LT!$G$7*VLOOKUP(MONTH($B126),LT!$A$50:$C$58,2) -> 1.984876232 | V126: =(N126)*VLOOKUP(MONTH($B126),LT!$A$50:$C$58,3) -> 0 | W126: =MIN($O126,V126-X126-Y126)*VLOOKUP(MONTH($B126),LT!$A$50:$C$58,3) -> 0 | X126: =IF(V126>0,MIN($P126,V126),"0")*VLOOKUP(MONTH($B126),LT!$A$50:$C$58,3) -> 0 | Y126: =$N126*(VLOOKUP(MONTH($B126),LT!$A$27:$W$35,12))/LT!$G$7*VLOOKUP(MONTH($B126),LT!$A$50:$C$58,3) -> 0 | Z126: =U126*LT!$H$79 -> 0.0248109529 | AA126: =Y126*LT!$H$80 -> 0 | AB126: 0.0248109529 | AC126: 1.984876232 | AD126: 0 | AE126: 5.012885667 | AF126: 4.400105765 | AG126: -0.587968949 | AH126: =LT!$H$79*(S126-Z126) -> 0.02972665764 | AI126: =LT!$H$80*(W126-AA126) -> 0 | AJ126: 2.348405953 | AK126: 0 | AL126: 2.348405953 | AM126: 1 | AN126: 2.348405953 | AO126: 0 | AP126: =VLOOKUP(MONTH($B126),LT!$A$27:$W$35,21)+VLOOKUP(MONTH($B126),LT!$A$27:$W$35,22)/(1-LT!$H$80) -> 58.81901025 | AQ126: =IF(Q126=0,"-",(AC126+AD126)/(N126/LT!$G$7)) -> 185.2693324 | AS126: 2.348405953 | AT126: 2.113565358
A127: 6 | B127: ='Actual Accting'!B127 -> 2019-06-17 | C127: ='Actual Accting'!C127 -> 0 | D127: ='Actual Accting'!D127 -> 0 | E127: =HLOOKUP(MONTH($B127),LT!$B$93:$N$95,3) -> 242.116177 | F127: ='Actual Accting'!F127 -> 0 | G127: - | H127: - | I127: - | J127: - | K127: - | L127: - | M127: =(E127)*LT!$G$7/LT!$A$7 -> 8.239216098 | N127: =M127*(1-LT!$G$44) -> 6.803049328 | O127: =$N127*VLOOKUP(MONTH($B127),LT!$A$13:$S$21,14) -> 2.404877938 | P127: =$N127*VLOOKUP(MONTH($B127),LT!$A$13:$S$21,15) -> 2.415229533 | Q127: =$N127*VLOOKUP(MONTH($B127),LT!$A$13:$S$21,16) -> 2.597656134 | R127: =(N127)*VLOOKUP(MONTH($B127),LT!$A$50:$C$58,2) -> 6.803049328 | S127: =MIN($O127,R127-T127-U127)*VLOOKUP(MONTH($B127),LT!$A$50:$C$58,2) -> 2.402943564 | T127: =IF(R127>0,MIN($P127,R127),"0")*VLOOKUP(MONTH($B127),LT!$A$50:$C$58,2) -> 2.415229533 | U127: =$N127*(VLOOKUP(MONTH($B127),LT!$A$27:$W$35,12))/LT!$G$7*VLOOKUP(MONTH($B127),LT!$A$50:$C$58,2) -> 1.984876232 | V127: =(N127)*VLOOKUP(MONTH($B127),LT!$A$50:$C$58,3) -> 0 | W127: =MIN($O127,V127-X127-Y127)*VLOOKUP(MONTH($B127),LT!$A$50:$C$58,3) -> 0 | X127: =IF(V127>0,MIN($P127,V127),"0")*VLOOKUP(MONTH($B127),LT!$A$50:$C$58,3) -> 0 | Y127: =$N127*(VLOOKUP(MONTH($B127),LT!$A$27:$W$35,12))/LT!$G$7*VLOOKUP(MONTH($B127),LT!$A$50:$C$58,3) -> 0 | Z127: =U127*LT!$H$79 -> 0.0248109529 | AA127: =Y127*LT!$H$80 -> 0 | AB127: 0.0248109529 | AC127: 1.984876232 | AD127: 0 | AE127: 5.012885667 | AF127: 4.400105765 | AG127: -0.587968949 | AH127: =LT!$H$79*(S127-Z127) -> 0.02972665764 | AI127: =LT!$H$80*(W127-AA127) -> 0 | AJ127: 2.348405953 | AK127: 0 | AL127: 2.348405953 | AM127: 1 | AN127: 2.348405953 | AO127: 0 | AP127: =VLOOKUP(MONTH($B127),LT!$A$27:$W$35,21)+VLOOKUP(MONTH($B127),LT!$A$27:$W$35,22)/(1-LT!$H$80) -> 58.81901025 | AQ127: =IF(Q127=0,"-",(AC127+AD127)/(N127/LT!$G$7)) -> 185.2693324 | AS127: 2.348405953 | AT127: 2.113565358
A128: 6 | B128: ='Actual Accting'!B128 -> 2019-06-18 | C128: ='Actual Accting'!C128 -> 0 | D128: ='Actual Accting'!D128 -> 0 | E128: =HLOOKUP(MONTH($B128),LT!$B$93:$N$95,3) -> 242.116177 | F128: ='Actual Accting'!F128 -> 0 | G128: - | H128: - | I128: - | J128: - | K128: - | L128: - | M128: =(E128)*LT!$G$7/LT!$A$7 -> 8.239216098 | N128: =M128*(1-LT!$G$44) -> 6.803049328 | O128: =$N128*VLOOKUP(MONTH($B128),LT!$A$13:$S$21,14) -> 2.404877938 | P128: =$N128*VLOOKUP(MONTH($B128),LT!$A$13:$S$21,15) -> 2.415229533 | Q128: =$N128*VLOOKUP(MONTH($B128),LT!$A$13:$S$21,16) -> 2.597656134 | R128: =(N128)*VLOOKUP(MONTH($B128),LT!$A$50:$C$58,2) -> 6.803049328 | S128: =MIN($O128,R128-T128-U128)*VLOOKUP(MONTH($B128),LT!$A$50:$C$58,2) -> 2.402943564 | T128: =IF(R128>0,MIN($P128,R128),"0")*VLOOKUP(MONTH($B128),LT!$A$50:$C$58,2) -> 2.415229533 | U128: =$N128*(VLOOKUP(MONTH($B128),LT!$A$27:$W$35,12))/LT!$G$7*VLOOKUP(MONTH($B128),LT!$A$50:$C$58,2) -> 1.984876232 | V128: =(N128)*VLOOKUP(MONTH($B128),LT!$A$50:$C$58,3) -> 0 | W128: =MIN($O128,V128-X128-Y128)*VLOOKUP(MONTH($B128),LT!$A$50:$C$58,3) -> 0 | X128: =IF(V128>0,MIN($P128,V128),"0")*VLOOKUP(MONTH($B128),LT!$A$50:$C$58,3) -> 0 | Y128: =$N128*(VLOOKUP(MONTH($B128),LT!$A$27:$W$35,12))/LT!$G$7*VLOOKUP(MONTH($B128),LT!$A$50:$C$58,3) -> 0 | Z128: =U128*LT!$H$79 -> 0.0248109529 | AA128: =Y128*LT!$H$80 -> 0 | AB128: 0.0248109529 | AC128: 1.984876232 | AD128: 0 | AE128: 5.012885667 | AF128: 4.400105765 | AG128: -0.587968949 | AH128: =LT!$H$79*(S128-Z128) -> 0.02972665764 | AI128: =LT!$H$80*(W128-AA128) -> 0 | AJ128: 2.348405953 | AK128: 0 | AL128: 2.348405953 | AM128: 1 | AN128: 2.348405953 | AO128: 0 | AP128: =VLOOKUP(MONTH($B128),LT!$A$27:$W$35,21)+VLOOKUP(MONTH($B128),LT!$A$27:$W$35,22)/(1-LT!$H$80) -> 58.81901025 | AQ128: =IF(Q128=0,"-",(AC128+AD128)/(N128/LT!$G$7)) -> 185.2693324 | AS128: 2.348405953 | AT128: 2.113565358
A129: 6 | B129: ='Actual Accting'!B129 -> 2019-06-19 | C129: ='Actual Accting'!C129 -> 0 | D129: ='Actual Accting'!D129 -> 0 | E129: =HLOOKUP(MONTH($B129),LT!$B$93:$N$95,3) -> 242.116177 | F129: ='Actual Accting'!F129 -> 0 | G129: - | H129: - | I129: - | J129: - | K129: - | L129: - | M129: =(E129)*LT!$G$7/LT!$A$7 -> 8.239216098 | N129: =M129*(1-LT!$G$44) -> 6.803049328 | O129: =$N129*VLOOKUP(MONTH($B129),LT!$A$13:$S$21,14) -> 2.404877938 | P129: =$N129*VLOOKUP(MONTH($B129),LT!$A$13:$S$21,15) -> 2.415229533 | Q129: =$N129*VLOOKUP(MONTH($B129),LT!$A$13:$S$21,16) -> 2.597656134 | R129: =(N129)*VLOOKUP(MONTH($B129),LT!$A$50:$C$58,2) -> 6.803049328 | S129: =MIN($O129,R129-T129-U129)*VLOOKUP(MONTH($B129),LT!$A$50:$C$58,2) -> 2.402943564 | T129: =IF(R129>0,MIN($P129,R129),"0")*VLOOKUP(MONTH($B129),LT!$A$50:$C$58,2) -> 2.415229533 | U129: =$N129*(VLOOKUP(MONTH($B129),LT!$A$27:$W$35,12))/LT!$G$7*VLOOKUP(MONTH($B129),LT!$A$50:$C$58,2) -> 1.984876232 | V129: =(N129)*VLOOKUP(MONTH($B129),LT!$A$50:$C$58,3) -> 0 | W129: =MIN($O129,V129-X129-Y129)*VLOOKUP(MONTH($B129),LT!$A$50:$C$58,3) -> 0 | X129: =IF(V129>0,MIN($P129,V129),"0")*VLOOKUP(MONTH($B129),LT!$A$50:$C$58,3) -> 0 | Y129: =$N129*(VLOOKUP(MONTH($B129),LT!$A$27:$W$35,12))/LT!$G$7*VLOOKUP(MONTH($B129),LT!$A$50:$C$58,3) -> 0 | Z129: =U129*LT!$H$79 -> 0.0248109529 | AA129: =Y129*LT!$H$80 -> 0 | AB129: 0.0248109529 | AC129: 1.984876232 | AD129: 0 | AE129: 5.012885667 | AF129: 4.400105765 | AG129: -0.587968949 | AH129: =LT!$H$79*(S129-Z129) -> 0.02972665764 | AI129: =LT!$H$80*(W129-AA129) -> 0 | AJ129: 2.348405953 | AK129: 0 | AL129: 2.348405953 | AM129: 1 | AN129: 2.348405953 | AO129: 0 | AP129: =VLOOKUP(MONTH($B129),LT!$A$27:$W$35,21)+VLOOKUP(MONTH($B129),LT!$A$27:$W$35,22)/(1-LT!$H$80) -> 58.81901025 | AQ129: =IF(Q129=0,"-",(AC129+AD129)/(N129/LT!$G$7)) -> 185.2693324 | AS129: 2.348405953 | AT129: 2.113565358
A130: 6 | B130: ='Actual Accting'!B130 -> 2019-06-20 | C130: ='Actual Accting'!C130 -> 0 | D130: ='Actual Accting'!D130 -> 0 | E130: =HLOOKUP(MONTH($B130),LT!$B$93:$N$95,3) -> 242.116177 | F130: ='Actual Accting'!F130 -> 0 | G130: - | H130: - | I130: - | J130: - | K130: - | L130: - | M130: =(E130)*LT!$G$7/LT!$A$7 -> 8.239216098 | N130: =M130*(1-LT!$G$44) -> 6.803049328 | O130: =$N130*VLOOKUP(MONTH($B130),LT!$A$13:$S$21,14) -> 2.404877938 | P130: =$N130*VLOOKUP(MONTH($B130),LT!$A$13:$S$21,15) -> 2.415229533 | Q130: =$N130*VLOOKUP(MONTH($B130),LT!$A$13:$S$21,16) -> 2.597656134 | R130: =(N130)*VLOOKUP(MONTH($B130),LT!$A$50:$C$58,2) -> 6.803049328 | S130: =MIN($O130,R130-T130-U130)*VLOOKUP(MONTH($B130),LT!$A$50:$C$58,2) -> 2.402943564 | T130: =IF(R130>0,MIN($P130,R130),"0")*VLOOKUP(MONTH($B130),LT!$A$50:$C$58,2) -> 2.415229533 | U130: =$N130*(VLOOKUP(MONTH($B130),LT!$A$27:$W$35,12))/LT!$G$7*VLOOKUP(MONTH($B130),LT!$A$50:$C$58,2) -> 1.984876232 | V130: =(N130)*VLOOKUP(MONTH($B130),LT!$A$50:$C$58,3) -> 0 | W130: =MIN($O130,V130-X130-Y130)*VLOOKUP(MONTH($B130),LT!$A$50:$C$58,3) -> 0 | X130: =IF(V130>0,MIN($P130,V130),"0")*VLOOKUP(MONTH($B130),LT!$A$50:$C$58,3) -> 0 | Y130: =$N130*(VLOOKUP(MONTH($B130),LT!$A$27:$W$35,12))/LT!$G$7*VLOOKUP(MONTH($B130),LT!$A$50:$C$58,3) -> 0 | Z130: =U130*LT!$H$79 -> 0.0248109529 | AA130: =Y130*LT!$H$80 -> 0 | AB130: 0.0248109529 | AC130: 1.984876232 | AD130: 0 | AE130: 5.012885667 | AF130: 4.400105765 | AG130: -0.587968949 | AH130: =LT!$H$79*(S130-Z130) -> 0.02972665764 | AI130: =LT!$H$80*(W130-AA130) -> 0 | AJ130: 2.348405953 | AK130: 0 | AL130: 2.348405953 | AM130: 1 | AN130: 2.348405953 | AO130: 0 | AP130: =VLOOKUP(MONTH($B130),LT!$A$27:$W$35,21)+VLOOKUP(MONTH($B130),LT!$A$27:$W$35,22)/(1-LT!$H$80) -> 58.81901025 | AQ130: =IF(Q130=0,"-",(AC130+AD130)/(N130/LT!$G$7)) -> 185.2693324 | AS130: 2.348405953 | AT130: 2.113565358
A131: 6 | B131: ='Actual Accting'!B131 -> 2019-06-21 | C131: ='Actual Accting'!C131 -> 0 | D131: ='Actual Accting'!D131 -> 0 | E131: =HLOOKUP(MONTH($B131),LT!$B$93:$N$95,3) -> 242.116177 | F131: ='Actual Accting'!F131 -> 0 | G131: - | H131: - | I131: - | J131: - | K131: - | L131: - | M131: =(E131)*LT!$G$7/LT!$A$7 -> 8.239216098 | N131: =M131*(1-LT!$G$44) -> 6.803049328 | O131: =$N131*VLOOKUP(MONTH($B131),LT!$A$13:$S$21,14) -> 2.404877938 | P131: =$N131*VLOOKUP(MONTH($B131),LT!$A$13:$S$21,15) -> 2.415229533 | Q131: =$N131*VLOOKUP(MONTH($B131),LT!$A$13:$S$21,16) -> 2.597656134 | R131: =(N131)*VLOOKUP(MONTH($B131),LT!$A$50:$C$58,2) -> 6.803049328 | S131: =MIN($O131,R131-T131-U131)*VLOOKUP(MONTH($B131),LT!$A$50:$C$58,2) -> 2.402943564 | T131: =IF(R131>0,MIN($P131,R131),"0")*VLOOKUP(MONTH($B131),LT!$A$50:$C$58,2) -> 2.415229533 | U131: =$N131*(VLOOKUP(MONTH($B131),LT!$A$27:$W$35,12))/LT!$G$7*VLOOKUP(MONTH($B131),LT!$A$50:$C$58,2) -> 1.984876232 | V131: =(N131)*VLOOKUP(MONTH($B131),LT!$A$50:$C$58,3) -> 0 | W131: =MIN($O131,V131-X131-Y131)*VLOOKUP(MONTH($B131),LT!$A$50:$C$58,3) -> 0 | X131: =IF(V131>0,MIN($P131,V131),"0")*VLOOKUP(MONTH($B131),LT!$A$50:$C$58,3) -> 0 | Y131: =$N131*(VLOOKUP(MONTH($B131),LT!$A$27:$W$35,12))/LT!$G$7*VLOOKUP(MONTH($B131),LT!$A$50:$C$58,3) -> 0 | Z131: =U131*LT!$H$79 -> 0.0248109529 | AA131: =Y131*LT!$H$80 -> 0 | AB131: 0.0248109529 | AC131: 1.984876232 | AD131: 0 | AE131: 5.012885667 | AF131: 4.400105765 | AG131: -0.587968949 | AH131: =LT!$H$79*(S131-Z131) -> 0.02972665764 | AI131: =LT!$H$80*(W131-AA131) -> 0 | AJ131: 2.348405953 | AK131: 0 | AL131: 2.348405953 | AM131: 1 | AN131: 2.348405953 | AO131: 0 | AP131: =VLOOKUP(MONTH($B131),LT!$A$27:$W$35,21)+VLOOKUP(MONTH($B131),LT!$A$27:$W$35,22)/(1-LT!$H$80) -> 58.81901025 | AQ131: =IF(Q131=0,"-",(AC131+AD131)/(N131/LT!$G$7)) -> 185.2693324 | AS131: 2.348405953 | AT131: 2.113565358
A132: 6 | B132: ='Actual Accting'!B132 -> 2019-06-22 | C132: ='Actual Accting'!C132 -> 0 | D132: ='Actual Accting'!D132 -> 0 | E132: =HLOOKUP(MONTH($B132),LT!$B$93:$N$95,3) -> 242.116177 | F132: ='Actual Accting'!F132 -> 0 | G132: - | H132: - | I132: - | J132: - | K132: - | L132: - | M132: =(E132)*LT!$G$7/LT!$A$7 -> 8.239216098 | N132: =M132*(1-LT!$G$44) -> 6.803049328 | O132: =$N132*VLOOKUP(MONTH($B132),LT!$A$13:$S$21,14) -> 2.404877938 | P132: =$N132*VLOOKUP(MONTH($B132),LT!$A$13:$S$21,15) -> 2.415229533 | Q132: =$N132*VLOOKUP(MONTH($B132),LT!$A$13:$S$21,16) -> 2.597656134 | R132: =(N132)*VLOOKUP(MONTH($B132),LT!$A$50:$C$58,2) -> 6.803049328 | S132: =MIN($O132,R132-T132-U132)*VLOOKUP(MONTH($B132),LT!$A$50:$C$58,2) -> 2.402943564 | T132: =IF(R132>0,MIN($P132,R132),"0")*VLOOKUP(MONTH($B132),LT!$A$50:$C$58,2) -> 2.415229533 | U132: =$N132*(VLOOKUP(MONTH($B132),LT!$A$27:$W$35,12))/LT!$G$7*VLOOKUP(MONTH($B132),LT!$A$50:$C$58,2) -> 1.984876232 | V132: =(N132)*VLOOKUP(MONTH($B132),LT!$A$50:$C$58,3) -> 0 | W132: =MIN($O132,V132-X132-Y132)*VLOOKUP(MONTH($B132),LT!$A$50:$C$58,3) -> 0 | X132: =IF(V132>0,MIN($P132,V132),"0")*VLOOKUP(MONTH($B132),LT!$A$50:$C$58,3) -> 0 | Y132: =$N132*(VLOOKUP(MONTH($B132),LT!$A$27:$W$35,12))/LT!$G$7*VLOOKUP(MONTH($B132),LT!$A$50:$C$58,3) -> 0 | Z132: =U132*LT!$H$79 -> 0.0248109529 | AA132: =Y132*LT!$H$80 -> 0 | AB132: 0.0248109529 | AC132: 1.984876232 | AD132: 0 | AE132: 5.012885667 | AF132: 4.400105765 | AG132: -0.587968949 | AH132: =LT!$H$79*(S132-Z132) -> 0.02972665764 | AI132: =LT!$H$80*(W132-AA132) -> 0 | AJ132: 2.348405953 | AK132: 0 | AL132: 2.348405953 | AM132: 1 | AN132: 2.348405953 | AO132: 0 | AP132: =VLOOKUP(MONTH($B132),LT!$A$27:$W$35,21)+VLOOKUP(MONTH($B132),LT!$A$27:$W$35,22)/(1-LT!$H$80) -> 58.81901025 | AQ132: =IF(Q132=0,"-",(AC132+AD132)/(N132/LT!$G$7)) -> 185.2693324 | AS132: 2.348405953 | AT132: 2.113565358
A133: 6 | B133: ='Actual Accting'!B133 -> 2019-06-23 | C133: ='Actual Accting'!C133 -> 0 | D133: ='Actual Accting'!D133 -> 0 | E133: =HLOOKUP(MONTH($B133),LT!$B$93:$N$95,3) -> 242.116177 | F133: ='Actual Accting'!F133 -> 0 | G133: - | H133: - | I133: - | J133: - | K133: - | L133: - | M133: =(E133)*LT!$G$7/LT!$A$7 -> 8.239216098 | N133: =M133*(1-LT!$G$44) -> 6.803049328 | O133: =$N133*VLOOKUP(MONTH($B133),LT!$A$13:$S$21,14) -> 2.404877938 | P133: =$N133*VLOOKUP(MONTH($B133),LT!$A$13:$S$21,15) -> 2.415229533 | Q133: =$N133*VLOOKUP(MONTH($B133),LT!$A$13:$S$21,16) -> 2.597656134 | R133: =(N133)*VLOOKUP(MONTH($B133),LT!$A$50:$C$58,2) -> 6.803049328 | S133: =MIN($O133,R133-T133-U133)*VLOOKUP(MONTH($B133),LT!$A$50:$C$58,2) -> 2.402943564 | T133: =IF(R133>0,MIN($P133,R133),"0")*VLOOKUP(MONTH($B133),LT!$A$50:$C$58,2) -> 2.415229533 | U133: =$N133*(VLOOKUP(MONTH($B133),LT!$A$27:$W$35,12))/LT!$G$7*VLOOKUP(MONTH($B133),LT!$A$50:$C$58,2) -> 1.984876232 | V133: =(N133)*VLOOKUP(MONTH($B133),LT!$A$50:$C$58,3) -> 0 | W133: =MIN($O133,V133-X133-Y133)*VLOOKUP(MONTH($B133),LT!$A$50:$C$58,3) -> 0 | X133: =IF(V133>0,MIN($P133,V133),"0")*VLOOKUP(MONTH($B133),LT!$A$50:$C$58,3) -> 0 | Y133: =$N133*(VLOOKUP(MONTH($B133),LT!$A$27:$W$35,12))/LT!$G$7*VLOOKUP(MONTH($B133),LT!$A$50:$C$58,3) -> 0 | Z133: =U133*LT!$H$79 -> 0.0248109529 | AA133: =Y133*LT!$H$80 -> 0 | AB133: 0.0248109529 | AC133: 1.984876232 | AD133: 0 | AE133: 5.012885667 | AF133: 4.400105765 | AG133: -0.587968949 | AH133: =LT!$H$79*(S133-Z133) -> 0.02972665764 | AI133: =LT!$H$80*(W133-AA133) -> 0 | AJ133: 2.348405953 | AK133: 0 | AL133: 2.348405953 | AM133: 1 | AN133: 2.348405953 | AO133: 0 | AP133: =VLOOKUP(MONTH($B133),LT!$A$27:$W$35,21)+VLOOKUP(MONTH($B133),LT!$A$27:$W$35,22)/(1-LT!$H$80) -> 58.81901025 | AQ133: =IF(Q133=0,"-",(AC133+AD133)/(N133/LT!$G$7)) -> 185.2693324 | AS133: 2.348405953 | AT133: 2.113565358
A134: 6 | B134: ='Actual Accting'!B134 -> 2019-06-24 | C134: ='Actual Accting'!C134 -> 0 | D134: ='Actual Accting'!D134 -> 0 | E134: =HLOOKUP(MONTH($B134),LT!$B$93:$N$95,3) -> 242.116177 | F134: ='Actual Accting'!F134 -> 0 | G134: - | H134: - | I134: - | J134: - | K134: - | L134: - | M134: =(E134)*LT!$G$7/LT!$A$7 -> 8.239216098 | N134: =M134*(1-LT!$G$44) -> 6.803049328 | O134: =$N134*VLOOKUP(MONTH($B134),LT!$A$13:$S$21,14) -> 2.404877938 | P134: =$N134*VLOOKUP(MONTH($B134),LT!$A$13:$S$21,15) -> 2.415229533 | Q134: =$N134*VLOOKUP(MONTH($B134),LT!$A$13:$S$21,16) -> 2.597656134 | R134: =(N134)*VLOOKUP(MONTH($B134),LT!$A$50:$C$58,2) -> 6.803049328 | S134: =MIN($O134,R134-T134-U134)*VLOOKUP(MONTH($B134),LT!$A$50:$C$58,2) -> 2.402943564 | T134: =IF(R134>0,MIN($P134,R134),"0")*VLOOKUP(MONTH($B134),LT!$A$50:$C$58,2) -> 2.415229533 | U134: =$N134*(VLOOKUP(MONTH($B134),LT!$A$27:$W$35,12))/LT!$G$7*VLOOKUP(MONTH($B134),LT!$A$50:$C$58,2) -> 1.984876232 | V134: =(N134)*VLOOKUP(MONTH($B134),LT!$A$50:$C$58,3) -> 0 | W134: =MIN($O134,V134-X134-Y134)*VLOOKUP(MONTH($B134),LT!$A$50:$C$58,3) -> 0 | X134: =IF(V134>0,MIN($P134,V134),"0")*VLOOKUP(MONTH($B134),LT!$A$50:$C$58,3) -> 0 | Y134: =$N134*(VLOOKUP(MONTH($B134),LT!$A$27:$W$35,12))/LT!$G$7*VLOOKUP(MONTH($B134),LT!$A$50:$C$58,3) -> 0 | Z134: =U134*LT!$H$79 -> 0.0248109529 | AA134: =Y134*LT!$H$80 -> 0 | AB134: 0.0248109529 | AC134: 1.984876232 | AD134: 0 | AE134: 5.012885667 | AF134: 4.400105765 | AG134: -0.587968949 | AH134: =LT!$H$79*(S134-Z134) -> 0.02972665764 | AI134: =LT!$H$80*(W134-AA134) -> 0 | AJ134: 2.348405953 | AK134: 0 | AL134: 2.348405953 | AM134: 1 | AN134: 2.348405953 | AO134: 0 | AP134: =VLOOKUP(MONTH($B134),LT!$A$27:$W$35,21)+VLOOKUP(MONTH($B134),LT!$A$27:$W$35,22)/(1-LT!$H$80) -> 58.81901025 | AQ134: =IF(Q134=0,"-",(AC134+AD134)/(N134/LT!$G$7)) -> 185.2693324 | AS134: 2.348405953 | AT134: 2.113565358
A135: 6 | B135: ='Actual Accting'!B135 -> 2019-06-25 | C135: ='Actual Accting'!C135 -> 0 | D135: ='Actual Accting'!D135 -> 0 | E135: =HLOOKUP(MONTH($B135),LT!$B$93:$N$95,3) -> 242.116177 | F135: ='Actual Accting'!F135 -> 0 | G135: - | H135: - | I135: - | J135: - | K135: - | L135: - | M135: =(E135)*LT!$G$7/LT!$A$7 -> 8.239216098 | N135: =M135*(1-LT!$G$44) -> 6.803049328 | O135: =$N135*VLOOKUP(MONTH($B135),LT!$A$13:$S$21,14) -> 2.404877938 | P135: =$N135*VLOOKUP(MONTH($B135),LT!$A$13:$S$21,15) -> 2.415229533 | Q135: =$N135*VLOOKUP(MONTH($B135),LT!$A$13:$S$21,16) -> 2.597656134 | R135: =(N135)*VLOOKUP(MONTH($B135),LT!$A$50:$C$58,2) -> 6.803049328 | S135: =MIN($O135,R135-T135-U135)*VLOOKUP(MONTH($B135),LT!$A$50:$C$58,2) -> 2.402943564 | T135: =IF(R135>0,MIN($P135,R135),"0")*VLOOKUP(MONTH($B135),LT!$A$50:$C$58,2) -> 2.415229533 | U135: =$N135*(VLOOKUP(MONTH($B135),LT!$A$27:$W$35,12))/LT!$G$7*VLOOKUP(MONTH($B135),LT!$A$50:$C$58,2) -> 1.984876232 | V135: =(N135)*VLOOKUP(MONTH($B135),LT!$A$50:$C$58,3) -> 0 | W135: =MIN($O135,V135-X135-Y135)*VLOOKUP(MONTH($B135),LT!$A$50:$C$58,3) -> 0 | X135: =IF(V135>0,MIN($P135,V135),"0")*VLOOKUP(MONTH($B135),LT!$A$50:$C$58,3) -> 0 | Y135: =$N135*(VLOOKUP(MONTH($B135),LT!$A$27:$W$35,12))/LT!$G$7*VLOOKUP(MONTH($B135),LT!$A$50:$C$58,3) -> 0 | Z135: =U135*LT!$H$79 -> 0.0248109529 | AA135: =Y135*LT!$H$80 -> 0 | AB135: 0.0248109529 | AC135: 1.984876232 | AD135: 0 | AE135: 5.012885667 | AF135: 4.400105765 | AG135: -0.587968949 | AH135: =LT!$H$79*(S135-Z135) -> 0.02972665764 | AI135: =LT!$H$80*(W135-AA135) -> 0 | AJ135: 2.348405953 | AK135: 0 | AL135: 2.348405953 | AM135: 1 | AN135: 2.348405953 | AO135: 0 | AP135: =VLOOKUP(MONTH($B135),LT!$A$27:$W$35,21)+VLOOKUP(MONTH($B135),LT!$A$27:$W$35,22)/(1-LT!$H$80) -> 58.81901025 | AQ135: =IF(Q135=0,"-",(AC135+AD135)/(N135/LT!$G$7)) -> 185.2693324 | AS135: 2.348405953 | AT135: 2.113565358
A136: 6 | B136: ='Actual Accting'!B136 -> 2019-06-26 | C136: ='Actual Accting'!C136 -> 0 | D136: ='Actual Accting'!D136 -> 0 | E136: =HLOOKUP(MONTH($B136),LT!$B$93:$N$95,3) -> 242.116177 | F136: ='Actual Accting'!F136 -> 0 | G136: - | H136: - | I136: - | J136: - | K136: - | L136: - | M136: =(E136)*LT!$G$7/LT!$A$7 -> 8.239216098 | N136: =M136*(1-LT!$G$44) -> 6.803049328 | O136: =$N136*VLOOKUP(MONTH($B136),LT!$A$13:$S$21,14) -> 2.404877938 | P136: =$N136*VLOOKUP(MONTH($B136),LT!$A$13:$S$21,15) -> 2.415229533 | Q136: =$N136*VLOOKUP(MONTH($B136),LT!$A$13:$S$21,16) -> 2.597656134 | R136: =(N136)*VLOOKUP(MONTH($B136),LT!$A$50:$C$58,2) -> 6.803049328 | S136: =MIN($O136,R136-T136-U136)*VLOOKUP(MONTH($B136),LT!$A$50:$C$58,2) -> 2.402943564 | T136: =IF(R136>0,MIN($P136,R136),"0")*VLOOKUP(MONTH($B136),LT!$A$50:$C$58,2) -> 2.415229533 | U136: =$N136*(VLOOKUP(MONTH($B136),LT!$A$27:$W$35,12))/LT!$G$7*VLOOKUP(MONTH($B136),LT!$A$50:$C$58,2) -> 1.984876232 | V136: =(N136)*VLOOKUP(MONTH($B136),LT!$A$50:$C$58,3) -> 0 | W136: =MIN($O136,V136-X136-Y136)*VLOOKUP(MONTH($B136),LT!$A$50:$C$58,3) -> 0 | X136: =IF(V136>0,MIN($P136,V136),"0")*VLOOKUP(MONTH($B136),LT!$A$50:$C$58,3) -> 0 | Y136: =$N136*(VLOOKUP(MONTH($B136),LT!$A$27:$W$35,12))/LT!$G$7*VLOOKUP(MONTH($B136),LT!$A$50:$C$58,3) -> 0 | Z136: =U136*LT!$H$79 -> 0.0248109529 | AA136: =Y136*LT!$H$80 -> 0 | AB136: 0.0248109529 | AC136: 1.984876232 | AD136: 0 | AE136: 5.012885667 | AF136: 4.400105765 | AG136: -0.587968949 | AH136: =LT!$H$79*(S136-Z136) -> 0.02972665764 | AI136: =LT!$H$80*(W136-AA136) -> 0 | AJ136: 2.348405953 | AK136: 0 | AL136: 2.348405953 | AM136: 1 | AN136: 2.348405953 | AO136: 0 | AP136: =VLOOKUP(MONTH($B136),LT!$A$27:$W$35,21)+VLOOKUP(MONTH($B136),LT!$A$27:$W$35,22)/(1-LT!$H$80) -> 58.81901025 | AQ136: =IF(Q136=0,"-",(AC136+AD136)/(N136/LT!$G$7)) -> 185.2693324 | AS136: 2.348405953 | AT136: 2.113565358
A137: 6 | B137: ='Actual Accting'!B137 -> 2019-06-27 | C137: ='Actual Accting'!C137 -> 0 | D137: ='Actual Accting'!D137 -> 0 | E137: =HLOOKUP(MONTH($B137),LT!$B$93:$N$95,3) -> 242.116177 | F137: ='Actual Accting'!F137 -> 0 | G137: - | H137: - | I137: - | J137: - | K137: - | L137: - | M137: =(E137)*LT!$G$7/LT!$A$7 -> 8.239216098 | N137: =M137*(1-LT!$G$44) -> 6.803049328 | O137: =$N137*VLOOKUP(MONTH($B137),LT!$A$13:$S$21,14) -> 2.404877938 | P137: =$N137*VLOOKUP(MONTH($B137),LT!$A$13:$S$21,15) -> 2.415229533 | Q137: =$N137*VLOOKUP(MONTH($B137),LT!$A$13:$S$21,16) -> 2.597656134 | R137: =(N137)*VLOOKUP(MONTH($B137),LT!$A$50:$C$58,2) -> 6.803049328 | S137: =MIN($O137,R137-T137-U137)*VLOOKUP(MONTH($B137),LT!$A$50:$C$58,2) -> 2.402943564 | T137: =IF(R137>0,MIN($P137,R137),"0")*VLOOKUP(MONTH($B137),LT!$A$50:$C$58,2) -> 2.415229533 | U137: =$N137*(VLOOKUP(MONTH($B137),LT!$A$27:$W$35,12))/LT!$G$7*VLOOKUP(MONTH($B137),LT!$A$50:$C$58,2) -> 1.984876232 | V137: =(N137)*VLOOKUP(MONTH($B137),LT!$A$50:$C$58,3) -> 0 | W137: =MIN($O137,V137-X137-Y137)*VLOOKUP(MONTH($B137),LT!$A$50:$C$58,3) -> 0 | X137: =IF(V137>0,MIN($P137,V137),"0")*VLOOKUP(MONTH($B137),LT!$A$50:$C$58,3) -> 0 | Y137: =$N137*(VLOOKUP(MONTH($B137),LT!$A$27:$W$35,12))/LT!$G$7*VLOOKUP(MONTH($B137),LT!$A$50:$C$58,3) -> 0 | Z137: =U137*LT!$H$79 -> 0.0248109529 | AA137: =Y137*LT!$H$80 -> 0 | AB137: 0.0248109529 | AC137: 1.984876232 | AD137: 0 | AE137: 5.012885667 | AF137: 4.400105765 | AG137: -0.587968949 | AH137: =LT!$H$79*(S137-Z137) -> 0.02972665764 | AI137: =LT!$H$80*(W137-AA137) -> 0 | AJ137: 2.348405953 | AK137: 0 | AL137: 2.348405953 | AM137: 1 | AN137: 2.348405953 | AO137: 0 | AP137: =VLOOKUP(MONTH($B137),LT!$A$27:$W$35,21)+VLOOKUP(MONTH($B137),LT!$A$27:$W$35,22)/(1-LT!$H$80) -> 58.81901025 | AQ137: =IF(Q137=0,"-",(AC137+AD137)/(N137/LT!$G$7)) -> 185.2693324 | AS137: 2.348405953 | AT137: 2.113565358
A138: 6 | B138: ='Actual Accting'!B138 -> 2019-06-28 | C138: ='Actual Accting'!C138 -> 0 | D138: ='Actual Accting'!D138 -> 0 | E138: =HLOOKUP(MONTH($B138),LT!$B$93:$N$95,3) -> 242.116177 | F138: ='Actual Accting'!F138 -> 0 | G138: - | H138: - | I138: - | J138: - | K138: - | L138: - | M138: =(E138)*LT!$G$7/LT!$A$7 -> 8.239216098 | N138: =M138*(1-LT!$G$44) -> 6.803049328 | O138: =$N138*VLOOKUP(MONTH($B138),LT!$A$13:$S$21,14) -> 2.404877938 | P138: =$N138*VLOOKUP(MONTH($B138),LT!$A$13:$S$21,15) -> 2.415229533 | Q138: =$N138*VLOOKUP(MONTH($B138),LT!$A$13:$S$21,16) -> 2.597656134 | R138: =(N138)*VLOOKUP(MONTH($B138),LT!$A$50:$C$58,2) -> 6.803049328 | S138: =MIN($O138,R138-T138-U138)*VLOOKUP(MONTH($B138),LT!$A$50:$C$58,2) -> 2.402943564 | T138: =IF(R138>0,MIN($P138,R138),"0")*VLOOKUP(MONTH($B138),LT!$A$50:$C$58,2) -> 2.415229533 | U138: =$N138*(VLOOKUP(MONTH($B138),LT!$A$27:$W$35,12))/LT!$G$7*VLOOKUP(MONTH($B138),LT!$A$50:$C$58,2) -> 1.984876232 | V138: =(N138)*VLOOKUP(MONTH($B138),LT!$A$50:$C$58,3) -> 0 | W138: =MIN($O138,V138-X138-Y138)*VLOOKUP(MONTH($B138),LT!$A$50:$C$58,3) -> 0 | X138: =IF(V138>0,MIN($P138,V138),"0")*VLOOKUP(MONTH($B138),LT!$A$50:$C$58,3) -> 0 | Y138: =$N138*(VLOOKUP(MONTH($B138),LT!$A$27:$W$35,12))/LT!$G$7*VLOOKUP(MONTH($B138),LT!$A$50:$C$58,3) -> 0 | Z138: =U138*LT!$H$79 -> 0.0248109529 | AA138: =Y138*LT!$H$80 -> 0 | AB138: 0.0248109529 | AC138: 1.984876232 | AD138: 0 | AE138: 5.012885667 | AF138: 4.400105765 | AG138: -0.587968949 | AH138: =LT!$H$79*(S138-Z138) -> 0.02972665764 | AI138: =LT!$H$80*(W138-AA138) -> 0 | AJ138: 2.348405953 | AK138: 0 | AL138: 2.348405953 | AM138: 1 | AN138: 2.348405953 | AO138: 0 | AP138: =VLOOKUP(MONTH($B138),LT!$A$27:$W$35,21)+VLOOKUP(MONTH($B138),LT!$A$27:$W$35,22)/(1-LT!$H$80) -> 58.81901025 | AQ138: =IF(Q138=0,"-",(AC138+AD138)/(N138/LT!$G$7)) -> 185.2693324 | AS138: 2.348405953 | AT138: 2.113565358
A139: 6 | B139: ='Actual Accting'!B139 -> 2019-06-29 | C139: ='Actual Accting'!C139 -> 0 | D139: ='Actual Accting'!D139 -> 0 | E139: =HLOOKUP(MONTH($B139),LT!$B$93:$N$95,3) -> 242.116177 | F139: ='Actual Accting'!F139 -> 0 | G139: - | H139: - | I139: - | J139: - | K139: - | L139: - | M139: =(E139)*LT!$G$7/LT!$A$7 -> 8.239216098 | N139: =M139*(1-LT!$G$44) -> 6.803049328 | O139: =$N139*VLOOKUP(MONTH($B139),LT!$A$13:$S$21,14) -> 2.404877938 | P139: =$N139*VLOOKUP(MONTH($B139),LT!$A$13:$S$21,15) -> 2.415229533 | Q139: =$N139*VLOOKUP(MONTH($B139),LT!$A$13:$S$21,16) -> 2.597656134 | R139: =(N139)*VLOOKUP(MONTH($B139),LT!$A$50:$C$58,2) -> 6.803049328 | S139: =MIN($O139,R139-T139-U139)*VLOOKUP(MONTH($B139),LT!$A$50:$C$58,2) -> 2.402943564 | T139: =IF(R139>0,MIN($P139,R139),"0")*VLOOKUP(MONTH($B139),LT!$A$50:$C$58,2) -> 2.415229533 | U139: =$N139*(VLOOKUP(MONTH($B139),LT!$A$27:$W$35,12))/LT!$G$7*VLOOKUP(MONTH($B139),LT!$A$50:$C$58,2) -> 1.984876232 | V139: =(N139)*VLOOKUP(MONTH($B139),LT!$A$50:$C$58,3) -> 0 | W139: =MIN($O139,V139-X139-Y139)*VLOOKUP(MONTH($B139),LT!$A$50:$C$58,3) -> 0 | X139: =IF(V139>0,MIN($P139,V139),"0")*VLOOKUP(MONTH($B139),LT!$A$50:$C$58,3) -> 0 | Y139: =$N139*(VLOOKUP(MONTH($B139),LT!$A$27:$W$35,12))/LT!$G$7*VLOOKUP(MONTH($B139),LT!$A$50:$C$58,3) -> 0 | Z139: =U139*LT!$H$79 -> 0.0248109529 | AA139: =Y139*LT!$H$80 -> 0 | AB139: 0.0248109529 | AC139: 1.984876232 | AD139: 0 | AE139: 5.012885667 | AF139: 4.400105765 | AG139: -0.587968949 | AH139: =LT!$H$79*(S139-Z139) -> 0.02972665764 | AI139: =LT!$H$80*(W139-AA139) -> 0 | AJ139: 2.348405953 | AK139: 0 | AL139: 2.348405953 | AM139: 1 | AN139: 2.348405953 | AO139: 0 | AP139: =VLOOKUP(MONTH($B139),LT!$A$27:$W$35,21)+VLOOKUP(MONTH($B139),LT!$A$27:$W$35,22)/(1-LT!$H$80) -> 58.81901025 | AQ139: =IF(Q139=0,"-",(AC139+AD139)/(N139/LT!$G$7)) -> 185.2693324 | AS139: 2.348405953 | AT139: 2.113565358
A140: 6 | B140: ='Actual Accting'!B140 -> 2019-06-30 | C140: ='Actual Accting'!C140 -> 0 | D140: ='Actual Accting'!D140 -> 0 | E140: =HLOOKUP(MONTH($B140),LT!$B$93:$N$95,3) -> 242.116177 | F140: ='Actual Accting'!F140 -> 0 | G140: - | H140: - | I140: - | J140: - | K140: - | L140: - | M140: =(E140)*LT!$G$7/LT!$A$7 -> 8.239216098 | N140: =M140*(1-LT!$G$44) -> 6.803049328 | O140: =$N140*VLOOKUP(MONTH($B140),LT!$A$13:$S$21,14) -> 2.404877938 | P140: =$N140*VLOOKUP(MONTH($B140),LT!$A$13:$S$21,15) -> 2.415229533 | Q140: =$N140*VLOOKUP(MONTH($B140),LT!$A$13:$S$21,16) -> 2.597656134 | R140: =(N140)*VLOOKUP(MONTH($B140),LT!$A$50:$C$58,2) -> 6.803049328 | S140: =MIN($O140,R140-T140-U140)*VLOOKUP(MONTH($B140),LT!$A$50:$C$58,2) -> 2.402943564 | T140: =IF(R140>0,MIN($P140,R140),"0")*VLOOKUP(MONTH($B140),LT!$A$50:$C$58,2) -> 2.415229533 | U140: =$N140*(VLOOKUP(MONTH($B140),LT!$A$27:$W$35,12))/LT!$G$7*VLOOKUP(MONTH($B140),LT!$A$50:$C$58,2) -> 1.984876232 | V140: =(N140)*VLOOKUP(MONTH($B140),LT!$A$50:$C$58,3) -> 0 | W140: =MIN($O140,V140-X140-Y140)*VLOOKUP(MONTH($B140),LT!$A$50:$C$58,3) -> 0 | X140: =IF(V140>0,MIN($P140,V140),"0")*VLOOKUP(MONTH($B140),LT!$A$50:$C$58,3) -> 0 | Y140: =$N140*(VLOOKUP(MONTH($B140),LT!$A$27:$W$35,12))/LT!$G$7*VLOOKUP(MONTH($B140),LT!$A$50:$C$58,3) -> 0 | Z140: =U140*LT!$H$79 -> 0.0248109529 | AA140: =Y140*LT!$H$80 -> 0 | AB140: 0.0248109529 | AC140: 1.984876232 | AD140: 0 | AE140: 5.012885667 | AF140: 4.400105765 | AG140: -0.587968949 | AH140: =LT!$H$79*(S140-Z140) -> 0.02972665764 | AI140: =LT!$H$80*(W140-AA140) -> 0 | AJ140: 2.348405953 | AK140: 0 | AL140: 2.348405953 | AM140: 1 | AN140: 2.348405953 | AO140: 0 | AP140: =VLOOKUP(MONTH($B140),LT!$A$27:$W$35,21)+VLOOKUP(MONTH($B140),LT!$A$27:$W$35,22)/(1-LT!$H$80) -> 58.81901025 | AQ140: =IF(Q140=0,"-",(AC140+AD140)/(N140/LT!$G$7)) -> 185.2693324 | AS140: 2.348405953 | AT140: 2.113565358
A141: 7 | B141: ='Actual Accting'!B141 -> 2019-07-01 | C141: ='Actual Accting'!C141 -> 0 | D141: ='Actual Accting'!D141 -> 0 | E141: =HLOOKUP(MONTH($B141),LT!$B$93:$N$95,3) -> 215.144803 | F141: ='Actual Accting'!F141 -> 0 | G141: - | H141: - | I141: - | J141: - | K141: - | L141: - | M141: =(E141)*LT!$G$7/LT!$A$7 -> 7.321379954 | N141: =M141*(1-LT!$G$44) -> 6.045199979 | O141: =$N141*VLOOKUP(MONTH($B141),LT!$A$13:$S$21,14) -> 2.136978192 | P141: =$N141*VLOOKUP(MONTH($B141),LT!$A$13:$S$21,15) -> 2.136978192 | Q141: =$N141*VLOOKUP(MONTH($B141),LT!$A$13:$S$21,16) -> 2.273191391 | R141: =(N141)*VLOOKUP(MONTH($B141),LT!$A$50:$C$58,2) -> 6.045199979 | S141: =MIN($O141,R141-T141-U141)*VLOOKUP(MONTH($B141),LT!$A$50:$C$58,2) -> 2.123733661 | T141: =IF(R141>0,MIN($P141,R141),"0")*VLOOKUP(MONTH($B141),LT!$A$50:$C$58,2) -> 2.136978192 | U141: =$N141*(VLOOKUP(MONTH($B141),LT!$A$27:$W$35,12))/LT!$G$7*VLOOKUP(MONTH($B141),LT!$A$50:$C$58,2) -> 1.784488125 | V141: =(N141)*VLOOKUP(MONTH($B141),LT!$A$50:$C$58,3) -> 0 | W141: =MIN($O141,V141-X141-Y141)*VLOOKUP(MONTH($B141),LT!$A$50:$C$58,3) -> 0 | X141: =IF(V141>0,MIN($P141,V141),"0")*VLOOKUP(MONTH($B141),LT!$A$50:$C$58,3) -> 0 | Y141: =$N141*(VLOOKUP(MONTH($B141),LT!$A$27:$W$35,12))/LT!$G$7*VLOOKUP(MONTH($B141),LT!$A$50:$C$58,3) -> 0 | Z141: =U141*LT!$H$79 -> 0.02230610156 | AA141: =Y141*LT!$H$80 -> 0 | AB141: 0.02230610156 | AC141: 1.784488125 | AD141: 0 | AE141: 4.410169583 | AF141: 3.921466318 | AG141: -0.466397164 | AH141: =LT!$H$79*(S141-Z141) -> 0.02626784449 | AI141: =LT!$H$80*(W141-AA141) -> 0 | AJ141: 2.075159715 | AK141: 0 | AL141: 2.075159715 | AM141: 1 | AN141: 2.075159715 | AO141: 0 | AP141: =VLOOKUP(MONTH($B141),LT!$A$27:$W$35,21)+VLOOKUP(MONTH($B141),LT!$A$27:$W$35,22)/(1-LT!$H$80) -> 58.5621216 | AQ141: =IF(Q141=0,"-",(AC141+AD141)/(N141/LT!$G$7)) -> 187.4462323 | AS141: 2.075159715 | AT141: 1.867643743
A142: 7 | B142: ='Actual Accting'!B142 -> 2019-07-02 | C142: ='Actual Accting'!C142 -> 0 | D142: ='Actual Accting'!D142 -> 0 | E142: =HLOOKUP(MONTH($B142),LT!$B$93:$N$95,3) -> 215.144803 | F142: ='Actual Accting'!F142 -> 0 | G142: - | H142: - | I142: - | J142: - | K142: - | L142: - | M142: =(E142)*LT!$G$7/LT!$A$7 -> 7.321379954 | N142: =M142*(1-LT!$G$44) -> 6.045199979 | O142: =$N142*VLOOKUP(MONTH($B142),LT!$A$13:$S$21,14) -> 2.136978192 | P142: =$N142*VLOOKUP(MONTH($B142),LT!$A$13:$S$21,15) -> 2.136978192 | Q142: =$N142*VLOOKUP(MONTH($B142),LT!$A$13:$S$21,16) -> 2.273191391 | R142: =(N142)*VLOOKUP(MONTH($B142),LT!$A$50:$C$58,2) -> 6.045199979 | S142: =MIN($O142,R142-T142-U142)*VLOOKUP(MONTH($B142),LT!$A$50:$C$58,2) -> 2.123733661 | T142: =IF(R142>0,MIN($P142,R142),"0")*VLOOKUP(MONTH($B142),LT!$A$50:$C$58,2) -> 2.136978192 | U142: =$N142*(VLOOKUP(MONTH($B142),LT!$A$27:$W$35,12))/LT!$G$7*VLOOKUP(MONTH($B142),LT!$A$50:$C$58,2) -> 1.784488125 | V142: =(N142)*VLOOKUP(MONTH($B142),LT!$A$50:$C$58,3) -> 0 | W142: =MIN($O142,V142-X142-Y142)*VLOOKUP(MONTH($B142),LT!$A$50:$C$58,3) -> 0 | X142: =IF(V142>0,MIN($P142,V142),"0")*VLOOKUP(MONTH($B142),LT!$A$50:$C$58,3) -> 0 | Y142: =$N142*(VLOOKUP(MONTH($B142),LT!$A$27:$W$35,12))/LT!$G$7*VLOOKUP(MONTH($B142),LT!$A$50:$C$58,3) -> 0 | Z142: =U142*LT!$H$79 -> 0.02230610156 | AA142: =Y142*LT!$H$80 -> 0 | AB142: 0.02230610156 | AC142: 1.784488125 | AD142: 0 | AE142: 4.410169583 | AF142: 3.921466318 | AG142: -0.466397164 | AH142: =LT!$H$79*(S142-Z142) -> 0.02626784449 | AI142: =LT!$H$80*(W142-AA142) -> 0 | AJ142: 2.075159715 | AK142: 0 | AL142: 2.075159715 | AM142: 1 | AN142: 2.075159715 | AO142: 0 | AP142: =VLOOKUP(MONTH($B142),LT!$A$27:$W$35,21)+VLOOKUP(MONTH($B142),LT!$A$27:$W$35,22)/(1-LT!$H$80) -> 58.5621216 | AQ142: =IF(Q142=0,"-",(AC142+AD142)/(N142/LT!$G$7)) -> 187.4462323 | AS142: 2.075159715 | AT142: 1.867643743
A143: 7 | B143: ='Actual Accting'!B143 -> 2019-07-03 | C143: ='Actual Accting'!C143 -> 0 | D143: ='Actual Accting'!D143 -> 0 | E143: =HLOOKUP(MONTH($B143),LT!$B$93:$N$95,3) -> 215.144803 | F143: ='Actual Accting'!F143 -> 0 | G143: - | H143: - | I143: - | J143: - | K143: - | L143: - | M143: =(E143)*LT!$G$7/LT!$A$7 -> 7.321379954 | N143: =M143*(1-LT!$G$44) -> 6.045199979 | O143: =$N143*VLOOKUP(MONTH($B143),LT!$A$13:$S$21,14) -> 2.136978192 | P143: =$N143*VLOOKUP(MONTH($B143),LT!$A$13:$S$21,15) -> 2.136978192 | Q143: =$N143*VLOOKUP(MONTH($B143),LT!$A$13:$S$21,16) -> 2.273191391 | R143: =(N143)*VLOOKUP(MONTH($B143),LT!$A$50:$C$58,2) -> 6.045199979 | S143: =MIN($O143,R143-T143-U143)*VLOOKUP(MONTH($B143),LT!$A$50:$C$58,2) -> 2.123733661 | T143: =IF(R143>0,MIN($P143,R143),"0")*VLOOKUP(MONTH($B143),LT!$A$50:$C$58,2) -> 2.136978192 | U143: =$N143*(VLOOKUP(MONTH($B143),LT!$A$27:$W$35,12))/LT!$G$7*VLOOKUP(MONTH($B143),LT!$A$50:$C$58,2) -> 1.784488125 | V143: =(N143)*VLOOKUP(MONTH($B143),LT!$A$50:$C$58,3) -> 0 | W143: =MIN($O143,V143-X143-Y143)*VLOOKUP(MONTH($B143),LT!$A$50:$C$58,3) -> 0 | X143: =IF(V143>0,MIN($P143,V143),"0")*VLOOKUP(MONTH($B143),LT!$A$50:$C$58,3) -> 0 | Y143: =$N143*(VLOOKUP(MONTH($B143),LT!$A$27:$W$35,12))/LT!$G$7*VLOOKUP(MONTH($B143),LT!$A$50:$C$58,3) -> 0 | Z143: =U143*LT!$H$79 -> 0.02230610156 | AA143: =Y143*LT!$H$80 -> 0 | AB143: 0.02230610156 | AC143: 1.784488125 | AD143: 0 | AE143: 4.410169583 | AF143: 3.921466318 | AG143: -0.466397164 | AH143: =LT!$H$79*(S143-Z143) -> 0.02626784449 | AI143: =LT!$H$80*(W143-AA143) -> 0 | AJ143: 2.075159715 | AK143: 0 | AL143: 2.075159715 | AM143: 1 | AN143: 2.075159715 | AO143: 0 | AP143: =VLOOKUP(MONTH($B143),LT!$A$27:$W$35,21)+VLOOKUP(MONTH($B143),LT!$A$27:$W$35,22)/(1-LT!$H$80) -> 58.5621216 | AQ143: =IF(Q143=0,"-",(AC143+AD143)/(N143/LT!$G$7)) -> 187.4462323 | AS143: 2.075159715 | AT143: 1.867643743
A144: 7 | B144: ='Actual Accting'!B144 -> 2019-07-04 | C144: ='Actual Accting'!C144 -> 0 | D144: ='Actual Accting'!D144 -> 0 | E144: =HLOOKUP(MONTH($B144),LT!$B$93:$N$95,3) -> 215.144803 | F144: ='Actual Accting'!F144 -> 0 | G144: - | H144: - | I144: - | J144: - | K144: - | L144: - | M144: =(E144)*LT!$G$7/LT!$A$7 -> 7.321379954 | N144: =M144*(1-LT!$G$44) -> 6.045199979 | O144: =$N144*VLOOKUP(MONTH($B144),LT!$A$13:$S$21,14) -> 2.136978192 | P144: =$N144*VLOOKUP(MONTH($B144),LT!$A$13:$S$21,15) -> 2.136978192 | Q144: =$N144*VLOOKUP(MONTH($B144),LT!$A$13:$S$21,16) -> 2.273191391 | R144: =(N144)*VLOOKUP(MONTH($B144),LT!$A$50:$C$58,2) -> 6.045199979 | S144: =MIN($O144,R144-T144-U144)*VLOOKUP(MONTH($B144),LT!$A$50:$C$58,2) -> 2.123733661 | T144: =IF(R144>0,MIN($P144,R144),"0")*VLOOKUP(MONTH($B144),LT!$A$50:$C$58,2) -> 2.136978192 | U144: =$N144*(VLOOKUP(MONTH($B144),LT!$A$27:$W$35,12))/LT!$G$7*VLOOKUP(MONTH($B144),LT!$A$50:$C$58,2) -> 1.784488125 | V144: =(N144)*VLOOKUP(MONTH($B144),LT!$A$50:$C$58,3) -> 0 | W144: =MIN($O144,V144-X144-Y144)*VLOOKUP(MONTH($B144),LT!$A$50:$C$58,3) -> 0 | X144: =IF(V144>0,MIN($P144,V144),"0")*VLOOKUP(MONTH($B144),LT!$A$50:$C$58,3) -> 0 | Y144: =$N144*(VLOOKUP(MONTH($B144),LT!$A$27:$W$35,12))/LT!$G$7*VLOOKUP(MONTH($B144),LT!$A$50:$C$58,3) -> 0 | Z144: =U144*LT!$H$79 -> 0.02230610156 | AA144: =Y144*LT!$H$80 -> 0 | AB144: 0.02230610156 | AC144: 1.784488125 | AD144: 0 | AE144: 4.410169583 | AF144: 3.921466318 | AG144: -0.466397164 | AH144: =LT!$H$79*(S144-Z144) -> 0.02626784449 | AI144: =LT!$H$80*(W144-AA144) -> 0 | AJ144: 2.075159715 | AK144: 0 | AL144: 2.075159715 | AM144: 1 | AN144: 2.075159715 | AO144: 0 | AP144: =VLOOKUP(MONTH($B144),LT!$A$27:$W$35,21)+VLOOKUP(MONTH($B144),LT!$A$27:$W$35,22)/(1-LT!$H$80) -> 58.5621216 | AQ144: =IF(Q144=0,"-",(AC144+AD144)/(N144/LT!$G$7)) -> 187.4462323 | AS144: 2.075159715 | AT144: 1.867643743
A145: 7 | B145: ='Actual Accting'!B145 -> 2019-07-05 | C145: ='Actual Accting'!C145 -> 0 | D145: ='Actual Accting'!D145 -> 0 | E145: =HLOOKUP(MONTH($B145),LT!$B$93:$N$95,3) -> 215.144803 | F145: ='Actual Accting'!F145 -> 0 | G145: - | H145: - | I145: - | J145: - | K145: - | L145: - | M145: =(E145)*LT!$G$7/LT!$A$7 -> 7.321379954 | N145: =M145*(1-LT!$G$44) -> 6.045199979 | O145: =$N145*VLOOKUP(MONTH($B145),LT!$A$13:$S$21,14) -> 2.136978192 | P145: =$N145*VLOOKUP(MONTH($B145),LT!$A$13:$S$21,15) -> 2.136978192 | Q145: =$N145*VLOOKUP(MONTH($B145),LT!$A$13:$S$21,16) -> 2.273191391 | R145: =(N145)*VLOOKUP(MONTH($B145),LT!$A$50:$C$58,2) -> 6.045199979 | S145: =MIN($O145,R145-T145-U145)*VLOOKUP(MONTH($B145),LT!$A$50:$C$58,2) -> 2.123733661 | T145: =IF(R145>0,MIN($P145,R145),"0")*VLOOKUP(MONTH($B145),LT!$A$50:$C$58,2) -> 2.136978192 | U145: =$N145*(VLOOKUP(MONTH($B145),LT!$A$27:$W$35,12))/LT!$G$7*VLOOKUP(MONTH($B145),LT!$A$50:$C$58,2) -> 1.784488125 | V145: =(N145)*VLOOKUP(MONTH($B145),LT!$A$50:$C$58,3) -> 0 | W145: =MIN($O145,V145-X145-Y145)*VLOOKUP(MONTH($B145),LT!$A$50:$C$58,3) -> 0 | X145: =IF(V145>0,MIN($P145,V145),"0")*VLOOKUP(MONTH($B145),LT!$A$50:$C$58,3) -> 0 | Y145: =$N145*(VLOOKUP(MONTH($B145),LT!$A$27:$W$35,12))/LT!$G$7*VLOOKUP(MONTH($B145),LT!$A$50:$C$58,3) -> 0 | Z145: =U145*LT!$H$79 -> 0.02230610156 | AA145: =Y145*LT!$H$80 -> 0 | AB145: 0.02230610156 | AC145: 1.784488125 | AD145: 0 | AE145: 4.410169583 | AF145: 3.921466318 | AG145: -0.466397164 | AH145: =LT!$H$79*(S145-Z145) -> 0.02626784449 | AI145: =LT!$H$80*(W145-AA145) -> 0 | AJ145: 2.075159715 | AK145: 0 | AL145: 2.075159715 | AM145: 1 | AN145: 2.075159715 | AO145: 0 | AP145: =VLOOKUP(MONTH($B145),LT!$A$27:$W$35,21)+VLOOKUP(MONTH($B145),LT!$A$27:$W$35,22)/(1-LT!$H$80) -> 58.5621216 | AQ145: =IF(Q145=0,"-",(AC145+AD145)/(N145/LT!$G$7)) -> 187.4462323 | AS145: 2.075159715 | AT145: 1.867643743
A146: 7 | B146: ='Actual Accting'!B146 -> 2019-07-06 | C146: ='Actual Accting'!C146 -> 0 | D146: ='Actual Accting'!D146 -> 0 | E146: =HLOOKUP(MONTH($B146),LT!$B$93:$N$95,3) -> 215.144803 | F146: ='Actual Accting'!F146 -> 0 | G146: - | H146: - | I146: - | J146: - | K146: - | L146: - | M146: =(E146)*LT!$G$7/LT!$A$7 -> 7.321379954 | N146: =M146*(1-LT!$G$44) -> 6.045199979 | O146: =$N146*VLOOKUP(MONTH($B146),LT!$A$13:$S$21,14) -> 2.136978192 | P146: =$N146*VLOOKUP(MONTH($B146),LT!$A$13:$S$21,15) -> 2.136978192 | Q146: =$N146*VLOOKUP(MONTH($B146),LT!$A$13:$S$21,16) -> 2.273191391 | R146: =(N146)*VLOOKUP(MONTH($B146),LT!$A$50:$C$58,2) -> 6.045199979 | S146: =MIN($O146,R146-T146-U146)*VLOOKUP(MONTH($B146),LT!$A$50:$C$58,2) -> 2.123733661 | T146: =IF(R146>0,MIN($P146,R146),"0")*VLOOKUP(MONTH($B146),LT!$A$50:$C$58,2) -> 2.136978192 | U146: =$N146*(VLOOKUP(MONTH($B146),LT!$A$27:$W$35,12))/LT!$G$7*VLOOKUP(MONTH($B146),LT!$A$50:$C$58,2) -> 1.784488125 | V146: =(N146)*VLOOKUP(MONTH($B146),LT!$A$50:$C$58,3) -> 0 | W146: =MIN($O146,V146-X146-Y146)*VLOOKUP(MONTH($B146),LT!$A$50:$C$58,3) -> 0 | X146: =IF(V146>0,MIN($P146,V146),"0")*VLOOKUP(MONTH($B146),LT!$A$50:$C$58,3) -> 0 | Y146: =$N146*(VLOOKUP(MONTH($B146),LT!$A$27:$W$35,12))/LT!$G$7*VLOOKUP(MONTH($B146),LT!$A$50:$C$58,3) -> 0 | Z146: =U146*LT!$H$79 -> 0.02230610156 | AA146: =Y146*LT!$H$80 -> 0 | AB146: 0.02230610156 | AC146: 1.784488125 | AD146: 0 | AE146: 4.410169583 | AF146: 3.921466318 | AG146: -0.466397164 | AH146: =LT!$H$79*(S146-Z146) -> 0.02626784449 | AI146: =LT!$H$80*(W146-AA146) -> 0 | AJ146: 2.075159715 | AK146: 0 | AL146: 2.075159715 | AM146: 1 | AN146: 2.075159715 | AO146: 0 | AP146: =VLOOKUP(MONTH($B146),LT!$A$27:$W$35,21)+VLOOKUP(MONTH($B146),LT!$A$27:$W$35,22)/(1-LT!$H$80) -> 58.5621216 | AQ146: =IF(Q146=0,"-",(AC146+AD146)/(N146/LT!$G$7)) -> 187.4462323 | AS146: 2.075159715 | AT146: 1.867643743
A147: 7 | B147: ='Actual Accting'!B147 -> 2019-07-07 | C147: ='Actual Accting'!C147 -> 0 | D147: ='Actual Accting'!D147 -> 0 | E147: =HLOOKUP(MONTH($B147),LT!$B$93:$N$95,3) -> 215.144803 | F147: ='Actual Accting'!F147 -> 0 | G147: - | H147: - | I147: - | J147: - | K147: - | L147: - | M147: =(E147)*LT!$G$7/LT!$A$7 -> 7.321379954 | N147: =M147*(1-LT!$G$44) -> 6.045199979 | O147: =$N147*VLOOKUP(MONTH($B147),LT!$A$13:$S$21,14) -> 2.136978192 | P147: =$N147*VLOOKUP(MONTH($B147),LT!$A$13:$S$21,15) -> 2.136978192 | Q147: =$N147*VLOOKUP(MONTH($B147),LT!$A$13:$S$21,16) -> 2.273191391 | R147: =(N147)*VLOOKUP(MONTH($B147),LT!$A$50:$C$58,2) -> 6.045199979 | S147: =MIN($O147,R147-T147-U147)*VLOOKUP(MONTH($B147),LT!$A$50:$C$58,2) -> 2.123733661 | T147: =IF(R147>0,MIN($P147,R147),"0")*VLOOKUP(MONTH($B147),LT!$A$50:$C$58,2) -> 2.136978192 | U147: =$N147*(VLOOKUP(MONTH($B147),LT!$A$27:$W$35,12))/LT!$G$7*VLOOKUP(MONTH($B147),LT!$A$50:$C$58,2) -> 1.784488125 | V147: =(N147)*VLOOKUP(MONTH($B147),LT!$A$50:$C$58,3) -> 0 | W147: =MIN($O147,V147-X147-Y147)*VLOOKUP(MONTH($B147),LT!$A$50:$C$58,3) -> 0 | X147: =IF(V147>0,MIN($P147,V147),"0")*VLOOKUP(MONTH($B147),LT!$A$50:$C$58,3) -> 0 | Y147: =$N147*(VLOOKUP(MONTH($B147),LT!$A$27:$W$35,12))/LT!$G$7*VLOOKUP(MONTH($B147),LT!$A$50:$C$58,3) -> 0 | Z147: =U147*LT!$H$79 -> 0.02230610156 | AA147: =Y147*LT!$H$80 -> 0 | AB147: 0.02230610156 | AC147: 1.784488125 | AD147: 0 | AE147: 4.410169583 | AF147: 3.921466318 | AG147: -0.466397164 | AH147: =LT!$H$79*(S147-Z147) -> 0.02626784449 | AI147: =LT!$H$80*(W147-AA147) -> 0 | AJ147: 2.075159715 | AK147: 0 | AL147: 2.075159715 | AM147: 1 | AN147: 2.075159715 | AO147: 0 | AP147: =VLOOKUP(MONTH($B147),LT!$A$27:$W$35,21)+VLOOKUP(MONTH($B147),LT!$A$27:$W$35,22)/(1-LT!$H$80) -> 58.5621216 | AQ147: =IF(Q147=0,"-",(AC147+AD147)/(N147/LT!$G$7)) -> 187.4462323 | AS147: 2.075159715 | AT147: 1.867643743
A148: =MONTH(B148) -> 7 | B148: ='Actual Accting'!B148 -> 2019-07-08 | C148: ='Actual Accting'!C148 -> 0 | D148: ='Actual Accting'!D148 -> 0 | E148: =HLOOKUP(MONTH($B148),LT!$B$93:$N$95,3) -> 215.144803 | F148: ='Actual Accting'!F148 -> 0 | G148: - | H148: - | I148: - | J148: - | K148: - | L148: - | M148: =(E148)*LT!$G$7/LT!$A$7 -> 7.321379954 | N148: =M148*(1-LT!$G$44) -> 6.045199979 | O148: =$N148*VLOOKUP(MONTH($B148),LT!$A$13:$S$21,14) -> 2.136978192 | P148: =$N148*VLOOKUP(MONTH($B148),LT!$A$13:$S$21,15) -> 2.136978192 | Q148: =$N148*VLOOKUP(MONTH($B148),LT!$A$13:$S$21,16) -> 2.273191391 | R148: =(N148)*VLOOKUP(MONTH($B148),LT!$A$50:$C$58,2) -> 6.045199979 | S148: =MIN($O148,R148-T148-U148)*VLOOKUP(MONTH($B148),LT!$A$50:$C$58,2) -> 2.123733661 | T148: =IF(R148>0,MIN($P148,R148),"0")*VLOOKUP(MONTH($B148),LT!$A$50:$C$58,2) -> 2.136978192 | U148: =$N148*(VLOOKUP(MONTH($B148),LT!$A$27:$W$35,12))/LT!$G$7*VLOOKUP(MONTH($B148),LT!$A$50:$C$58,2) -> 1.784488125 | V148: =(N148)*VLOOKUP(MONTH($B148),LT!$A$50:$C$58,3) -> 0 | W148: =MIN($O148,V148-X148-Y148)*VLOOKUP(MONTH($B148),LT!$A$50:$C$58,3) -> 0 | X148: =IF(V148>0,MIN($P148,V148),"0")*VLOOKUP(MONTH($B148),LT!$A$50:$C$58,3) -> 0 | Y148: =$N148*(VLOOKUP(MONTH($B148),LT!$A$27:$W$35,12))/LT!$G$7*VLOOKUP(MONTH($B148),LT!$A$50:$C$58,3) -> 0 | Z148: =U148*LT!$H$79 -> 0.02230610156 | AA148: =Y148*LT!$H$80 -> 0 | AB148: 0.02230610156 | AC148: 1.784488125 | AD148: 0 | AE148: 4.410169583 | AF148: 3.921466318 | AG148: -0.466397164 | AH148: =LT!$H$79*(S148-Z148) -> 0.02626784449 | AI148: =LT!$H$80*(W148-AA148) -> 0 | AJ148: 2.075159715 | AK148: 0 | AL148: 2.075159715 | AM148: 1 | AN148: 2.075159715 | AO148: 0 | AP148: =VLOOKUP(MONTH($B148),LT!$A$27:$W$35,21)+VLOOKUP(MONTH($B148),LT!$A$27:$W$35,22)/(1-LT!$H$80) -> 58.5621216 | AQ148: =IF(Q148=0,"-",(AC148+AD148)/(N148/LT!$G$7)) -> 187.4462323 | AS148: 2.075159715 | AT148: 1.867643743
A149: 7 | B149: ='Actual Accting'!B149 -> 2019-07-09 | C149: ='Actual Accting'!C149 -> 0 | D149: ='Actual Accting'!D149 -> 0 | E149: =HLOOKUP(MONTH($B149),LT!$B$93:$N$95,3) -> 215.144803 | F149: ='Actual Accting'!F149 -> 0 | G149: - | H149: - | I149: - | J149: - | K149: - | L149: - | M149: =(E149)*LT!$G$7/LT!$A$7 -> 7.321379954 | N149: =M149*(1-LT!$G$44) -> 6.045199979 | O149: =$N149*VLOOKUP(MONTH($B149),LT!$A$13:$S$21,14) -> 2.136978192 | P149: =$N149*VLOOKUP(MONTH($B149),LT!$A$13:$S$21,15) -> 2.136978192 | Q149: =$N149*VLOOKUP(MONTH($B149),LT!$A$13:$S$21,16) -> 2.273191391 | R149: =(N149)*VLOOKUP(MONTH($B149),LT!$A$50:$C$58,2) -> 6.045199979 | S149: =MIN($O149,R149-T149-U149)*VLOOKUP(MONTH($B149),LT!$A$50:$C$58,2) -> 2.123733661 | T149: =IF(R149>0,MIN($P149,R149),"0")*VLOOKUP(MONTH($B149),LT!$A$50:$C$58,2) -> 2.136978192 | U149: =$N149*(VLOOKUP(MONTH($B149),LT!$A$27:$W$35,12))/LT!$G$7*VLOOKUP(MONTH($B149),LT!$A$50:$C$58,2) -> 1.784488125 | V149: =(N149)*VLOOKUP(MONTH($B149),LT!$A$50:$C$58,3) -> 0 | W149: =MIN($O149,V149-X149-Y149)*VLOOKUP(MONTH($B149),LT!$A$50:$C$58,3) -> 0 | X149: =IF(V149>0,MIN($P149,V149),"0")*VLOOKUP(MONTH($B149),LT!$A$50:$C$58,3) -> 0 | Y149: =$N149*(VLOOKUP(MONTH($B149),LT!$A$27:$W$35,12))/LT!$G$7*VLOOKUP(MONTH($B149),LT!$A$50:$C$58,3) -> 0 | Z149: =U149*LT!$H$79 -> 0.02230610156 | AA149: =Y149*LT!$H$80 -> 0 | AB149: 0.02230610156 | AC149: 1.784488125 | AD149: 0 | AE149: 4.410169583 | AF149: 3.921466318 | AG149: -0.466397164 | AH149: =LT!$H$79*(S149-Z149) -> 0.02626784449 | AI149: =LT!$H$80*(W149-AA149) -> 0 | AJ149: 2.075159715 | AK149: 0 | AL149: 2.075159715 | AM149: 1 | AN149: 2.075159715 | AO149: 0 | AP149: =VLOOKUP(MONTH($B149),LT!$A$27:$W$35,21)+VLOOKUP(MONTH($B149),LT!$A$27:$W$35,22)/(1-LT!$H$80) -> 58.5621216 | AQ149: =IF(Q149=0,"-",(AC149+AD149)/(N149/LT!$G$7)) -> 187.4462323 | AS149: 2.075159715 | AT149: 1.867643743
A150: 7 | B150: ='Actual Accting'!B150 -> 2019-07-10 | C150: ='Actual Accting'!C150 -> 0 | D150: ='Actual Accting'!D150 -> 0 | E150: =HLOOKUP(MONTH($B150),LT!$B$93:$N$95,3) -> 215.144803 | F150: ='Actual Accting'!F150 -> 0 | G150: - | H150: - | I150: - | J150: - | K150: - | L150: - | M150: =(E150)*LT!$G$7/LT!$A$7 -> 7.321379954 | N150: =M150*(1-LT!$G$44) -> 6.045199979 | O150: =$N150*VLOOKUP(MONTH($B150),LT!$A$13:$S$21,14) -> 2.136978192 | P150: =$N150*VLOOKUP(MONTH($B150),LT!$A$13:$S$21,15) -> 2.136978192 | Q150: =$N150*VLOOKUP(MONTH($B150),LT!$A$13:$S$21,16) -> 2.273191391 | R150: =(N150)*VLOOKUP(MONTH($B150),LT!$A$50:$C$58,2) -> 6.045199979 | S150: =MIN($O150,R150-T150-U150)*VLOOKUP(MONTH($B150),LT!$A$50:$C$58,2) -> 2.123733661 | T150: =IF(R150>0,MIN($P150,R150),"0")*VLOOKUP(MONTH($B150),LT!$A$50:$C$58,2) -> 2.136978192 | U150: =$N150*(VLOOKUP(MONTH($B150),LT!$A$27:$W$35,12))/LT!$G$7*VLOOKUP(MONTH($B150),LT!$A$50:$C$58,2) -> 1.784488125 | V150: =(N150)*VLOOKUP(MONTH($B150),LT!$A$50:$C$58,3) -> 0 | W150: =MIN($O150,V150-X150-Y150)*VLOOKUP(MONTH($B150),LT!$A$50:$C$58,3) -> 0 | X150: =IF(V150>0,MIN($P150,V150),"0")*VLOOKUP(MONTH($B150),LT!$A$50:$C$58,3) -> 0 | Y150: =$N150*(VLOOKUP(MONTH($B150),LT!$A$27:$W$35,12))/LT!$G$7*VLOOKUP(MONTH($B150),LT!$A$50:$C$58,3) -> 0 | Z150: =U150*LT!$H$79 -> 0.02230610156 | AA150: =Y150*LT!$H$80 -> 0 | AB150: 0.02230610156 | AC150: 1.784488125 | AD150: 0 | AE150: 4.410169583 | AF150: 3.921466318 | AG150: -0.466397164 | AH150: =LT!$H$79*(S150-Z150) -> 0.02626784449 | AI150: =LT!$H$80*(W150-AA150) -> 0 | AJ150: 2.075159715 | AK150: 0 | AL150: 2.075159715 | AM150: 1 | AN150: 2.075159715 | AO150: 0 | AP150: =VLOOKUP(MONTH($B150),LT!$A$27:$W$35,21)+VLOOKUP(MONTH($B150),LT!$A$27:$W$35,22)/(1-LT!$H$80) -> 58.5621216 | AQ150: =IF(Q150=0,"-",(AC150+AD150)/(N150/LT!$G$7)) -> 187.4462323 | AS150: 2.075159715 | AT150: 1.867643743
A151: 7 | B151: ='Actual Accting'!B151 -> 2019-07-11 | C151: ='Actual Accting'!C151 -> 0 | D151: ='Actual Accting'!D151 -> 0 | E151: =HLOOKUP(MONTH($B151),LT!$B$93:$N$95,3) -> 215.144803 | F151: ='Actual Accting'!F151 -> 0 | G151: - | H151: - | I151: - | J151: - | K151: - | L151: - | M151: =(E151)*LT!$G$7/LT!$A$7 -> 7.321379954 | N151: =M151*(1-LT!$G$44) -> 6.045199979 | O151: =$N151*VLOOKUP(MONTH($B151),LT!$A$13:$S$21,14) -> 2.136978192 | P151: =$N151*VLOOKUP(MONTH($B151),LT!$A$13:$S$21,15) -> 2.136978192 | Q151: =$N151*VLOOKUP(MONTH($B151),LT!$A$13:$S$21,16) -> 2.273191391 | R151: =(N151)*VLOOKUP(MONTH($B151),LT!$A$50:$C$58,2) -> 6.045199979 | S151: =MIN($O151,R151-T151-U151)*VLOOKUP(MONTH($B151),LT!$A$50:$C$58,2) -> 2.123733661 | T151: =IF(R151>0,MIN($P151,R151),"0")*VLOOKUP(MONTH($B151),LT!$A$50:$C$58,2) -> 2.136978192 | U151: =$N151*(VLOOKUP(MONTH($B151),LT!$A$27:$W$35,12))/LT!$G$7*VLOOKUP(MONTH($B151),LT!$A$50:$C$58,2) -> 1.784488125 | V151: =(N151)*VLOOKUP(MONTH($B151),LT!$A$50:$C$58,3) -> 0 | W151: =MIN($O151,V151-X151-Y151)*VLOOKUP(MONTH($B151),LT!$A$50:$C$58,3) -> 0 | X151: =IF(V151>0,MIN($P151,V151),"0")*VLOOKUP(MONTH($B151),LT!$A$50:$C$58,3) -> 0 | Y151: =$N151*(VLOOKUP(MONTH($B151),LT!$A$27:$W$35,12))/LT!$G$7*VLOOKUP(MONTH($B151),LT!$A$50:$C$58,3) -> 0 | Z151: =U151*LT!$H$79 -> 0.02230610156 | AA151: =Y151*LT!$H$80 -> 0 | AB151: 0.02230610156 | AC151: 1.784488125 | AD151: 0 | AE151: 4.410169583 | AF151: 3.921466318 | AG151: -0.466397164 | AH151: =LT!$H$79*(S151-Z151) -> 0.02626784449 | AI151: =LT!$H$80*(W151-AA151) -> 0 | AJ151: 2.075159715 | AK151: 0 | AL151: 2.075159715 | AM151: 1 | AN151: 2.075159715 | AO151: 0 | AP151: =VLOOKUP(MONTH($B151),LT!$A$27:$W$35,21)+VLOOKUP(MONTH($B151),LT!$A$27:$W$35,22)/(1-LT!$H$80) -> 58.5621216 | AQ151: =IF(Q151=0,"-",(AC151+AD151)/(N151/LT!$G$7)) -> 187.4462323 | AS151: 2.075159715 | AT151: 1.867643743
A152: 7 | B152: ='Actual Accting'!B152 -> 2019-07-12 | C152: ='Actual Accting'!C152 -> 0 | D152: ='Actual Accting'!D152 -> 0 | E152: =HLOOKUP(MONTH($B152),LT!$B$93:$N$95,3) -> 215.144803 | F152: ='Actual Accting'!F152 -> 0 | G152: - | H152: - | I152: - | J152: - | K152: - | L152: - | M152: =(E152)*LT!$G$7/LT!$A$7 -> 7.321379954 | N152: =M152*(1-LT!$G$44) -> 6.045199979 | O152: =$N152*VLOOKUP(MONTH($B152),LT!$A$13:$S$21,14) -> 2.136978192 | P152: =$N152*VLOOKUP(MONTH($B152),LT!$A$13:$S$21,15) -> 2.136978192 | Q152: =$N152*VLOOKUP(MONTH($B152),LT!$A$13:$S$21,16) -> 2.273191391 | R152: =(N152)*VLOOKUP(MONTH($B152),LT!$A$50:$C$58,2) -> 6.045199979 | S152: =MIN($O152,R152-T152-U152)*VLOOKUP(MONTH($B152),LT!$A$50:$C$58,2) -> 2.123733661 | T152: =IF(R152>0,MIN($P152,R152),"0")*VLOOKUP(MONTH($B152),LT!$A$50:$C$58,2) -> 2.136978192 | U152: =$N152*(VLOOKUP(MONTH($B152),LT!$A$27:$W$35,12))/LT!$G$7*VLOOKUP(MONTH($B152),LT!$A$50:$C$58,2) -> 1.784488125 | V152: =(N152)*VLOOKUP(MONTH($B152),LT!$A$50:$C$58,3) -> 0 | W152: =MIN($O152,V152-X152-Y152)*VLOOKUP(MONTH($B152),LT!$A$50:$C$58,3) -> 0 | X152: =IF(V152>0,MIN($P152,V152),"0")*VLOOKUP(MONTH($B152),LT!$A$50:$C$58,3) -> 0 | Y152: =$N152*(VLOOKUP(MONTH($B152),LT!$A$27:$W$35,12))/LT!$G$7*VLOOKUP(MONTH($B152),LT!$A$50:$C$58,3) -> 0 | Z152: =U152*LT!$H$79 -> 0.02230610156 | AA152: =Y152*LT!$H$80 -> 0 | AB152: 0.02230610156 | AC152: 1.784488125 | AD152: 0 | AE152: 4.410169583 | AF152: 3.921466318 | AG152: -0.466397164 | AH152: =LT!$H$79*(S152-Z152) -> 0.02626784449 | AI152: =LT!$H$80*(W152-AA152) -> 0 | AJ152: 2.075159715 | AK152: 0 | AL152: 2.075159715 | AM152: 1 | AN152: 2.075159715 | AO152: 0 | AP152: =VLOOKUP(MONTH($B152),LT!$A$27:$W$35,21)+VLOOKUP(MONTH($B152),LT!$A$27:$W$35,22)/(1-LT!$H$80) -> 58.5621216 | AQ152: =IF(Q152=0,"-",(AC152+AD152)/(N152/LT!$G$7)) -> 187.4462323 | AS152: 2.075159715 | AT152: 1.867643743
A153: 7 | B153: ='Actual Accting'!B153 -> 2019-07-13 | C153: ='Actual Accting'!C153 -> 0 | D153: ='Actual Accting'!D153 -> 0 | E153: =HLOOKUP(MONTH($B153),LT!$B$93:$N$95,3) -> 215.144803 | F153: ='Actual Accting'!F153 -> 0 | G153: - | H153: - | I153: - | J153: - | K153: - | L153: - | M153: =(E153)*LT!$G$7/LT!$A$7 -> 7.321379954 | N153: =M153*(1-LT!$G$44) -> 6.045199979 | O153: =$N153*VLOOKUP(MONTH($B153),LT!$A$13:$S$21,14) -> 2.136978192 | P153: =$N153*VLOOKUP(MONTH($B153),LT!$A$13:$S$21,15) -> 2.136978192 | Q153: =$N153*VLOOKUP(MONTH($B153),LT!$A$13:$S$21,16) -> 2.273191391 | R153: =(N153)*VLOOKUP(MONTH($B153),LT!$A$50:$C$58,2) -> 6.045199979 | S153: =MIN($O153,R153-T153-U153)*VLOOKUP(MONTH($B153),LT!$A$50:$C$58,2) -> 2.123733661 | T153: =IF(R153>0,MIN($P153,R153),"0")*VLOOKUP(MONTH($B153),LT!$A$50:$C$58,2) -> 2.136978192 | U153: =$N153*(VLOOKUP(MONTH($B153),LT!$A$27:$W$35,12))/LT!$G$7*VLOOKUP(MONTH($B153),LT!$A$50:$C$58,2) -> 1.784488125 | V153: =(N153)*VLOOKUP(MONTH($B153),LT!$A$50:$C$58,3) -> 0 | W153: =MIN($O153,V153-X153-Y153)*VLOOKUP(MONTH($B153),LT!$A$50:$C$58,3) -> 0 | X153: =IF(V153>0,MIN($P153,V153),"0")*VLOOKUP(MONTH($B153),LT!$A$50:$C$58,3) -> 0 | Y153: =$N153*(VLOOKUP(MONTH($B153),LT!$A$27:$W$35,12))/LT!$G$7*VLOOKUP(MONTH($B153),LT!$A$50:$C$58,3) -> 0 | Z153: =U153*LT!$H$79 -> 0.02230610156 | AA153: =Y153*LT!$H$80 -> 0 | AB153: 0.02230610156 | AC153: 1.784488125 | AD153: 0 | AE153: 4.410169583 | AF153: 3.921466318 | AG153: -0.466397164 | AH153: =LT!$H$79*(S153-Z153) -> 0.02626784449 | AI153: =LT!$H$80*(W153-AA153) -> 0 | AJ153: 2.075159715 | AK153: 0 | AL153: 2.075159715 | AM153: 1 | AN153: 2.075159715 | AO153: 0 | AP153: =VLOOKUP(MONTH($B153),LT!$A$27:$W$35,21)+VLOOKUP(MONTH($B153),LT!$A$27:$W$35,22)/(1-LT!$H$80) -> 58.5621216 | AQ153: =IF(Q153=0,"-",(AC153+AD153)/(N153/LT!$G$7)) -> 187.4462323 | AS153: 2.075159715 | AT153: 1.867643743
A154: 7 | B154: ='Actual Accting'!B154 -> 2019-07-14 | C154: ='Actual Accting'!C154 -> 0 | D154: ='Actual Accting'!D154 -> 0 | E154: =HLOOKUP(MONTH($B154),LT!$B$93:$N$95,3) -> 215.144803 | F154: ='Actual Accting'!F154 -> 0 | G154: - | H154: - | I154: - | J154: - | K154: - | L154: - | M154: =(E154)*LT!$G$7/LT!$A$7 -> 7.321379954 | N154: =M154*(1-LT!$G$44) -> 6.045199979 | O154: =$N154*VLOOKUP(MONTH($B154),LT!$A$13:$S$21,14) -> 2.136978192 | P154: =$N154*VLOOKUP(MONTH($B154),LT!$A$13:$S$21,15) -> 2.136978192 | Q154: =$N154*VLOOKUP(MONTH($B154),LT!$A$13:$S$21,16) -> 2.273191391 | R154: =(N154)*VLOOKUP(MONTH($B154),LT!$A$50:$C$58,2) -> 6.045199979 | S154: =MIN($O154,R154-T154-U154)*VLOOKUP(MONTH($B154),LT!$A$50:$C$58,2) -> 2.123733661 | T154: =IF(R154>0,MIN($P154,R154),"0")*VLOOKUP(MONTH($B154),LT!$A$50:$C$58,2) -> 2.136978192 | U154: =$N154*(VLOOKUP(MONTH($B154),LT!$A$27:$W$35,12))/LT!$G$7*VLOOKUP(MONTH($B154),LT!$A$50:$C$58,2) -> 1.784488125 | V154: =(N154)*VLOOKUP(MONTH($B154),LT!$A$50:$C$58,3) -> 0 | W154: =MIN($O154,V154-X154-Y154)*VLOOKUP(MONTH($B154),LT!$A$50:$C$58,3) -> 0 | X154: =IF(V154>0,MIN($P154,V154),"0")*VLOOKUP(MONTH($B154),LT!$A$50:$C$58,3) -> 0 | Y154: =$N154*(VLOOKUP(MONTH($B154),LT!$A$27:$W$35,12))/LT!$G$7*VLOOKUP(MONTH($B154),LT!$A$50:$C$58,3) -> 0 | Z154: =U154*LT!$H$79 -> 0.02230610156 | AA154: =Y154*LT!$H$80 -> 0 | AB154: 0.02230610156 | AC154: 1.784488125 | AD154: 0 | AE154: 4.410169583 | AF154: 3.921466318 | AG154: -0.466397164 | AH154: =LT!$H$79*(S154-Z154) -> 0.02626784449 | AI154: =LT!$H$80*(W154-AA154) -> 0 | AJ154: 2.075159715 | AK154: 0 | AL154: 2.075159715 | AM154: 1 | AN154: 2.075159715 | AO154: 0 | AP154: =VLOOKUP(MONTH($B154),LT!$A$27:$W$35,21)+VLOOKUP(MONTH($B154),LT!$A$27:$W$35,22)/(1-LT!$H$80) -> 58.5621216 | AQ154: =IF(Q154=0,"-",(AC154+AD154)/(N154/LT!$G$7)) -> 187.4462323 | AS154: 2.075159715 | AT154: 1.867643743
A155: 7 | B155: ='Actual Accting'!B155 -> 2019-07-15 | C155: ='Actual Accting'!C155 -> 0 | D155: ='Actual Accting'!D155 -> 0 | E155: =HLOOKUP(MONTH($B155),LT!$B$93:$N$95,3) -> 215.144803 | F155: ='Actual Accting'!F155 -> 0 | G155: - | H155: - | I155: - | J155: - | K155: - | L155: - | M155: =(E155)*LT!$G$7/LT!$A$7 -> 7.321379954 | N155: =M155*(1-LT!$G$44) -> 6.045199979 | O155: =$N155*VLOOKUP(MONTH($B155),LT!$A$13:$S$21,14) -> 2.136978192 | P155: =$N155*VLOOKUP(MONTH($B155),LT!$A$13:$S$21,15) -> 2.136978192 | Q155: =$N155*VLOOKUP(MONTH($B155),LT!$A$13:$S$21,16) -> 2.273191391 | R155: =(N155)*VLOOKUP(MONTH($B155),LT!$A$50:$C$58,2) -> 6.045199979 | S155: =MIN($O155,R155-T155-U155)*VLOOKUP(MONTH($B155),LT!$A$50:$C$58,2) -> 2.123733661 | T155: =IF(R155>0,MIN($P155,R155),"0")*VLOOKUP(MONTH($B155),LT!$A$50:$C$58,2) -> 2.136978192 | U155: =$N155*(VLOOKUP(MONTH($B155),LT!$A$27:$W$35,12))/LT!$G$7*VLOOKUP(MONTH($B155),LT!$A$50:$C$58,2) -> 1.784488125 | V155: =(N155)*VLOOKUP(MONTH($B155),LT!$A$50:$C$58,3) -> 0 | W155: =MIN($O155,V155-X155-Y155)*VLOOKUP(MONTH($B155),LT!$A$50:$C$58,3) -> 0 | X155: =IF(V155>0,MIN($P155,V155),"0")*VLOOKUP(MONTH($B155),LT!$A$50:$C$58,3) -> 0 | Y155: =$N155*(VLOOKUP(MONTH($B155),LT!$A$27:$W$35,12))/LT!$G$7*VLOOKUP(MONTH($B155),LT!$A$50:$C$58,3) -> 0 | Z155: =U155*LT!$H$79 -> 0.02230610156 | AA155: =Y155*LT!$H$80 -> 0 | AB155: 0.02230610156 | AC155: 1.784488125 | AD155: 0 | AE155: 4.410169583 | AF155: 3.921466318 | AG155: -0.466397164 | AH155: =LT!$H$79*(S155-Z155) -> 0.02626784449 | AI155: =LT!$H$80*(W155-AA155) -> 0 | AJ155: 2.075159715 | AK155: 0 | AL155: 2.075159715 | AM155: 1 | AN155: 2.075159715 | AO155: 0 | AP155: =VLOOKUP(MONTH($B155),LT!$A$27:$W$35,21)+VLOOKUP(MONTH($B155),LT!$A$27:$W$35,22)/(1-LT!$H$80) -> 58.5621216 | AQ155: =IF(Q155=0,"-",(AC155+AD155)/(N155/LT!$G$7)) -> 187.4462323 | AS155: 2.075159715 | AT155: 1.867643743
A156: 7 | B156: ='Actual Accting'!B156 -> 2019-07-16 | C156: ='Actual Accting'!C156 -> 0 | D156: ='Actual Accting'!D156 -> 0 | E156: =HLOOKUP(MONTH($B156),LT!$B$93:$N$95,3) -> 215.144803 | F156: ='Actual Accting'!F156 -> 0 | G156: - | H156: - | I156: - | J156: - | K156: - | L156: - | M156: =(E156)*LT!$G$7/LT!$A$7 -> 7.321379954 | N156: =M156*(1-LT!$G$44) -> 6.045199979 | O156: =$N156*VLOOKUP(MONTH($B156),LT!$A$13:$S$21,14) -> 2.136978192 | P156: =$N156*VLOOKUP(MONTH($B156),LT!$A$13:$S$21,15) -> 2.136978192 | Q156: =$N156*VLOOKUP(MONTH($B156),LT!$A$13:$S$21,16) -> 2.273191391 | R156: =(N156)*VLOOKUP(MONTH($B156),LT!$A$50:$C$58,2) -> 6.045199979 | S156: =MIN($O156,R156-T156-U156)*VLOOKUP(MONTH($B156),LT!$A$50:$C$58,2) -> 2.123733661 | T156: =IF(R156>0,MIN($P156,R156),"0")*VLOOKUP(MONTH($B156),LT!$A$50:$C$58,2) -> 2.136978192 | U156: =$N156*(VLOOKUP(MONTH($B156),LT!$A$27:$W$35,12))/LT!$G$7*VLOOKUP(MONTH($B156),LT!$A$50:$C$58,2) -> 1.784488125 | V156: =(N156)*VLOOKUP(MONTH($B156),LT!$A$50:$C$58,3) -> 0 | W156: =MIN($O156,V156-X156-Y156)*VLOOKUP(MONTH($B156),LT!$A$50:$C$58,3) -> 0 | X156: =IF(V156>0,MIN($P156,V156),"0")*VLOOKUP(MONTH($B156),LT!$A$50:$C$58,3) -> 0 | Y156: =$N156*(VLOOKUP(MONTH($B156),LT!$A$27:$W$35,12))/LT!$G$7*VLOOKUP(MONTH($B156),LT!$A$50:$C$58,3) -> 0 | Z156: =U156*LT!$H$79 -> 0.02230610156 | AA156: =Y156*LT!$H$80 -> 0 | AB156: 0.02230610156 | AC156: 1.784488125 | AD156: 0 | AE156: 4.410169583 | AF156: 3.921466318 | AG156: -0.466397164 | AH156: =LT!$H$79*(S156-Z156) -> 0.02626784449 | AI156: =LT!$H$80*(W156-AA156) -> 0 | AJ156: 2.075159715 | AK156: 0 | AL156: 2.075159715 | AM156: 1 | AN156: 2.075159715 | AO156: 0 | AP156: =VLOOKUP(MONTH($B156),LT!$A$27:$W$35,21)+VLOOKUP(MONTH($B156),LT!$A$27:$W$35,22)/(1-LT!$H$80) -> 58.5621216 | AQ156: =IF(Q156=0,"-",(AC156+AD156)/(N156/LT!$G$7)) -> 187.4462323 | AS156: 2.075159715 | AT156: 1.867643743
A157: 7 | B157: ='Actual Accting'!B157 -> 2019-07-17 | C157: ='Actual Accting'!C157 -> 0 | D157: ='Actual Accting'!D157 -> 0 | E157: =HLOOKUP(MONTH($B157),LT!$B$93:$N$95,3) -> 215.144803 | F157: ='Actual Accting'!F157 -> 0 | G157: - | H157: - | I157: - | J157: - | K157: - | L157: - | M157: =(E157)*LT!$G$7/LT!$A$7 -> 7.321379954 | N157: =M157*(1-LT!$G$44) -> 6.045199979 | O157: =$N157*VLOOKUP(MONTH($B157),LT!$A$13:$S$21,14) -> 2.136978192 | P157: =$N157*VLOOKUP(MONTH($B157),LT!$A$13:$S$21,15) -> 2.136978192 | Q157: =$N157*VLOOKUP(MONTH($B157),LT!$A$13:$S$21,16) -> 2.273191391 | R157: =(N157)*VLOOKUP(MONTH($B157),LT!$A$50:$C$58,2) -> 6.045199979 | S157: =MIN($O157,R157-T157-U157)*VLOOKUP(MONTH($B157),LT!$A$50:$C$58,2) -> 2.123733661 | T157: =IF(R157>0,MIN($P157,R157),"0")*VLOOKUP(MONTH($B157),LT!$A$50:$C$58,2) -> 2.136978192 | U157: =$N157*(VLOOKUP(MONTH($B157),LT!$A$27:$W$35,12))/LT!$G$7*VLOOKUP(MONTH($B157),LT!$A$50:$C$58,2) -> 1.784488125 | V157: =(N157)*VLOOKUP(MONTH($B157),LT!$A$50:$C$58,3) -> 0 | W157: =MIN($O157,V157-X157-Y157)*VLOOKUP(MONTH($B157),LT!$A$50:$C$58,3) -> 0 | X157: =IF(V157>0,MIN($P157,V157),"0")*VLOOKUP(MONTH($B157),LT!$A$50:$C$58,3) -> 0 | Y157: =$N157*(VLOOKUP(MONTH($B157),LT!$A$27:$W$35,12))/LT!$G$7*VLOOKUP(MONTH($B157),LT!$A$50:$C$58,3) -> 0 | Z157: =U157*LT!$H$79 -> 0.02230610156 | AA157: =Y157*LT!$H$80 -> 0 | AB157: 0.02230610156 | AC157: 1.784488125 | AD157: 0 | AE157: 4.410169583 | AF157: 3.921466318 | AG157: -0.466397164 | AH157: =LT!$H$79*(S157-Z157) -> 0.02626784449 | AI157: =LT!$H$80*(W157-AA157) -> 0 | AJ157: 2.075159715 | AK157: 0 | AL157: 2.075159715 | AM157: 1 | AN157: 2.075159715 | AO157: 0 | AP157: =VLOOKUP(MONTH($B157),LT!$A$27:$W$35,21)+VLOOKUP(MONTH($B157),LT!$A$27:$W$35,22)/(1-LT!$H$80) -> 58.5621216 | AQ157: =IF(Q157=0,"-",(AC157+AD157)/(N157/LT!$G$7)) -> 187.4462323 | AS157: 2.075159715 | AT157: 1.867643743
A158: 7 | B158: ='Actual Accting'!B158 -> 2019-07-18 | C158: ='Actual Accting'!C158 -> 0 | D158: ='Actual Accting'!D158 -> 0 | E158: =HLOOKUP(MONTH($B158),LT!$B$93:$N$95,3) -> 215.144803 | F158: ='Actual Accting'!F158 -> 0 | G158: - | H158: - | I158: - | J158: - | K158: - | L158: - | M158: =(E158)*LT!$G$7/LT!$A$7 -> 7.321379954 | N158: =M158*(1-LT!$G$44) -> 6.045199979 | O158: =$N158*VLOOKUP(MONTH($B158),LT!$A$13:$S$21,14) -> 2.136978192 | P158: =$N158*VLOOKUP(MONTH($B158),LT!$A$13:$S$21,15) -> 2.136978192 | Q158: =$N158*VLOOKUP(MONTH($B158),LT!$A$13:$S$21,16) -> 2.273191391 | R158: =(N158)*VLOOKUP(MONTH($B158),LT!$A$50:$C$58,2) -> 6.045199979 | S158: =MIN($O158,R158-T158-U158)*VLOOKUP(MONTH($B158),LT!$A$50:$C$58,2) -> 2.123733661 | T158: =IF(R158>0,MIN($P158,R158),"0")*VLOOKUP(MONTH($B158),LT!$A$50:$C$58,2) -> 2.136978192 | U158: =$N158*(VLOOKUP(MONTH($B158),LT!$A$27:$W$35,12))/LT!$G$7*VLOOKUP(MONTH($B158),LT!$A$50:$C$58,2) -> 1.784488125 | V158: =(N158)*VLOOKUP(MONTH($B158),LT!$A$50:$C$58,3) -> 0 | W158: =MIN($O158,V158-X158-Y158)*VLOOKUP(MONTH($B158),LT!$A$50:$C$58,3) -> 0 | X158: =IF(V158>0,MIN($P158,V158),"0")*VLOOKUP(MONTH($B158),LT!$A$50:$C$58,3) -> 0 | Y158: =$N158*(VLOOKUP(MONTH($B158),LT!$A$27:$W$35,12))/LT!$G$7*VLOOKUP(MONTH($B158),LT!$A$50:$C$58,3) -> 0 | Z158: =U158*LT!$H$79 -> 0.02230610156 | AA158: =Y158*LT!$H$80 -> 0 | AB158: 0.02230610156 | AC158: 1.784488125 | AD158: 0 | AE158: 4.410169583 | AF158: 3.921466318 | AG158: -0.466397164 | AH158: =LT!$H$79*(S158-Z158) -> 0.02626784449 | AI158: =LT!$H$80*(W158-AA158) -> 0 | AJ158: 2.075159715 | AK158: 0 | AL158: 2.075159715 | AM158: 1 | AN158: 2.075159715 | AO158: 0 | AP158: =VLOOKUP(MONTH($B158),LT!$A$27:$W$35,21)+VLOOKUP(MONTH($B158),LT!$A$27:$W$35,22)/(1-LT!$H$80) -> 58.5621216 | AQ158: =IF(Q158=0,"-",(AC158+AD158)/(N158/LT!$G$7)) -> 187.4462323 | AS158: 2.075159715 | AT158: 1.867643743
A159: 7 | B159: ='Actual Accting'!B159 -> 2019-07-19 | C159: ='Actual Accting'!C159 -> 0 | D159: ='Actual Accting'!D159 -> 0 | E159: =HLOOKUP(MONTH($B159),LT!$B$93:$N$95,3) -> 215.144803 | F159: ='Actual Accting'!F159 -> 0 | G159: - | H159: - | I159: - | J159: - | K159: - | L159: - | M159: =(E159)*LT!$G$7/LT!$A$7 -> 7.321379954 | N159: =M159*(1-LT!$G$44) -> 6.045199979 | O159: =$N159*VLOOKUP(MONTH($B159),LT!$A$13:$S$21,14) -> 2.136978192 | P159: =$N159*VLOOKUP(MONTH($B159),LT!$A$13:$S$21,15) -> 2.136978192 | Q159: =$N159*VLOOKUP(MONTH($B159),LT!$A$13:$S$21,16) -> 2.273191391 | R159: =(N159)*VLOOKUP(MONTH($B159),LT!$A$50:$C$58,2) -> 6.045199979 | S159: =MIN($O159,R159-T159-U159)*VLOOKUP(MONTH($B159),LT!$A$50:$C$58,2) -> 2.123733661 | T159: =IF(R159>0,MIN($P159,R159),"0")*VLOOKUP(MONTH($B159),LT!$A$50:$C$58,2) -> 2.136978192 | U159: =$N159*(VLOOKUP(MONTH($B159),LT!$A$27:$W$35,12))/LT!$G$7*VLOOKUP(MONTH($B159),LT!$A$50:$C$58,2) -> 1.784488125 | V159: =(N159)*VLOOKUP(MONTH($B159),LT!$A$50:$C$58,3) -> 0 | W159: =MIN($O159,V159-X159-Y159)*VLOOKUP(MONTH($B159),LT!$A$50:$C$58,3) -> 0 | X159: =IF(V159>0,MIN($P159,V159),"0")*VLOOKUP(MONTH($B159),LT!$A$50:$C$58,3) -> 0 | Y159: =$N159*(VLOOKUP(MONTH($B159),LT!$A$27:$W$35,12))/LT!$G$7*VLOOKUP(MONTH($B159),LT!$A$50:$C$58,3) -> 0 | Z159: =U159*LT!$H$79 -> 0.02230610156 | AA159: =Y159*LT!$H$80 -> 0 | AB159: 0.02230610156 | AC159: 1.784488125 | AD159: 0 | AE159: 4.410169583 | AF159: 3.921466318 | AG159: -0.466397164 | AH159: =LT!$H$79*(S159-Z159) -> 0.02626784449 | AI159: =LT!$H$80*(W159-AA159) -> 0 | AJ159: 2.075159715 | AK159: 0 | AL159: 2.075159715 | AM159: 1 | AN159: 2.075159715 | AO159: 0 | AP159: =VLOOKUP(MONTH($B159),LT!$A$27:$W$35,21)+VLOOKUP(MONTH($B159),LT!$A$27:$W$35,22)/(1-LT!$H$80) -> 58.5621216 | AQ159: =IF(Q159=0,"-",(AC159+AD159)/(N159/LT!$G$7)) -> 187.4462323 | AS159: 2.075159715 | AT159: 1.867643743
A160: 7 | B160: ='Actual Accting'!B160 -> 2019-07-20 | C160: ='Actual Accting'!C160 -> 0 | D160: ='Actual Accting'!D160 -> 0 | E160: =HLOOKUP(MONTH($B160),LT!$B$93:$N$95,3) -> 215.144803 | F160: ='Actual Accting'!F160 -> 0 | G160: - | H160: - | I160: - | J160: - | K160: - | L160: - | M160: =(E160)*LT!$G$7/LT!$A$7 -> 7.321379954 | N160: =M160*(1-LT!$G$44) -> 6.045199979 | O160: =$N160*VLOOKUP(MONTH($B160),LT!$A$13:$S$21,14) -> 2.136978192 | P160: =$N160*VLOOKUP(MONTH($B160),LT!$A$13:$S$21,15) -> 2.136978192 | Q160: =$N160*VLOOKUP(MONTH($B160),LT!$A$13:$S$21,16) -> 2.273191391 | R160: =(N160)*VLOOKUP(MONTH($B160),LT!$A$50:$C$58,2) -> 6.045199979 | S160: =MIN($O160,R160-T160-U160)*VLOOKUP(MONTH($B160),LT!$A$50:$C$58,2) -> 2.123733661 | T160: =IF(R160>0,MIN($P160,R160),"0")*VLOOKUP(MONTH($B160),LT!$A$50:$C$58,2) -> 2.136978192 | U160: =$N160*(VLOOKUP(MONTH($B160),LT!$A$27:$W$35,12))/LT!$G$7*VLOOKUP(MONTH($B160),LT!$A$50:$C$58,2) -> 1.784488125 | V160: =(N160)*VLOOKUP(MONTH($B160),LT!$A$50:$C$58,3) -> 0 | W160: =MIN($O160,V160-X160-Y160)*VLOOKUP(MONTH($B160),LT!$A$50:$C$58,3) -> 0 | X160: =IF(V160>0,MIN($P160,V160),"0")*VLOOKUP(MONTH($B160),LT!$A$50:$C$58,3) -> 0 | Y160: =$N160*(VLOOKUP(MONTH($B160),LT!$A$27:$W$35,12))/LT!$G$7*VLOOKUP(MONTH($B160),LT!$A$50:$C$58,3) -> 0 | Z160: =U160*LT!$H$79 -> 0.02230610156 | AA160: =Y160*LT!$H$80 -> 0 | AB160: 0.02230610156 | AC160: 1.784488125 | AD160: 0 | AE160: 4.410169583 | AF160: 3.921466318 | AG160: -0.466397164 | AH160: =LT!$H$79*(S160-Z160) -> 0.02626784449 | AI160: =LT!$H$80*(W160-AA160) -> 0 | AJ160: 2.075159715 | AK160: 0 | AL160: 2.075159715 | AM160: 1 | AN160: 2.075159715 | AO160: 0 | AP160: =VLOOKUP(MONTH($B160),LT!$A$27:$W$35,21)+VLOOKUP(MONTH($B160),LT!$A$27:$W$35,22)/(1-LT!$H$80) -> 58.5621216 | AQ160: =IF(Q160=0,"-",(AC160+AD160)/(N160/LT!$G$7)) -> 187.4462323 | AS160: 2.075159715 | AT160: 1.867643743
A161: 7 | B161: ='Actual Accting'!B161 -> 2019-07-21 | C161: ='Actual Accting'!C161 -> 0 | D161: ='Actual Accting'!D161 -> 0 | E161: =HLOOKUP(MONTH($B161),LT!$B$93:$N$95,3) -> 215.144803 | F161: ='Actual Accting'!F161 -> 0 | G161: - | H161: - | I161: - | J161: - | K161: - | L161: - | M161: =(E161)*LT!$G$7/LT!$A$7 -> 7.321379954 | N161: =M161*(1-LT!$G$44) -> 6.045199979 | O161: =$N161*VLOOKUP(MONTH($B161),LT!$A$13:$S$21,14) -> 2.136978192 | P161: =$N161*VLOOKUP(MONTH($B161),LT!$A$13:$S$21,15) -> 2.136978192 | Q161: =$N161*VLOOKUP(MONTH($B161),LT!$A$13:$S$21,16) -> 2.273191391 | R161: =(N161)*VLOOKUP(MONTH($B161),LT!$A$50:$C$58,2) -> 6.045199979 | S161: =MIN($O161,R161-T161-U161)*VLOOKUP(MONTH($B161),LT!$A$50:$C$58,2) -> 2.123733661 | T161: =IF(R161>0,MIN($P161,R161),"0")*VLOOKUP(MONTH($B161),LT!$A$50:$C$58,2) -> 2.136978192 | U161: =$N161*(VLOOKUP(MONTH($B161),LT!$A$27:$W$35,12))/LT!$G$7*VLOOKUP(MONTH($B161),LT!$A$50:$C$58,2) -> 1.784488125 | V161: =(N161)*VLOOKUP(MONTH($B161),LT!$A$50:$C$58,3) -> 0 | W161: =MIN($O161,V161-X161-Y161)*VLOOKUP(MONTH($B161),LT!$A$50:$C$58,3) -> 0 | X161: =IF(V161>0,MIN($P161,V161),"0")*VLOOKUP(MONTH($B161),LT!$A$50:$C$58,3) -> 0 | Y161: =$N161*(VLOOKUP(MONTH($B161),LT!$A$27:$W$35,12))/LT!$G$7*VLOOKUP(MONTH($B161),LT!$A$50:$C$58,3) -> 0 | Z161: =U161*LT!$H$79 -> 0.02230610156 | AA161: =Y161*LT!$H$80 -> 0 | AB161: =SUM(Z161:AA161) -> 0.02230610156 | AC161: =U161 -> 1.784488125 | AD161: =Y161 -> 0 | AE161: =P161+Q161 -> 4.410169583 | AF161: 3.921466318 | AG161: =AF161+AB161-AE161 -> -0.466397164 | AH161: =LT!$H$79*(S161-Z161) -> 0.02626784449 | AI161: =LT!$H$80*(W161-AA161) -> 0 | AJ161: =S161-AH161-Z161 -> 2.075159715 | AK161: =W161-AI161-AA161 -> 0 | AL161: =AJ161+AK161 -> 2.075159715 | AM161: 1 | AN161: =AJ161*AM161 -> 2.075159715 | AO161: =AK161*AM161 -> 0 | AP161: =VLOOKUP(MONTH($B161),LT!$A$27:$W$35,21)+VLOOKUP(MONTH($B161),LT!$A$27:$W$35,22)/(1-LT!$H$80) -> 58.5621216 | AQ161: =IF(Q161=0,"-",(AC161+AD161)/(N161/LT!$G$7)) -> 187.4462323 | AS161: =AN161 -> 2.075159715 | AT161: =AS161*0.9 -> 1.867643743
A162: 7 | B162: ='Actual Accting'!B162 -> 2019-07-22 | C162: ='Actual Accting'!C162 -> 0 | D162: ='Actual Accting'!D162 -> 0 | E162: =HLOOKUP(MONTH($B162),LT!$B$93:$N$95,3) -> 215.144803 | F162: ='Actual Accting'!F162 -> 0 | G162: - | H162: - | I162: - | J162: - | K162: - | L162: - | M162: =(E162)*LT!$G$7/LT!$A$7 -> 7.321379954 | N162: =M162*(1-LT!$G$44) -> 6.045199979 | O162: =$N162*VLOOKUP(MONTH($B162),LT!$A$13:$S$21,14) -> 2.136978192 | P162: =$N162*VLOOKUP(MONTH($B162),LT!$A$13:$S$21,15) -> 2.136978192 | Q162: =$N162*VLOOKUP(MONTH($B162),LT!$A$13:$S$21,16) -> 2.273191391 | R162: =(N162)*VLOOKUP(MONTH($B162),LT!$A$50:$C$58,2) -> 6.045199979 | S162: =MIN($O162,R162-T162-U162)*VLOOKUP(MONTH($B162),LT!$A$50:$C$58,2) -> 2.123733661 | T162: =IF(R162>0,MIN($P162,R162),"0")*VLOOKUP(MONTH($B162),LT!$A$50:$C$58,2) -> 2.136978192 | U162: =$N162*(VLOOKUP(MONTH($B162),LT!$A$27:$W$35,12))/LT!$G$7*VLOOKUP(MONTH($B162),LT!$A$50:$C$58,2) -> 1.784488125 | V162: =(N162)*VLOOKUP(MONTH($B162),LT!$A$50:$C$58,3) -> 0 | W162: =MIN($O162,V162-X162-Y162)*VLOOKUP(MONTH($B162),LT!$A$50:$C$58,3) -> 0 | X162: =IF(V162>0,MIN($P162,V162),"0")*VLOOKUP(MONTH($B162),LT!$A$50:$C$58,3) -> 0 | Y162: =$N162*(VLOOKUP(MONTH($B162),LT!$A$27:$W$35,12))/LT!$G$7*VLOOKUP(MONTH($B162),LT!$A$50:$C$58,3) -> 0 | Z162: =U162*LT!$H$79 -> 0.02230610156 | AA162: =Y162*LT!$H$80 -> 0 | AB162: 0.02230610156 | AC162: 1.784488125 | AD162: 0 | AE162: 4.410169583 | AF162: =SUM(T162,AC162,X162,AD162) -> 3.921466318 | AG162: -0.466397164 | AH162: =LT!$H$79*(S162-Z162) -> 0.02626784449 | AI162: =LT!$H$80*(W162-AA162) -> 0 | AJ162: 2.075159715 | AK162: 0 | AL162: 2.075159715 | AM162: 1 | AN162: 2.075159715 | AO162: 0 | AP162: =VLOOKUP(MONTH($B162),LT!$A$27:$W$35,21)+VLOOKUP(MONTH($B162),LT!$A$27:$W$35,22)/(1-LT!$H$80) -> 58.5621216 | AQ162: =IF(Q162=0,"-",(AC162+AD162)/(N162/LT!$G$7)) -> 187.4462323 | AS162: 2.075159715 | AT162: 1.867643743
A163: 7 | B163: ='Actual Accting'!B163 -> 2019-07-23 | C163: ='Actual Accting'!C163 -> 0 | D163: ='Actual Accting'!D163 -> 0 | E163: =HLOOKUP(MONTH($B163),LT!$B$93:$N$95,3) -> 215.144803 | F163: ='Actual Accting'!F163 -> 0 | G163: - | H163: - | I163: - | J163: - | K163: - | L163: - | M163: =(E163)*LT!$G$7/LT!$A$7 -> 7.321379954 | N163: =M163*(1-LT!$G$44) -> 6.045199979 | O163: =$N163*VLOOKUP(MONTH($B163),LT!$A$13:$S$21,14) -> 2.136978192 | P163: =$N163*VLOOKUP(MONTH($B163),LT!$A$13:$S$21,15) -> 2.136978192 | Q163: =$N163*VLOOKUP(MONTH($B163),LT!$A$13:$S$21,16) -> 2.273191391 | R163: =(N163)*VLOOKUP(MONTH($B163),LT!$A$50:$C$58,2) -> 6.045199979 | S163: =MIN($O163,R163-T163-U163)*VLOOKUP(MONTH($B163),LT!$A$50:$C$58,2) -> 2.123733661 | T163: =IF(R163>0,MIN($P163,R163),"0")*VLOOKUP(MONTH($B163),LT!$A$50:$C$58,2) -> 2.136978192 | U163: =$N163*(VLOOKUP(MONTH($B163),LT!$A$27:$W$35,12))/LT!$G$7*VLOOKUP(MONTH($B163),LT!$A$50:$C$58,2) -> 1.784488125 | V163: =(N163)*VLOOKUP(MONTH($B163),LT!$A$50:$C$58,3) -> 0 | W163: =MIN($O163,V163-X163-Y163)*VLOOKUP(MONTH($B163),LT!$A$50:$C$58,3) -> 0 | X163: =IF(V163>0,MIN($P163,V163),"0")*VLOOKUP(MONTH($B163),LT!$A$50:$C$58,3) -> 0 | Y163: =$N163*(VLOOKUP(MONTH($B163),LT!$A$27:$W$35,12))/LT!$G$7*VLOOKUP(MONTH($B163),LT!$A$50:$C$58,3) -> 0 | Z163: =U163*LT!$H$79 -> 0.02230610156 | AA163: =Y163*LT!$H$80 -> 0 | AB163: 0.02230610156 | AC163: 1.784488125 | AD163: 0 | AE163: 4.410169583 | AF163: 3.921466318 | AG163: -0.466397164 | AH163: =LT!$H$79*(S163-Z163) -> 0.02626784449 | AI163: =LT!$H$80*(W163-AA163) -> 0 | AJ163: 2.075159715 | AK163: 0 | AL163: 2.075159715 | AM163: 1 | AN163: 2.075159715 | AO163: 0 | AP163: =VLOOKUP(MONTH($B163),LT!$A$27:$W$35,21)+VLOOKUP(MONTH($B163),LT!$A$27:$W$35,22)/(1-LT!$H$80) -> 58.5621216 | AQ163: =IF(Q163=0,"-",(AC163+AD163)/(N163/LT!$G$7)) -> 187.4462323 | AS163: 2.075159715 | AT163: 1.867643743
A164: 7 | B164: ='Actual Accting'!B164 -> 2019-07-24 | C164: ='Actual Accting'!C164 -> 0 | D164: ='Actual Accting'!D164 -> 0 | E164: =HLOOKUP(MONTH($B164),LT!$B$93:$N$95,3) -> 215.144803 | F164: ='Actual Accting'!F164 -> 0 | G164: - | H164: - | I164: - | J164: - | K164: - | L164: - | M164: =(E164)*LT!$G$7/LT!$A$7 -> 7.321379954 | N164: =M164*(1-LT!$G$44) -> 6.045199979 | O164: =$N164*VLOOKUP(MONTH($B164),LT!$A$13:$S$21,14) -> 2.136978192 | P164: =$N164*VLOOKUP(MONTH($B164),LT!$A$13:$S$21,15) -> 2.136978192 | Q164: =$N164*VLOOKUP(MONTH($B164),LT!$A$13:$S$21,16) -> 2.273191391 | R164: =(N164)*VLOOKUP(MONTH($B164),LT!$A$50:$C$58,2) -> 6.045199979 | S164: =MIN($O164,R164-T164-U164)*VLOOKUP(MONTH($B164),LT!$A$50:$C$58,2) -> 2.123733661 | T164: =IF(R164>0,MIN($P164,R164),"0")*VLOOKUP(MONTH($B164),LT!$A$50:$C$58,2) -> 2.136978192 | U164: =$N164*(VLOOKUP(MONTH($B164),LT!$A$27:$W$35,12))/LT!$G$7*VLOOKUP(MONTH($B164),LT!$A$50:$C$58,2) -> 1.784488125 | V164: =(N164)*VLOOKUP(MONTH($B164),LT!$A$50:$C$58,3) -> 0 | W164: =MIN($O164,V164-X164-Y164)*VLOOKUP(MONTH($B164),LT!$A$50:$C$58,3) -> 0 | X164: =IF(V164>0,MIN($P164,V164),"0")*VLOOKUP(MONTH($B164),LT!$A$50:$C$58,3) -> 0 | Y164: =$N164*(VLOOKUP(MONTH($B164),LT!$A$27:$W$35,12))/LT!$G$7*VLOOKUP(MONTH($B164),LT!$A$50:$C$58,3) -> 0 | Z164: =U164*LT!$H$79 -> 0.02230610156 | AA164: =Y164*LT!$H$80 -> 0 | AB164: 0.02230610156 | AC164: 1.784488125 | AD164: 0 | AE164: 4.410169583 | AF164: 3.921466318 | AG164: -0.466397164 | AH164: =LT!$H$79*(S164-Z164) -> 0.02626784449 | AI164: =LT!$H$80*(W164-AA164) -> 0 | AJ164: 2.075159715 | AK164: 0 | AL164: 2.075159715 | AM164: 1 | AN164: 2.075159715 | AO164: 0 | AP164: =VLOOKUP(MONTH($B164),LT!$A$27:$W$35,21)+VLOOKUP(MONTH($B164),LT!$A$27:$W$35,22)/(1-LT!$H$80) -> 58.5621216 | AQ164: =IF(Q164=0,"-",(AC164+AD164)/(N164/LT!$G$7)) -> 187.4462323 | AS164: 2.075159715 | AT164: 1.867643743
A165: 7 | B165: ='Actual Accting'!B165 -> 2019-07-25 | C165: ='Actual Accting'!C165 -> 0 | D165: ='Actual Accting'!D165 -> 0 | E165: =HLOOKUP(MONTH($B165),LT!$B$93:$N$95,3) -> 215.144803 | F165: ='Actual Accting'!F165 -> 0 | G165: - | H165: - | I165: - | J165: - | K165: - | L165: - | M165: =(E165)*LT!$G$7/LT!$A$7 -> 7.321379954 | N165: =M165*(1-LT!$G$44) -> 6.045199979 | O165: =$N165*VLOOKUP(MONTH($B165),LT!$A$13:$S$21,14) -> 2.136978192 | P165: =$N165*VLOOKUP(MONTH($B165),LT!$A$13:$S$21,15) -> 2.136978192 | Q165: =$N165*VLOOKUP(MONTH($B165),LT!$A$13:$S$21,16) -> 2.273191391 | R165: =(N165)*VLOOKUP(MONTH($B165),LT!$A$50:$C$58,2) -> 6.045199979 | S165: =MIN($O165,R165-T165-U165)*VLOOKUP(MONTH($B165),LT!$A$50:$C$58,2) -> 2.123733661 | T165: =IF(R165>0,MIN($P165,R165),"0")*VLOOKUP(MONTH($B165),LT!$A$50:$C$58,2) -> 2.136978192 | U165: =$N165*(VLOOKUP(MONTH($B165),LT!$A$27:$W$35,12))/LT!$G$7*VLOOKUP(MONTH($B165),LT!$A$50:$C$58,2) -> 1.784488125 | V165: =(N165)*VLOOKUP(MONTH($B165),LT!$A$50:$C$58,3) -> 0 | W165: =MIN($O165,V165-X165-Y165)*VLOOKUP(MONTH($B165),LT!$A$50:$C$58,3) -> 0 | X165: =IF(V165>0,MIN($P165,V165),"0")*VLOOKUP(MONTH($B165),LT!$A$50:$C$58,3) -> 0 | Y165: =$N165*(VLOOKUP(MONTH($B165),LT!$A$27:$W$35,12))/LT!$G$7*VLOOKUP(MONTH($B165),LT!$A$50:$C$58,3) -> 0 | Z165: =U165*LT!$H$79 -> 0.02230610156 | AA165: =Y165*LT!$H$80 -> 0 | AB165: 0.02230610156 | AC165: 1.784488125 | AD165: 0 | AE165: 4.410169583 | AF165: 3.921466318 | AG165: -0.466397164 | AH165: =LT!$H$79*(S165-Z165) -> 0.02626784449 | AI165: =LT!$H$80*(W165-AA165) -> 0 | AJ165: 2.075159715 | AK165: 0 | AL165: 2.075159715 | AM165: 1 | AN165: 2.075159715 | AO165: 0 | AP165: =VLOOKUP(MONTH($B165),LT!$A$27:$W$35,21)+VLOOKUP(MONTH($B165),LT!$A$27:$W$35,22)/(1-LT!$H$80) -> 58.5621216 | AQ165: =IF(Q165=0,"-",(AC165+AD165)/(N165/LT!$G$7)) -> 187.4462323 | AS165: 2.075159715 | AT165: 1.867643743
A166: 7 | B166: ='Actual Accting'!B166 -> 2019-07-26 | C166: ='Actual Accting'!C166 -> 0 | D166: ='Actual Accting'!D166 -> 0 | E166: =HLOOKUP(MONTH($B166),LT!$B$93:$N$95,3) -> 215.144803 | F166: ='Actual Accting'!F166 -> 0 | G166: - | H166: - | I166: - | J166: - | K166: - | L166: - | M166: =(E166)*LT!$G$7/LT!$A$7 -> 7.321379954 | N166: =M166*(1-LT!$G$44) -> 6.045199979 | O166: =$N166*VLOOKUP(MONTH($B166),LT!$A$13:$S$21,14) -> 2.136978192 | P166: =$N166*VLOOKUP(MONTH($B166),LT!$A$13:$S$21,15) -> 2.136978192 | Q166: =$N166*VLOOKUP(MONTH($B166),LT!$A$13:$S$21,16) -> 2.273191391 | R166: =(N166)*VLOOKUP(MONTH($B166),LT!$A$50:$C$58,2) -> 6.045199979 | S166: =MIN($O166,R166-T166-U166)*VLOOKUP(MONTH($B166),LT!$A$50:$C$58,2) -> 2.123733661 | T166: =IF(R166>0,MIN($P166,R166),"0")*VLOOKUP(MONTH($B166),LT!$A$50:$C$58,2) -> 2.136978192 | U166: =$N166*(VLOOKUP(MONTH($B166),LT!$A$27:$W$35,12))/LT!$G$7*VLOOKUP(MONTH($B166),LT!$A$50:$C$58,2) -> 1.784488125 | V166: =(N166)*VLOOKUP(MONTH($B166),LT!$A$50:$C$58,3) -> 0 | W166: =MIN($O166,V166-X166-Y166)*VLOOKUP(MONTH($B166),LT!$A$50:$C$58,3) -> 0 | X166: =IF(V166>0,MIN($P166,V166),"0")*VLOOKUP(MONTH($B166),LT!$A$50:$C$58,3) -> 0 | Y166: =$N166*(VLOOKUP(MONTH($B166),LT!$A$27:$W$35,12))/LT!$G$7*VLOOKUP(MONTH($B166),LT!$A$50:$C$58,3) -> 0 | Z166: =U166*LT!$H$79 -> 0.02230610156 | AA166: =Y166*LT!$H$80 -> 0 | AB166: 0.02230610156 | AC166: 1.784488125 | AD166: 0 | AE166: 4.410169583 | AF166: 3.921466318 | AG166: -0.466397164 | AH166: =LT!$H$79*(S166-Z166) -> 0.02626784449 | AI166: =LT!$H$80*(W166-AA166) -> 0 | AJ166: 2.075159715 | AK166: 0 | AL166: 2.075159715 | AM166: 1 | AN166: 2.075159715 | AO166: 0 | AP166: =VLOOKUP(MONTH($B166),LT!$A$27:$W$35,21)+VLOOKUP(MONTH($B166),LT!$A$27:$W$35,22)/(1-LT!$H$80) -> 58.5621216 | AQ166: =IF(Q166=0,"-",(AC166+AD166)/(N166/LT!$G$7)) -> 187.4462323 | AS166: 2.075159715 | AT166: 1.867643743
A167: 7 | B167: ='Actual Accting'!B167 -> 2019-07-27 | C167: ='Actual Accting'!C167 -> 0 | D167: ='Actual Accting'!D167 -> 0 | E167: =HLOOKUP(MONTH($B167),LT!$B$93:$N$95,3) -> 215.144803 | F167: ='Actual Accting'!F167 -> 0 | G167: - | H167: - | I167: - | J167: - | K167: - | L167: - | M167: =(E167)*LT!$G$7/LT!$A$7 -> 7.321379954 | N167: =M167*(1-LT!$G$44) -> 6.045199979 | O167: =$N167*VLOOKUP(MONTH($B167),LT!$A$13:$S$21,14) -> 2.136978192 | P167: =$N167*VLOOKUP(MONTH($B167),LT!$A$13:$S$21,15) -> 2.136978192 | Q167: =$N167*VLOOKUP(MONTH($B167),LT!$A$13:$S$21,16) -> 2.273191391 | R167: =(N167)*VLOOKUP(MONTH($B167),LT!$A$50:$C$58,2) -> 6.045199979 | S167: =MIN($O167,R167-T167-U167)*VLOOKUP(MONTH($B167),LT!$A$50:$C$58,2) -> 2.123733661 | T167: =IF(R167>0,MIN($P167,R167),"0")*VLOOKUP(MONTH($B167),LT!$A$50:$C$58,2) -> 2.136978192 | U167: =$N167*(VLOOKUP(MONTH($B167),LT!$A$27:$W$35,12))/LT!$G$7*VLOOKUP(MONTH($B167),LT!$A$50:$C$58,2) -> 1.784488125 | V167: =(N167)*VLOOKUP(MONTH($B167),LT!$A$50:$C$58,3) -> 0 | W167: =MIN($O167,V167-X167-Y167)*VLOOKUP(MONTH($B167),LT!$A$50:$C$58,3) -> 0 | X167: =IF(V167>0,MIN($P167,V167),"0")*VLOOKUP(MONTH($B167),LT!$A$50:$C$58,3) -> 0 | Y167: =$N167*(VLOOKUP(MONTH($B167),LT!$A$27:$W$35,12))/LT!$G$7*VLOOKUP(MONTH($B167),LT!$A$50:$C$58,3) -> 0 | Z167: =U167*LT!$H$79 -> 0.02230610156 | AA167: =Y167*LT!$H$80 -> 0 | AB167: 0.02230610156 | AC167: 1.784488125 | AD167: 0 | AE167: 4.410169583 | AF167: 3.921466318 | AG167: -0.466397164 | AH167: =LT!$H$79*(S167-Z167) -> 0.02626784449 | AI167: =LT!$H$80*(W167-AA167) -> 0 | AJ167: 2.075159715 | AK167: 0 | AL167: 2.075159715 | AM167: 1 | AN167: 2.075159715 | AO167: 0 | AP167: =VLOOKUP(MONTH($B167),LT!$A$27:$W$35,21)+VLOOKUP(MONTH($B167),LT!$A$27:$W$35,22)/(1-LT!$H$80) -> 58.5621216 | AQ167: =IF(Q167=0,"-",(AC167+AD167)/(N167/LT!$G$7)) -> 187.4462323 | AS167: 2.075159715 | AT167: 1.867643743
A168: 7 | B168: ='Actual Accting'!B168 -> 2019-07-28 | C168: ='Actual Accting'!C168 -> 0 | D168: ='Actual Accting'!D168 -> 0 | E168: =HLOOKUP(MONTH($B168),LT!$B$93:$N$95,3) -> 215.144803 | F168: ='Actual Accting'!F168 -> 0 | G168: - | H168: - | I168: - | J168: - | K168: - | L168: - | M168: =(E168)*LT!$G$7/LT!$A$7 -> 7.321379954 | N168: =M168*(1-LT!$G$44) -> 6.045199979 | O168: =$N168*VLOOKUP(MONTH($B168),LT!$A$13:$S$21,14) -> 2.136978192 | P168: =$N168*VLOOKUP(MONTH($B168),LT!$A$13:$S$21,15) -> 2.136978192 | Q168: =$N168*VLOOKUP(MONTH($B168),LT!$A$13:$S$21,16) -> 2.273191391 | R168: =(N168)*VLOOKUP(MONTH($B168),LT!$A$50:$C$58,2) -> 6.045199979 | S168: =MIN($O168,R168-T168-U168)*VLOOKUP(MONTH($B168),LT!$A$50:$C$58,2) -> 2.123733661 | T168: =IF(R168>0,MIN($P168,R168),"0")*VLOOKUP(MONTH($B168),LT!$A$50:$C$58,2) -> 2.136978192 | U168: =$N168*(VLOOKUP(MONTH($B168),LT!$A$27:$W$35,12))/LT!$G$7*VLOOKUP(MONTH($B168),LT!$A$50:$C$58,2) -> 1.784488125 | V168: =(N168)*VLOOKUP(MONTH($B168),LT!$A$50:$C$58,3) -> 0 | W168: =MIN($O168,V168-X168-Y168)*VLOOKUP(MONTH($B168),LT!$A$50:$C$58,3) -> 0 | X168: =IF(V168>0,MIN($P168,V168),"0")*VLOOKUP(MONTH($B168),LT!$A$50:$C$58,3) -> 0 | Y168: =$N168*(VLOOKUP(MONTH($B168),LT!$A$27:$W$35,12))/LT!$G$7*VLOOKUP(MONTH($B168),LT!$A$50:$C$58,3) -> 0 | Z168: =U168*LT!$H$79 -> 0.02230610156 | AA168: =Y168*LT!$H$80 -> 0 | AB168: 0.02230610156 | AC168: 1.784488125 | AD168: 0 | AE168: 4.410169583 | AF168: 3.921466318 | AG168: -0.466397164 | AH168: =LT!$H$79*(S168-Z168) -> 0.02626784449 | AI168: =LT!$H$80*(W168-AA168) -> 0 | AJ168: 2.075159715 | AK168: 0 | AL168: 2.075159715 | AM168: 1 | AN168: 2.075159715 | AO168: 0 | AP168: =VLOOKUP(MONTH($B168),LT!$A$27:$W$35,21)+VLOOKUP(MONTH($B168),LT!$A$27:$W$35,22)/(1-LT!$H$80) -> 58.5621216 | AQ168: =IF(Q168=0,"-",(AC168+AD168)/(N168/LT!$G$7)) -> 187.4462323 | AS168: 2.075159715 | AT168: 1.867643743
A169: 7 | B169: ='Actual Accting'!B169 -> 2019-07-29 | C169: ='Actual Accting'!C169 -> 0 | D169: ='Actual Accting'!D169 -> 0 | E169: =HLOOKUP(MONTH($B169),LT!$B$93:$N$95,3) -> 215.144803 | F169: ='Actual Accting'!F169 -> 0 | G169: - | H169: - | I169: - | J169: - | K169: - | L169: - | M169: =(E169)*LT!$G$7/LT!$A$7 -> 7.321379954 | N169: =M169*(1-LT!$G$44) -> 6.045199979 | O169: =$N169*VLOOKUP(MONTH($B169),LT!$A$13:$S$21,14) -> 2.136978192 | P169: =$N169*VLOOKUP(MONTH($B169),LT!$A$13:$S$21,15) -> 2.136978192 | Q169: =$N169*VLOOKUP(MONTH($B169),LT!$A$13:$S$21,16) -> 2.273191391 | R169: =(N169)*VLOOKUP(MONTH($B169),LT!$A$50:$C$58,2) -> 6.045199979 | S169: =MIN($O169,R169-T169-U169)*VLOOKUP(MONTH($B169),LT!$A$50:$C$58,2) -> 2.123733661 | T169: =IF(R169>0,MIN($P169,R169),"0")*VLOOKUP(MONTH($B169),LT!$A$50:$C$58,2) -> 2.136978192 | U169: =$N169*(VLOOKUP(MONTH($B169),LT!$A$27:$W$35,12))/LT!$G$7*VLOOKUP(MONTH($B169),LT!$A$50:$C$58,2) -> 1.784488125 | V169: =(N169)*VLOOKUP(MONTH($B169),LT!$A$50:$C$58,3) -> 0 | W169: =MIN($O169,V169-X169-Y169)*VLOOKUP(MONTH($B169),LT!$A$50:$C$58,3) -> 0 | X169: =IF(V169>0,MIN($P169,V169),"0")*VLOOKUP(MONTH($B169),LT!$A$50:$C$58,3) -> 0 | Y169: =$N169*(VLOOKUP(MONTH($B169),LT!$A$27:$W$35,12))/LT!$G$7*VLOOKUP(MONTH($B169),LT!$A$50:$C$58,3) -> 0 | Z169: =U169*LT!$H$79 -> 0.02230610156 | AA169: =Y169*LT!$H$80 -> 0 | AB169: 0.02230610156 | AC169: 1.784488125 | AD169: 0 | AE169: 4.410169583 | AF169: 3.921466318 | AG169: -0.466397164 | AH169: =LT!$H$79*(S169-Z169) -> 0.02626784449 | AI169: =LT!$H$80*(W169-AA169) -> 0 | AJ169: 2.075159715 | AK169: 0 | AL169: 2.075159715 | AM169: 1 | AN169: 2.075159715 | AO169: 0 | AP169: =VLOOKUP(MONTH($B169),LT!$A$27:$W$35,21)+VLOOKUP(MONTH($B169),LT!$A$27:$W$35,22)/(1-LT!$H$80) -> 58.5621216 | AQ169: =IF(Q169=0,"-",(AC169+AD169)/(N169/LT!$G$7)) -> 187.4462323 | AS169: 2.075159715 | AT169: 1.867643743
A170: 7 | B170: ='Actual Accting'!B170 -> 2019-07-30 | C170: ='Actual Accting'!C170 -> 0 | D170: ='Actual Accting'!D170 -> 0 | E170: =HLOOKUP(MONTH($B170),LT!$B$93:$N$95,3) -> 215.144803 | F170: ='Actual Accting'!F170 -> 0 | G170: - | H170: - | I170: - | J170: - | K170: - | L170: - | M170: =(E170)*LT!$G$7/LT!$A$7 -> 7.321379954 | N170: =M170*(1-LT!$G$44) -> 6.045199979 | O170: =$N170*VLOOKUP(MONTH($B170),LT!$A$13:$S$21,14) -> 2.136978192 | P170: =$N170*VLOOKUP(MONTH($B170),LT!$A$13:$S$21,15) -> 2.136978192 | Q170: =$N170*VLOOKUP(MONTH($B170),LT!$A$13:$S$21,16) -> 2.273191391 | R170: =(N170)*VLOOKUP(MONTH($B170),LT!$A$50:$C$58,2) -> 6.045199979 | S170: =MIN($O170,R170-T170-U170)*VLOOKUP(MONTH($B170),LT!$A$50:$C$58,2) -> 2.123733661 | T170: =IF(R170>0,MIN($P170,R170),"0")*VLOOKUP(MONTH($B170),LT!$A$50:$C$58,2) -> 2.136978192 | U170: =$N170*(VLOOKUP(MONTH($B170),LT!$A$27:$W$35,12))/LT!$G$7*VLOOKUP(MONTH($B170),LT!$A$50:$C$58,2) -> 1.784488125 | V170: =(N170)*VLOOKUP(MONTH($B170),LT!$A$50:$C$58,3) -> 0 | W170: =MIN($O170,V170-X170-Y170)*VLOOKUP(MONTH($B170),LT!$A$50:$C$58,3) -> 0 | X170: =IF(V170>0,MIN($P170,V170),"0")*VLOOKUP(MONTH($B170),LT!$A$50:$C$58,3) -> 0 | Y170: =$N170*(VLOOKUP(MONTH($B170),LT!$A$27:$W$35,12))/LT!$G$7*VLOOKUP(MONTH($B170),LT!$A$50:$C$58,3) -> 0 | Z170: =U170*LT!$H$79 -> 0.02230610156 | AA170: =Y170*LT!$H$80 -> 0 | AB170: 0.02230610156 | AC170: 1.784488125 | AD170: 0 | AE170: 4.410169583 | AF170: 3.921466318 | AG170: -0.466397164 | AH170: =LT!$H$79*(S170-Z170) -> 0.02626784449 | AI170: =LT!$H$80*(W170-AA170) -> 0 | AJ170: 2.075159715 | AK170: 0 | AL170: 2.075159715 | AM170: 1 | AN170: 2.075159715 | AO170: 0 | AP170: =VLOOKUP(MONTH($B170),LT!$A$27:$W$35,21)+VLOOKUP(MONTH($B170),LT!$A$27:$W$35,22)/(1-LT!$H$80) -> 58.5621216 | AQ170: =IF(Q170=0,"-",(AC170+AD170)/(N170/LT!$G$7)) -> 187.4462323 | AS170: 2.075159715 | AT170: 1.867643743
A171: 7 | B171: ='Actual Accting'!B171 -> 2019-07-31 | C171: ='Actual Accting'!C171 -> 0 | D171: ='Actual Accting'!D171 -> 0 | E171: =HLOOKUP(MONTH($B171),LT!$B$93:$N$95,3) -> 215.144803 | F171: ='Actual Accting'!F171 -> 0 | G171: - | H171: - | I171: - | J171: - | K171: - | L171: - | M171: =(E171)*LT!$G$7/LT!$A$7 -> 7.321379954 | N171: =M171*(1-LT!$G$44) -> 6.045199979 | O171: =$N171*VLOOKUP(MONTH($B171),LT!$A$13:$S$21,14) -> 2.136978192 | P171: =$N171*VLOOKUP(MONTH($B171),LT!$A$13:$S$21,15) -> 2.136978192 | Q171: =$N171*VLOOKUP(MONTH($B171),LT!$A$13:$S$21,16) -> 2.273191391 | R171: =(N171)*VLOOKUP(MONTH($B171),LT!$A$50:$C$58,2) -> 6.045199979 | S171: =MIN($O171,R171-T171-U171)*VLOOKUP(MONTH($B171),LT!$A$50:$C$58,2) -> 2.123733661 | T171: =IF(R171>0,MIN($P171,R171),"0")*VLOOKUP(MONTH($B171),LT!$A$50:$C$58,2) -> 2.136978192 | U171: =$N171*(VLOOKUP(MONTH($B171),LT!$A$27:$W$35,12))/LT!$G$7*VLOOKUP(MONTH($B171),LT!$A$50:$C$58,2) -> 1.784488125 | V171: =(N171)*VLOOKUP(MONTH($B171),LT!$A$50:$C$58,3) -> 0 | W171: =MIN($O171,V171-X171-Y171)*VLOOKUP(MONTH($B171),LT!$A$50:$C$58,3) -> 0 | X171: =IF(V171>0,MIN($P171,V171),"0")*VLOOKUP(MONTH($B171),LT!$A$50:$C$58,3) -> 0 | Y171: =$N171*(VLOOKUP(MONTH($B171),LT!$A$27:$W$35,12))/LT!$G$7*VLOOKUP(MONTH($B171),LT!$A$50:$C$58,3) -> 0 | Z171: =U171*LT!$H$79 -> 0.02230610156 | AA171: =Y171*LT!$H$80 -> 0 | AB171: 0.02230610156 | AC171: 1.784488125 | AD171: 0 | AE171: 4.410169583 | AF171: 3.921466318 | AG171: -0.466397164 | AH171: =LT!$H$79*(S171-Z171) -> 0.02626784449 | AI171: =LT!$H$80*(W171-AA171) -> 0 | AJ171: 2.075159715 | AK171: 0 | AL171: 2.075159715 | AM171: 1 | AN171: 2.075159715 | AO171: 0 | AP171: =VLOOKUP(MONTH($B171),LT!$A$27:$W$35,21)+VLOOKUP(MONTH($B171),LT!$A$27:$W$35,22)/(1-LT!$H$80) -> 58.5621216 | AQ171: =IF(Q171=0,"-",(AC171+AD171)/(N171/LT!$G$7)) -> 187.4462323 | AS171: 2.075159715 | AT171: 1.867643743
A172: 8 | B172: ='Actual Accting'!B172 -> 2019-08-01 | C172: ='Actual Accting'!C172 -> 0 | D172: ='Actual Accting'!D172 -> 0 | E172: =HLOOKUP(MONTH($B172),LT!$B$93:$N$95,3) -> 184.2689654 | F172: ='Actual Accting'!F172 -> 0 | G172: - | H172: - | I172: - | J172: - | K172: - | L172: - | M172: =(E172)*LT!$G$7/LT!$A$7 -> 6.270674867 | N172: =M172*(1-LT!$G$44) -> 5.177641894 | O172: =$N172*VLOOKUP(MONTH($B172),LT!$A$13:$S$21,14) -> 1.83029641 | P172: =$N172*VLOOKUP(MONTH($B172),LT!$A$13:$S$21,15) -> 1.83029641 | Q172: =$N172*VLOOKUP(MONTH($B172),LT!$A$13:$S$21,16) -> 1.949578983 | R172: =(N172)*VLOOKUP(MONTH($B172),LT!$A$50:$C$58,2) -> 5.177641894 | S172: =MIN($O172,R172-T172-U172)*VLOOKUP(MONTH($B172),LT!$A$50:$C$58,2) -> 1.763379744 | T172: =IF(R172>0,MIN($P172,R172),"0")*VLOOKUP(MONTH($B172),LT!$A$50:$C$58,2) -> 1.83029641 | U172: =$N172*(VLOOKUP(MONTH($B172),LT!$A$27:$W$35,12))/LT!$G$7*VLOOKUP(MONTH($B172),LT!$A$50:$C$58,2) -> 1.58396574 | V172: =(N172)*VLOOKUP(MONTH($B172),LT!$A$50:$C$58,3) -> 0 | W172: =MIN($O172,V172-X172-Y172)*VLOOKUP(MONTH($B172),LT!$A$50:$C$58,3) -> 0 | X172: =IF(V172>0,MIN($P172,V172),"0")*VLOOKUP(MONTH($B172),LT!$A$50:$C$58,3) -> 0 | Y172: =$N172*(VLOOKUP(MONTH($B172),LT!$A$27:$W$35,12))/LT!$G$7*VLOOKUP(MONTH($B172),LT!$A$50:$C$58,3) -> 0 | Z172: =U172*LT!$H$79 -> 0.01979957175 | AA172: =Y172*LT!$H$80 -> 0 | AB172: 0.01979957175 | AC172: 1.58396574 | AD172: 0 | AE172: 3.779875392 | AF172: 3.41426215 | AG172: -0.3458136706 | AH172: =LT!$H$79*(S172-Z172) -> 0.02179475216 | AI172: =LT!$H$80*(W172-AA172) -> 0 | AJ172: 1.72178542 | AK172: 0 | AL172: 1.72178542 | AM172: 1 | AN172: 1.72178542 | AO172: 0 | AP172: =VLOOKUP(MONTH($B172),LT!$A$27:$W$35,21)+VLOOKUP(MONTH($B172),LT!$A$27:$W$35,22)/(1-LT!$H$80) -> 58.62340095 | AQ172: =IF(Q172=0,"-",(AC172+AD172)/(N172/LT!$G$7)) -> 194.2618407 | AS172: 1.72178542 | AT172: 1.549606878
A173: 8 | B173: ='Actual Accting'!B173 -> 2019-08-02 | C173: ='Actual Accting'!C173 -> 0 | D173: ='Actual Accting'!D173 -> 0 | E173: =HLOOKUP(MONTH($B173),LT!$B$93:$N$95,3) -> 184.2689654 | F173: ='Actual Accting'!F173 -> 0 | G173: - | H173: - | I173: - | J173: - | K173: - | L173: - | M173: =(E173)*LT!$G$7/LT!$A$7 -> 6.270674867 | N173: =M173*(1-LT!$G$44) -> 5.177641894 | O173: =$N173*VLOOKUP(MONTH($B173),LT!$A$13:$S$21,14) -> 1.83029641 | P173: =$N173*VLOOKUP(MONTH($B173),LT!$A$13:$S$21,15) -> 1.83029641 | Q173: =$N173*VLOOKUP(MONTH($B173),LT!$A$13:$S$21,16) -> 1.949578983 | R173: =(N173)*VLOOKUP(MONTH($B173),LT!$A$50:$C$58,2) -> 5.177641894 | S173: =MIN($O173,R173-T173-U173)*VLOOKUP(MONTH($B173),LT!$A$50:$C$58,2) -> 1.763379744 | T173: =IF(R173>0,MIN($P173,R173),"0")*VLOOKUP(MONTH($B173),LT!$A$50:$C$58,2) -> 1.83029641 | U173: =$N173*(VLOOKUP(MONTH($B173),LT!$A$27:$W$35,12))/LT!$G$7*VLOOKUP(MONTH($B173),LT!$A$50:$C$58,2) -> 1.58396574 | V173: =(N173)*VLOOKUP(MONTH($B173),LT!$A$50:$C$58,3) -> 0 | W173: =MIN($O173,V173-X173-Y173)*VLOOKUP(MONTH($B173),LT!$A$50:$C$58,3) -> 0 | X173: =IF(V173>0,MIN($P173,V173),"0")*VLOOKUP(MONTH($B173),LT!$A$50:$C$58,3) -> 0 | Y173: =$N173*(VLOOKUP(MONTH($B173),LT!$A$27:$W$35,12))/LT!$G$7*VLOOKUP(MONTH($B173),LT!$A$50:$C$58,3) -> 0 | Z173: =U173*LT!$H$79 -> 0.01979957175 | AA173: =Y173*LT!$H$80 -> 0 | AB173: 0.01979957175 | AC173: 1.58396574 | AD173: 0 | AE173: 3.779875392 | AF173: 3.41426215 | AG173: -0.3458136706 | AH173: =LT!$H$79*(S173-Z173) -> 0.02179475216 | AI173: =LT!$H$80*(W173-AA173) -> 0 | AJ173: 1.72178542 | AK173: 0 | AL173: 1.72178542 | AM173: 1 | AN173: 1.72178542 | AO173: 0 | AP173: =VLOOKUP(MONTH($B173),LT!$A$27:$W$35,21)+VLOOKUP(MONTH($B173),LT!$A$27:$W$35,22)/(1-LT!$H$80) -> 58.62340095 | AQ173: =IF(Q173=0,"-",(AC173+AD173)/(N173/LT!$G$7)) -> 194.2618407 | AS173: 1.72178542 | AT173: 1.549606878
A174: 8 | B174: ='Actual Accting'!B174 -> 2019-08-03 | C174: ='Actual Accting'!C174 -> 0 | D174: ='Actual Accting'!D174 -> 0 | E174: =HLOOKUP(MONTH($B174),LT!$B$93:$N$95,3) -> 184.2689654 | F174: ='Actual Accting'!F174 -> 0 | G174: - | H174: - | I174: - | J174: - | K174: - | L174: - | M174: =(E174)*LT!$G$7/LT!$A$7 -> 6.270674867 | N174: =M174*(1-LT!$G$44) -> 5.177641894 | O174: =$N174*VLOOKUP(MONTH($B174),LT!$A$13:$S$21,14) -> 1.83029641 | P174: =$N174*VLOOKUP(MONTH($B174),LT!$A$13:$S$21,15) -> 1.83029641 | Q174: =$N174*VLOOKUP(MONTH($B174),LT!$A$13:$S$21,16) -> 1.949578983 | R174: =(N174)*VLOOKUP(MONTH($B174),LT!$A$50:$C$58,2) -> 5.177641894 | S174: =MIN($O174,R174-T174-U174)*VLOOKUP(MONTH($B174),LT!$A$50:$C$58,2) -> 1.763379744 | T174: =IF(R174>0,MIN($P174,R174),"0")*VLOOKUP(MONTH($B174),LT!$A$50:$C$58,2) -> 1.83029641 | U174: =$N174*(VLOOKUP(MONTH($B174),LT!$A$27:$W$35,12))/LT!$G$7*VLOOKUP(MONTH($B174),LT!$A$50:$C$58,2) -> 1.58396574 | V174: =(N174)*VLOOKUP(MONTH($B174),LT!$A$50:$C$58,3) -> 0 | W174: =MIN($O174,V174-X174-Y174)*VLOOKUP(MONTH($B174),LT!$A$50:$C$58,3) -> 0 | X174: =IF(V174>0,MIN($P174,V174),"0")*VLOOKUP(MONTH($B174),LT!$A$50:$C$58,3) -> 0 | Y174: =$N174*(VLOOKUP(MONTH($B174),LT!$A$27:$W$35,12))/LT!$G$7*VLOOKUP(MONTH($B174),LT!$A$50:$C$58,3) -> 0 | Z174: =U174*LT!$H$79 -> 0.01979957175 | AA174: =Y174*LT!$H$80 -> 0 | AB174: 0.01979957175 | AC174: 1.58396574 | AD174: 0 | AE174: 3.779875392 | AF174: 3.41426215 | AG174: -0.3458136706 | AH174: =LT!$H$79*(S174-Z174) -> 0.02179475216 | AI174: =LT!$H$80*(W174-AA174) -> 0 | AJ174: 1.72178542 | AK174: 0 | AL174: 1.72178542 | AM174: 1 | AN174: 1.72178542 | AO174: 0 | AP174: =VLOOKUP(MONTH($B174),LT!$A$27:$W$35,21)+VLOOKUP(MONTH($B174),LT!$A$27:$W$35,22)/(1-LT!$H$80) -> 58.62340095 | AQ174: =IF(Q174=0,"-",(AC174+AD174)/(N174/LT!$G$7)) -> 194.2618407 | AS174: 1.72178542 | AT174: 1.549606878
A175: 8 | B175: ='Actual Accting'!B175 -> 2019-08-04 | C175: ='Actual Accting'!C175 -> 0 | D175: ='Actual Accting'!D175 -> 0 | E175: =HLOOKUP(MONTH($B175),LT!$B$93:$N$95,3) -> 184.2689654 | F175: ='Actual Accting'!F175 -> 0 | G175: - | H175: - | I175: - | J175: - | K175: - | L175: - | M175: =(E175)*LT!$G$7/LT!$A$7 -> 6.270674867 | N175: =M175*(1-LT!$G$44) -> 5.177641894 | O175: =$N175*VLOOKUP(MONTH($B175),LT!$A$13:$S$21,14) -> 1.83029641 | P175: =$N175*VLOOKUP(MONTH($B175),LT!$A$13:$S$21,15) -> 1.83029641 | Q175: =$N175*VLOOKUP(MONTH($B175),LT!$A$13:$S$21,16) -> 1.949578983 | R175: =(N175)*VLOOKUP(MONTH($B175),LT!$A$50:$C$58,2) -> 5.177641894 | S175: =MIN($O175,R175-T175-U175)*VLOOKUP(MONTH($B175),LT!$A$50:$C$58,2) -> 1.763379744 | T175: =IF(R175>0,MIN($P175,R175),"0")*VLOOKUP(MONTH($B175),LT!$A$50:$C$58,2) -> 1.83029641 | U175: =$N175*(VLOOKUP(MONTH($B175),LT!$A$27:$W$35,12))/LT!$G$7*VLOOKUP(MONTH($B175),LT!$A$50:$C$58,2) -> 1.58396574 | V175: =(N175)*VLOOKUP(MONTH($B175),LT!$A$50:$C$58,3) -> 0 | W175: =MIN($O175,V175-X175-Y175)*VLOOKUP(MONTH($B175),LT!$A$50:$C$58,3) -> 0 | X175: =IF(V175>0,MIN($P175,V175),"0")*VLOOKUP(MONTH($B175),LT!$A$50:$C$58,3) -> 0 | Y175: =$N175*(VLOOKUP(MONTH($B175),LT!$A$27:$W$35,12))/LT!$G$7*VLOOKUP(MONTH($B175),LT!$A$50:$C$58,3) -> 0 | Z175: =U175*LT!$H$79 -> 0.01979957175 | AA175: =Y175*LT!$H$80 -> 0 | AB175: 0.01979957175 | AC175: 1.58396574 | AD175: 0 | AE175: 3.779875392 | AF175: 3.41426215 | AG175: -0.3458136706 | AH175: =LT!$H$79*(S175-Z175) -> 0.02179475216 | AI175: =LT!$H$80*(W175-AA175) -> 0 | AJ175: 1.72178542 | AK175: 0 | AL175: 1.72178542 | AM175: 1 | AN175: 1.72178542 | AO175: 0 | AP175: =VLOOKUP(MONTH($B175),LT!$A$27:$W$35,21)+VLOOKUP(MONTH($B175),LT!$A$27:$W$35,22)/(1-LT!$H$80) -> 58.62340095 | AQ175: =IF(Q175=0,"-",(AC175+AD175)/(N175/LT!$G$7)) -> 194.2618407 | AS175: 1.72178542 | AT175: 1.549606878
A176: 8 | B176: ='Actual Accting'!B176 -> 2019-08-05 | C176: ='Actual Accting'!C176 -> 0 | D176: ='Actual Accting'!D176 -> 0 | E176: =HLOOKUP(MONTH($B176),LT!$B$93:$N$95,3) -> 184.2689654 | F176: ='Actual Accting'!F176 -> 0 | G176: - | H176: - | I176: - | J176: - | K176: - | L176: - | M176: =(E176)*LT!$G$7/LT!$A$7 -> 6.270674867 | N176: =M176*(1-LT!$G$44) -> 5.177641894 | O176: =$N176*VLOOKUP(MONTH($B176),LT!$A$13:$S$21,14) -> 1.83029641 | P176: =$N176*VLOOKUP(MONTH($B176),LT!$A$13:$S$21,15) -> 1.83029641 | Q176: =$N176*VLOOKUP(MONTH($B176),LT!$A$13:$S$21,16) -> 1.949578983 | R176: =(N176)*VLOOKUP(MONTH($B176),LT!$A$50:$C$58,2) -> 5.177641894 | S176: =MIN($O176,R176-T176-U176)*VLOOKUP(MONTH($B176),LT!$A$50:$C$58,2) -> 1.763379744 | T176: =IF(R176>0,MIN($P176,R176),"0")*VLOOKUP(MONTH($B176),LT!$A$50:$C$58,2) -> 1.83029641 | U176: =$N176*(VLOOKUP(MONTH($B176),LT!$A$27:$W$35,12))/LT!$G$7*VLOOKUP(MONTH($B176),LT!$A$50:$C$58,2) -> 1.58396574 | V176: =(N176)*VLOOKUP(MONTH($B176),LT!$A$50:$C$58,3) -> 0 | W176: =MIN($O176,V176-X176-Y176)*VLOOKUP(MONTH($B176),LT!$A$50:$C$58,3) -> 0 | X176: =IF(V176>0,MIN($P176,V176),"0")*VLOOKUP(MONTH($B176),LT!$A$50:$C$58,3) -> 0 | Y176: =$N176*(VLOOKUP(MONTH($B176),LT!$A$27:$W$35,12))/LT!$G$7*VLOOKUP(MONTH($B176),LT!$A$50:$C$58,3) -> 0 | Z176: =U176*LT!$H$79 -> 0.01979957175 | AA176: =Y176*LT!$H$80 -> 0 | AB176: 0.01979957175 | AC176: 1.58396574 | AD176: 0 | AE176: 3.779875392 | AF176: 3.41426215 | AG176: -0.3458136706 | AH176: =LT!$H$79*(S176-Z176) -> 0.02179475216 | AI176: =LT!$H$80*(W176-AA176) -> 0 | AJ176: 1.72178542 | AK176: 0 | AL176: 1.72178542 | AM176: 1 | AN176: 1.72178542 | AO176: 0 | AP176: =VLOOKUP(MONTH($B176),LT!$A$27:$W$35,21)+VLOOKUP(MONTH($B176),LT!$A$27:$W$35,22)/(1-LT!$H$80) -> 58.62340095 | AQ176: =IF(Q176=0,"-",(AC176+AD176)/(N176/LT!$G$7)) -> 194.2618407 | AS176: 1.72178542 | AT176: 1.549606878
A177: 8 | B177: ='Actual Accting'!B177 -> 2019-08-06 | C177: ='Actual Accting'!C177 -> 0 | D177: ='Actual Accting'!D177 -> 0 | E177: =HLOOKUP(MONTH($B177),LT!$B$93:$N$95,3) -> 184.2689654 | F177: ='Actual Accting'!F177 -> 0 | G177: - | H177: - | I177: - | J177: - | K177: - | L177: - | M177: =(E177)*LT!$G$7/LT!$A$7 -> 6.270674867 | N177: =M177*(1-LT!$G$44) -> 5.177641894 | O177: =$N177*VLOOKUP(MONTH($B177),LT!$A$13:$S$21,14) -> 1.83029641 | P177: =$N177*VLOOKUP(MONTH($B177),LT!$A$13:$S$21,15) -> 1.83029641 | Q177: =$N177*VLOOKUP(MONTH($B177),LT!$A$13:$S$21,16) -> 1.949578983 | R177: =(N177)*VLOOKUP(MONTH($B177),LT!$A$50:$C$58,2) -> 5.177641894 | S177: =MIN($O177,R177-T177-U177)*VLOOKUP(MONTH($B177),LT!$A$50:$C$58,2) -> 1.763379744 | T177: =IF(R177>0,MIN($P177,R177),"0")*VLOOKUP(MONTH($B177),LT!$A$50:$C$58,2) -> 1.83029641 | U177: =$N177*(VLOOKUP(MONTH($B177),LT!$A$27:$W$35,12))/LT!$G$7*VLOOKUP(MONTH($B177),LT!$A$50:$C$58,2) -> 1.58396574 | V177: =(N177)*VLOOKUP(MONTH($B177),LT!$A$50:$C$58,3) -> 0 | W177: =MIN($O177,V177-X177-Y177)*VLOOKUP(MONTH($B177),LT!$A$50:$C$58,3) -> 0 | X177: =IF(V177>0,MIN($P177,V177),"0")*VLOOKUP(MONTH($B177),LT!$A$50:$C$58,3) -> 0 | Y177: =$N177*(VLOOKUP(MONTH($B177),LT!$A$27:$W$35,12))/LT!$G$7*VLOOKUP(MONTH($B177),LT!$A$50:$C$58,3) -> 0 | Z177: =U177*LT!$H$79 -> 0.01979957175 | AA177: =Y177*LT!$H$80 -> 0 | AB177: 0.01979957175 | AC177: 1.58396574 | AD177: 0 | AE177: 3.779875392 | AF177: 3.41426215 | AG177: -0.3458136706 | AH177: =LT!$H$79*(S177-Z177) -> 0.02179475216 | AI177: =LT!$H$80*(W177-AA177) -> 0 | AJ177: 1.72178542 | AK177: 0 | AL177: 1.72178542 | AM177: 1 | AN177: 1.72178542 | AO177: 0 | AP177: =VLOOKUP(MONTH($B177),LT!$A$27:$W$35,21)+VLOOKUP(MONTH($B177),LT!$A$27:$W$35,22)/(1-LT!$H$80) -> 58.62340095 | AQ177: =IF(Q177=0,"-",(AC177+AD177)/(N177/LT!$G$7)) -> 194.2618407 | AS177: 1.72178542 | AT177: 1.549606878
A178: 8 | B178: ='Actual Accting'!B178 -> 2019-08-07 | C178: ='Actual Accting'!C178 -> 0 | D178: ='Actual Accting'!D178 -> 0 | E178: =HLOOKUP(MONTH($B178),LT!$B$93:$N$95,3) -> 184.2689654 | F178: ='Actual Accting'!F178 -> 0 | G178: - | H178: - | I178: - | J178: - | K178: - | L178: - | M178: =(E178)*LT!$G$7/LT!$A$7 -> 6.270674867 | N178: =M178*(1-LT!$G$44) -> 5.177641894 | O178: =$N178*VLOOKUP(MONTH($B178),LT!$A$13:$S$21,14) -> 1.83029641 | P178: =$N178*VLOOKUP(MONTH($B178),LT!$A$13:$S$21,15) -> 1.83029641 | Q178: =$N178*VLOOKUP(MONTH($B178),LT!$A$13:$S$21,16) -> 1.949578983 | R178: =(N178)*VLOOKUP(MONTH($B178),LT!$A$50:$C$58,2) -> 5.177641894 | S178: =MIN($O178,R178-T178-U178)*VLOOKUP(MONTH($B178),LT!$A$50:$C$58,2) -> 1.763379744 | T178: =IF(R178>0,MIN($P178,R178),"0")*VLOOKUP(MONTH($B178),LT!$A$50:$C$58,2) -> 1.83029641 | U178: =$N178*(VLOOKUP(MONTH($B178),LT!$A$27:$W$35,12))/LT!$G$7*VLOOKUP(MONTH($B178),LT!$A$50:$C$58,2) -> 1.58396574 | V178: =(N178)*VLOOKUP(MONTH($B178),LT!$A$50:$C$58,3) -> 0 | W178: =MIN($O178,V178-X178-Y178)*VLOOKUP(MONTH($B178),LT!$A$50:$C$58,3) -> 0 | X178: =IF(V178>0,MIN($P178,V178),"0")*VLOOKUP(MONTH($B178),LT!$A$50:$C$58,3) -> 0 | Y178: =$N178*(VLOOKUP(MONTH($B178),LT!$A$27:$W$35,12))/LT!$G$7*VLOOKUP(MONTH($B178),LT!$A$50:$C$58,3) -> 0 | Z178: =U178*LT!$H$79 -> 0.01979957175 | AA178: =Y178*LT!$H$80 -> 0 | AB178: 0.01979957175 | AC178: 1.58396574 | AD178: 0 | AE178: 3.779875392 | AF178: 3.41426215 | AG178: -0.3458136706 | AH178: =LT!$H$79*(S178-Z178) -> 0.02179475216 | AI178: =LT!$H$80*(W178-AA178) -> 0 | AJ178: 1.72178542 | AK178: 0 | AL178: 1.72178542 | AM178: 1 | AN178: 1.72178542 | AO178: 0 | AP178: =VLOOKUP(MONTH($B178),LT!$A$27:$W$35,21)+VLOOKUP(MONTH($B178),LT!$A$27:$W$35,22)/(1-LT!$H$80) -> 58.62340095 | AQ178: =IF(Q178=0,"-",(AC178+AD178)/(N178/LT!$G$7)) -> 194.2618407 | AS178: 1.72178542 | AT178: 1.549606878
A179: 8 | B179: ='Actual Accting'!B179 -> 2019-08-08 | C179: ='Actual Accting'!C179 -> 0 | D179: ='Actual Accting'!D179 -> 0 | E179: =HLOOKUP(MONTH($B179),LT!$B$93:$N$95,3) -> 184.2689654 | F179: ='Actual Accting'!F179 -> 0 | G179: - | H179: - | I179: - | J179: - | K179: - | L179: - | M179: =(E179)*LT!$G$7/LT!$A$7 -> 6.270674867 | N179: =M179*(1-LT!$G$44) -> 5.177641894 | O179: =$N179*VLOOKUP(MONTH($B179),LT!$A$13:$S$21,14) -> 1.83029641 | P179: =$N179*VLOOKUP(MONTH($B179),LT!$A$13:$S$21,15) -> 1.83029641 | Q179: =$N179*VLOOKUP(MONTH($B179),LT!$A$13:$S$21,16) -> 1.949578983 | R179: =(N179)*VLOOKUP(MONTH($B179),LT!$A$50:$C$58,2) -> 5.177641894 | S179: =MIN($O179,R179-T179-U179)*VLOOKUP(MONTH($B179),LT!$A$50:$C$58,2) -> 1.763379744 | T179: =IF(R179>0,MIN($P179,R179),"0")*VLOOKUP(MONTH($B179),LT!$A$50:$C$58,2) -> 1.83029641 | U179: =$N179*(VLOOKUP(MONTH($B179),LT!$A$27:$W$35,12))/LT!$G$7*VLOOKUP(MONTH($B179),LT!$A$50:$C$58,2) -> 1.58396574 | V179: =(N179)*VLOOKUP(MONTH($B179),LT!$A$50:$C$58,3) -> 0 | W179: =MIN($O179,V179-X179-Y179)*VLOOKUP(MONTH($B179),LT!$A$50:$C$58,3) -> 0 | X179: =IF(V179>0,MIN($P179,V179),"0")*VLOOKUP(MONTH($B179),LT!$A$50:$C$58,3) -> 0 | Y179: =$N179*(VLOOKUP(MONTH($B179),LT!$A$27:$W$35,12))/LT!$G$7*VLOOKUP(MONTH($B179),LT!$A$50:$C$58,3) -> 0 | Z179: =U179*LT!$H$79 -> 0.01979957175 | AA179: =Y179*LT!$H$80 -> 0 | AB179: 0.01979957175 | AC179: 1.58396574 | AD179: 0 | AE179: 3.779875392 | AF179: 3.41426215 | AG179: -0.3458136706 | AH179: =LT!$H$79*(S179-Z179) -> 0.02179475216 | AI179: =LT!$H$80*(W179-AA179) -> 0 | AJ179: 1.72178542 | AK179: 0 | AL179: 1.72178542 | AM179: 1 | AN179: 1.72178542 | AO179: 0 | AP179: =VLOOKUP(MONTH($B179),LT!$A$27:$W$35,21)+VLOOKUP(MONTH($B179),LT!$A$27:$W$35,22)/(1-LT!$H$80) -> 58.62340095 | AQ179: =IF(Q179=0,"-",(AC179+AD179)/(N179/LT!$G$7)) -> 194.2618407 | AS179: 1.72178542 | AT179: 1.549606878
A180: 8 | B180: ='Actual Accting'!B180 -> 2019-08-09 | C180: ='Actual Accting'!C180 -> 0 | D180: ='Actual Accting'!D180 -> 0 | E180: =HLOOKUP(MONTH($B180),LT!$B$93:$N$95,3) -> 184.2689654 | F180: ='Actual Accting'!F180 -> 0 | G180: - | H180: - | I180: - | J180: - | K180: - | L180: - | M180: =(E180)*LT!$G$7/LT!$A$7 -> 6.270674867 | N180: =M180*(1-LT!$G$44) -> 5.177641894 | O180: =$N180*VLOOKUP(MONTH($B180),LT!$A$13:$S$21,14) -> 1.83029641 | P180: =$N180*VLOOKUP(MONTH($B180),LT!$A$13:$S$21,15) -> 1.83029641 | Q180: =$N180*VLOOKUP(MONTH($B180),LT!$A$13:$S$21,16) -> 1.949578983 | R180: =(N180)*VLOOKUP(MONTH($B180),LT!$A$50:$C$58,2) -> 5.177641894 | S180: =MIN($O180,R180-T180-U180)*VLOOKUP(MONTH($B180),LT!$A$50:$C$58,2) -> 1.763379744 | T180: =IF(R180>0,MIN($P180,R180),"0")*VLOOKUP(MONTH($B180),LT!$A$50:$C$58,2) -> 1.83029641 | U180: =$N180*(VLOOKUP(MONTH($B180),LT!$A$27:$W$35,12))/LT!$G$7*VLOOKUP(MONTH($B180),LT!$A$50:$C$58,2) -> 1.58396574 | V180: =(N180)*VLOOKUP(MONTH($B180),LT!$A$50:$C$58,3) -> 0 | W180: =MIN($O180,V180-X180-Y180)*VLOOKUP(MONTH($B180),LT!$A$50:$C$58,3) -> 0 | X180: =IF(V180>0,MIN($P180,V180),"0")*VLOOKUP(MONTH($B180),LT!$A$50:$C$58,3) -> 0 | Y180: =$N180*(VLOOKUP(MONTH($B180),LT!$A$27:$W$35,12))/LT!$G$7*VLOOKUP(MONTH($B180),LT!$A$50:$C$58,3) -> 0 | Z180: =U180*LT!$H$79 -> 0.01979957175 | AA180: =Y180*LT!$H$80 -> 0 | AB180: 0.01979957175 | AC180: 1.58396574 | AD180: 0 | AE180: 3.779875392 | AF180: 3.41426215 | AG180: -0.3458136706 | AH180: =LT!$H$79*(S180-Z180) -> 0.02179475216 | AI180: =LT!$H$80*(W180-AA180) -> 0 | AJ180: 1.72178542 | AK180: 0 | AL180: 1.72178542 | AM180: 1 | AN180: 1.72178542 | AO180: 0 | AP180: =VLOOKUP(MONTH($B180),LT!$A$27:$W$35,21)+VLOOKUP(MONTH($B180),LT!$A$27:$W$35,22)/(1-LT!$H$80) -> 58.62340095 | AQ180: =IF(Q180=0,"-",(AC180+AD180)/(N180/LT!$G$7)) -> 194.2618407 | AS180: 1.72178542 | AT180: 1.549606878
A181: 8 | B181: ='Actual Accting'!B181 -> 2019-08-10 | C181: ='Actual Accting'!C181 -> 0 | D181: ='Actual Accting'!D181 -> 0 | E181: =HLOOKUP(MONTH($B181),LT!$B$93:$N$95,3) -> 184.2689654 | F181: ='Actual Accting'!F181 -> 0 | G181: - | H181: - | I181: - | J181: - | K181: - | L181: - | M181: =(E181)*LT!$G$7/LT!$A$7 -> 6.270674867 | N181: =M181*(1-LT!$G$44) -> 5.177641894 | O181: =$N181*VLOOKUP(MONTH($B181),LT!$A$13:$S$21,14) -> 1.83029641 | P181: =$N181*VLOOKUP(MONTH($B181),LT!$A$13:$S$21,15) -> 1.83029641 | Q181: =$N181*VLOOKUP(MONTH($B181),LT!$A$13:$S$21,16) -> 1.949578983 | R181: =(N181)*VLOOKUP(MONTH($B181),LT!$A$50:$C$58,2) -> 5.177641894 | S181: =MIN($O181,R181-T181-U181)*VLOOKUP(MONTH($B181),LT!$A$50:$C$58,2) -> 1.763379744 | T181: =IF(R181>0,MIN($P181,R181),"0")*VLOOKUP(MONTH($B181),LT!$A$50:$C$58,2) -> 1.83029641 | U181: =$N181*(VLOOKUP(MONTH($B181),LT!$A$27:$W$35,12))/LT!$G$7*VLOOKUP(MONTH($B181),LT!$A$50:$C$58,2) -> 1.58396574 | V181: =(N181)*VLOOKUP(MONTH($B181),LT!$A$50:$C$58,3) -> 0 | W181: =MIN($O181,V181-X181-Y181)*VLOOKUP(MONTH($B181),LT!$A$50:$C$58,3) -> 0 | X181: =IF(V181>0,MIN($P181,V181),"0")*VLOOKUP(MONTH($B181),LT!$A$50:$C$58,3) -> 0 | Y181: =$N181*(VLOOKUP(MONTH($B181),LT!$A$27:$W$35,12))/LT!$G$7*VLOOKUP(MONTH($B181),LT!$A$50:$C$58,3) -> 0 | Z181: =U181*LT!$H$79 -> 0.01979957175 | AA181: =Y181*LT!$H$80 -> 0 | AB181: 0.01979957175 | AC181: 1.58396574 | AD181: 0 | AE181: 3.779875392 | AF181: 3.41426215 | AG181: -0.3458136706 | AH181: =LT!$H$79*(S181-Z181) -> 0.02179475216 | AI181: =LT!$H$80*(W181-AA181) -> 0 | AJ181: 1.72178542 | AK181: 0 | AL181: 1.72178542 | AM181: 1 | AN181: 1.72178542 | AO181: 0 | AP181: =VLOOKUP(MONTH($B181),LT!$A$27:$W$35,21)+VLOOKUP(MONTH($B181),LT!$A$27:$W$35,22)/(1-LT!$H$80) -> 58.62340095 | AQ181: =IF(Q181=0,"-",(AC181+AD181)/(N181/LT!$G$7)) -> 194.2618407 | AS181: 1.72178542 | AT181: 1.549606878
A182: 8 | B182: ='Actual Accting'!B182 -> 2019-08-11 | C182: ='Actual Accting'!C182 -> 0 | D182: ='Actual Accting'!D182 -> 0 | E182: =HLOOKUP(MONTH($B182),LT!$B$93:$N$95,3) -> 184.2689654 | F182: ='Actual Accting'!F182 -> 0 | G182: - | H182: - | I182: - | J182: - | K182: - | L182: - | M182: =(E182)*LT!$G$7/LT!$A$7 -> 6.270674867 | N182: =M182*(1-LT!$G$44) -> 5.177641894 | O182: =$N182*VLOOKUP(MONTH($B182),LT!$A$13:$S$21,14) -> 1.83029641 | P182: =$N182*VLOOKUP(MONTH($B182),LT!$A$13:$S$21,15) -> 1.83029641 | Q182: =$N182*VLOOKUP(MONTH($B182),LT!$A$13:$S$21,16) -> 1.949578983 | R182: =(N182)*VLOOKUP(MONTH($B182),LT!$A$50:$C$58,2) -> 5.177641894 | S182: =MIN($O182,R182-T182-U182)*VLOOKUP(MONTH($B182),LT!$A$50:$C$58,2) -> 1.763379744 | T182: =IF(R182>0,MIN($P182,R182),"0")*VLOOKUP(MONTH($B182),LT!$A$50:$C$58,2) -> 1.83029641 | U182: =$N182*(VLOOKUP(MONTH($B182),LT!$A$27:$W$35,12))/LT!$G$7*VLOOKUP(MONTH($B182),LT!$A$50:$C$58,2) -> 1.58396574 | V182: =(N182)*VLOOKUP(MONTH($B182),LT!$A$50:$C$58,3) -> 0 | W182: =MIN($O182,V182-X182-Y182)*VLOOKUP(MONTH($B182),LT!$A$50:$C$58,3) -> 0 | X182: =IF(V182>0,MIN($P182,V182),"0")*VLOOKUP(MONTH($B182),LT!$A$50:$C$58,3) -> 0 | Y182: =$N182*(VLOOKUP(MONTH($B182),LT!$A$27:$W$35,12))/LT!$G$7*VLOOKUP(MONTH($B182),LT!$A$50:$C$58,3) -> 0 | Z182: =U182*LT!$H$79 -> 0.01979957175 | AA182: =Y182*LT!$H$80 -> 0 | AB182: 0.01979957175 | AC182: 1.58396574 | AD182: 0 | AE182: 3.779875392 | AF182: 3.41426215 | AG182: -0.3458136706 | AH182: =LT!$H$79*(S182-Z182) -> 0.02179475216 | AI182: =LT!$H$80*(W182-AA182) -> 0 | AJ182: 1.72178542 | AK182: 0 | AL182: 1.72178542 | AM182: 1 | AN182: 1.72178542 | AO182: 0 | AP182: =VLOOKUP(MONTH($B182),LT!$A$27:$W$35,21)+VLOOKUP(MONTH($B182),LT!$A$27:$W$35,22)/(1-LT!$H$80) -> 58.62340095 | AQ182: =IF(Q182=0,"-",(AC182+AD182)/(N182/LT!$G$7)) -> 194.2618407 | AS182: 1.72178542 | AT182: 1.549606878
A183: 8 | B183: ='Actual Accting'!B183 -> 2019-08-12 | C183: ='Actual Accting'!C183 -> 0 | D183: ='Actual Accting'!D183 -> 0 | E183: =HLOOKUP(MONTH($B183),LT!$B$93:$N$95,3) -> 184.2689654 | F183: ='Actual Accting'!F183 -> 0 | G183: - | H183: - | I183: - | J183: - | K183: - | L183: - | M183: =(E183)*LT!$G$7/LT!$A$7 -> 6.270674867 | N183: =M183*(1-LT!$G$44) -> 5.177641894 | O183: =$N183*VLOOKUP(MONTH($B183),LT!$A$13:$S$21,14) -> 1.83029641 | P183: =$N183*VLOOKUP(MONTH($B183),LT!$A$13:$S$21,15) -> 1.83029641 | Q183: =$N183*VLOOKUP(MONTH($B183),LT!$A$13:$S$21,16) -> 1.949578983 | R183: =(N183)*VLOOKUP(MONTH($B183),LT!$A$50:$C$58,2) -> 5.177641894 | S183: =MIN($O183,R183-T183-U183)*VLOOKUP(MONTH($B183),LT!$A$50:$C$58,2) -> 1.763379744 | T183: =IF(R183>0,MIN($P183,R183),"0")*VLOOKUP(MONTH($B183),LT!$A$50:$C$58,2) -> 1.83029641 | U183: =$N183*(VLOOKUP(MONTH($B183),LT!$A$27:$W$35,12))/LT!$G$7*VLOOKUP(MONTH($B183),LT!$A$50:$C$58,2) -> 1.58396574 | V183: =(N183)*VLOOKUP(MONTH($B183),LT!$A$50:$C$58,3) -> 0 | W183: =MIN($O183,V183-X183-Y183)*VLOOKUP(MONTH($B183),LT!$A$50:$C$58,3) -> 0 | X183: =IF(V183>0,MIN($P183,V183),"0")*VLOOKUP(MONTH($B183),LT!$A$50:$C$58,3) -> 0 | Y183: =$N183*(VLOOKUP(MONTH($B183),LT!$A$27:$W$35,12))/LT!$G$7*VLOOKUP(MONTH($B183),LT!$A$50:$C$58,3) -> 0 | Z183: =U183*LT!$H$79 -> 0.01979957175 | AA183: =Y183*LT!$H$80 -> 0 | AB183: 0.01979957175 | AC183: 1.58396574 | AD183: 0 | AE183: 3.779875392 | AF183: 3.41426215 | AG183: -0.3458136706 | AH183: =LT!$H$79*(S183-Z183) -> 0.02179475216 | AI183: =LT!$H$80*(W183-AA183) -> 0 | AJ183: 1.72178542 | AK183: 0 | AL183: 1.72178542 | AM183: 1 | AN183: 1.72178542 | AO183: 0 | AP183: =VLOOKUP(MONTH($B183),LT!$A$27:$W$35,21)+VLOOKUP(MONTH($B183),LT!$A$27:$W$35,22)/(1-LT!$H$80) -> 58.62340095 | AQ183: =IF(Q183=0,"-",(AC183+AD183)/(N183/LT!$G$7)) -> 194.2618407 | AS183: 1.72178542 | AT183: 1.549606878
A184: 8 | B184: ='Actual Accting'!B184 -> 2019-08-13 | C184: ='Actual Accting'!C184 -> 0 | D184: ='Actual Accting'!D184 -> 0 | E184: =HLOOKUP(MONTH($B184),LT!$B$93:$N$95,3) -> 184.2689654 | F184: ='Actual Accting'!F184 -> 0 | G184: - | H184: - | I184: - | J184: - | K184: - | L184: - | M184: =(E184)*LT!$G$7/LT!$A$7 -> 6.270674867 | N184: =M184*(1-LT!$G$44) -> 5.177641894 | O184: =$N184*VLOOKUP(MONTH($B184),LT!$A$13:$S$21,14) -> 1.83029641 | P184: =$N184*VLOOKUP(MONTH($B184),LT!$A$13:$S$21,15) -> 1.83029641 | Q184: =$N184*VLOOKUP(MONTH($B184),LT!$A$13:$S$21,16) -> 1.949578983 | R184: =(N184)*VLOOKUP(MONTH($B184),LT!$A$50:$C$58,2) -> 5.177641894 | S184: =MIN($O184,R184-T184-U184)*VLOOKUP(MONTH($B184),LT!$A$50:$C$58,2) -> 1.763379744 | T184: =IF(R184>0,MIN($P184,R184),"0")*VLOOKUP(MONTH($B184),LT!$A$50:$C$58,2) -> 1.83029641 | U184: =$N184*(VLOOKUP(MONTH($B184),LT!$A$27:$W$35,12))/LT!$G$7*VLOOKUP(MONTH($B184),LT!$A$50:$C$58,2) -> 1.58396574 | V184: =(N184)*VLOOKUP(MONTH($B184),LT!$A$50:$C$58,3) -> 0 | W184: =MIN($O184,V184-X184-Y184)*VLOOKUP(MONTH($B184),LT!$A$50:$C$58,3) -> 0 | X184: =IF(V184>0,MIN($P184,V184),"0")*VLOOKUP(MONTH($B184),LT!$A$50:$C$58,3) -> 0 | Y184: =$N184*(VLOOKUP(MONTH($B184),LT!$A$27:$W$35,12))/LT!$G$7*VLOOKUP(MONTH($B184),LT!$A$50:$C$58,3) -> 0 | Z184: =U184*LT!$H$79 -> 0.01979957175 | AA184: =Y184*LT!$H$80 -> 0 | AB184: 0.01979957175 | AC184: 1.58396574 | AD184: 0 | AE184: 3.779875392 | AF184: 3.41426215 | AG184: -0.3458136706 | AH184: =LT!$H$79*(S184-Z184) -> 0.02179475216 | AI184: =LT!$H$80*(W184-AA184) -> 0 | AJ184: 1.72178542 | AK184: 0 | AL184: 1.72178542 | AM184: 1 | AN184: 1.72178542 | AO184: 0 | AP184: =VLOOKUP(MONTH($B184),LT!$A$27:$W$35,21)+VLOOKUP(MONTH($B184),LT!$A$27:$W$35,22)/(1-LT!$H$80) -> 58.62340095 | AQ184: =IF(Q184=0,"-",(AC184+AD184)/(N184/LT!$G$7)) -> 194.2618407 | AS184: 1.72178542 | AT184: 1.549606878
A185: 8 | B185: ='Actual Accting'!B185 -> 2019-08-14 | C185: ='Actual Accting'!C185 -> 0 | D185: ='Actual Accting'!D185 -> 0 | E185: =HLOOKUP(MONTH($B185),LT!$B$93:$N$95,3) -> 184.2689654 | F185: ='Actual Accting'!F185 -> 0 | G185: - | H185: - | I185: - | J185: - | K185: - | L185: - | M185: =(E185)*LT!$G$7/LT!$A$7 -> 6.270674867 | N185: =M185*(1-LT!$G$44) -> 5.177641894 | O185: =$N185*VLOOKUP(MONTH($B185),LT!$A$13:$S$21,14) -> 1.83029641 | P185: =$N185*VLOOKUP(MONTH($B185),LT!$A$13:$S$21,15) -> 1.83029641 | Q185: =$N185*VLOOKUP(MONTH($B185),LT!$A$13:$S$21,16) -> 1.949578983 | R185: =(N185)*VLOOKUP(MONTH($B185),LT!$A$50:$C$58,2) -> 5.177641894 | S185: =MIN($O185,R185-T185-U185)*VLOOKUP(MONTH($B185),LT!$A$50:$C$58,2) -> 1.763379744 | T185: =IF(R185>0,MIN($P185,R185),"0")*VLOOKUP(MONTH($B185),LT!$A$50:$C$58,2) -> 1.83029641 | U185: =$N185*(VLOOKUP(MONTH($B185),LT!$A$27:$W$35,12))/LT!$G$7*VLOOKUP(MONTH($B185),LT!$A$50:$C$58,2) -> 1.58396574 | V185: =(N185)*VLOOKUP(MONTH($B185),LT!$A$50:$C$58,3) -> 0 | W185: =MIN($O185,V185-X185-Y185)*VLOOKUP(MONTH($B185),LT!$A$50:$C$58,3) -> 0 | X185: =IF(V185>0,MIN($P185,V185),"0")*VLOOKUP(MONTH($B185),LT!$A$50:$C$58,3) -> 0 | Y185: =$N185*(VLOOKUP(MONTH($B185),LT!$A$27:$W$35,12))/LT!$G$7*VLOOKUP(MONTH($B185),LT!$A$50:$C$58,3) -> 0 | Z185: =U185*LT!$H$79 -> 0.01979957175 | AA185: =Y185*LT!$H$80 -> 0 | AB185: 0.01979957175 | AC185: 1.58396574 | AD185: 0 | AE185: 3.779875392 | AF185: 3.41426215 | AG185: -0.3458136706 | AH185: =LT!$H$79*(S185-Z185) -> 0.02179475216 | AI185: =LT!$H$80*(W185-AA185) -> 0 | AJ185: 1.72178542 | AK185: 0 | AL185: 1.72178542 | AM185: 1 | AN185: 1.72178542 | AO185: 0 | AP185: =VLOOKUP(MONTH($B185),LT!$A$27:$W$35,21)+VLOOKUP(MONTH($B185),LT!$A$27:$W$35,22)/(1-LT!$H$80) -> 58.62340095 | AQ185: =IF(Q185=0,"-",(AC185+AD185)/(N185/LT!$G$7)) -> 194.2618407 | AS185: 1.72178542 | AT185: 1.549606878
A186: 8 | B186: ='Actual Accting'!B186 -> 2019-08-15 | C186: ='Actual Accting'!C186 -> 0 | D186: ='Actual Accting'!D186 -> 0 | E186: =HLOOKUP(MONTH($B186),LT!$B$93:$N$95,3) -> 184.2689654 | F186: ='Actual Accting'!F186 -> 0 | G186: - | H186: - | I186: - | J186: - | K186: - | L186: - | M186: =(E186)*LT!$G$7/LT!$A$7 -> 6.270674867 | N186: =M186*(1-LT!$G$44) -> 5.177641894 | O186: =$N186*VLOOKUP(MONTH($B186),LT!$A$13:$S$21,14) -> 1.83029641 | P186: =$N186*VLOOKUP(MONTH($B186),LT!$A$13:$S$21,15) -> 1.83029641 | Q186: =$N186*VLOOKUP(MONTH($B186),LT!$A$13:$S$21,16) -> 1.949578983 | R186: =(N186)*VLOOKUP(MONTH($B186),LT!$A$50:$C$58,2) -> 5.177641894 | S186: =MIN($O186,R186-T186-U186)*VLOOKUP(MONTH($B186),LT!$A$50:$C$58,2) -> 1.763379744 | T186: =IF(R186>0,MIN($P186,R186),"0")*VLOOKUP(MONTH($B186),LT!$A$50:$C$58,2) -> 1.83029641 | U186: =$N186*(VLOOKUP(MONTH($B186),LT!$A$27:$W$35,12))/LT!$G$7*VLOOKUP(MONTH($B186),LT!$A$50:$C$58,2) -> 1.58396574 | V186: =(N186)*VLOOKUP(MONTH($B186),LT!$A$50:$C$58,3) -> 0 | W186: =MIN($O186,V186-X186-Y186)*VLOOKUP(MONTH($B186),LT!$A$50:$C$58,3) -> 0 | X186: =IF(V186>0,MIN($P186,V186),"0")*VLOOKUP(MONTH($B186),LT!$A$50:$C$58,3) -> 0 | Y186: =$N186*(VLOOKUP(MONTH($B186),LT!$A$27:$W$35,12))/LT!$G$7*VLOOKUP(MONTH($B186),LT!$A$50:$C$58,3) -> 0 | Z186: =U186*LT!$H$79 -> 0.01979957175 | AA186: =Y186*LT!$H$80 -> 0 | AB186: 0.01979957175 | AC186: 1.58396574 | AD186: 0 | AE186: 3.779875392 | AF186: 3.41426215 | AG186: -0.3458136706 | AH186: =LT!$H$79*(S186-Z186) -> 0.02179475216 | AI186: =LT!$H$80*(W186-AA186) -> 0 | AJ186: 1.72178542 | AK186: 0 | AL186: 1.72178542 | AM186: 1 | AN186: 1.72178542 | AO186: 0 | AP186: =VLOOKUP(MONTH($B186),LT!$A$27:$W$35,21)+VLOOKUP(MONTH($B186),LT!$A$27:$W$35,22)/(1-LT!$H$80) -> 58.62340095 | AQ186: =IF(Q186=0,"-",(AC186+AD186)/(N186/LT!$G$7)) -> 194.2618407 | AS186: 1.72178542 | AT186: 1.549606878
A187: 8 | B187: ='Actual Accting'!B187 -> 2019-08-16 | C187: ='Actual Accting'!C187 -> 0 | D187: ='Actual Accting'!D187 -> 0 | E187: =HLOOKUP(MONTH($B187),LT!$B$93:$N$95,3) -> 184.2689654 | F187: ='Actual Accting'!F187 -> 0 | G187: - | H187: - | I187: - | J187: - | K187: - | L187: - | M187: =(E187)*LT!$G$7/LT!$A$7 -> 6.270674867 | N187: =M187*(1-LT!$G$44) -> 5.177641894 | O187: =$N187*VLOOKUP(MONTH($B187),LT!$A$13:$S$21,14) -> 1.83029641 | P187: =$N187*VLOOKUP(MONTH($B187),LT!$A$13:$S$21,15) -> 1.83029641 | Q187: =$N187*VLOOKUP(MONTH($B187),LT!$A$13:$S$21,16) -> 1.949578983 | R187: =(N187)*VLOOKUP(MONTH($B187),LT!$A$50:$C$58,2) -> 5.177641894 | S187: =MIN($O187,R187-T187-U187)*VLOOKUP(MONTH($B187),LT!$A$50:$C$58,2) -> 1.763379744 | T187: =IF(R187>0,MIN($P187,R187),"0")*VLOOKUP(MONTH($B187),LT!$A$50:$C$58,2) -> 1.83029641 | U187: =$N187*(VLOOKUP(MONTH($B187),LT!$A$27:$W$35,12))/LT!$G$7*VLOOKUP(MONTH($B187),LT!$A$50:$C$58,2) -> 1.58396574 | V187: =(N187)*VLOOKUP(MONTH($B187),LT!$A$50:$C$58,3) -> 0 | W187: =MIN($O187,V187-X187-Y187)*VLOOKUP(MONTH($B187),LT!$A$50:$C$58,3) -> 0 | X187: =IF(V187>0,MIN($P187,V187),"0")*VLOOKUP(MONTH($B187),LT!$A$50:$C$58,3) -> 0 | Y187: =$N187*(VLOOKUP(MONTH($B187),LT!$A$27:$W$35,12))/LT!$G$7*VLOOKUP(MONTH($B187),LT!$A$50:$C$58,3) -> 0 | Z187: =U187*LT!$H$79 -> 0.01979957175 | AA187: =Y187*LT!$H$80 -> 0 | AB187: 0.01979957175 | AC187: 1.58396574 | AD187: 0 | AE187: 3.779875392 | AF187: 3.41426215 | AG187: -0.3458136706 | AH187: =LT!$H$79*(S187-Z187) -> 0.02179475216 | AI187: =LT!$H$80*(W187-AA187) -> 0 | AJ187: 1.72178542 | AK187: 0 | AL187: 1.72178542 | AM187: 1 | AN187: 1.72178542 | AO187: 0 | AP187: =VLOOKUP(MONTH($B187),LT!$A$27:$W$35,21)+VLOOKUP(MONTH($B187),LT!$A$27:$W$35,22)/(1-LT!$H$80) -> 58.62340095 | AQ187: =IF(Q187=0,"-",(AC187+AD187)/(N187/LT!$G$7)) -> 194.2618407 | AS187: 1.72178542 | AT187: 1.549606878
A188: 8 | B188: ='Actual Accting'!B188 -> 2019-08-17 | C188: ='Actual Accting'!C188 -> 0 | D188: ='Actual Accting'!D188 -> 0 | E188: =HLOOKUP(MONTH($B188),LT!$B$93:$N$95,3) -> 184.2689654 | F188: ='Actual Accting'!F188 -> 0 | G188: - | H188: - | I188: - | J188: - | K188: - | L188: - | M188: =(E188)*LT!$G$7/LT!$A$7 -> 6.270674867 | N188: =M188*(1-LT!$G$44) -> 5.177641894 | O188: =$N188*VLOOKUP(MONTH($B188),LT!$A$13:$S$21,14) -> 1.83029641 | P188: =$N188*VLOOKUP(MONTH($B188),LT!$A$13:$S$21,15) -> 1.83029641 | Q188: =$N188*VLOOKUP(MONTH($B188),LT!$A$13:$S$21,16) -> 1.949578983 | R188: =(N188)*VLOOKUP(MONTH($B188),LT!$A$50:$C$58,2) -> 5.177641894 | S188: =MIN($O188,R188-T188-U188)*VLOOKUP(MONTH($B188),LT!$A$50:$C$58,2) -> 1.763379744 | T188: =IF(R188>0,MIN($P188,R188),"0")*VLOOKUP(MONTH($B188),LT!$A$50:$C$58,2) -> 1.83029641 | U188: =$N188*(VLOOKUP(MONTH($B188),LT!$A$27:$W$35,12))/LT!$G$7*VLOOKUP(MONTH($B188),LT!$A$50:$C$58,2) -> 1.58396574 | V188: =(N188)*VLOOKUP(MONTH($B188),LT!$A$50:$C$58,3) -> 0 | W188: =MIN($O188,V188-X188-Y188)*VLOOKUP(MONTH($B188),LT!$A$50:$C$58,3) -> 0 | X188: =IF(V188>0,MIN($P188,V188),"0")*VLOOKUP(MONTH($B188),LT!$A$50:$C$58,3) -> 0 | Y188: =$N188*(VLOOKUP(MONTH($B188),LT!$A$27:$W$35,12))/LT!$G$7*VLOOKUP(MONTH($B188),LT!$A$50:$C$58,3) -> 0 | Z188: =U188*LT!$H$79 -> 0.01979957175 | AA188: =Y188*LT!$H$80 -> 0 | AB188: 0.01979957175 | AC188: 1.58396574 | AD188: 0 | AE188: 3.779875392 | AF188: 3.41426215 | AG188: -0.3458136706 | AH188: =LT!$H$79*(S188-Z188) -> 0.02179475216 | AI188: =LT!$H$80*(W188-AA188) -> 0 | AJ188: 1.72178542 | AK188: 0 | AL188: 1.72178542 | AM188: 1 | AN188: 1.72178542 | AO188: 0 | AP188: =VLOOKUP(MONTH($B188),LT!$A$27:$W$35,21)+VLOOKUP(MONTH($B188),LT!$A$27:$W$35,22)/(1-LT!$H$80) -> 58.62340095 | AQ188: =IF(Q188=0,"-",(AC188+AD188)/(N188/LT!$G$7)) -> 194.2618407 | AS188: 1.72178542 | AT188: 1.549606878
